Workbook

Sheet Disclaimer
A17: Introduction and Disclaimer

Sheet Model Notes (hidden)
A1: Model Notes
A3: Fixed Expected Return (Worksheet)
A4: This model supports the case studies which assume a fixed degree of expected performance (i.e. independent of the level of tracking error). The investment strategy re-assessment process works as follows for any single performance series (a performance series is a single 8-year performance test - there are constantly 8 performance series active in an overlapping series model): Step 1: Simulate performance. Step 2: Assess the minimum amount of remaining performance required to pass the performance test over the full year period. Step 3: Assess the probability of passing the performance given time remaining, expected outperformance, and the current level of tracking error (volatility). Step 4: Calculate the appropriate tracking error target to restore the targeted level ('threshold probability') of passing the performance test. Note that a ceiling level of tracking error is put in place (recognising that a brand new series will be targeting this level) and we do not allow for trustees to 'swing for home runs' when they are well behind in the performance test. The formula for this is based off z-scores. Step 1 then applies again, linking to the tracking error target determined in Step 4. The model extends across the page to allow for overlapping series (i.e. every year there is a new series and a single year of performance will impact 8 different performance series). In this case the appropriate tracking error is the minimum of those calculated for each series. The model extends further into time to enable us to assess outcomes once the application of the test has become seasoned. Two important statistics are produced: 1. Estimated probability of not exceeding threshold: no strategy changes permitted: this is for a single 8yr window and can be calculated with a formula. 2. Estimated probability of no change in strategy over rolling 8 years: this is based on the seasoned, overlapping model and is based on simulations. The chart represents 100 of the 1,000 simulations undertaken. It tracks the targeted level of volatility accounting for overlapping series in a seasoned environment.
A6: Information Ratio (Worksheet)
A7: This model supports the case studies which links expected active returns to the level of active risk through an information ratio. The model works the same way as the one in the "Fixed Expected Return" worksheet. We note that the appropriate tracking error target becomes unstable for lower levels of threshold probability (i.e. <80%).
A9: Information Ratio (Worksheet)
A10: This model underpins the research which estimates the opportunity cost to consumers associated with the YFYS performance test. The model is reasonably simple.

Sheet Fixed Expected Return (hidden)
B2: Key | F2: Case Study - Through-Time Tracking Error Management
B3: Input required
B4: Automatic calculations | F4: E(Ret) | G4: 0.005 | I4: Estimated probability of not exceeding threshold: no strategy changes permitted | N4: Estimated probability of no change in strategy over rolling 8 years
B5: Results | F5: Ann Std Dev (Total) | G5: 0.022 | I5: =1-_xlfn.NORM.DIST($G$6,$G$4,$G$5/SQRT(8),TRUE) -> 0.9007171526 | N5: =OO22/1000 -> 0.01
F6: Threshold | G6: -0.005
F7: Threshold Probability | G7: 0.9
F8: Associated z-score | G8: =_xlfn.NORM.INV((1-G7),0,1) -> -1.281551566
OY18: Probability of no change | PB18: =OZ22/1000 -> 0.394
OF21: Rolling 8yr cycle which has been seasoned | ON21: Yes | OO21: =COUNTIF(OO26:OO1025, "=Yes") -> 990 | OQ21: Special case of the lifecycle of a new 8yr product | OY21: Yes | OZ21: =COUNTIF(OZ26:OZ1025, "=Yes") -> 606
ON22: No | OO22: =1000-OO21 -> 10 | OY22: No | OZ22: =1000-OZ21 -> 394
I24: Series 1 - Year 1 | P24: Series 1 - Year 2 | S24: Series 2 - Year 1 | AB24: Series 1 - Year 3 | AE24: Series 2 - Year 2 | AH24: Series 3 - Year 1 | AR24: Series 1 - Year 4 | AU24: Series 2 - Year 3 | AX24: Series 3 - Year 2 | BA24: Series 4 - Year 1 | BL24: Series 1 - Year 5 | BO24: Series 2 - Year 4 | BR24: Series 3 - Year 3 | BU24: Series 4 - Year 2 | BX24: Series 5 - Year 1 | CJ24: Series 1 - Year 6 | CM24: Series 2 - Year 5 | CP24: Series 3 - Year 4 | CS24: Series 4 - Year 3 | CV24: Series 5 - Year 2 | CY24: Series 6 - Year 1 | DL24: Series 1 - Year 7 | DO24: Series 2 - Year 6 | DR24: Series 3 - Year 5 | DU24: Series 4 - Year 4 | DX24: Series 5 - Year 3 | EA24: Series 6 - Year 2 | ED24: Series 7 - Year 1 | ER24: Series 2 - Year 7 | EU24: Series 3 - Year 6 | EX24: Series 4 - Year 5 | FA24: Series 5 - Year 4 | FD24: Series 6 - Year 3 | FG24: Series 7 - Year 2 | FJ24: Series 8 - Year 1 | FX24: Series 3 - Year 7 | GA24: Series 4 - Year 6 | GD24: Series 5 - Year 5 | GG24: Series 6 - Year 4 | GJ24: Series 7 - Year 3 | GM24: Series 8 - Year 2 | GP24: Series 9 - Year 1 | HD24: Series 4 - Year 7 | HG24: Series 5 - Year 6 | HJ24: Series 6 - Year 5 | HM24: Series 7 - Year 4 | HP24: Series 8 - Year 3 | HS24: Series 9 - Year 2 | HV24: Series 10 - Year 1 | IJ24: Series 5 - Year 7 | IM24: Series 6 - Year 6 | IP24: Series 7 - Year 5 | IS24: Series 8 - Year 4 | IV24: Series 9 - Year 3 | IY24: Series 10 - Year 2 | JB24: Series 11 - Year 1 | JP24: Series 6 - Year 7 | JS24: Series 7 - Year 6 | JV24: Series 8 - Year 5 | JY24: Series 9 - Year 4 | KB24: Series 10 - Year 3 | KE24: Series 11 - Year 2 | KH24: Series 12 - Year 1 | KV24: Series 7 - Year 7 | KY24: Series 8 - Year 6 | LB24: Series 9 - Year 5 | LE24: Series 10 - Year 4 | LH24: Series 11 - Year 3 | LK24: Series 12 - Year 2 | LN24: Series 13 - Year 1 | MB24: Series 8 - Year 7 | ME24: Series 9 - Year 6 | MH24: Series 10 - Year 5 | MK24: Series 11 - Year 4 | MN24: Series 12 - Year 3 | MQ24: Series 13 - Year 2 | MT24: Series 14 - Year 1 | NH24: Series 9 - Year 7 | NK24: Series 10 - Year 6 | NN24: Series 11 - Year 5 | NQ24: Series 12 - Year 4 | NT24: Series 13 - Year 3 | NW24: Series 14 - Year 2 | NZ24: Series 15 - Year 1 | OF24: Start of Year Volatilities | OQ24: Start of Year Volatilities
G25: Performance | H25: Series 1 Index | I25: Min. Required Perf. | J25: Likelihood of Passing | K25: Reviewed Volatility | M25: Performance | N25: Series 1 - Year 2 Index | O25: Series 2 - Year 1 Index | P25: Min. Required Perf. | Q25: Likelihood of Passing | R25: Reviewed Volatility | S25: Min. Required Perf. | T25: Likelihood of Passing | U25: Reviewed Volatility | V25: Final Volatility | X25: Performance | Y25: Series 1 - Year 3 Index | Z25: Series 2 - Year 2 Index | AA25: Series 3 - Year 1 Index | AB25: Min. Required Perf. | AC25: Likelihood of Passing | AD25: Reviewed Volatility | AE25: Min. Required Perf. | AF25: Likelihood of Passing | AG25: Reviewed Volatility | AH25: Min. Required Perf. | AI25: Likelihood of Passing | AJ25: Reviewed Volatility | AK25: Final Volatility | AM25: Performance | AN25: Series 1 - Year 4 Index | AO25: Series 2 - Year 3 Index | AP25: Series 3 - Year 2 Index | AQ25: Series 4 - Year 1 Index | AR25: Min. Required Perf. | AS25: Likelihood of Passing | AT25: Reviewed Volatility | AU25: Min. Required Perf. | AV25: Likelihood of Passing | AW25: Reviewed Volatility | AX25: Min. Required Perf. | AY25: Likelihood of Passing | AZ25: Reviewed Volatility | BA25: Min. Required Perf. | BB25: Likelihood of Passing | BC25: Reviewed Volatility | BD25: Final Volatility | BF25: Performance | BG25: Series 1 - Year 5 Index | BH25: Series 2 - Year 4 Index | BI25: Series 3 - Year 3 Index | BJ25: Series 4 - Year 2 Index | BK25: Series 5 - Year 1 Index | BL25: Min. Required Perf. | BM25: Likelihood of Passing | BN25: Reviewed Volatility | BO25: Min. Required Perf. | BP25: Likelihood of Passing | BQ25: Reviewed Volatility | BR25: Min. Required Perf. | BS25: Likelihood of Passing | BT25: Reviewed Volatility | BU25: Min. Required Perf. | BV25: Likelihood of Passing | BW25: Reviewed Volatility | BX25: Min. Required Perf. | BY25: Likelihood of Passing | BZ25: Reviewed Volatility | CA25: Final Volatility | CC25: Performance | CD25: Series 1 - Year 6 Index | CE25: Series 2 - Year 5 Index | CF25: Series 3 - Year 4 Index | CG25: Series 4 - Year 3 Index | CH25: Series 5 - Year 2 Index | CI25: Series 6 - Year 1 Index | CJ25: Min. Required Perf. | CK25: Likelihood of Passing | CL25: Reviewed Volatility | CM25: Min. Required Perf. | CN25: Likelihood of Passing | CO25: Reviewed Volatility | CP25: Min. Required Perf. | CQ25: Likelihood of Passing | CR25: Reviewed Volatility | CS25: Min. Required Perf. | CT25: Likelihood of Passing | CU25: Reviewed Volatility | CV25: Min. Required Perf. | CW25: Likelihood of Passing | CX25: Reviewed Volatility | CY25: Min. Required Perf. | CZ25: Likelihood of Passing | DA25: Reviewed Volatility | DB25: Final Volatility | DD25: Performance | DE25: Series 1 - Year 7 Index | DF25: Series 2 - Year 6 Index | DG25: Series 3 - Year 5 Index | DH25: Series 4 - Year 4 Index | DI25: Series 5 - Year 3 Index | DJ25: Series 6 - Year 2 Index | DK25: Series 7 - Year 1 Index | DL25: Min. Required Perf. | DM25: Likelihood of Passing | DN25: Reviewed Volatility | DO25: Min. Required Perf. | DP25: Likelihood of Passing | DQ25: Reviewed Volatility | DR25: Min. Required Perf. | DS25: Likelihood of Passing | DT25: Reviewed Volatility | DU25: Min. Required Perf. | DV25: Likelihood of Passing | DW25: Reviewed Volatility | DX25: Min. Required Perf. | DY25: Likelihood of Passing | DZ25: Reviewed Volatility | EA25: Min. Required Perf. | EB25: Likelihood of Passing | EC25: Reviewed Volatility | ED25: Min. Required Perf. | EE25: Likelihood of Passing | EF25: Reviewed Volatility | EG25: Final Volatility | EI25: Performance | EJ25: Series 1 - Year 8 Index | EK25: Series 2 - Year 7 Index | EL25: Series 3 - Year 6 Index | EM25: Series 4 - Year 5 Index | EN25: Series 5 - Year 4 Index | EO25: Series 6 - Year 3 Index | EP25: Series 7 - Year 2 Index | EQ25: Series 8 - Year 1 Index | ER25: Min. Required Perf. | ES25: Likelihood of Passing | ET25: Reviewed Volatility | EU25: Min. Required Perf. | EV25: Likelihood of Passing | EW25: Reviewed Volatility | EX25: Min. Required Perf. | EY25: Likelihood of Passing | EZ25: Reviewed Volatility | FA25: Min. Required Perf. | FB25: Likelihood of Passing | FC25: Reviewed Volatility | FD25: Min. Required Perf. | FE25: Likelihood of Passing | FF25: Reviewed Volatility | FG25: Min. Required Perf. | FH25: Likelihood of Passing | FI25: Reviewed Volatility | FJ25: Min. Required Perf. | FK25: Likelihood of Passing | FL25: Reviewed Volatility | FM25: Final Volatility | FO25: Performance | FP25: Series 2 - Year 8 Index | FQ25: Series 3 - Year 7 Index | FR25: Series 4 - Year 6 Index | FS25: Series 5 - Year 5 Index | FT25: Series 6 - Year 4 Index | FU25: Series 7 - Year 3 Index | FV25: Series 8 - Year 2 Index | FW25: Series 9 - Year 1 Index | FX25: Min. Required Perf. | FY25: Likelihood of Passing | FZ25: Reviewed Volatility | GA25: Min. Required Perf. | GB25: Likelihood of Passing | GC25: Reviewed Volatility | GD25: Min. Required Perf. | GE25: Likelihood of Passing | GF25: Reviewed Volatility | GG25: Min. Required Perf. | GH25: Likelihood of Passing | GI25: Reviewed Volatility | GJ25: Min. Required Perf. | GK25: Likelihood of Passing | GL25: Reviewed Volatility | GM25: Min. Required Perf. | GN25: Likelihood of Passing | GO25: Reviewed Volatility | GP25: Min. Required Perf. | GQ25: Likelihood of Passing | GR25: Reviewed Volatility | GS25: Final Volatility | GU25: Performance | GV25: Series 3 - Year 8 Index | GW25: Series 4 - Year 7 Index | GX25: Series 5 - Year 6 Index | GY25: Series 6 - Year 5 Index | GZ25: Series 7 - Year 4 Index | HA25: Series 8 - Year 3 Index | HB25: Series 9 - Year 2 Index | HC25: Series 10 - Year 1 Index | HD25: Min. Required Perf. | HE25: Likelihood of Passing | HF25: Reviewed Volatility | HG25: Min. Required Perf. | HH25: Likelihood of Passing | HI25: Reviewed Volatility | HJ25: Min. Required Perf. | HK25: Likelihood of Passing | HL25: Reviewed Volatility | HM25: Min. Required Perf. | HN25: Likelihood of Passing | HO25: Reviewed Volatility | HP25: Min. Required Perf. | HQ25: Likelihood of Passing | HR25: Reviewed Volatility | HS25: Min. Required Perf. | HT25: Likelihood of Passing | HU25: Reviewed Volatility | HV25: Min. Required Perf. | HW25: Likelihood of Passing | HX25: Reviewed Volatility | HY25: Final Volatility | IA25: Performance | IB25: Series 4 - Year 8 Index | IC25: Series 5 - Year 7 Index | ID25: Series 6 - Year 6 Index | IE25: Series 7 - Year 5 Index | IF25: Series 8 - Year 4 Index | IG25: Series 9 - Year 3 Index | IH25: Series 10 - Year 2 Index | II25: Series 11 - Year 1 Index | IJ25: Min. Required Perf. | IK25: Likelihood of Passing | IL25: Reviewed Volatility | IM25: Min. Required Perf. | IN25: Likelihood of Passing | IO25: Reviewed Volatility | IP25: Min. Required Perf. | IQ25: Likelihood of Passing | IR25: Reviewed Volatility | IS25: Min. Required Perf. | IT25: Likelihood of Passing | IU25: Reviewed Volatility | IV25: Min. Required Perf. | IW25: Likelihood of Passing | IX25: Reviewed Volatility | IY25: Min. Required Perf. | IZ25: Likelihood of Passing | JA25: Reviewed Volatility | JB25: Min. Required Perf. | JC25: Likelihood of Passing | JD25: Reviewed Volatility | JE25: Final Volatility | JG25: Performance | JH25: Series 5 - Year 8 Index | JI25: Series 6 - Year 7 Index | JJ25: Series 7 - Year 6 Index | JK25: Series 8 - Year 5 Index | JL25: Series 9 - Year 4 Index | JM25: Series 10 - Year 3 Index | JN25: Series 11 - Year 2 Index | JO25: Series 12 - Year 1 Index | JP25: Min. Required Perf. | JQ25: Likelihood of Passing | JR25: Reviewed Volatility | JS25: Min. Required Perf. | JT25: Likelihood of Passing | JU25: Reviewed Volatility | JV25: Min. Required Perf. | JW25: Likelihood of Passing | JX25: Reviewed Volatility | JY25: Min. Required Perf. | JZ25: Likelihood of Passing | KA25: Reviewed Volatility | KB25: Min. Required Perf. | KC25: Likelihood of Passing | KD25: Reviewed Volatility | KE25: Min. Required Perf. | KF25: Likelihood of Passing | KG25: Reviewed Volatility | KH25: Min. Required Perf. | KI25: Likelihood of Passing | KJ25: Reviewed Volatility | KK25: Final Volatility | KM25: Performance | KN25: Series 6 - Year 8 Index | KO25: Series 7 - Year 7 Index | KP25: Series 8 - Year 6 Index | KQ25: Series 9 - Year 5 Index | KR25: Series 10 - Year 4 Index | KS25: Series 11 - Year 3 Index | KT25: Series 12 - Year 2 Index | KU25: Series 13 - Year 1 Index | KV25: Min. Required Perf. | KW25: Likelihood of Passing | KX25: Reviewed Volatility | KY25: Min. Required Perf. | KZ25: Likelihood of Passing | LA25: Reviewed Volatility | LB25: Min. Required Perf. | LC25: Likelihood of Passing | LD25: Reviewed Volatility | LE25: Min. Required Perf. | LF25: Likelihood of Passing | LG25: Reviewed Volatility | LH25: Min. Required Perf. | LI25: Likelihood of Passing | LJ25: Reviewed Volatility | LK25: Min. Required Perf. | LL25: Likelihood of Passing | LM25: Reviewed Volatility | LN25: Min. Required Perf. | LO25: Likelihood of Passing | LP25: Reviewed Volatility | LQ25: Final Volatility | LS25: Performance | LT25: Series 7 - Year 8 Index | LU25: Series 8 - Year 7 Index | LV25: Series 9 - Year 6 Index | LW25: Series 10 - Year 5 Index | LX25: Series 11 - Year 4 Index | LY25: Series 12 - Year 3 Index | LZ25: Series 13 - Year 2 Index | MA25: Series 14 - Year 1 Index | MB25: Min. Required Perf. | MC25: Likelihood of Passing | MD25: Reviewed Volatility | ME25: Min. Required Perf. | MF25: Likelihood of Passing | MG25: Reviewed Volatility | MH25: Min. Required Perf. | MI25: Likelihood of Passing | MJ25: Reviewed Volatility | MK25: Min. Required Perf. | ML25: Likelihood of Passing | MM25: Reviewed Volatility | MN25: Min. Required Perf. | MO25: Likelihood of Passing | MP25: Reviewed Volatility | MQ25: Min. Required Perf. | MR25: Likelihood of Passing | MS25: Reviewed Volatility | MT25: Min. Required Perf. | MU25: Likelihood of Passing | MV25: Reviewed Volatility | MW25: Final Volatility | MY25: Performance | MZ25: Series 8 - Year 8 Index | NA25: Series 9 - Year 7 Index | NB25: Series 10 - Year 6 Index | NC25: Series 11 - Year 5 Index | ND25: Series 12 - Year 4 Index | NE25: Series 13 - Year 3 Index | NF25: Series 14 - Year 2 Index | NG25: Series 15 - Year 1 Index | NH25: Min. Required Perf. | NI25: Likelihood of Passing | NJ25: Reviewed Volatility | NK25: Min. Required Perf. | NL25: Likelihood of Passing | NM25: Reviewed Volatility | NN25: Min. Required Perf. | NO25: Likelihood of Passing | NP25: Reviewed Volatility | NQ25: Min. Required Perf. | NR25: Likelihood of Passing | NS25: Reviewed Volatility | NT25: Min. Required Perf. | NU25: Likelihood of Passing | NV25: Reviewed Volatility | NW25: Min. Required Perf. | NX25: Likelihood of Passing | NY25: Reviewed Volatility | NZ25: Min. Required Perf. | OA25: Likelihood of Passing | OB25: Reviewed Volatility | OC25: Final Volatility | OF25: Year 1 | OG25: Year 2 | OH25: Year 3 | OI25: Year 4 | OJ25: Year 5 | OK25: Year 6 | OL25: Year 7 | OM25: Year 8 | OO25: Change | OQ25: Year 1 | OR25: Year 2 | OS25: Year 3 | OT25: Year 4 | OU25: Year 5 | OV25: Year 6 | OW25: Year 7 | OX25: Year 8 | OZ25: Change
F26: 1 | G26: 0.02 | H26: =100*(1+G26) -> 102 | I26: =(((100*(1+8*$G$6))-H26)/100)/7 -> -0.008571428571 | J26: =1-_xlfn.NORM.DIST(I26,$G$4,$G$5/SQRT(7),TRUE) -> 0.9486728232 | K26: =MAX(MIN(SQRT(7)*(I26-$G$4)/$G$8,$G$5),0.01%) -> 0.022 | M26: =_xlfn.NORM.INV(RAND(),$G$4,K26) -> -0.01096229865 | N26: =IF(M26="","",H26*(1+M26)) -> 100.8818455 | O26: =100*(1+M26) -> 98.90377014 | P26: =(((100*(1+8*$G$6))-N26)/100)/6 -> -0.00813640923 | Q26: =1-_xlfn.NORM.DIST(P26,$G$4,$G$5/SQRT(6),TRUE) -> 0.928213433 | R26: =MAX(MIN(SQRT(6)*(P26-$G$4)/$G$8,$G$5),0.01%) -> 0.022 | S26: =(((100*(1+8*$G$6))-O26)/100)/7 -> -0.004148243051 | T26: =1-_xlfn.NORM.DIST(S26,$G$4,$G$5/SQRT(7),TRUE) -> 0.8643733074 | U26: =MAX(MIN(SQRT(7)*(S26-$G$4)/$G$8,$G$5),0.01%) -> 0.01888646286 | V26: =MIN(R26,U26) -> 0.01888646286 | X26: =_xlfn.NORM.INV(RAND(),$G$4,V26) -> 0.01982407814 | Y26: =IF(X26="","",N26*(1+X26)) -> 102.8817351 | Z26: =(1+X26)*O26 -> 100.8644462 | AA26: =100*(1+X26) -> 101.9824078 | AB26: =(((100*(1+8*$G$6))-Y26)/100)/5 -> -0.01376347025 | AC26: =1-_xlfn.NORM.DIST(AB26,$G$4,$G$5/SQRT(5),TRUE) -> 0.9717467541 | AD26: =MAX(MIN(SQRT(5)*(AB26-$G$4)/$G$8,$G$5),0.01%) -> 0.022 | AE26: =(((100*(1+8*$G$6))-Z26)/100)/6 -> -0.008107410339 | AF26: =1-_xlfn.NORM.DIST(AE26,$G$4,$G$5/SQRT(6),TRUE) -> 0.9277703963 | AG26: =MAX(MIN(SQRT(6)*(AE26-$G$4)/$G$8,$G$5),0.01%) -> 0.022 | AH26: =(((100*(1+8*$G$6))-AA26)/100)/7 -> -0.008546296878 | AI26: =1-_xlfn.NORM.DIST(AH26,$G$4,$G$5/SQRT(7),TRUE) -> 0.9483537508 | AJ26: =MAX(MIN(SQRT(7)*(AH26-$G$4)/$G$8,$G$5),0.01%) -> 0.022 | AK26: =MIN(AD26,AG26,AJ26) -> 0.022 | AM26: =_xlfn.NORM.INV(RAND(),$G$4,AK26) -> -0.01921803204 | AN26: =IF(AM26="","",Y26*(1+AM26)) -> 100.9045506 | AO26: =(1+AM26)*Z26 -> 98.92603004 | AP26: =(1+AM26)*AA26 -> 100.0225066 | AQ26: =100*(1+AM26) -> 98.0781968 | AR26: =(((100*(1+8*$G$6))-AN26)/100)/4 -> -0.01226137661 | AS26: =1-_xlfn.NORM.DIST(AR26,$G$4,$G$5/SQRT(4),TRUE) -> 0.9417011979 | AT26: =MAX(MIN(SQRT(4)*(AR26-$G$4)/$G$8,$G$5),0.01%) -> 0.022 | AU26: =(((100*(1+8*$G$6))-AO26)/100)/5 -> -0.00585206009 | AV26: =1-_xlfn.NORM.DIST(AU26,$G$4,$G$5/SQRT(5),TRUE) -> 0.8649858653 | AW26: =MAX(MIN(SQRT(5)*(AU26-$G$4)/$G$8,$G$5),0.01%) -> 0.01893481676 | AX26: =(((100*(1+8*$G$6))-AP26)/100)/6 -> -0.006704177723 | AY26: =1-_xlfn.NORM.DIST(AX26,$G$4,$G$5/SQRT(6),TRUE) -> 0.903737937 | AZ26: =MAX(MIN(SQRT(6)*(AX26-$G$4)/$G$8,$G$5),0.01%) -> 0.022 | BA26: =(((100*(1+8*$G$6))-AQ26)/100)/7 -> -0.002968852566 | BB26: =1-_xlfn.NORM.DIST(BA26,$G$4,$G$5/SQRT(7),TRUE) -> 0.8310557292 | BC26: =MAX(MIN(SQRT(7)*(BA26-$G$4)/$G$8,$G$5),0.01%) -> 0.01645162215 | BD26: =MIN(AT26,AW26,AZ26,BC26) -> 0.01645162215 | BF26: =_xlfn.NORM.INV(RAND(),$G$4,BD26) -> 0.02237568999 | BG26: =IF(BF26="","",AN26*(1+BF26)) -> 103.1623596 | BH26: =(1+BF26)*AO26 -> 101.1395682 | BI26: =(1+BF26)*AP26 -> 102.2605792 | BJ26: =(1+BF26)*AQ26 -> 100.2727641 | BK26: =100*(1+BF26) -> 102.237569 | BL26: =(((100*(1+8*$G$6))-BG26)/100)/3 -> -0.02387453197 | BM26: =1-_xlfn.NORM.DIST(BL26,$G$4,$G$5/SQRT(3),TRUE) -> 0.9884953391 | BN26: =MAX(MIN(SQRT(3)*(BL26-$G$4)/$G$8,$G$5),0.01%) -> 0.022 | BO26: =(((100*(1+8*$G$6))-BH26)/100)/4 -> -0.01284892056 | BP26: =1-_xlfn.NORM.DIST(BO26,$G$4,$G$5/SQRT(4),TRUE) -> 0.9476656465 | BQ26: =MAX(MIN(SQRT(4)*(BO26-$G$4)/$G$8,$G$5),0.01%) -> 0.022 | BR26: =(((100*(1+8*$G$6))-BI26)/100)/5 -> -0.01252115847 | BS26: =1-_xlfn.NORM.DIST(BR26,$G$4,$G$5/SQRT(5),TRUE) -> 0.962530783 | BT26: =MAX(MIN(SQRT(5)*(BR26-$G$4)/$G$8,$G$5),0.01%) -> 0.022 | BU26: =(((100*(1+8*$G$6))-BJ26)/100)/6 -> -0.007121273538 | BV26: =1-_xlfn.NORM.DIST(BU26,$G$4,$G$5/SQRT(6),TRUE) -> 0.9114259064 | BW26: =MAX(MIN(SQRT(6)*(BU26-$G$4)/$G$8,$G$5),0.01%) -> 0.022 | BX26: =(((100*(1+8*$G$6))-BK26)/100)/7 -> -0.008910812856 | BY26: =1-_xlfn.NORM.DIST(BX26,$G$4,$G$5/SQRT(7),TRUE) -> 0.9528298702 | BZ26: =MAX(MIN(SQRT(7)*(BX26-$G$4)/$G$8,$G$5),0.01%) -> 0.022 | CA26: =MIN(BN26,BQ26,BT26,BW26,BZ26) -> 0.022 | CC26: =_xlfn.NORM.INV(RAND(),$G$4,CA26) -> 0.04989626914 | CD26: =IF(CC26="","",BG26*(1+CC26)) -> 108.3097764 | CE26: =(1+CC26)*BH26 -> 106.1860553 | CF26: =(1+CC26)*BI26 -> 107.3630006 | CG26: =(1+CC26)*BJ26 -> 105.2760009 | CH26: =(1+CC26)*BK26 -> 107.3388423 | CI26: =100*(1+CC26) -> 104.9896269 | CJ26: =(((100*(1+8*$G$6))-CD26)/100)/2 -> -0.06154888225 | CK26: =1-_xlfn.NORM.DIST(CJ26,$G$4,$G$5/SQRT(2),TRUE) -> 0.9999905678 | CL26: =MAX(MIN(SQRT(2)*(CJ26-$G$4)/$G$8,$G$5),0.01%) -> 0.022 | CM26: =(((100*(1+8*$G$6))-CE26)/100)/3 -> -0.03395351781 | CN26: =1-_xlfn.NORM.DIST(CM26,$G$4,$G$5/SQRT(3),TRUE) -> 0.9989181611 | CO26: =MAX(MIN(SQRT(3)*(CM26-$G$4)/$G$8,$G$5),0.01%) -> 0.022 | CP26: =(((100*(1+8*$G$6))-CF26)/100)/4 -> -0.02840750155 | CQ26: =1-_xlfn.NORM.DIST(CP26,$G$4,$G$5/SQRT(4),TRUE) -> 0.9988054534 | CR26: =MAX(MIN(SQRT(4)*(CP26-$G$4)/$G$8,$G$5),0.01%) -> 0.022 | CS26: =(((100*(1+8*$G$6))-CG26)/100)/5 -> -0.0185520019 | CT26: =1-_xlfn.NORM.DIST(CS26,$G$4,$G$5/SQRT(5),TRUE) -> 0.9916628672 | CU26: =MAX(MIN(SQRT(5)*(CS26-$G$4)/$G$8,$G$5),0.01%) -> 0.022 | CV26: =(((100*(1+8*$G$6))-CH26)/100)/6 -> -0.01889807043 | CW26: =1-_xlfn.NORM.DIST(CV26,$G$4,$G$5/SQRT(6),TRUE) -> 0.9961024894 | CX26: =MAX(MIN(SQRT(6)*(CV26-$G$4)/$G$8,$G$5),0.01%) -> 0.022 | CY26: =(((100*(1+8*$G$6))-CI26)/100)/7 -> -0.01284232416 | CZ26: =1-_xlfn.NORM.DIST(CY26,$G$4,$G$5/SQRT(7),TRUE) -> 0.9840532676 | DA26: =MAX(MIN(SQRT(7)*(CY26-$G$4)/$G$8,$G$5),0.01%) -> 0.022 | DB26: =MIN(CL26,CO26,CR26,CU26,CX26,DA26) -> 0.022 | DD26: =_xlfn.NORM.INV(RAND(),$G$4,DB26) -> 0.003449148616 | DE26: =IF(DD26="","",CD26*(1+DD26)) -> 108.683353 | DF26: =(1+DD26)*CE26 -> 106.5523068 | DG26: =(1+DD26)*CF26 -> 107.7333116 | DH26: =(1+DD26)*CG26 -> 105.6391135 | DI26: =(1+DD26)*CH26 -> 107.7090699 | DJ26: =(1+DD26)*CI26 -> 105.3517517 | DK26: =100*(1+DD26) -> 100.3449149 | DL26: =(((100*(1+8*$G$6))-DE26)/100)/1 -> -0.1268335296 | DM26: =1-_xlfn.NORM.DIST(DL26,$G$4,$G$5/SQRT(1),TRUE) -> 0.999999999 | DN26: =MAX(MIN(SQRT(1)*(DL26-$G$4)/$G$8,$G$5),0.01%) -> 0.022 | DO26: =(((100*(1+8*$G$6))-DF26)/100)/2 -> -0.05276153414 | DP26: =1-_xlfn.NORM.DIST(DO26,$G$4,$G$5/SQRT(2),TRUE) -> 0.9998976126 | DQ26: =MAX(MIN(SQRT(2)*(DO26-$G$4)/$G$8,$G$5),0.01%) -> 0.022 | DR26: =(((100*(1+8*$G$6))-DG26)/100)/3 -> -0.03911103855 | DS26: =1-_xlfn.NORM.DIST(DR26,$G$4,$G$5/SQRT(3),TRUE) -> 0.9997425124 | DT26: =MAX(MIN(SQRT(3)*(DR26-$G$4)/$G$8,$G$5),0.01%) -> 0.022 | DU26: =(((100*(1+8*$G$6))-DH26)/100)/4 -> -0.02409778381 | DV26: =1-_xlfn.NORM.DIST(DU26,$G$4,$G$5/SQRT(4),TRUE) -> 0.995918508 | DW26: =MAX(MIN(SQRT(4)*(DU26-$G$4)/$G$8,$G$5),0.01%) -> 0.022 | DX26: =(((100*(1+8*$G$6))-DI26)/100)/5 -> -0.02341813976 | DY26: =1-_xlfn.NORM.DIST(DX26,$G$4,$G$5/SQRT(5),TRUE) -> 0.9980639902 | DZ26: =MAX(MIN(SQRT(5)*(DX26-$G$4)/$G$8,$G$5),0.01%) -> 0.022 | EA26: =(((100*(1+8*$G$6))-DJ26)/100)/6 -> -0.0155862529 | EB26: =1-_xlfn.NORM.DIST(EA26,$G$4,$G$5/SQRT(6),TRUE) -> 0.9890495589 | EC26: =MAX(MIN(SQRT(6)*(EA26-$G$4)/$G$8,$G$5),0.01%) -> 0.022 | ED26: =(((100*(1+8*$G$6))-DK26)/100)/7 -> -0.006207021231 | EE26: =1-_xlfn.NORM.DIST(ED26,$G$4,$G$5/SQRT(7),TRUE) -> 0.9111341889 | EF26: =MAX(MIN(SQRT(7)*(ED26-$G$4)/$G$8,$G$5),0.01%) -> 0.022 | EG26: =MIN(DN26,DQ26,DT26,DW26,DZ26,EC26,EF26) -> 0.022 | EI26: =_xlfn.NORM.INV(RAND(),$G$4,EG26) -> 0.01984361687 | EJ26: =IF(EI26="","",DE26*(1+EI26)) -> 110.8400238 | EK26: =(1+EI26)*DF26 -> 108.66669 | EL26: =(1+EI26)*DG26 -> 109.8711301 | EM26: =(1+EI26)*DH26 -> 107.7353756 | EN26: =(1+EI26)*DI26 -> 109.8464074 | EO26: =(1+EI26)*DJ26 -> 107.4423115 | EP26: =(1+EI26)*DK26 -> 102.3361209 | EQ26: =(1+$EI26)*100 -> 101.9843617 | ER26: =(((100*(1+8*$G$6))-EK26)/100)/1 -> -0.1266668998 | ES26: =1-_xlfn.NORM.DIST(ER26,$G$4,$G$5/SQRT(1),TRUE) -> 0.9999999989 | ET26: =MAX(MIN(SQRT(1)*(ER26-$G$4)/$G$8,$G$5),0.01%) -> 0.022 | EU26: =(((100*(1+8*$G$6))-EL26)/100)/2 -> -0.06935565061 | EV26: =1-_xlfn.NORM.DIST(EU26,$G$4,$G$5/SQRT(2),TRUE) -> 0.9999991225 | EW26: =MAX(MIN(SQRT(2)*(EU26-$G$4)/$G$8,$G$5),0.01%) -> 0.022 | EX26: =(((100*(1+8*$G$6))-EM26)/100)/3 -> -0.03911791872 | EY26: =1-_xlfn.NORM.DIST(EX26,$G$4,$G$5/SQRT(3),TRUE) -> 0.9997430315 | EZ26: =MAX(MIN(SQRT(3)*(EX26-$G$4)/$G$8,$G$5),0.01%) -> 0.022 | FA26: =(((100*(1+8*$G$6))-EN26)/100)/4 -> -0.03461601848 | FB26: =1-_xlfn.NORM.DIST(FA26,$G$4,$G$5/SQRT(4),TRUE) -> 0.9998417801 | FC26: =MAX(MIN(SQRT(4)*(FA26-$G$4)/$G$8,$G$5),0.01%) -> 0.022 | FD26: =(((100*(1+8*$G$6))-EO26)/100)/5 -> -0.02288462308 | FE26: =1-_xlfn.NORM.DIST(FD26,$G$4,$G$5/SQRT(5),TRUE) -> 0.9977028123 | FF26: =MAX(MIN(SQRT(5)*(FD26-$G$4)/$G$8,$G$5),0.01%) -> 0.022 | FG26: =(((100*(1+8*$G$6))-EP26)/100)/6 -> -0.01056020151 | FH26: =1-_xlfn.NORM.DIST(FG26,$G$4,$G$5/SQRT(6),TRUE) -> 0.9584059082 | FI26: =MAX(MIN(SQRT(6)*(FG26-$G$4)/$G$8,$G$5),0.01%) -> 0.022 | FJ26: =(((100*(1+8*$G$6))-EQ26)/100)/7 -> -0.008549088124 | FK26: =1-_xlfn.NORM.DIST(FJ26,$G$4,$G$5/SQRT(7),TRUE) -> 0.9483892661 | FL26: =MAX(MIN(SQRT(7)*(FJ26-$G$4)/$G$8,$G$5),0.01%) -> 0.022 | FM26: =MIN(ET26,EW26,EZ26,FC26,FF26,FI26,FL26) -> 0.022 | FO26: =_xlfn.NORM.INV(RAND(),$G$4,FM26) -> -0.00436494108 | FP26: =IF(FO26="","",EK26*(1+FO26)) -> 108.1923663 | FQ26: =(1+FO26)*EL26 -> 109.3915491 | FR26: =(1+FO26)*EM26 -> 107.2651171 | FS26: =(1+FO26)*EN26 -> 109.3669343 | FT26: =(1+FO26)*EO26 -> 106.9733322 | FU26: =(1+FO26)*EP26 -> 101.8894298 | FV26: =(1+FO26)*EQ26 -> 101.539206 | FW26: =(1+FO26)*100 -> 99.56350589 | FX26: =(((100*(1+8*$G$6))-FQ26)/100)/1 -> -0.1339154911 | FY26: =1-_xlfn.NORM.DIST(FX26,$G$4,$G$5/SQRT(1),TRUE) -> 0.9999999999 | FZ26: =MAX(MIN(SQRT(1)*(FX26-$G$4)/$G$8,$G$5),0.01%) -> 0.022 | GA26: =(((100*(1+8*$G$6))-FR26)/100)/2 -> -0.05632558525 | GB26: =1-_xlfn.NORM.DIST(GA26,$G$4,$G$5/SQRT(2),TRUE) -> 0.9999596241 | GC26: =MAX(MIN(SQRT(2)*(GA26-$G$4)/$G$8,$G$5),0.01%) -> 0.022 | GD26: =(((100*(1+8*$G$6))-FS26)/100)/3 -> -0.04455644766 | GE26: =1-_xlfn.NORM.DIST(GD26,$G$4,$G$5/SQRT(3),TRUE) -> 0.9999522123 | GF26: =MAX(MIN(SQRT(3)*(GD26-$G$4)/$G$8,$G$5),0.01%) -> 0.022 | GG26: =(((100*(1+8*$G$6))-FT26)/100)/4 -> -0.02743333045 | GH26: =1-_xlfn.NORM.DIST(GG26,$G$4,$G$5/SQRT(4),TRUE) -> 0.9984033197 | GI26: =MAX(MIN(SQRT(4)*(GG26-$G$4)/$G$8,$G$5),0.01%) -> 0.022 | GJ26: =(((100*(1+8*$G$6))-FU26)/100)/5 -> -0.01177885954 | GK26: =1-_xlfn.NORM.DIST(GJ26,$G$4,$G$5/SQRT(5),TRUE) -> 0.9559395273 | GL26: =MAX(MIN(SQRT(5)*(GJ26-$G$4)/$G$8,$G$5),0.01%) -> 0.022 | GM26: =(((100*(1+8*$G$6))-FV26)/100)/6 -> -0.009232009928 | GN26: =1-_xlfn.NORM.DIST(GM26,$G$4,$G$5/SQRT(6),TRUE) -> 0.9434711829 | GO26: =MAX(MIN(SQRT(6)*(GM26-$G$4)/$G$8,$G$5),0.01%) -> 0.022 | GP26: =(((100*(1+8*$G$6))-FW26)/100)/7 -> -0.005090722703 | GQ26: =1-_xlfn.NORM.DIST(GP26,$G$4,$G$5/SQRT(7),TRUE) -> 0.8875353566 | GR26: =MAX(MIN(SQRT(7)*(GP26-$G$4)/$G$8,$G$5),0.01%) -> 0.02083220335 | GS26: =MIN(FZ26,GC26,GF26,GI26,GL26,GO26,GR26) -> 0.02083220335 | GU26: =_xlfn.NORM.INV(RAND(),$G$4,GS26) -> 0.0344201225 | GV26: =IF(GU26="","",FQ26*(1+GU26)) -> 113.1568196 | GW26: =(1+GU26)*FR26 -> 110.9571955 | GX26: =(1+GU26)*FS26 -> 113.1313576 | GY26: =(1+GU26)*FT26 -> 110.6553674 | GZ26: =(1+GU26)*FU26 -> 105.3964764 | HA26: =(1+GU26)*FV26 -> 105.0341979 | HB26: =(1+GU26)*FW26 -> 102.990494 | HC26: =(1+GU26)*100 -> 103.4420123 | HD26: =(((100*(1+8*$G$6))-GW26)/100)/1 -> -0.1495719552 | HE26: =1-_xlfn.NORM.DIST(HD26,$G$4,$G$5/SQRT(1),TRUE) -> 1 | HF26: =MAX(MIN(SQRT(1)*(HD26-$G$4)/$G$8,$G$5),0.01%) -> 0.022 | HG26: =(((100*(1+8*$G$6))-GX26)/100)/2 -> -0.08565678787 | HH26: =1-_xlfn.NORM.DIST(HG26,$G$4,$G$5/SQRT(2),TRUE) -> 0.9999999972 | HI26: =MAX(MIN(SQRT(2)*(HG26-$G$4)/$G$8,$G$5),0.01%) -> 0.022 | HJ26: =(((100*(1+8*$G$6))-GY26)/100)/3 -> -0.04885122459 | HK26: =1-_xlfn.NORM.DIST(HJ26,$G$4,$G$5/SQRT(3),TRUE) -> 0.9999888083 | HL26: =MAX(MIN(SQRT(3)*(HJ26-$G$4)/$G$8,$G$5),0.01%) -> 0.022 | HM26: =(((100*(1+8*$G$6))-GZ26)/100)/4 -> -0.02349119106 | HN26: =1-_xlfn.NORM.DIST(HM26,$G$4,$G$5/SQRT(4),TRUE) -> 0.9952027126 | HO26: =MAX(MIN(SQRT(4)*(HM26-$G$4)/$G$8,$G$5),0.01%) -> 0.022 | HP26: =(((100*(1+8*$G$6))-HA26)/100)/5 -> -0.01806839573 | HQ26: =1-_xlfn.NORM.DIST(HP26,$G$4,$G$5/SQRT(5),TRUE) -> 0.9904777592 | HR26: =MAX(MIN(SQRT(5)*(HP26-$G$4)/$G$8,$G$5),0.01%) -> 0.022 | HS26: =(((100*(1+8*$G$6))-HB26)/100)/6 -> -0.01165082327 | HT26: =1-_xlfn.NORM.DIST(HS26,$G$4,$G$5/SQRT(6),TRUE) -> 0.9681239841 | HU26: =MAX(MIN(SQRT(6)*(HS26-$G$4)/$G$8,$G$5),0.01%) -> 0.022 | HV26: =(((100*(1+8*$G$6))-HC26)/100)/7 -> -0.01063144607 | HW26: =1-_xlfn.NORM.DIST(HV26,$G$4,$G$5/SQRT(7),TRUE) -> 0.9699364164 | HX26: =MAX(MIN(SQRT(7)*(HV26-$G$4)/$G$8,$G$5),0.01%) -> 0.022 | HY26: =MIN(HF26,HI26,HL26,HO26,HR26,HU26,HX26) -> 0.022 | IA26: =_xlfn.NORM.INV(RAND(),$G$4,HY26) -> 0.006106236573 | IB26: =IF(IA26="","",GW26*(1+IA26)) -> 111.6347264 | IC26: =(1+IA26)*GX26 -> 113.8221644 | ID26: =(1+IA26)*GY26 -> 111.3310552 | IE26: =(1+IA26)*GZ26 -> 106.0400522 | IF26: =(1+IA26)*HA26 -> 105.6755615 | IG26: =(1+IA26)*HB26 -> 103.6193783 | IH26: =(1+IA26)*HC26 -> 104.0736536 | II26: =(1+IA26)*100 -> 100.6106237 | IJ26: =(((100*(1+8*$G$6))-IC26)/100)/1 -> -0.1782216441 | IK26: =1-_xlfn.NORM.DIST(IJ26,$G$4,$G$5/SQRT(1),TRUE) -> 1 | IL26: =MAX(MIN(SQRT(1)*(IJ26-$G$4)/$G$8,$G$5),0.01%) -> 0.022 | IM26: =(((100*(1+8*$G$6))-ID26)/100)/2 -> -0.07665527614 | IN26: =1-_xlfn.NORM.DIST(IM26,$G$4,$G$5/SQRT(2),TRUE) -> 0.9999999235 | IO26: =MAX(MIN(SQRT(2)*(IM26-$G$4)/$G$8,$G$5),0.01%) -> 0.022 | IP26: =(((100*(1+8*$G$6))-IE26)/100)/3 -> -0.03346684081 | IQ26: =1-_xlfn.NORM.DIST(IP26,$G$4,$G$5/SQRT(3),TRUE) -> 0.9987710564 | IR26: =MAX(MIN(SQRT(3)*(IP26-$G$4)/$G$8,$G$5),0.01%) -> 0.022 | IS26: =(((100*(1+8*$G$6))-IF26)/100)/4 -> -0.02418890381 | IT26: =1-_xlfn.NORM.DIST(IS26,$G$4,$G$5/SQRT(4),TRUE) -> 0.9960173447 | IU26: =MAX(MIN(SQRT(4)*(IS26-$G$4)/$G$8,$G$5),0.01%) -> 0.022 | IV26: =(((100*(1+8*$G$6))-IG26)/100)/5 -> -0.01523875657 | IW26: =1-_xlfn.NORM.DIST(IV26,$G$4,$G$5/SQRT(5),TRUE) -> 0.9801595878 | IX26: =MAX(MIN(SQRT(5)*(IV26-$G$4)/$G$8,$G$5),0.01%) -> 0.022 | IY26: =(((100*(1+8*$G$6))-IH26)/100)/6 -> -0.01345608941 | IZ26: =1-_xlfn.NORM.DIST(IY26,$G$4,$G$5/SQRT(6),TRUE) -> 0.9800561106 | JA26: =MAX(MIN(SQRT(6)*(IY26-$G$4)/$G$8,$G$5),0.01%) -> 0.022 | JB26: =(((100*(1+8*$G$6))-II26)/100)/7 -> -0.006586605225 | JC26: =1-_xlfn.NORM.DIST(JB26,$G$4,$G$5/SQRT(7),TRUE) -> 0.9182538364 | JD26: =MAX(MIN(SQRT(7)*(JB26-$G$4)/$G$8,$G$5),0.01%) -> 0.022 | JE26: =MIN(IL26,IO26,IR26,IU26,IX26,JA26,JD26) -> 0.022 | JG26: =_xlfn.NORM.INV(RAND(),$G$4,JE26) -> -0.03163616956 | JH26: =IF(JG26="","",IC26*(1+JG26)) -> 110.2212671 | JI26: =(1+JG26)*ID26 -> 107.8089671 | JJ26: =(1+JG26)*IE26 -> 102.6853512 | JK26: =(1+JG26)*IF26 -> 102.3323915 | JL26: =(1+JG26)*IG26 -> 100.3412581 | JM26: =(1+JG26)*IH26 -> 100.7811619 | JN26: =(1+JG26)*II26 -> 97.42768891 | JO26: =(1+JG26)*100 -> 96.83638304 | JP26: =(((100*(1+8*$G$6))-JI26)/100)/1 -> -0.1180896709 | JQ26: =1-_xlfn.NORM.DIST(JP26,$G$4,$G$5/SQRT(1),TRUE) -> 0.999999989 | JR26: =MAX(MIN(SQRT(1)*(JP26-$G$4)/$G$8,$G$5),0.01%) -> 0.022 | JS26: =(((100*(1+8*$G$6))-JJ26)/100)/2 -> -0.03342675585 | JT26: =1-_xlfn.NORM.DIST(JS26,$G$4,$G$5/SQRT(2),TRUE) -> 0.9932474707 | JU26: =MAX(MIN(SQRT(2)*(JS26-$G$4)/$G$8,$G$5),0.01%) -> 0.022 | JV26: =(((100*(1+8*$G$6))-JK26)/100)/3 -> -0.02110797181 | JW26: =1-_xlfn.NORM.DIST(JV26,$G$4,$G$5/SQRT(3),TRUE) -> 0.9800831709 | JX26: =MAX(MIN(SQRT(3)*(JV26-$G$4)/$G$8,$G$5),0.01%) -> 0.022 | JY26: =(((100*(1+8*$G$6))-JL26)/100)/4 -> -0.01085314515 | JZ26: =1-_xlfn.NORM.DIST(JY26,$G$4,$G$5/SQRT(4),TRUE) -> 0.9252352017 | KA26: =MAX(MIN(SQRT(4)*(JY26-$G$4)/$G$8,$G$5),0.01%) -> 0.022 | KB26: =(((100*(1+8*$G$6))-JM26)/100)/5 -> -0.00956232379 | KC26: =1-_xlfn.NORM.DIST(KB26,$G$4,$G$5/SQRT(5),TRUE) -> 0.930577604 | KD26: =MAX(MIN(SQRT(5)*(KB26-$G$4)/$G$8,$G$5),0.01%) -> 0.022 | KE26: =(((100*(1+8*$G$6))-JN26)/100)/6 -> -0.002379481513 | KF26: =1-_xlfn.NORM.DIST(KE26,$G$4,$G$5/SQRT(6),TRUE) -> 0.7943575943 | KG26: =MAX(MIN(SQRT(6)*(KE26-$G$4)/$G$8,$G$5),0.01%) -> 0.01410474987 | KH26: =(((100*(1+8*$G$6))-JO26)/100)/7 -> -0.00119483292 | KI26: =1-_xlfn.NORM.DIST(KH26,$G$4,$G$5/SQRT(7),TRUE) -> 0.7718639658 | KJ26: =MAX(MIN(SQRT(7)*(KH26-$G$4)/$G$8,$G$5),0.01%) -> 0.01278917506 | KK26: =MIN(JR26,JU26,JX26,KA26,KD26,KG26,KJ26) -> 0.01278917506 | KM26: =_xlfn.NORM.INV(RAND(),$G$4,KK26) -> 0.005930724198 | KN26: =IF(KM26="","",JI26*(1+KM26)) -> 108.4483523 | KO26: =(1+KM26)*JJ26 -> 103.2943497 | KP26: =(1+KM26)*JK26 -> 102.9392967 | KQ26: =(1+KM26)*JL26 -> 100.9363544 | KR26: =(1+KM26)*JM26 -> 101.3788672 | KS26: =(1+KM26)*JN26 -> 98.00550566 | KT26: =(1+KM26)*JO26 -> 97.41069292 | KU26: =(1+KM26)*100 -> 100.5930724 | KV26: =(((100*(1+8*$G$6))-KO26)/100)/1 -> -0.07294349666 | KW26: =1-_xlfn.NORM.DIST(KV26,$G$4,$G$5/SQRT(1),TRUE) -> 0.9998021133 | KX26: =MAX(MIN(SQRT(1)*(KV26-$G$4)/$G$8,$G$5),0.01%) -> 0.022 | KY26: =(((100*(1+8*$G$6))-KP26)/100)/2 -> -0.03469648367 | KZ26: =1-_xlfn.NORM.DIST(KY26,$G$4,$G$5/SQRT(2),TRUE) -> 0.9946413933 | LA26: =MAX(MIN(SQRT(2)*(KY26-$G$4)/$G$8,$G$5),0.01%) -> 0.022 | LB26: =(((100*(1+8*$G$6))-KQ26)/100)/3 -> -0.01645451463 | LC26: =1-_xlfn.NORM.DIST(LB26,$G$4,$G$5/SQRT(3),TRUE) -> 0.9544003424 | LD26: =MAX(MIN(SQRT(3)*(LB26-$G$4)/$G$8,$G$5),0.01%) -> 0.022 | LE26: =(((100*(1+8*$G$6))-KR26)/100)/4 -> -0.01344716793 | LF26: =1-_xlfn.NORM.DIST(LE26,$G$4,$G$5/SQRT(4),TRUE) -> 0.9532302517 | LG26: =MAX(MIN(SQRT(4)*(LE26-$G$4)/$G$8,$G$5),0.01%) -> 0.022 | LH26: =(((100*(1+8*$G$6))-KS26)/100)/5 -> -0.00401101132 | LI26: =1-_xlfn.NORM.DIST(LH26,$G$4,$G$5/SQRT(5),TRUE) -> 0.8201335773 | LJ26: =MAX(MIN(SQRT(5)*(LH26-$G$4)/$G$8,$G$5),0.01%) -> 0.01572253072 | LK26: =(((100*(1+8*$G$6))-KT26)/100)/6 -> -0.002351154873 | LL26: =1-_xlfn.NORM.DIST(LK26,$G$4,$G$5/SQRT(6),TRUE) -> 0.7934586607 | LM26: =MAX(MIN(SQRT(6)*(LK26-$G$4)/$G$8,$G$5),0.01%) -> 0.01405060783 | LN26: =(((100*(1+8*$G$6))-KU26)/100)/7 -> -0.006561532028 | LO26: =1-_xlfn.NORM.DIST(LN26,$G$4,$G$5/SQRT(7),TRUE) -> 0.9177972322 | LP26: =MAX(MIN(SQRT(7)*(LN26-$G$4)/$G$8,$G$5),0.01%) -> 0.022 | LQ26: =MIN(KX26,LA26,LD26,LG26,LJ26,LM26,LP26) -> 0.01405060783 | LS26: =_xlfn.NORM.INV(RAND(),$G$4,LQ26) -> -0.005585690764 | LT26: =IF(LS26="","",KO26*(1+LS26)) -> 102.7173794 | LU26: =(1+LS26)*KP26 -> 102.3643097 | LV26: =(1+LS26)*KQ26 -> 100.3725551 | LW26: =(1+LS26)*KR26 -> 100.8125962 | LX26: =(1+LS26)*KS26 -> 97.45807721 | LY26: =(1+LS26)*KT26 -> 96.86658692 | LZ26: =(1+LS26)*KU26 -> 100.0311906 | MA26: =(1+LS26)*100 -> 99.44143092 | MB26: =(((100*(1+8*$G$6))-LU26)/100)/1 -> -0.06364309654 | MC26: =1-_xlfn.NORM.DIST(MB26,$G$4,$G$5/SQRT(1),TRUE) -> 0.9990961768 | MD26: =MAX(MIN(SQRT(1)*(MB26-$G$4)/$G$8,$G$5),0.01%) -> 0.022 | ME26: =(((100*(1+8*$G$6))-LV26)/100)/2 -> -0.02186277563 | MF26: =1-_xlfn.NORM.DIST(ME26,$G$4,$G$5/SQRT(2),TRUE) -> 0.9578986207 | MG26: =MAX(MIN(SQRT(2)*(ME26-$G$4)/$G$8,$G$5),0.01%) -> 0.022 | MH26: =(((100*(1+8*$G$6))-LW26)/100)/3 -> -0.01604198723 | MI26: =1-_xlfn.NORM.DIST(MH26,$G$4,$G$5/SQRT(3),TRUE) -> 0.951202531 | MJ26: =MAX(MIN(SQRT(3)*(MH26-$G$4)/$G$8,$G$5),0.01%) -> 0.022 | MK26: =(((100*(1+8*$G$6))-LX26)/100)/4 -> -0.00364519303 | ML26: =1-_xlfn.NORM.DIST(MK26,$G$4,$G$5/SQRT(4),TRUE) -> 0.7840447665 | MM26: =MAX(MIN(SQRT(4)*(MK26-$G$4)/$G$8,$G$5),0.01%) -> 0.01349175993 | MN26: =(((100*(1+8*$G$6))-LY26)/100)/5 -> -0.001733173832 | MO26: =1-_xlfn.NORM.DIST(MN26,$G$4,$G$5/SQRT(5),TRUE) -> 0.7531248378 | MP26: =MAX(MIN(SQRT(5)*(MN26-$G$4)/$G$8,$G$5),0.01%) -> 0.01174813 | MQ26: =(((100*(1+8*$G$6))-LZ26)/100)/6 -> -0.00671865104 | MR26: =1-_xlfn.NORM.DIST(MQ26,$G$4,$G$5/SQRT(6),TRUE) -> 0.9040126736 | MS26: =MAX(MIN(SQRT(6)*(MQ26-$G$4)/$G$8,$G$5),0.01%) -> 0.022 | MT26: =(((100*(1+8*$G$6))-MA26)/100)/7 -> -0.004916329891 | MU26: =1-_xlfn.NORM.DIST(MT26,$G$4,$G$5/SQRT(7),TRUE) -> 0.8834775524 | MV26: =MAX(MIN(SQRT(7)*(MT26-$G$4)/$G$8,$G$5),0.01%) -> 0.02047217101 | MW26: =MIN(MD26,MG26,MJ26,MM26,MP26,MS26,MV26) -> 0.01174813 | MY26: =_xlfn.NORM.INV(RAND(),$G$4,MW26) -> 0.002186660857 | MZ26: =IF(MY26="","",LU26*(1+MY26)) -> 102.5881457 | NA26: =(1+MY26)*LV26 -> 100.5920359 | NB26: =(1+MY26)*LW26 -> 101.0330391 | NC26: =(1+MY26)*LX26 -> 97.67118497 | ND26: =(1+MY26)*LY26 -> 97.07840129 | NE26: =(1+MY26)*LZ26 -> 100.2499249 | NF26: =(1+MY26)*MA26 -> 99.65887561 | NG26: =(1+MY26)*100 -> 100.2186661 | NH26: =(((100*(1+8*$G$6))-NA26)/100)/1 -> -0.04592035864 | NI26: =1-_xlfn.NORM.DIST(NH26,$G$4,$G$5/SQRT(1),TRUE) -> 0.9896815361 | NJ26: =MAX(MIN(SQRT(1)*(NH26-$G$4)/$G$8,$G$5),0.01%) -> 0.022 | NK26: =(((100*(1+8*$G$6))-NB26)/100)/2 -> -0.02516519563 | NL26: =1-_xlfn.NORM.DIST(NK26,$G$4,$G$5/SQRT(2),TRUE) -> 0.9737549449 | NM26: =MAX(MIN(SQRT(2)*(NK26-$G$4)/$G$8,$G$5),0.01%) -> 0.022 | NN26: =(((100*(1+8*$G$6))-NC26)/100)/3 -> -0.005570616582 | NO26: =1-_xlfn.NORM.DIST(NN26,$G$4,$G$5/SQRT(3),TRUE) -> 0.7973576755 | NP26: =MAX(MIN(SQRT(3)*(NN26-$G$4)/$G$8,$G$5),0.01%) -> 0.01428646765 | NQ26: =(((100*(1+8*$G$6))-ND26)/100)/4 -> -0.002696003225 | NR26: =1-_xlfn.NORM.DIST(NQ26,$G$4,$G$5/SQRT(4),TRUE) -> 0.757922878 | NS26: =MAX(MIN(SQRT(4)*(NQ26-$G$4)/$G$8,$G$5),0.01%) -> 0.01201044645 | NT26: =(((100*(1+8*$G$6))-NE26)/100)/5 -> -0.008499849826 | NU26: =1-_xlfn.NORM.DIST(NT26,$G$4,$G$5/SQRT(5),TRUE) -> 0.9149865468 | NV26: =MAX(MIN(SQRT(5)*(NT26-$G$4)/$G$8,$G$5),0.01%) -> 0.022 | NW26: =(((100*(1+8*$G$6))-NF26)/100)/6 -> -0.006098126014 | NX26: =1-_xlfn.NORM.DIST(NW26,$G$4,$G$5/SQRT(6),TRUE) -> 0.8917094227 | NY26: =MAX(MIN(SQRT(6)*(NW26-$G$4)/$G$8,$G$5),0.01%) -> 0.02121236988 | NZ26: =(((100*(1+8*$G$6))-NG26)/100)/7 -> -0.006026665837 | OA26: =1-_xlfn.NORM.DIST(NZ26,$G$4,$G$5/SQRT(7),TRUE) -> 0.9075938184 | OB26: =MAX(MIN(SQRT(7)*(NZ26-$G$4)/$G$8,$G$5),0.01%) -> 0.022 | OC26: =MIN(NJ26,NM26,NP26,NS26,NV26,NY26,OB26) -> 0.01201044645 | OF26: =FM26 -> 0.022 | OG26: =GS26 -> 0.02083220335 | OH26: =HY26 -> 0.022 | OI26: =JE26 -> 0.022 | OJ26: =KK26 -> 0.01278917506 | OK26: =LQ26 -> 0.01405060783 | OL26: =MW26 -> 0.01174813 | OM26: =OC26 -> 0.01201044645 | OO26: =IF(SUM(OF26:OM26)=8*OF26,"No","Yes") -> Yes | OQ26: =$G$5 -> 0.022 | OR26: =K26 -> 0.022 | OS26: =R26 -> 0.022 | OT26: =AD26 -> 0.022 | OU26: =AT26 -> 0.022 | OV26: =BN26 -> 0.022 | OW26: =CL26 -> 0.022 | OX26: =DN26 -> 0.022 | OZ26: =IF(SUM(OQ26:OX26)=8*$G$5,"No","Yes") -> No
F27: 2 | G27: =_xlfn.NORM.INV(RAND(),$G$4,$G$5) -> -0.003020969294 | H27: =100*(1+G27) -> 99.69790307 | I27: =(((100*(1+8*$G$6))-H27)/100)/7 -> -0.005282718672 | J27: =1-_xlfn.NORM.DIST(I27,$G$4,$G$5/SQRT(7),TRUE) -> 0.891884861 | K27: =MAX(MIN(SQRT(7)*(I27-$G$4)/$G$8,$G$5),0.01%) -> 0.02122857725 | M27: =_xlfn.NORM.INV(RAND(),$G$4,K27) -> -0.003246529462 | N27: 99.37423089 | O27: 99.67534705 | P27: =(((100*(1+8*$G$6))-N27)/100)/6 -> -0.005623718152 | Q27: =1-_xlfn.NORM.DIST(P27,$G$4,$G$5/SQRT(6),TRUE) -> 0.8815655974 | R27: =MAX(MIN(SQRT(6)*(P27-$G$4)/$G$8,$G$5),0.01%) -> 0.02030561184 | S27: =(((100*(1+8*$G$6))-O27)/100)/7 -> -0.005250495791 | T27: =1-_xlfn.NORM.DIST(S27,$G$4,$G$5/SQRT(7),TRUE) -> 0.8911634615 | U27: =MAX(MIN(SQRT(7)*(S27-$G$4)/$G$8,$G$5),0.01%) -> 0.02116205341 | V27: =MIN(R27,U27) -> 0.02030561184 | X27: =_xlfn.NORM.INV(RAND(),$G$4,V27) -> 0.005617253337 | Y27: 99.93244112 | Z27: =(1+X27)*O27 -> 100.2352487 | AA27: =100*(1+X27) -> 100.5617253 | AB27: =(((100*(1+8*$G$6))-Y27)/100)/5 -> -0.007864882242 | AC27: =1-_xlfn.NORM.DIST(AB27,$G$4,$G$5/SQRT(5),TRUE) -> 0.9044920302 | AD27: =MAX(MIN(SQRT(5)*(AB27-$G$4)/$G$8,$G$5),0.01%) -> 0.022 | AE27: =(((100*(1+8*$G$6))-Z27)/100)/6 -> -0.007058747883 | AF27: =1-_xlfn.NORM.DIST(AE27,$G$4,$G$5/SQRT(6),TRUE) -> 0.9103034998 | AG27: =MAX(MIN(SQRT(6)*(AE27-$G$4)/$G$8,$G$5),0.01%) -> 0.022 | AH27: =(((100*(1+8*$G$6))-AA27)/100)/7 -> -0.006516750477 | AI27: =1-_xlfn.NORM.DIST(AH27,$G$4,$G$5/SQRT(7),TRUE) -> 0.9169769468 | AJ27: =MAX(MIN(SQRT(7)*(AH27-$G$4)/$G$8,$G$5),0.01%) -> 0.022 | AK27: =MIN(AD27,AG27,AJ27) -> 0.022 | AM27: =_xlfn.NORM.INV(RAND(),$G$4,AK27) -> -0.00916057635 | AN27: =IF(AM27="","",Y27*(1+AM27)) -> 99.01700236 | AO27: =(1+AM27)*Z27 -> 99.31703608 | AP27: =(1+AM27)*AA27 -> 99.64052197 | AQ27: =100*(1+AM27) -> 99.08394236 | AR27: =(((100*(1+8*$G$6))-AN27)/100)/4 -> -0.007542505911 | AS27: =1-_xlfn.NORM.DIST(AR27,$G$4,$G$5/SQRT(4),TRUE) -> 0.8729042979 | AT27: =MAX(MIN(SQRT(4)*(AR27-$G$4)/$G$8,$G$5),0.01%) -> 0.01957393873 | AU27: =(((100*(1+8*$G$6))-AO27)/100)/5 -> -0.006634072161 | AV27: =1-_xlfn.NORM.DIST(AU27,$G$4,$G$5/SQRT(5),TRUE) -> 0.8814924977 | AW27: =MAX(MIN(SQRT(5)*(AU27-$G$4)/$G$8,$G$5),0.01%) -> 0.02029928167 | AX27: =(((100*(1+8*$G$6))-AP27)/100)/6 -> -0.006067536618 | AY27: =1-_xlfn.NORM.DIST(AX27,$G$4,$G$5/SQRT(6),TRUE) -> 0.8910748385 | AZ27: =MAX(MIN(SQRT(6)*(AX27-$G$4)/$G$8,$G$5),0.01%) -> 0.02115390294 | BA27: =(((100*(1+8*$G$6))-AQ27)/100)/7 -> -0.00440563195 | BB27: =1-_xlfn.NORM.DIST(BA27,$G$4,$G$5/SQRT(7),TRUE) -> 0.8710007962 | BC27: =MAX(MIN(SQRT(7)*(BA27-$G$4)/$G$8,$G$5),0.01%) -> 0.01941783985 | BD27: =MIN(AT27,AW27,AZ27,BC27) -> 0.01941783985 | BF27: =_xlfn.NORM.INV(RAND(),$G$4,BD27) -> 0.0211560015 | BG27: =IF(BF27="","",AN27*(1+BF27)) -> 101.1118062 | BH27: =(1+BF27)*AO27 -> 101.4181874 | BI27: =(1+BF27)*AP27 -> 101.748517 | BJ27: =(1+BF27)*AQ27 -> 101.1801624 | BK27: =100*(1+BF27) -> 102.1156002 | BL27: =(((100*(1+8*$G$6))-BG27)/100)/3 -> -0.01703935405 | BM27: =1-_xlfn.NORM.DIST(BL27,$G$4,$G$5/SQRT(3),TRUE) -> 0.9586428034 | BN27: =MAX(MIN(SQRT(3)*(BL27-$G$4)/$G$8,$G$5),0.01%) -> 0.022 | BO27: =(((100*(1+8*$G$6))-BH27)/100)/4 -> -0.01354546861 | BP27: =1-_xlfn.NORM.DIST(BO27,$G$4,$G$5/SQRT(4),TRUE) -> 0.9540974479 | BQ27: =MAX(MIN(SQRT(4)*(BO27-$G$4)/$G$8,$G$5),0.01%) -> 0.022 | BR27: =(((100*(1+8*$G$6))-BI27)/100)/5 -> -0.01149703401 | BS27: =1-_xlfn.NORM.DIST(BR27,$G$4,$G$5/SQRT(5),TRUE) -> 0.9532042638 | BT27: =MAX(MIN(SQRT(5)*(BR27-$G$4)/$G$8,$G$5),0.01%) -> 0.022 | BU27: =(((100*(1+8*$G$6))-BJ27)/100)/6 -> -0.008633603998 | BV27: =1-_xlfn.NORM.DIST(BU27,$G$4,$G$5/SQRT(6),TRUE) -> 0.9354892091 | BW27: =MAX(MIN(SQRT(6)*(BU27-$G$4)/$G$8,$G$5),0.01%) -> 0.022 | BX27: =(((100*(1+8*$G$6))-BK27)/100)/7 -> -0.008736571644 | BY27: =1-_xlfn.NORM.DIST(BX27,$G$4,$G$5/SQRT(7),TRUE) -> 0.9507306509 | BZ27: =MAX(MIN(SQRT(7)*(BX27-$G$4)/$G$8,$G$5),0.01%) -> 0.022 | CA27: =MIN(BN27,BQ27,BT27,BW27,BZ27) -> 0.022 | CC27: =_xlfn.NORM.INV(RAND(),$G$4,CA27) -> 0.006980417264 | CD27: =IF(CC27="","",BG27*(1+CC27)) -> 101.8176088 | CE27: =(1+CC27)*BH27 -> 102.1261287 | CF27: =(1+CC27)*BI27 -> 102.4587641 | CG27: =(1+CC27)*BJ27 -> 101.8864422 | CH27: =(1+CC27)*BK27 -> 102.8284096 | CI27: =100*(1+CC27) -> 100.6980417 | CJ27: =(((100*(1+8*$G$6))-CD27)/100)/2 -> -0.02908804407 | CK27: =1-_xlfn.NORM.DIST(CJ27,$G$4,$G$5/SQRT(2),TRUE) -> 0.9857835977 | CL27: =MAX(MIN(SQRT(2)*(CJ27-$G$4)/$G$8,$G$5),0.01%) -> 0.022 | CM27: =(((100*(1+8*$G$6))-CE27)/100)/3 -> -0.02042042904 | CN27: =1-_xlfn.NORM.DIST(CM27,$G$4,$G$5/SQRT(3),TRUE) -> 0.977322106 | CO27: =MAX(MIN(SQRT(3)*(CM27-$G$4)/$G$8,$G$5),0.01%) -> 0.022 | CP27: =(((100*(1+8*$G$6))-CF27)/100)/4 -> -0.01614691027 | CQ27: =1-_xlfn.NORM.DIST(CP27,$G$4,$G$5/SQRT(4),TRUE) -> 0.9727251933 | CR27: =MAX(MIN(SQRT(4)*(CP27-$G$4)/$G$8,$G$5),0.01%) -> 0.022 | CS27: =(((100*(1+8*$G$6))-CG27)/100)/5 -> -0.0117728843 | CT27: =1-_xlfn.NORM.DIST(CS27,$G$4,$G$5/SQRT(5),TRUE) -> 0.9558829024 | CU27: =MAX(MIN(SQRT(5)*(CS27-$G$4)/$G$8,$G$5),0.01%) -> 0.022 | CV27: =(((100*(1+8*$G$6))-CH27)/100)/6 -> -0.01138068275 | CW27: =1-_xlfn.NORM.DIST(CV27,$G$4,$G$5/SQRT(6),TRUE) -> 0.9659112984 | CX27: =MAX(MIN(SQRT(6)*(CV27-$G$4)/$G$8,$G$5),0.01%) -> 0.022 | CY27: =(((100*(1+8*$G$6))-CI27)/100)/7 -> -0.006711488181 | CZ27: =1-_xlfn.NORM.DIST(CY27,$G$4,$G$5/SQRT(7),TRUE) -> 0.9204996241 | DA27: =MAX(MIN(SQRT(7)*(CY27-$G$4)/$G$8,$G$5),0.01%) -> 0.022 | DB27: =MIN(CL27,CO27,CR27,CU27,CX27,DA27) -> 0.022 | DD27: =_xlfn.NORM.INV(RAND(),$G$4,DB27) -> 0.01199186175 | DE27: =IF(DD27="","",CD27*(1+DD27)) -> 103.0385915 | DF27: =(1+DD27)*CE27 -> 103.3508111 | DG27: =(1+DD27)*CF27 -> 103.6874354 | DH27: =(1+DD27)*CG27 -> 103.1082503 | DI27: =(1+DD27)*CH27 -> 104.0615137 | DJ27: =(1+DD27)*CI27 -> 101.9055987 | DK27: =100*(1+DD27) -> 101.1991862 | DL27: =(((100*(1+8*$G$6))-DE27)/100)/1 -> -0.07038591502 | DM27: =1-_xlfn.NORM.DIST(DL27,$G$4,$G$5/SQRT(1),TRUE) -> 0.9996944422 | DN27: =MAX(MIN(SQRT(1)*(DL27-$G$4)/$G$8,$G$5),0.01%) -> 0.022 | DO27: =(((100*(1+8*$G$6))-DF27)/100)/2 -> -0.03675405564 | DP27: =1-_xlfn.NORM.DIST(DO27,$G$4,$G$5/SQRT(2),TRUE) -> 0.9963632142 | DQ27: =MAX(MIN(SQRT(2)*(DO27-$G$4)/$G$8,$G$5),0.01%) -> 0.022 | DR27: =(((100*(1+8*$G$6))-DG27)/100)/3 -> -0.02562478481 | DS27: =1-_xlfn.NORM.DIST(DR27,$G$4,$G$5/SQRT(3),TRUE) -> 0.9920472443 | DT27: =MAX(MIN(SQRT(3)*(DR27-$G$4)/$G$8,$G$5),0.01%) -> 0.022 | DU27: =(((100*(1+8*$G$6))-DH27)/100)/4 -> -0.0177706257 | DV27: =1-_xlfn.NORM.DIST(DU27,$G$4,$G$5/SQRT(4),TRUE) -> 0.980776491 | DW27: =MAX(MIN(SQRT(4)*(DU27-$G$4)/$G$8,$G$5),0.01%) -> 0.022 | DX27: =(((100*(1+8*$G$6))-DI27)/100)/5 -> -0.01612302744 | DY27: =1-_xlfn.NORM.DIST(DX27,$G$4,$G$5/SQRT(5),TRUE) -> 0.9841006907 | DZ27: =MAX(MIN(SQRT(5)*(DX27-$G$4)/$G$8,$G$5),0.01%) -> 0.022 | EA27: =(((100*(1+8*$G$6))-DJ27)/100)/6 -> -0.009842664535 | EB27: =1-_xlfn.NORM.DIST(EA27,$G$4,$G$5/SQRT(6),TRUE) -> 0.9507927148 | EC27: =MAX(MIN(SQRT(6)*(EA27-$G$4)/$G$8,$G$5),0.01%) -> 0.022 | ED27: =(((100*(1+8*$G$6))-DK27)/100)/7 -> -0.007427408821 | EE27: =1-_xlfn.NORM.DIST(ED27,$G$4,$G$5/SQRT(7),TRUE) -> 0.9324824545 | EF27: =MAX(MIN(SQRT(7)*(ED27-$G$4)/$G$8,$G$5),0.01%) -> 0.022 | EG27: =MIN(DN27,DQ27,DT27,DW27,DZ27,EC27,EF27) -> 0.022 | EI27: 0.03296470418 | EJ27: 106.4352282 | EK27: 106.75774 | EL27: 107.1054611 | EM27: 106.5071832 | EN27: 107.4918707 | EO27: 105.2648866 | EP27: 104.5351874 | EQ27: =(1+$EI27)*100 -> 103.2964704 | ER27: -0.1075774004 | ES27: =1-_xlfn.NORM.DIST(ER27,$G$4,$G$5/SQRT(1),TRUE) -> 0.9999998449 | ET27: =MAX(MIN(SQRT(1)*(ER27-$G$4)/$G$8,$G$5),0.01%) -> 0.022 | EU27: =(((100*(1+8*$G$6))-EL27)/100)/2 -> -0.05552730539 | EV27: =1-_xlfn.NORM.DIST(EU27,$G$4,$G$5/SQRT(2),TRUE) -> 0.9999500516 | EW27: =MAX(MIN(SQRT(2)*(EU27-$G$4)/$G$8,$G$5),0.01%) -> 0.022 | EX27: =(((100*(1+8*$G$6))-EM27)/100)/3 -> -0.03502394416 | EY27: =1-_xlfn.NORM.DIST(EX27,$G$4,$G$5/SQRT(3),TRUE) -> 0.9991866281 | EZ27: =MAX(MIN(SQRT(3)*(EX27-$G$4)/$G$8,$G$5),0.01%) -> 0.022 | FA27: =(((100*(1+8*$G$6))-EN27)/100)/4 -> -0.02872967684 | FB27: =1-_xlfn.NORM.DIST(FA27,$G$4,$G$5/SQRT(4),TRUE) -> 0.9989164954 | FC27: =MAX(MIN(SQRT(4)*(FA27-$G$4)/$G$8,$G$5),0.01%) -> 0.022 | FD27: =(((100*(1+8*$G$6))-EO27)/100)/5 -> -0.01852977327 | FE27: =1-_xlfn.NORM.DIST(FD27,$G$4,$G$5/SQRT(5),TRUE) -> 0.9916113761 | FF27: =MAX(MIN(SQRT(5)*(FD27-$G$4)/$G$8,$G$5),0.01%) -> 0.022 | FG27: =(((100*(1+8*$G$6))-EP27)/100)/6 -> -0.01422531235 | FH27: =1-_xlfn.NORM.DIST(FG27,$G$4,$G$5/SQRT(6),TRUE) -> 0.9838450211 | FI27: =MAX(MIN(SQRT(6)*(FG27-$G$4)/$G$8,$G$5),0.01%) -> 0.022 | FJ27: =(((100*(1+8*$G$6))-EQ27)/100)/7 -> -0.01042352917 | FK27: =1-_xlfn.NORM.DIST(FJ27,$G$4,$G$5/SQRT(7),TRUE) -> 0.9681915729 | FL27: =MAX(MIN(SQRT(7)*(FJ27-$G$4)/$G$8,$G$5),0.01%) -> 0.022 | FM27: =MIN(ET27,EW27,EZ27,FC27,FF27,FI27,FL27) -> 0.022 | FO27: -0.01530166055 | FP27: 105.1241693 | FQ27: 105.4665697 | FR27: 104.8774465 | FS27: 105.8470666 | FT27: 103.6541591 | FU27: 102.9356255 | FV27: 101.7158629 | FW27: =(1+FO27)*100 -> 98.46983394 | FX27: -0.0946656967 | FY27: =1-_xlfn.NORM.DIST(FX27,$G$4,$G$5/SQRT(1),TRUE) -> 0.9999970544 | FZ27: =MAX(MIN(SQRT(1)*(FX27-$G$4)/$G$8,$G$5),0.01%) -> 0.022 | GA27: =(((100*(1+8*$G$6))-FR27)/100)/2 -> -0.04438723242 | GB27: =1-_xlfn.NORM.DIST(GA27,$G$4,$G$5/SQRT(2),TRUE) -> 0.9992501241 | GC27: =MAX(MIN(SQRT(2)*(GA27-$G$4)/$G$8,$G$5),0.01%) -> 0.022 | GD27: =(((100*(1+8*$G$6))-FS27)/100)/3 -> -0.0328235554 | GE27: =1-_xlfn.NORM.DIST(GD27,$G$4,$G$5/SQRT(3),TRUE) -> 0.9985485281 | GF27: =MAX(MIN(SQRT(3)*(GD27-$G$4)/$G$8,$G$5),0.01%) -> 0.022 | GG27: =(((100*(1+8*$G$6))-FT27)/100)/4 -> -0.01913539768 | GH27: =1-_xlfn.NORM.DIST(GG27,$G$4,$G$5/SQRT(4),TRUE) -> 0.9858868619 | GI27: =MAX(MIN(SQRT(4)*(GG27-$G$4)/$G$8,$G$5),0.01%) -> 0.022 | GJ27: =(((100*(1+8*$G$6))-FU27)/100)/5 -> -0.01387125091 | GK27: =1-_xlfn.NORM.DIST(GJ27,$G$4,$G$5/SQRT(5),TRUE) -> 0.9724485283 | GL27: =MAX(MIN(SQRT(5)*(GJ27-$G$4)/$G$8,$G$5),0.01%) -> 0.022 | GM27: =(((100*(1+8*$G$6))-FV27)/100)/6 -> -0.009526438152 | GN27: =1-_xlfn.NORM.DIST(GM27,$G$4,$G$5/SQRT(6),TRUE) -> 0.9471018661 | GO27: =MAX(MIN(SQRT(6)*(GM27-$G$4)/$G$8,$G$5),0.01%) -> 0.022 | GP27: =(((100*(1+8*$G$6))-FW27)/100)/7 -> -0.003528334207 | GQ27: =1-_xlfn.NORM.DIST(GP27,$G$4,$G$5/SQRT(7),TRUE) -> 0.8474668974 | GR27: =MAX(MIN(SQRT(7)*(GP27-$G$4)/$G$8,$G$5),0.01%) -> 0.01760666681 | GS27: =MIN(FZ27,GC27,GF27,GI27,GL27,GO27,GR27) -> 0.01760666681 | GU27: -0.004625611917 | GV27: 104.9787222 | GW27: 104.3923241 | GX27: 105.3574592 | GY27: 103.1746952 | GZ27: 102.4594852 | HA27: 101.2453648 | HB27: 98.01435071 | HC27: =(1+GU27)*100 -> 99.53743881 | HD27: -0.08392324118 | HE27: =1-_xlfn.NORM.DIST(HD27,$G$4,$G$5/SQRT(1),TRUE) -> 0.9999734975 | HF27: =MAX(MIN(SQRT(1)*(HD27-$G$4)/$G$8,$G$5),0.01%) -> 0.022 | HG27: =(((100*(1+8*$G$6))-GX27)/100)/2 -> -0.04678729583 | HH27: =1-_xlfn.NORM.DIST(HG27,$G$4,$G$5/SQRT(2),TRUE) -> 0.999564229 | HI27: =MAX(MIN(SQRT(2)*(HG27-$G$4)/$G$8,$G$5),0.01%) -> 0.022 | HJ27: =(((100*(1+8*$G$6))-GY27)/100)/3 -> -0.02391565053 | HK27: =1-_xlfn.NORM.DIST(HJ27,$G$4,$G$5/SQRT(3),TRUE) -> 0.9885924604 | HL27: =MAX(MIN(SQRT(3)*(HJ27-$G$4)/$G$8,$G$5),0.01%) -> 0.022 | HM27: =(((100*(1+8*$G$6))-GZ27)/100)/4 -> -0.016148713 | HN27: =1-_xlfn.NORM.DIST(HM27,$G$4,$G$5/SQRT(4),TRUE) -> 0.9727354936 | HO27: =MAX(MIN(SQRT(4)*(HM27-$G$4)/$G$8,$G$5),0.01%) -> 0.022 | HP27: =(((100*(1+8*$G$6))-HA27)/100)/5 -> -0.01049072957 | HQ27: =1-_xlfn.NORM.DIST(HP27,$G$4,$G$5/SQRT(5),TRUE) -> 0.9423105018 | HR27: =MAX(MIN(SQRT(5)*(HP27-$G$4)/$G$8,$G$5),0.01%) -> 0.022 | HS27: =(((100*(1+8*$G$6))-HB27)/100)/6 -> -0.003357251179 | HT27: =1-_xlfn.NORM.DIST(HS27,$G$4,$G$5/SQRT(6),TRUE) -> 0.8239438802 | HU27: =MAX(MIN(SQRT(6)*(HS27-$G$4)/$G$8,$G$5),0.01%) -> 0.01597360699 | HV27: =(((100*(1+8*$G$6))-HC27)/100)/7 -> -0.005053484012 | HW27: =1-_xlfn.NORM.DIST(HV27,$G$4,$G$5/SQRT(7),TRUE) -> 0.8866774701 | HX27: =MAX(MIN(SQRT(7)*(HV27-$G$4)/$G$8,$G$5),0.01%) -> 0.02075532442 | HY27: =MIN(HF27,HI27,HL27,HO27,HR27,HU27,HX27) -> 0.01597360699 | IA27: 0.008350032345 | IB27: 105.2640034 | IC27: 106.2371974 | ID27: 104.0362072 | IE27: 103.3150252 | IF27: 102.0907669 | IG27: 98.83277371 | IH27: 100.3685796 | II27: =(1+IA27)*100 -> 100.8350032 | IJ27: -0.1023719736 | IK27: =1-_xlfn.NORM.DIST(IJ27,$G$4,$G$5/SQRT(1),TRUE) -> 0.999999471 | IL27: =MAX(MIN(SQRT(1)*(IJ27-$G$4)/$G$8,$G$5),0.01%) -> 0.022 | IM27: =(((100*(1+8*$G$6))-ID27)/100)/2 -> -0.04018103601 | IN27: =1-_xlfn.NORM.DIST(IM27,$G$4,$G$5/SQRT(2),TRUE) -> 0.9981598998 | IO27: =MAX(MIN(SQRT(2)*(IM27-$G$4)/$G$8,$G$5),0.01%) -> 0.022 | IP27: =(((100*(1+8*$G$6))-IE27)/100)/3 -> -0.02438341739 | IQ27: =1-_xlfn.NORM.DIST(IP27,$G$4,$G$5/SQRT(3),TRUE) -> 0.9896481381 | IR27: =MAX(MIN(SQRT(3)*(IP27-$G$4)/$G$8,$G$5),0.01%) -> 0.022 | IS27: =(((100*(1+8*$G$6))-IF27)/100)/4 -> -0.01522691714 | IT27: =1-_xlfn.NORM.DIST(IS27,$G$4,$G$5/SQRT(4),TRUE) -> 0.9670284793 | IU27: =MAX(MIN(SQRT(4)*(IS27-$G$4)/$G$8,$G$5),0.01%) -> 0.022 | IV27: =(((100*(1+8*$G$6))-IG27)/100)/5 -> -0.005665547412 | IW27: =1-_xlfn.NORM.DIST(IV27,$G$4,$G$5/SQRT(5),TRUE) -> 0.8608265591 | IX27: =MAX(MIN(SQRT(5)*(IV27-$G$4)/$G$8,$G$5),0.01%) -> 0.01860938699 | IY27: =(((100*(1+8*$G$6))-IH27)/100)/6 -> -0.00728096607 | IZ27: =1-_xlfn.NORM.DIST(IY27,$G$4,$G$5/SQRT(6),TRUE) -> 0.9142450378 | JA27: =MAX(MIN(SQRT(6)*(IY27-$G$4)/$G$8,$G$5),0.01%) -> 0.022 | JB27: =(((100*(1+8*$G$6))-II27)/100)/7 -> -0.006907147478 | JC27: =1-_xlfn.NORM.DIST(JB27,$G$4,$G$5/SQRT(7),TRUE) -> 0.9239238683 | JD27: =MAX(MIN(SQRT(7)*(JB27-$G$4)/$G$8,$G$5),0.01%) -> 0.022 | JE27: =MIN(IL27,IO27,IR27,IU27,IX27,JA27,JD27) -> 0.01860938699 | JG27: -0.005798309288 | JH27: 105.6212012 | JI27: 103.4329731 | JJ27: 102.7159727 | JK27: 101.498813 | JL27: 98.25971072 | JM27: 99.78661157 | JN27: 100.2503307 | JO27: =(1+JG27)*100 -> 99.42016907 | JP27: -0.07432973096 | JQ27: =1-_xlfn.NORM.DIST(JP27,$G$4,$G$5/SQRT(1),TRUE) -> 0.9998444617 | JR27: =MAX(MIN(SQRT(1)*(JP27-$G$4)/$G$8,$G$5),0.01%) -> 0.022 | JS27: =(((100*(1+8*$G$6))-JJ27)/100)/2 -> -0.03357986373 | JT27: =1-_xlfn.NORM.DIST(JS27,$G$4,$G$5/SQRT(2),TRUE) -> 0.9934310203 | JU27: =MAX(MIN(SQRT(2)*(JS27-$G$4)/$G$8,$G$5),0.01%) -> 0.022 | JV27: =(((100*(1+8*$G$6))-JK27)/100)/3 -> -0.01832937671 | JW27: =1-_xlfn.NORM.DIST(JV27,$G$4,$G$5/SQRT(3),TRUE) -> 0.9668737945 | JX27: =MAX(MIN(SQRT(3)*(JV27-$G$4)/$G$8,$G$5),0.01%) -> 0.022 | JY27: =(((100*(1+8*$G$6))-JL27)/100)/4 -> -0.005649276791 | JZ27: =1-_xlfn.NORM.DIST(JY27,$G$4,$G$5/SQRT(4),TRUE) -> 0.833506798 | KA27: =MAX(MIN(SQRT(4)*(JY27-$G$4)/$G$8,$G$5),0.01%) -> 0.01661934967 | KB27: =(((100*(1+8*$G$6))-JM27)/100)/5 -> -0.007573223149 | KC27: =1-_xlfn.NORM.DIST(KB27,$G$4,$G$5/SQRT(5),TRUE) -> 0.8993639205 | KD27: =MAX(MIN(SQRT(5)*(KB27-$G$4)/$G$8,$G$5),0.01%) -> 0.02193792463 | KE27: =(((100*(1+8*$G$6))-JN27)/100)/6 -> -0.007083884498 | KF27: =1-_xlfn.NORM.DIST(KE27,$G$4,$G$5/SQRT(6),TRUE) -> 0.9107559951 | KG27: =MAX(MIN(SQRT(6)*(KE27-$G$4)/$G$8,$G$5),0.01%) -> 0.022 | KH27: =(((100*(1+8*$G$6))-JO27)/100)/7 -> -0.004885955816 | KI27: =1-_xlfn.NORM.DIST(KH27,$G$4,$G$5/SQRT(7),TRUE) -> 0.8827603161 | KJ27: =MAX(MIN(SQRT(7)*(KH27-$G$4)/$G$8,$G$5),0.01%) -> 0.02040946402 | KK27: =MIN(JR27,JU27,JX27,KA27,KD27,KG27,KJ27) -> 0.01661934967 | KM27: 0.001147242289 | KN27: 103.5516358 | KO27: 102.8338129 | KP27: 101.6152567 | KQ27: 98.37243841 | KR27: 99.901091 | KS27: 100.3653421 | KT27: 99.53422809 | KU27: =(1+KM27)*100 -> 100.1147242 | KV27: -0.06833812854 | KW27: =1-_xlfn.NORM.DIST(KV27,$G$4,$G$5/SQRT(1),TRUE) -> 0.9995712757 | KX27: =MAX(MIN(SQRT(1)*(KV27-$G$4)/$G$8,$G$5),0.01%) -> 0.022 | KY27: =(((100*(1+8*$G$6))-KP27)/100)/2 -> -0.02807628372 | KZ27: =1-_xlfn.NORM.DIST(KY27,$G$4,$G$5/SQRT(2),TRUE) -> 0.9832576956 | LA27: =MAX(MIN(SQRT(2)*(KY27-$G$4)/$G$8,$G$5),0.01%) -> 0.022 | LB27: =(((100*(1+8*$G$6))-KQ27)/100)/3 -> -0.00790812804 | LC27: =1-_xlfn.NORM.DIST(LB27,$G$4,$G$5/SQRT(3),TRUE) -> 0.8452451875 | LD27: =MAX(MIN(SQRT(3)*(LB27-$G$4)/$G$8,$G$5),0.01%) -> 0.01744567616 | LE27: =(((100*(1+8*$G$6))-KR27)/100)/4 -> -0.009752727488 | LF27: =1-_xlfn.NORM.DIST(LE27,$G$4,$G$5/SQRT(4),TRUE) -> 0.9100652652 | LG27: =MAX(MIN(SQRT(4)*(LE27-$G$4)/$G$8,$G$5),0.01%) -> 0.022 | LH27: =(((100*(1+8*$G$6))-KS27)/100)/5 -> -0.008730684235 | LI27: =1-_xlfn.NORM.DIST(LH27,$G$4,$G$5/SQRT(5),TRUE) -> 0.9185793815 | LJ27: =MAX(MIN(SQRT(5)*(LH27-$G$4)/$G$8,$G$5),0.01%) -> 0.022 | LK27: =(((100*(1+8*$G$6))-KT27)/100)/6 -> -0.005890380156 | LL27: =1-_xlfn.NORM.DIST(LK27,$G$4,$G$5/SQRT(6),TRUE) -> 0.8873470818 | LM27: =MAX(MIN(SQRT(6)*(LK27-$G$4)/$G$8,$G$5),0.01%) -> 0.02081529546 | LN27: =(((100*(1+8*$G$6))-KU27)/100)/7 -> -0.00587817747 | LO27: =1-_xlfn.NORM.DIST(LN27,$G$4,$G$5/SQRT(7),TRUE) -> 0.9046015153 | LP27: =MAX(MIN(SQRT(7)*(LN27-$G$4)/$G$8,$G$5),0.01%) -> 0.022 | LQ27: =MIN(KX27,LA27,LD27,LG27,LJ27,LM27,LP27) -> 0.01744567616 | LS27: 0.03147578378 | LT27: 106.0705877 | LU27: 104.8136766 | LV27: 101.468788 | LW27: 103.0455561 | LX27: 103.5244199 | LY27: 102.6671459 | LZ27: 103.2659136 | MA27: =(1+LS27)*100 -> 103.1475784 | MB27: -0.08813676593 | MC27: =1-_xlfn.NORM.DIST(MB27,$G$4,$G$5/SQRT(1),TRUE) -> 0.9999884953 | MD27: =MAX(MIN(SQRT(1)*(MB27-$G$4)/$G$8,$G$5),0.01%) -> 0.022 | ME27: =(((100*(1+8*$G$6))-LV27)/100)/2 -> -0.02734394006 | MF27: =1-_xlfn.NORM.DIST(ME27,$G$4,$G$5/SQRT(2),TRUE) -> 0.9811980892 | MG27: =MAX(MIN(SQRT(2)*(ME27-$G$4)/$G$8,$G$5),0.01%) -> 0.022 | MH27: =(((100*(1+8*$G$6))-LW27)/100)/3 -> -0.02348518711 | MI27: =1-_xlfn.NORM.DIST(MH27,$G$4,$G$5/SQRT(3),TRUE) -> 0.9875395573 | MJ27: =MAX(MIN(SQRT(3)*(MH27-$G$4)/$G$8,$G$5),0.01%) -> 0.022 | MK27: =(((100*(1+8*$G$6))-LX27)/100)/4 -> -0.01881104981 | ML27: =1-_xlfn.NORM.DIST(MK27,$G$4,$G$5/SQRT(4),TRUE) -> 0.9847924016 | MM27: =MAX(MIN(SQRT(4)*(MK27-$G$4)/$G$8,$G$5),0.01%) -> 0.022 | MN27: =(((100*(1+8*$G$6))-LY27)/100)/5 -> -0.01333429187 | MO27: =1-_xlfn.NORM.DIST(MN27,$G$4,$G$5/SQRT(5),TRUE) -> 0.9688031386 | MP27: =MAX(MIN(SQRT(5)*(MN27-$G$4)/$G$8,$G$5),0.01%) -> 0.022 | MQ27: =(((100*(1+8*$G$6))-LZ27)/100)/6 -> -0.01210985607 | MR27: =1-_xlfn.NORM.DIST(MQ27,$G$4,$G$5/SQRT(6),TRUE) -> 0.9716111962 | MS27: =MAX(MIN(SQRT(6)*(MQ27-$G$4)/$G$8,$G$5),0.01%) -> 0.022 | MT27: =(((100*(1+8*$G$6))-MA27)/100)/7 -> -0.01021082625 | MU27: =1-_xlfn.NORM.DIST(MT27,$G$4,$G$5/SQRT(7),TRUE) -> 0.966320835 | MV27: =MAX(MIN(SQRT(7)*(MT27-$G$4)/$G$8,$G$5),0.01%) -> 0.022 | MW27: =MIN(MD27,MG27,MJ27,MM27,MP27,MS27,MV27) -> 0.022 | MY27: 0.02852220263 | MZ27: 107.8031935 | NA27: 104.3629013 | NB27: 105.9846424 | NC27: 106.4771644 | ND27: 105.5954391 | NE27: 106.211285 | NF27: 106.0895745 | NG27: =(1+MY27)*100 -> 102.8522203 | NH27: -0.08362901345 | NI27: =1-_xlfn.NORM.DIST(NH27,$G$4,$G$5/SQRT(1),TRUE) -> 0.999971944 | NJ27: =MAX(MIN(SQRT(1)*(NH27-$G$4)/$G$8,$G$5),0.01%) -> 0.022 | NK27: =(((100*(1+8*$G$6))-NB27)/100)/2 -> -0.04992321183 | NL27: =1-_xlfn.NORM.DIST(NK27,$G$4,$G$5/SQRT(2),TRUE) -> 0.9997926891 | NM27: =MAX(MIN(SQRT(2)*(NK27-$G$4)/$G$8,$G$5),0.01%) -> 0.022 | NN27: =(((100*(1+8*$G$6))-NC27)/100)/3 -> -0.03492388136 | NO27: =1-_xlfn.NORM.DIST(NN27,$G$4,$G$5/SQRT(3),TRUE) -> 0.9991644148 | NP27: =MAX(MIN(SQRT(3)*(NN27-$G$4)/$G$8,$G$5),0.01%) -> 0.022 | NQ27: =(((100*(1+8*$G$6))-ND27)/100)/4 -> -0.02398859769 | NR27: =1-_xlfn.NORM.DIST(NQ27,$G$4,$G$5/SQRT(4),TRUE) -> 0.9957971877 | NS27: =MAX(MIN(SQRT(4)*(NQ27-$G$4)/$G$8,$G$5),0.01%) -> 0.022 | NT27: =(((100*(1+8*$G$6))-NE27)/100)/5 -> -0.02042256991 | NU27: =1-_xlfn.NORM.DIST(NT27,$G$4,$G$5/SQRT(5),TRUE) -> 0.9951160057 | NV27: =MAX(MIN(SQRT(5)*(NT27-$G$4)/$G$8,$G$5),0.01%) -> 0.022 | NW27: =(((100*(1+8*$G$6))-NF27)/100)/6 -> -0.01681595751 | NX27: =1-_xlfn.NORM.DIST(NW27,$G$4,$G$5/SQRT(6),TRUE) -> 0.9924296998 | NY27: =MAX(MIN(SQRT(6)*(NW27-$G$4)/$G$8,$G$5),0.01%) -> 0.022 | NZ27: =(((100*(1+8*$G$6))-NG27)/100)/7 -> -0.00978888609 | OA27: =1-_xlfn.NORM.DIST(NZ27,$G$4,$G$5/SQRT(7),TRUE) -> 0.9623417796 | OB27: =MAX(MIN(SQRT(7)*(NZ27-$G$4)/$G$8,$G$5),0.01%) -> 0.022 | OC27: =MIN(NJ27,NM27,NP27,NS27,NV27,NY27,OB27) -> 0.022 | OF27: 0.022 | OG27: 0.01760666681 | OH27: 0.01597360699 | OI27: =JE27 -> 0.01860938699 | OJ27: =KK27 -> 0.01661934967 | OK27: =LQ27 -> 0.01744567616 | OL27: =MW27 -> 0.022 | OM27: =OC27 -> 0.022 | OO27: =IF(SUM(OF27:OM27)=8*OF27,"No","Yes") -> Yes | OQ27: =$G$5 -> 0.022 | OR27: =K27 -> 0.02122857725 | OS27: =R27 -> 0.02030561184 | OT27: =AD27 -> 0.022 | OU27: =AT27 -> 0.01957393873 | OV27: =BN27 -> 0.022 | OW27: =CL27 -> 0.022 | OX27: =DN27 -> 0.022 | OZ27: =IF(SUM(OQ27:OX27)=8*$G$5,"No","Yes") -> Yes
F28: 3 | G28: 0.008934972331 | H28: 100.8934972 | I28: -0.006990710333 | J28: 0.9253516187 | K28: 0.022 | M28: 0.01663037684 | N28: 102.5713941 | O28: 101.6630377 | P28: -0.01095232352 | Q28: 0.9621449759 | R28: 0.022 | S28: -0.008090053834 | T28: 0.9422826841 | U28: 0.022 | V28: 0.022 | X28: 0.02437784195 | Y28: 105.0718633 | Z28: 104.1413631 | AA28: 102.4377842 | AB28: -0.01814372669 | AC28: 0.9906715345 | AD28: 0.022 | AE28: -0.01356893858 | AF28: 0.9806552369 | AG28: 0.022 | AH28: -0.009196834564 | AI28: 0.9561197756 | AJ28: 0.022 | AK28: 0.022 | AM28: 0.001317674641 | AN28: 105.2103139 | AO28: 104.2785876 | AP28: 102.5727639 | AQ28: 100.1317675 | AR28: -0.02302578469 | AS28: 0.9945797484 | AT28: 0.022 | AU28: -0.01655717516 | AV28: 0.9857762566 | AW28: 0.022 | AX28: -0.01095460644 | AY28: 0.9621659136 | AZ28: 0.022 | BA28: -0.005902524949 | BB28: 0.9050969894 | BC28: 0.022 | BD28: 0.022 | BF28: -0.05628750716 | BG28: 99.28828758 | BH28: 98.40900584 | BI28: 96.79919868 | BJ28: 94.49559989 | BK28: 94.37124928 | BL28: -0.0109609586 | BM28: 0.8955506705 | BN28: 0.02157165734 | BO28: -0.006022514592 | BP28: 0.8418395003 | BQ28: 0.01720182767 | BR28: -0.001598397369 | BS28: 0.7487806293 | BT28: 0.01151297026 | BU28: 0.002507333523 | BV28: 0.609315175 | BW28: 0.004764350598 | BX28: 0.002326786737 | BY28: 0.6260783458 | BZ28: 0.005518823967 | CA28: 0.004764350598 | CC28: 0.007377100544 | CD28: 100.0207473 | CE28: 99.13497897 | CF28: 97.51329611 | CG28: 95.19270343 | CH28: 95.06743548 | CI28: 100.7377101 | CJ28: -0.02010373631 | CK28: 0.9467069209 | CL28: 0.022 | CM28: -0.01044992989 | CN28: 0.888077335 | CO28: 0.02088098853 | CP28: -0.003783240265 | CQ28: 0.7877029549 | CR28: 0.01370719759 | CS28: 0.001614593145 | CT28: 0.6346110379 | CU28: 0.005906902276 | CV28: 0.001554274202 | CW28: 0.6493805566 | CX28: 0.006585977673 | CY28: -0.006768157221 | CZ28: 0.9215031774 | DA28: 0.022 | DB28: 0.005906902276 | DD28: -0.008436260196 | DE28: 99.17694621 | DF28: 98.29865049 | DG28: 96.69064857 | DH28: 94.38963301 | DI28: 94.26542186 | DJ28: 99.88786052 | DK28: 99.15637398 | DL28: -0.03176946212 | DM28: 0.9526726499 | DN28: 0.022 | DO28: -0.01149325245 | DP28: 0.8554791985 | DQ28: 0.01820057962 | DR28: -0.002302161892 | DS28: 0.7173192346 | DT28: 0.009869064766 | DU28: 0.004025917468 | DV28: 0.5352814022 | DW28: 0.001520161276 | DX28: 0.003469156287 | DY28: 0.5618235194 | DZ28: 0.002671036186 | EA28: -0.006479767535 | EB28: 0.8994039149 | EC28: 0.02194181926 | ED28: -0.004509105686 | EE28: 0.8736007762 | EF28: 0.01963146042 | EG28: 0.001520161276 | EI28: 0.002091539051 | EJ28: 99.38437867 | EK28: 98.50424596 | EL28: 96.89288083 | EM28: 94.58705262 | EN28: 94.46258167 | EO28: 100.0967799 | EP28: 99.36376341 | EQ28: 100.2091539 | ER28: -0.02504245956 | ES28: 0.9139624418 | ET28: 0.022 | EU28: -0.004464404174 | EV28: 0.7285372176 | EW28: 0.01044412812 | EX28: 0.004709824613 | EY28: 0.5091131981 | EZ28: 0.0003921797037 | FA28: 0.003843545831 | FB28: 0.5418645444 | FC28: 0.001804771966 | FD28: -0.008193559764 | FE28: 0.9100375341 | FF28: 0.022 | FG28: -0.005606272348 | FH28: 0.8811801769 | FI28: 0.02027226686 | FJ28: -0.006013077007 | FK28: 0.9073229012 | FL28: 0.022 | FM28: 0.0003921797037 | FO28: 0.004720504506 | FP28: 98.96923569 | FQ28: 97.35026412 | FR28: 95.03355122 | FS28: 94.90849271 | FT28: 100.5692872 | FU28: 99.8328105 | FV28: 100.6821917 | FW28: 100.4720505 | FX28: -0.01350264115 | FY28: 0.799834196 | FZ28: 0.01443768761 | GA28: 0.004832243879 | GB28: 0.5043020192 | GC28: 0.0001851216817 | GD28: 0.003638357633 | GE28: 0.542685451 | GF28: 0.001840295642 | GG28: -0.01142321796 | GH28: 0.9322839998 | GI28: 0.022 | GJ28: -0.007665621003 | GK28: 0.9010097964 | GL28: 0.022 | GM28: -0.007803652779 | GN28: 0.9230029365 | GO28: 0.022 | GP28: -0.006388643501 | GQ28: 0.9145963608 | GR28: 0.022 | GS28: 0.0001851216817 | GU28: 0.004985603252 | GV28: 97.83561391 | GW28: 95.50735081 | GX28: 95.3816688 | GY28: 101.0706857 | GZ28: 100.3305373 | HA28: 101.1841531 | HB28: 100.9729642 | HC28: 100.4985603 | HD28: 0.004926491939 | HE28: 0.5013329736 | HF28: 0.0001 | HG28: 0.003091656 | HH28: 0.5488169768 | HI28: 0.002105889485 | HJ28: -0.01690228583 | HK28: 0.9576783656 | HL28: 0.022 | HM28: -0.01082634322 | HN28: 0.9248905172 | HO28: 0.022 | HP28: -0.01036830626 | HQ28: 0.9408590974 | HR28: 0.022 | HS28: -0.00828827372 | HT28: 0.9304996095 | HU28: 0.022 | HV28: -0.00642651475 | HW28: 0.9153053774 | HX28: 0.022 | HY28: 0.0001 | IA28: 0.005070476279 | IB28: 95.99161856 | IC28: 95.86529929 | ID28: 101.5831623 | IE28: 100.8392609 | IF28: 101.697205 | IG28: 101.4849453 | IH28: 101.0081359 | II28: 100.5070476 | IJ28: 0.00134700711 | IK28: 0.5659392833 | IL28: 0.002850445498 | IM28: -0.02791581131 | IN28: 0.9828237044 | IO28: 0.022 | IP28: -0.01613086965 | IQ28: 0.9519062575 | IR28: 0.022 | IS28: -0.01424301245 | IT28: 0.9598860065 | IU28: 0.022 | IV28: -0.0109698905 | IW28: 0.9477235663 | IX28: 0.022 | IY28: -0.008346893152 | IZ28: 0.9313669189 | JA28: 0.022 | JB28: -0.006438639468 | JC28: 0.9155314381 | JD28: 0.022 | JE28: 0.002850445498 | JG28: 0.005009459547 | JH28: 96.34553263 | JI28: 102.092039 | JJ28: 101.3444111 | JK28: 102.206653 | JL28: 101.99333 | JM28: 101.5141321 | JN28: 101.0105336 | JO28: 100.500946 | JP28: -0.06092039004 | JQ28: 0.9986339774 | JR28: 0.022 | JS28: -0.02672205547 | JT28: 0.9792835158 | JU28: 0.022 | JV28: -0.02068884337 | JW28: 0.9784361884 | JX28: 0.022 | JY28: -0.01498332495 | JZ28: 0.9653658573 | KA28: 0.022 | KB28: -0.01102826412 | KC28: 0.9483544984 | KD28: 0.022 | KE28: -0.008350889362 | KF28: 0.9314257399 | KG28: 0.022 | KH28: -0.006429922792 | KI28: 0.9153689648 | KJ28: 0.022 | KK28: 0.022 | KM28: -0.01513482729 | KN28: 100.5468936 | KO28: 99.81058094 | KP28: 100.659773 | KQ28: 100.4496785 | KR28: 99.97773321 | KS28: 99.48175664 | KT28: 98.9798815 | KU28: 98.48651727 | KV28: -0.03810580935 | KW28: 0.9749643849 | KX28: 0.022 | KY28: -0.02329886486 | KZ28: 0.9655534325 | LA28: 0.022 | LB28: -0.01483226182 | LC28: 0.9407836115 | LD28: 0.022 | LE28: -0.009944333015 | LF28: 0.9128594647 | LG28: 0.022 | LH28: -0.006963513273 | LI28: 0.8880008632 | LJ28: 0.02087409485 | LK28: -0.004966469159 | LL28: 0.8664296074 | LM28: 0.01904938095 | LN28: -0.00355216753 | LO28: 0.8481416764 | LP28: 0.01765587048 | LQ28: 0.01765587048 | LS28: 0.008320779125 | LT28: 100.6410827 | LU28: 101.4973407 | LV28: 101.2854981 | LW28: 100.8096258 | LX28: 100.3095224 | LY28: 99.80347123 | LZ28: 99.30600183 | MA28: 100.8320779 | MB28: -0.05497340709 | MC28: 0.9967952711 | MD28: 0.022 | ME28: -0.02642749067 | MF28: 0.9783205232 | MG28: 0.022 | MH28: -0.01603208614 | MI28: 0.9511236323 | MJ28: 0.022 | MK28: -0.0107738059 | ML28: 0.9242113508 | MM28: 0.022 | MN28: -0.007606942454 | MO28: 0.8999668577 | MP28: 0.02199675852 | MQ28: -0.005510003047 | MR28: 0.8790374188 | MS28: 0.02008826282 | MT28: -0.006902968446 | MU28: 0.9238519235 | MV28: 0.022 | MW28: 0.02008826282 | MY28: 0.05002074965 | MZ28: 106.5743138 | NA28: 106.3518747 | NB28: 105.8521989 | NC28: 105.3270799 | ND28: 104.7957157 | NE28: 104.2733625 | NF28: 105.875774 | NG28: 105.002075 | NH28: -0.1035187468 | NI28: 0.9999995944 | NJ28: 0.022 | NK28: -0.04926099449 | NL28: 0.9997567022 | NM28: 0.022 | NN28: -0.03109026622 | NO28: 0.997754003 | NP28: 0.022 | NQ28: -0.02198928919 | NR28: 0.992927734 | NS28: 0.022 | NT28: -0.01654672497 | NU28: 0.9857377855 | NV28: 0.022 | NW28: -0.0164596234 | NX28: 0.9915602948 | NY28: 0.022 | NZ28: -0.01286010709 | OA28: 0.9841384306 | OB28: 0.022 | OC28: 0.022 | OF28: 0.0003921797037 | OG28: 0.0001851216817 | OH28: 0.0001 | OI28: 0.002850445498 | OJ28: 0.022 | OK28: 0.01765587048 | OL28: 0.02008826282 | OM28: 0.022 | OO28: Yes | OQ28: 0.022 | OR28: 0.022 | OS28: 0.022 | OT28: 0.022 | OU28: 0.022 | OV28: 0.02157165734 | OW28: 0.022 | OX28: 0.022 | OZ28: Yes
F29: 4 | G29: 0.03358064198 | H29: 103.3580642 | I29: -0.01051152028 | J29: 0.9689399478 | K29: 0.022 | M29: 0.0252981719 | N29: 105.9728343 | O29: 102.5298172 | P29: -0.01662139046 | Q29: 0.9919652932 | R29: 0.022 | S29: -0.009328310271 | T29: 0.9575686645 | U29: 0.022 | V29: 0.022 | X29: 0.05914184591 | Y29: 112.2402633 | Z29: 108.5936198 | AA29: 105.9141846 | AB29: -0.03248052662 | AC29: 0.999930376 | AD29: 0.022 | AE29: -0.0209893664 | AF29: 0.9980961447 | AG29: 0.022 | AH29: -0.01416312084 | AI29: 0.9894050638 | AJ29: 0.022 | AK29: 0.022 | AM29: 0.01520752923 | AN29: 113.9471604 | AO29: 110.2450605 | AP29: 107.5248776 | AQ29: 101.5207529 | AR29: -0.04486790098 | AS29: 0.9999970985 | AT29: 0.022 | AU29: -0.02849012097 | AV29: 0.999667866 | AW29: 0.022 | AX29: -0.01920812942 | AY29: 0.9964841987 | AZ29: 0.022 | BA29: -0.00788678989 | BB29: 0.9394032789 | BC29: 0.022 | BD29: 0.022 | BF29: 0.007430407376 | BG29: 114.7938342 | BH29: 111.0642262 | BI29: 108.3238313 | BJ29: 102.2750935 | BK29: 100.7430407 | BL29: -0.06264611405 | BM29: 0.9999999497 | BN29: 0.022 | BO29: -0.03766056549 | BP29: 0.9999473911 | BQ29: 0.022 | BR29: -0.02464766259 | BS29: 0.9987081909 | BT29: 0.022 | BU29: -0.01045848912 | BV29: 0.9573886517 | BW29: 0.022 | BX29: -0.006775772482 | BY29: 0.921637301 | BZ29: 0.022 | CA29: 0.022 | CC29: 0.01704042509 | CD29: 116.7499699 | CE29: 112.9568078 | CF29: 110.1697154 | CG29: 104.0179045 | CH29: 102.459745 | CI29: 101.7040425 | CJ29: -0.1037498497 | CK29: 1 | CL29: 0.022 | CM29: -0.05652269275 | CN29: 0.9999993626 | CO29: 0.022 | CP29: -0.03542428856 | CQ29: 0.9998810452 | CR29: 0.022 | CS29: -0.01603580909 | CT29: 0.9837443934 | CU29: 0.022 | CV29: -0.01076624163 | CW29: 0.960406281 | CX29: 0.022 | CY29: -0.008148632156 | CZ29: 0.9430922096 | DA29: 0.022 | DB29: 0.022 | DD29: -0.0185206483 | DE29: 114.5876848 | DF29: 110.8647745 | DG29: 108.1293009 | DH29: 102.0914255 | DI29: 100.5621241 | DJ29: 99.82041771 | DK29: 98.14793517 | DL29: -0.1858768482 | DM29: 1 | DN29: 0.022 | DO29: -0.07432387257 | DP29: 0.9999998294 | DQ29: 0.022 | DR29: -0.04043100291 | DS29: 0.9998260629 | DT29: 0.022 | DU29: -0.01522856379 | DV29: 0.9670394905 | DW29: 0.022 | DX29: -0.009124248151 | DY29: 0.9244391784 | DZ29: 0.022 | EA29: -0.006367362846 | EB29: 0.8971802926 | EC29: 0.0217269749 | ED29: -0.003068478815 | EE29: 0.8340581751 | EF29: 0.01665729962 | EG29: 0.01665729962 | EI29: 0.01119737445 | EJ29: 115.870766 | EK29: 112.1061689 | EL29: 109.3400651 | EM29: 103.2345814 | EN29: 101.6881558 | EO29: 100.9381443 | EP29: 99.24693435 | EQ29: 101.1197374 | ER29: -0.1610616891 | ES29: 1 | ET29: 0.022 | EU29: -0.06670032572 | EV29: 0.9999979776 | EW29: 0.022 | EX29: -0.02411527145 | EY29: 0.9890539037 | EZ29: 0.022 | FA29: -0.01422038959 | FB29: 0.9597080494 | FC29: 0.022 | FD29: -0.009876288605 | FE29: 0.9347353385 | FF29: 0.022 | FG29: -0.005411557254 | FH29: 0.8768182463 | FI29: 0.01990009874 | FJ29: -0.007313910636 | FK29: 0.9306818452 | FL29: 0.022 | FM29: 0.01990009874 | FO29: -0.02238600629 | FP29: 109.5965595 | FQ29: 106.8923778 | FR29: 100.9235714 | FS29: 99.41176414 | FT29: 98.67854237 | FU29: 97.02519186 | FV29: 98.85607037 | FW29: 97.76139937 | FX29: -0.1089237776 | FY29: 0.9999998881 | FZ29: 0.022 | GA29: -0.02461785724 | GB29: 0.9715389147 | GC29: 0.022 | GD29: -0.01137254713 | GE29: 0.9013016163 | GF29: 0.022 | GG29: -0.006696355923 | GH29: 0.8561781898 | GI29: 0.01825343004 | GJ29: -0.002050383711 | GK29: 0.7631886475 | GL29: 0.01230160196 | GM29: -0.004760117278 | GN29: 0.8614143602 | GO29: 0.0186549709 | GP29: -0.002516284816 | GQ29: 0.8169808522 | GR29: 0.01551730023 | GS29: 0.01230160196 | GU29: 0.002028516335 | GV29: 107.1092107 | GW29: 101.1282966 | GX29: 99.61342253 | GY29: 98.8787134 | GZ29: 97.22200904 | HA29: 99.05660152 | HB29: 97.95970997 | HC29: 100.2028516 | HD29: -0.0512829656 | HE29: 0.9947409861 | HF29: 0.022 | HG29: -0.01806711263 | HH29: 0.9309375721 | HI29: 0.022 | HJ29: -0.009595711348 | HK29: 0.8747455646 | HL29: 0.0197264896 | HM29: -0.003055022606 | HN29: 0.767999566 | HO29: 0.01257073507 | HP29: -0.006113203041 | HQ29: 0.8706649228 | HR29: 0.0193904624 | HS29: -0.003266183277 | HT29: 0.8213078003 | HU29: 0.01579954463 | HV29: -0.006004073762 | HW29: 0.9071430824 | HX29: 0.022 | HY29: 0.01257073507 | IA29: 0.004986102109 | IB29: 101.6325326 | IC29: 100.1101052 | ID29: 99.37173277 | IE29: 97.70676791 | IF29: 99.55050785 | IG29: 98.44814708 | IH29: 100.7024733 | II29: 100.4986102 | IJ29: -0.04110105222 | IK29: 0.9819368212 | IL29: 0.022 | IM29: -0.01685866383 | IN29: 0.9200084095 | IO29: 0.022 | IP29: -0.005689226355 | IQ29: 0.7999823874 | IR29: 0.0144467719 | IS29: -0.008876269625 | IT29: 0.8964318496 | IU29: 0.02165542144 | IV29: -0.004896294166 | IW29: 0.84275708 | IX29: 0.01726718384 | IY29: -0.007837455472 | IZ29: 0.9235450058 | JA29: 0.022 | JB29: -0.006426586016 | JC29: 0.9153067075 | JD29: 0.022 | JE29: 0.0144467719 | JG29: 0.004173078035 | JH29: 100.5278725 | JI29: 99.78641876 | JJ29: 98.11450587 | JK29: 99.96593989 | JL29: 98.85897888 | JM29: 101.1227126 | JN29: 100.9179988 | JO29: 100.4173078 | JP29: -0.03786418761 | JQ29: 0.974314776 | JR29: 0.022 | JS29: -0.01057252937 | JT29: 0.8415962893 | JU29: 0.01718454631 | JV29: -0.01321979963 | JW29: 0.9242762325 | JX29: 0.022 | JY29: -0.007147447207 | JZ29: 0.8652713902 | KA29: 0.01895740684 | KB29: -0.01024542513 | KC29: 0.9393736193 | KD29: 0.022 | KE29: -0.008196664589 | KF29: 0.9291273288 | KG29: 0.022 | KH29: -0.006310439719 | KI29: 0.9131181938 | KJ29: 0.022 | KK29: 0.01718454631 | KM29: -0.002437017318 | KN29: 99.54323753 | KO29: 97.87539912 | KP29: 99.72232116 | KQ29: 98.61805784 | KR29: 100.8762748 | KS29: 100.6720598 | KT29: 100.1725891 | KU29: 99.75629827 | KV29: -0.01875399124 | KW29: 0.8598680886 | KX29: 0.01853533785 | KY29: -0.01861160581 | KZ29: 0.9354690383 | LA29: 0.022 | LB29: -0.008726859465 | LC29: 0.8600869133 | LD29: 0.01855221332 | LE29: -0.0121906869 | LF29: 0.9409489683 | LG29: 0.022 | LH29: -0.009344119686 | LI29: 0.9275698721 | LJ29: 0.022 | LK29: -0.006954315142 | LL29: 0.9084052876 | LM29: 0.022 | LN29: -0.005366140383 | LO29: 0.8937364825 | LP29: 0.0214008006 | LQ29: 0.01853533785 | LS29: -0.01905995842 | LT29: 96.00989809 | LU29: 97.82161787 | LV29: 96.73840176 | LW29: 98.95357716 | LX29: 98.75325457 | LY29: 98.2633037 | LZ29: 97.85494737 | MA29: 98.09400416 | MB29: -0.01821617866 | MC29: 0.8543515512 | MD29: 0.01811568046 | ME29: -0.003692008786 | MF29: 0.7118316019 | MG29: 0.009591776906 | MH29: -0.009845257193 | MI29: 0.8787500103 | MJ29: 0.0200637574 | MK29: -0.00688313642 | ML29: 0.8599923851 | MM29: 0.01854492123 | MN29: -0.004526607404 | MO29: 0.8335475177 | MP29: 0.01662214953 | MQ29: -0.003091578951 | MR29: 0.8161845674 | MS29: 0.01546581517 | MT29: -0.002991434511 | MU29: 0.8317393236 | MV29: 0.01649824237 | MW29: 0.009591776906 | MY29: -0.007364529069 | MZ29: 97.10120772 | NA29: 96.02596899 | NB29: 98.22483066 | NC29: 98.02598335 | ND29: 97.53964075 | NE29: 97.13429177 | NF29: 97.37158801 | NG29: 99.26354709 | NH29: -0.0002596898546 | NI29: 0.5944769889 | NJ29: 0.004104157801 | NK29: -0.01112415331 | NL29: 0.850015491 | NM29: 0.01779327255 | NN29: -0.006753277847 | NO29: 0.8226030309 | NP29: 0.01588486561 | NQ29: -0.003849101864 | NR29: 0.7894354178 | NS29: 0.01380998175 | NT29: -0.002268583533 | NU29: 0.7699781395 | NV29: 0.01268231987 | NW29: -0.002285980021 | NX29: 0.7913815468 | NY29: 0.01392603607 | NZ29: -0.004662210133 | OA29: 0.8773804685 | OB29: 0.01994754313 | OC29: 0.004104157801 | OF29: 0.01990009874 | OG29: 0.01230160196 | OH29: 0.01257073507 | OI29: 0.0144467719 | OJ29: 0.01718454631 | OK29: 0.01853533785 | OL29: 0.009591776906 | OM29: 0.004104157801 | OO29: Yes | OQ29: 0.022 | OR29: 0.022 | OS29: 0.022 | OT29: 0.022 | OU29: 0.022 | OV29: 0.022 | OW29: 0.022 | OX29: 0.022 | OZ29: No
F30: 5 | G30: 0.0158706351 | H30: 101.5870635 | I30: -0.007981519301 | J30: 0.9407588834 | K30: 0.022 | M30: -0.004452585222 | N30: 101.1347385 | O30: 99.55474148 | P30: -0.008557897421 | Q30: 0.9344198734 | R30: 0.022 | S30: -0.005078202111 | T30: 0.8872474327 | U30: 0.02080635471 | V30: 0.02080635471 | X30: 0.001702275904 | Y30: 101.3068977 | Z30: 99.72421112 | AA30: 100.1702276 | AB30: -0.01061379536 | AC30: 0.9437411442 | AD30: 0.022 | AE30: -0.006207018525 | AF30: 0.893946821 | AG30: 0.02142050126 | AH30: -0.005957467986 | AI30: 0.9062081153 | AJ30: 0.022 | AK30: 0.02142050126 | AM30: 0.008601309672 | AN30: 102.1782697 | AO30: 100.5819699 | AP30: 101.0318227 | AQ30: 100.860131 | AR30: -0.0154456742 | AS30: 0.9684649969 | AT30: 0.022 | AU30: -0.009163939874 | AV30: 0.9250118386 | AW30: 0.022 | AX30: -0.00838637123 | AY30: 0.9319463005 | AZ30: 0.022 | BA30: -0.006943044239 | BB30: 0.924539725 | BC30: 0.022 | BD30: 0.022 | BF30: 0.01999949152 | BG30: 104.2217831 | BH30: 102.5935582 | BI30: 103.0524078 | BJ30: 102.8772823 | BK30: 101.9999492 | BL30: -0.02740594373 | BM30: 0.9946340036 | BN30: 0.022 | BO30: -0.01648389548 | BP30: 0.9745950251 | BQ30: 0.022 | BR30: -0.01410481564 | BS30: 0.9739195245 | BT30: 0.022 | BU30: -0.01146213717 | BV30: 0.9665914003 | BW30: 0.022 | BX30: -0.008571355932 | BY30: 0.9486719033 | BZ30: 0.022 | CA30: 0.022 | CC30: 0.02461700513 | CD30: 106.7874113 | CE30: 105.1191043 | CF30: 105.5892495 | CG30: 105.4098129 | CH30: 104.5108824 | CI30: 102.4617005 | CJ30: -0.05393705644 | CK30: 0.999924256 | CL30: 0.022 | CM30: -0.03039701447 | CN30: 0.9973383696 | CO30: 0.022 | CP30: -0.02397312368 | CQ30: 0.9957797355 | CR30: 0.022 | CS30: -0.01881962577 | CT30: 0.992261354 | CU30: 0.022 | CV30: -0.01418480404 | CW30: 0.9836621098 | CX30: 0.022 | CY30: -0.009231000732 | CZ30: 0.9565000779 | DA30: 0.022 | DB30: 0.022 | DD30: 0.02464742772 | DE30: 109.4194463 | DF30: 107.7100199 | DG30: 108.1917529 | DH30: 108.0078936 | DI30: 107.0868068 | DJ30: 104.9871179 | DK30: 102.4647428 | DL30: -0.1341944629 | DM30: 0.9999999999 | DN30: 0.022 | DO30: -0.05855009933 | DP30: 0.9999779763 | DQ30: 0.022 | DR30: -0.04063917622 | DS30: 0.9998366499 | DT30: 0.022 | DU30: -0.03001973408 | DV30: 0.9992727513 | DW30: 0.022 | DX30: -0.02217361369 | DY30: 0.9971267951 | DZ30: 0.022 | EA30: -0.01497852978 | EB30: 0.9869398449 | EC30: 0.022 | ED30: -0.009235346817 | EE30: 0.9565482627 | EF30: 0.022 | EG30: 0.022 | EI30: 0.01389923857 | EJ30: 110.9402933 | EK30: 109.2071071 | EL30: 109.6955359 | EM30: 109.5091211 | EN30: 108.5752319 | EO30: 106.4463589 | EP30: 103.8889247 | EQ30: 101.3899239 | ER30: -0.1320710713 | ES30: 0.9999999998 | ET30: 0.022 | EU30: -0.06847767925 | EV30: 0.9999988399 | EW30: 0.022 | EX30: -0.04503040371 | EY30: 0.9999590673 | EZ30: 0.022 | FA30: -0.0314380798 | FB30: 0.9995377565 | FC30: 0.022 | FD30: -0.02089271774 | FE30: 0.9957523288 | FF30: 0.022 | FG30: -0.01314820779 | FH30: 0.9783409332 | FI30: 0.022 | FJ30: -0.007699891224 | FK30: 0.9366576544 | FL30: 0.022 | FM30: 0.022 | FO30: -0.005182911806 | FP30: 108.6410963 | FQ30: 109.1269936 | FR30: 108.941545 | FS30: 108.0124961 | FT30: 105.8946568 | FU30: 103.3504775 | FV30: 100.8644288 | FW30: 99.48170882 | FX30: -0.1312699356 | FY30: 0.9999999997 | FZ30: 0.022 | GA30: -0.06470772498 | GB30: 0.999996285 | GC30: 0.022 | GD30: -0.04004165356 | GE30: 0.9998045189 | GF30: 0.022 | GG30: -0.02473664194 | GH30: 0.9965675835 | GI30: 0.022 | GJ30: -0.01470095508 | GK30: 0.9773788299 | GL30: 0.022 | GM30: -0.008107381372 | GN30: 0.9277699527 | GO30: 0.022 | GP30: -0.004973869742 | GQ30: 0.8848277224 | GR30: 0.0205909615 | GS30: 0.0205909615 | GU30: -0.01519352717 | GV30: 107.4689696 | GW30: 107.2863387 | GX30: 106.3714053 | GY30: 104.2857434 | GZ30: 101.7802193 | HA30: 99.33194238 | HB30: 97.97023077 | HC30: 98.48064728 | HD30: -0.1128633867 | HE30: 0.9999999578 | HF30: 0.022 | HG30: -0.05185702637 | HH30: 0.9998713629 | HI30: 0.022 | HJ30: -0.02761914478 | HK30: 0.9948869941 | HL30: 0.022 | HM30: -0.01445054813 | HN30: 0.9614889073 | HO30: 0.022 | HP30: -0.006663884768 | HQ30: 0.882092241 | HR30: 0.0203512991 | HS30: -0.003283717956 | HT30: 0.8218172871 | HU30: 0.01583305948 | HV30: -0.003543781833 | HW30: 0.8479044836 | HX30: 0.01763855829 | HY30: 0.01583305948 | IA30: -0.002808479439 | IB30: 106.9850272 | IC30: 106.0726634 | ID30: 103.9928591 | IE30: 101.4943716 | IF30: 99.05297067 | IG30: 97.6950834 | IH30: 98.20406641 | II30: 99.71915206 | IJ30: -0.1007266337 | IK30: 0.9999992292 | IL30: 0.022 | IM30: -0.03996429533 | IN30: 0.9980763284 | IO30: 0.022 | IP30: -0.018314572 | IQ30: 0.966787623 | IR30: 0.022 | IS30: -0.007632426665 | IT30: 0.8745987633 | IU30: 0.0197142698 | IV30: -0.00339016679 | IW30: 0.8031071139 | IX30: 0.01463927304 | IY30: -0.003673444017 | IZ30: 0.8329041161 | JA30: 0.01657796122 | JB30: -0.005313074366 | JC30: 0.8925613035 | JD30: 0.0212912463 | JE30: 0.01463927304 | JG30: -0.002164973497 | JH30: 105.8430189 | JI30: 103.7677173 | JJ30: 101.274639 | JK30: 98.83852361 | JL30: 97.48357613 | JM30: 97.99145721 | JN30: 99.50326273 | JO30: 99.78350265 | JP30: -0.07767717283 | JQ30: 0.9999143798 | JR30: 0.022 | JS30: -0.02637319488 | JT30: 0.9781389526 | JU30: 0.022 | JV30: -0.009461745366 | JW30: 0.872558136 | JX30: 0.01954543103 | JY30: -0.003708940322 | JZ30: 0.7857385597 | KA30: 0.01359124448 | KB30: -0.003982914419 | KC30: 0.8193835974 | KD30: 0.01567350688 | KE30: -0.005838771225 | KF30: 0.886244177 | KG30: 0.02071665289 | KH30: -0.005405003786 | KI30: 0.8945912271 | KJ30: 0.02148103373 | KK30: 0.01359124448 | KM30: -0.003302889974 | KN30: 103.4249839 | KO30: 100.94014 | KP30: 98.51207084 | KQ30: 97.1615986 | KR30: 97.66780221 | KS30: 99.17461441 | KT30: 99.45392872 | KU30: 99.669711 | KV30: -0.04940139987 | KW30: 0.9932968722 | KX30: 0.022 | KY30: -0.01256035421 | KZ30: 0.8705136028 | LA30: 0.01937814423 | LB30: -0.003871995342 | LC30: 0.7575641221 | LD30: 0.01199073616 | LE30: -0.004169505519 | LF30: 0.7977443663 | LG30: 0.01431000635 | LH30: -0.006349228812 | LI30: 0.8756534242 | LJ30: 0.01980228326 | LK30: -0.005756547866 | LL30: 0.8844711685 | LM30: 0.02055949552 | LN30: -0.005242444289 | LO30: 0.8909826669 | LP30: 0.02114543116 | LQ30: 0.01199073616 | LS30: 0.01447250223 | LT30: 102.4009964 | LU30: 99.93778701 | LV30: 98.56777006 | LW30: 99.08129969 | LX30: 100.6099192 | LY30: 100.8932759 | LZ30: 101.1121811 | MA30: 101.4472502 | MB30: -0.03937787006 | MC30: 0.9781614206 | MD30: 0.022 | ME30: -0.01283885028 | MF30: 0.8742522963 | MG30: 0.0196854693 | MH30: -0.01027099898 | MI30: 0.8853723462 | MJ30: 0.02063915868 | MK30: -0.01152479809 | ML30: 0.9334842861 | MM30: 0.022 | MN30: -0.009786551851 | MO30: 0.933567203 | MP30: 0.022 | MQ30: -0.008520301863 | MR30: 0.9338837635 | MS30: 0.022 | MT30: -0.007781786033 | MU30: 0.9378724169 | MV30: 0.022 | MW30: 0.0196854693 | MY30: -0.00771251145 | MZ30: 99.16701568 | NA30: 97.807565 | NB30: 98.31713403 | NC30: 99.83396408 | ND30: 100.1151354 | NE30: 100.3323523 | NF30: 100.6648371 | NG30: 99.22874885 | NH30: -0.01807565 | NI30: 0.8528863581 | NJ30: 0.01800602537 | NK30: -0.01158567017 | NL30: 0.8568259802 | NM30: 0.01830256412 | NN30: -0.01277988027 | NO30: 0.9192137721 | NP30: 0.022 | NQ30: -0.01028783845 | NR30: 0.9177057218 | NS30: 0.022 | NT30: -0.008664704526 | NU30: 0.9175643292 | NV30: 0.022 | NW30: -0.007774728574 | NX30: 0.9225367851 | NY30: 0.022 | NZ30: -0.004612498364 | OA30: 0.8761620258 | OB30: 0.01984491364 | OC30: 0.01800602537 | OF30: 0.022 | OG30: 0.0205909615 | OH30: 0.01583305948 | OI30: 0.01463927304 | OJ30: 0.01359124448 | OK30: 0.01199073616 | OL30: 0.0196854693 | OM30: 0.01800602537 | OO30: Yes | OQ30: 0.022 | OR30: 0.022 | OS30: 0.022 | OT30: 0.022 | OU30: 0.022 | OV30: 0.022 | OW30: 0.022 | OX30: 0.022 | OZ30: No
F31: 6 | G31: -0.00511794486 | H31: 99.48820551 | I31: -0.004983150734 | J31: 0.8850444545 | K31: 0.02061012202 | M31: 0.007994603245 | N31: 100.2835742 | O31: 100.7994603 | P31: -0.007139290408 | Q31: 0.9117473798 | R31: 0.022 | S31: -0.006856371892 | T31: 0.9230462215 | U31: 0.022 | V31: 0.022 | X31: 0.003589698051 | Y31: 100.643562 | Z31: 101.1613 | AA31: 100.3589698 | AB31: -0.009287123991 | AC31: 0.9267680301 | AD31: 0.022 | AE31: -0.008602166585 | AF31: 0.93504682 | AG31: 0.022 | AH31: -0.006227099722 | AI31: 0.9115219951 | AJ31: 0.022 | AK31: 0.022 | AM31: 0.03396653298 | AN31: 104.0620749 | AO31: 104.5973986 | AP31: 103.7678161 | AQ31: 103.3966533 | AR31: -0.02015518716 | AS31: 0.9888972779 | AT31: 0.022 | AU31: -0.01719479716 | AV31: 0.9879605208 | AW31: 0.022 | AX31: -0.01294636011 | AY31: 0.9771501077 | AZ31: 0.022 | BA31: -0.01056664757 | BB31: 0.9694013459 | BC31: 0.022 | BD31: 0.022 | BF31: -0.01826182543 | BG31: 102.1617114 | BH31: 102.6872591 | BI31: 101.8728263 | BJ31: 101.5084417 | BK31: 98.17381746 | BL31: -0.02053903806 | BM31: 0.9778202496 | BN31: 0.022 | BO31: -0.01671814787 | BP31: 0.9758305589 | BQ31: 0.022 | BR31: -0.01174565264 | BS31: 0.9556240952 | BT31: 0.022 | BU31: -0.00918073611 | BV31: 0.9428192905 | BW31: 0.022 | BX31: -0.00310545351 | BY31: 0.8351636566 | BZ31: 0.01673363353 | CA31: 0.01673363353 | CC31: -0.001791741144 | CD31: 101.9786641 | CE31: 102.5032702 | CF31: 101.6902966 | CG31: 101.3265648 | CH31: 97.99791539 | CI31: 99.82082589 | CJ31: -0.02989332039 | CK31: 0.9875524822 | CL31: 0.022 | CM31: -0.02167756721 | CN31: 0.9821493734 | CO31: 0.022 | CP31: -0.01422574147 | CQ31: 0.9597502065 | CR31: 0.022 | CS31: -0.01065312963 | CT31: 0.9441924599 | CU31: 0.022 | CV31: -0.003329858982 | CW31: 0.8231535785 | CX31: 0.01592125099 | CY31: -0.005458322694 | CZ31: 0.895755792 | DA31: 0.02159111012 | DB31: 0.01592125099 | DD31: 0.001622866906 | DE31: 102.1441619 | DF31: 102.6696193 | DG31: 101.8553264 | DH31: 101.4910043 | DI31: 98.15695296 | DJ31: 99.9828218 | DK31: 100.1622867 | DL31: -0.06144161876 | DM31: 0.9987364336 | DN31: 0.022 | DO31: -0.03334809663 | DP31: 0.9931514215 | DQ31: 0.022 | DR31: -0.01951775468 | DS31: 0.9732134638 | DT31: 0.022 | DU31: -0.01372751086 | DV31: 0.9556692532 | DW31: 0.022 | DX31: -0.004313905926 | DY31: 0.828094049 | DZ31: 0.0162510252 | EA31: -0.006638036334 | EB31: 0.9024750646 | EC31: 0.022 | ED31: -0.005946123844 | EE31: 0.9059794904 | EF31: 0.022 | EG31: 0.0162510252 | EI31: 0.002596845488 | EJ31: 102.4094145 | EK31: 102.9362365 | EL31: 102.1198289 | EM31: 101.7545608 | EN31: 98.4118514 | EO31: 100.2424617 | EP31: 100.4223927 | EQ31: 100.2596845 | ER31: -0.06936236465 | ES31: 0.9996377126 | ET31: 0.022 | EU31: -0.03059914474 | EV31: 0.9889428723 | EW31: 0.022 | EX31: -0.01918186933 | EY31: 0.9715337362 | EZ31: 0.022 | FA31: -0.006029628508 | FB31: 0.8419956167 | FC31: 0.01721292971 | FD31: -0.00848492348 | FE31: 0.914750198 | FF31: 0.022 | FG31: -0.007370654455 | FH31: 0.9157986087 | FI31: 0.022 | FJ31: -0.006085263641 | FK31: 0.9087553585 | FL31: 0.022 | FM31: 0.01721292971 | FO31: 0.0109455115 | FP31: 104.0629262 | FQ31: 103.2375827 | FR31: 102.8683165 | FS31: 99.48901945 | FT31: 101.3396668 | FU31: 101.5215671 | FV31: 101.3570781 | FW31: 101.0945511 | FX31: -0.07237582711 | FY31: 0.9997818414 | FZ31: 0.022 | GA31: -0.03434158258 | GB31: 0.9942801539 | GC31: 0.022 | GD31: -0.01163006485 | GE31: 0.9047799101 | GF31: 0.022 | GG31: -0.01334916689 | GH31: 0.9523526649 | GI31: 0.022 | GJ31: -0.01104313425 | GK31: 0.948514251 | GL31: 0.022 | GM31: -0.008928463465 | GN31: 0.9395253444 | GO31: 0.022 | GP31: -0.007277930214 | GQ31: 0.9301033723 | GR31: 0.022 | GS31: 0.022 | GU31: 0.008692289481 | GV31: 104.1349537 | GW31: 103.7624777 | GX31: 100.3538068 | GY31: 102.2205405 | GZ31: 102.404022 | HA31: 102.2381031 | HB31: 101.9732943 | HC31: 100.8692289 | HD31: -0.07762477701 | HE31: 0.9999135614 | HF31: 0.022 | HG31: -0.02176903406 | HH31: 0.9573545039 | HI31: 0.022 | HJ31: -0.02073513492 | HK31: 0.9786235721 | HL31: 0.022 | HM31: -0.01601005494 | HN31: 0.9719337149 | HO31: 0.022 | HP31: -0.01247620628 | HQ31: 0.9621559567 | HR31: 0.022 | HS31: -0.009955490422 | HT31: 0.9520586757 | HU31: 0.022 | HV31: -0.006956041354 | HW31: 0.9247617685 | HX31: 0.022 | HY31: 0.022 | IA31: 0.00465319362 | IB31: 104.2453046 | IC31: 100.8207725 | ID31: 102.6961924 | IE31: 102.8805277 | IF31: 102.7138368 | IG31: 102.4477957 | IH31: 101.338593 | II31: 100.4653194 | IJ31: -0.04820772505 | IK31: 0.9922083831 | IL31: 0.022 | IM31: -0.03348096222 | IN31: 0.9933129665 | IO31: 0.022 | IP31: -0.02293509239 | IQ31: 0.9860723461 | IR31: 0.022 | IS31: -0.01678459208 | IT31: 0.9761716803 | IU31: 0.022 | IV31: -0.01289559147 | IW31: 0.965536514 | IX31: 0.022 | IY31: -0.008897655001 | IZ31: 0.9391131025 | JA31: 0.022 | JB31: -0.00637902766 | JC31: 0.9144156296 | JD31: 0.022 | JE31: 0.022 | JG31: 0.0262908704 | JH31: 103.4714384 | JI31: 105.3961647 | JJ31: 105.5853463 | JK31: 105.414273 | JL31: 105.1412375 | JM31: 104.0028728 | JN31: 103.1066401 | JO31: 102.629087 | JP31: -0.0939616473 | JQ31: 0.9999965744 | JR31: 0.022 | JS31: -0.0479267317 | JT31: 0.9996658439 | JU31: 0.022 | JV31: -0.03138091001 | JW31: 0.9979100355 | JX31: 0.022 | JY31: -0.02285309364 | JZ31: 0.9943309081 | KA31: 0.022 | KB31: -0.01600574563 | KC31: 0.9836200057 | KD31: 0.022 | KE31: -0.01184440009 | KF31: 0.9696354701 | KG31: 0.022 | KH31: -0.009470124343 | KI31: 0.9590878495 | KJ31: 0.022 | KK31: 0.022 | KM31: 0.03735435997 | KN31: 109.333171 | KO31: 109.5294194 | KP31: 109.3519557 | KQ31: 109.0687211 | KR31: 107.8878336 | KS31: 106.9581226 | KT31: 106.4627309 | KU31: 103.735436 | KV31: -0.1352941937 | KW31: 0.9999999999 | KX31: 0.022 | KY31: -0.06675977852 | KZ31: 0.9999980145 | LA31: 0.022 | LB31: -0.04356240363 | LC31: 0.9999341607 | LD31: 0.022 | LE31: -0.02971958391 | LF31: 0.9992011486 | LG31: 0.022 | LH31: -0.0219162452 | LI31: 0.9968881087 | LJ31: 0.022 | LK31: -0.01743788484 | LL31: 0.9937594879 | LM31: 0.022 | LN31: -0.01105062285 | LO31: 0.9732133502 | LP31: 0.022 | LQ31: 0.022 | LS31: 0.01201922364 | LT31: 110.845878 | LU31: 110.6662813 | LV31: 110.3796424 | LW31: 109.1845616 | LX31: 108.2436762 | LY31: 107.7423303 | LZ31: 104.9822554 | MA31: 101.2019224 | MB31: -0.1466628132 | MC31: 1 | MD31: 0.022 | ME31: -0.07189821219 | MF31: 0.9999996158 | MG31: 0.022 | MH31: -0.04394853855 | MI31: 0.9999418265 | MJ31: 0.022 | MK31: -0.03060919049 | ML31: 0.9993964543 | MM31: 0.022 | MN31: -0.02348466055 | MO31: 0.9981052056 | MP31: 0.022 | MQ31: -0.01497042567 | MR31: 0.9869094884 | MS31: 0.022 | MT31: -0.007431317663 | MU31: 0.9325438169 | MV31: 0.022 | MW31: 0.022 | MY31: 0.01921356768 | MZ31: 112.7925754 | NA31: 112.5004292 | NB31: 111.2823865 | NC31: 110.3234234 | ND31: 109.8124448 | NE31: 106.9993391 | NF31: 103.1463723 | NG31: 101.9213568 | NH31: -0.1650042917 | NI31: 1 | NJ31: 0.022 | NK31: -0.07641193264 | NL31: 0.9999999168 | NM31: 0.022 | NN31: -0.04774474465 | NO31: 0.999983562 | NP31: 0.022 | NQ31: -0.03453111207 | NR31: 0.9998370159 | NS31: 0.022 | NT31: -0.02199867814 | NU31: 0.9969664329 | NV31: 0.022 | NW31: -0.01191062058 | NX31: 0.9701387006 | NY31: 0.022 | NZ31: -0.008459081097 | OA31: 0.9472342103 | OB31: 0.022 | OC31: 0.022 | OF31: 0.01721292971 | OG31: 0.022 | OH31: 0.022 | OI31: 0.022 | OJ31: 0.022 | OK31: 0.022 | OL31: 0.022 | OM31: 0.022 | OO31: Yes | OQ31: 0.022 | OR31: 0.02061012202 | OS31: 0.022 | OT31: 0.022 | OU31: 0.022 | OV31: 0.022 | OW31: 0.022 | OX31: 0.022 | OZ31: Yes
F32: 7 | G32: 0.02490238066 | H32: 102.4902381 | I32: -0.009271768665 | J32: 0.9569503781 | K32: 0.022 | M32: -0.0005161625892 | N32: 102.4373364 | O32: 99.94838374 | P32: -0.01072889406 | Q32: 0.9600496076 | R32: 0.022 | S32: -0.005640548202 | T32: 0.8996654267 | U32: 0.02196731299 | V32: 0.02196731299 | X32: 0.005721266518 | Y32: 103.0234077 | Z32: 100.5202151 | AA32: 100.5721267 | AB32: -0.01404681548 | AC32: 0.97356051 | AD32: 0.022 | AE32: -0.007533691804 | AF32: 0.9185684666 | AG32: 0.022 | AH32: -0.006531609503 | AI32: 0.9172498065 | AJ32: 0.022 | AK32: 0.022 | AM32: 0.006245560294 | AN32: 103.6668466 | AO32: 101.1480201 | AP32: 101.2002559 | AQ32: 100.624556 | AR32: -0.01916711662 | AS32: 0.9859901555 | AT32: 0.022 | AU32: -0.01029604029 | AV32: 0.9399889901 | AW32: 0.022 | AX32: -0.008667093221 | AY32: 0.9359578927 | AZ32: 0.022 | BA32: -0.006606508613 | BB32: 0.9186149308 | BC32: 0.022 | BD32: 0.022 | BF32: 0.004922224069 | BG32: 104.1771181 | BH32: 101.6458934 | BI32: 101.6983863 | BJ32: 101.1198526 | BK32: 100.4922224 | BL32: -0.02725706032 | BM32: 0.9944507944 | BN32: 0.022 | BO32: -0.01411473341 | BP32: 0.9588684234 | BQ32: 0.022 | BR32: -0.01139677254 | BS32: 0.9521989364 | BT32: 0.022 | BU32: -0.008533087735 | BV32: 0.9340664688 | BW32: 0.022 | BX32: -0.006417460581 | BY32: 0.9151362703 | BZ32: 0.022 | CA32: 0.022 | CC32: -0.005503182772 | CD32: 103.6038124 | CE32: 101.0865174 | CF32: 101.1387215 | CG32: 100.5633716 | CH32: 99.93919534 | CI32: 99.44968172 | CJ32: -0.03801906186 | CK32: 0.9971570871 | CL32: 0.022 | CM32: -0.01695505812 | CN32: 0.9580518137 | CO32: 0.022 | CP32: -0.01284680365 | CQ32: 0.9476450613 | CR32: 0.022 | CS32: -0.00912674322 | CT32: 0.9244752743 | CU32: 0.022 | CV32: -0.006565325566 | CW32: 0.9010727857 | CX32: 0.022 | CY32: -0.004928116747 | CZ32: 0.8837550407 | DA32: 0.02049650487 | DB32: 0.02049650487 | DD32: 0.01459081389 | DE32: 105.1154763 | DF32: 102.561452 | DG32: 102.6144177 | DH32: 102.030673 | DI32: 101.3973895 | DJ32: 100.9007335 | DK32: 101.4590814 | DL32: -0.09115476318 | DM32: 0.9999938067 | DN32: 0.022 | DO32: -0.03280726 | DP32: 0.9924577243 | DQ32: 0.022 | DR32: -0.02204805908 | DS32: 0.9833928148 | DT32: 0.022 | DU32: -0.01507668262 | DV32: 0.9660110254 | DW32: 0.022 | DX32: -0.01079477908 | DY32: 0.9457940972 | DZ32: 0.022 | EA32: -0.008167889201 | EB32: 0.9286920124 | EC32: 0.022 | ED32: -0.007798687699 | EE32: 0.9381208454 | EF32: 0.022 | EG32: 0.022 | EI32: -0.01753582661 | EJ32: 103.2721896 | EK32: 100.7629522 | EL32: 100.8149891 | EM32: 100.2414809 | EN32: 99.6193025 | EO32: 99.13135575 | EP32: 99.67991253 | EQ32: 98.24641734 | ER32: -0.04762952161 | ES32: 0.9916273065 | ET32: 0.022 | EU32: -0.02407494543 | EV32: 0.9691891688 | EW32: 0.022 | EX32: -0.01413826953 | EY32: 0.9340623638 | EZ32: 0.022 | FA32: -0.009048256245 | FB32: 0.8992190346 | FC32: 0.02192382519 | FD32: -0.006262711506 | FE32: 0.8738407004 | FF32: 0.01965132673 | FG32: -0.00613318755 | FH32: 0.8924335048 | FI32: 0.02127938465 | FJ32: -0.003209167627 | FK32: 0.8382390167 | FL32: 0.01694775037 | FM32: 0.01694775037 | FO32: 0.02691815494 | FP32: 103.4753049 | FQ32: 103.5287426 | FR32: 102.9397966 | FS32: 102.3008703 | FT32: 101.7997889 | FU32: 102.3631119 | FV32: 100.8910296 | FW32: 102.6918155 | FX32: -0.07528742583 | FY32: 0.9998685878 | FZ32: 0.022 | GA32: -0.03469898286 | GB32: 0.9946438635 | GC32: 0.022 | GD32: -0.02100290106 | GE32: 0.9796806533 | GF32: 0.022 | GG32: -0.01449947237 | GH32: 0.961859069 | GI32: 0.022 | GJ32: -0.01272622372 | GK32: 0.9642024074 | GL32: 0.022 | GM32: -0.00815171604 | GN32: 0.9284464441 | GO32: 0.022 | GP32: -0.00955973642 | GQ32: 0.9600248594 | GR32: 0.022 | GS32: 0.022 | GU32: 0.01638112547 | GV32: 105.2246599 | GW32: 104.6260663 | GX32: 103.9766737 | GY32: 103.4673841 | GZ32: 104.0399348 | HA32: 102.5437382 | HB32: 104.374023 | HC32: 101.6381125 | HD32: -0.08626066296 | HE32: 0.9999832459 | HF32: 0.022 | HG32: -0.03988336855 | HH32: 0.9980442505 | HI32: 0.022 | HJ32: -0.02489128021 | HK32: 0.9906968932 | HL32: 0.022 | HM32: -0.0200998371 | HN32: 0.9887495242 | HO32: 0.022 | HP32: -0.01308747648 | HQ32: 0.9669983476 | HR32: 0.022 | HS32: -0.01395670502 | HT32: 0.9825987077 | HU32: 0.022 | HV32: -0.008054446496 | HW32: 0.9417861993 | HX32: 0.022 | HY32: 0.022 | IA32: -0.008284196967 | IB32: 103.7593234 | IC32: 103.1153105 | ID32: 102.6102399 | IE32: 103.1780475 | IF32: 101.6942457 | IG32: 103.509368 | IH32: 100.7961224 | II32: 99.1715803 | IJ32: -0.07115310466 | IK32: 0.9997314177 | IL32: 0.022 | IM32: -0.03305119937 | IN32: 0.9927779255 | IO32: 0.022 | IP32: -0.02392682509 | IQ32: 0.9886187311 | IR32: 0.022 | IS32: -0.01423561428 | IT32: 0.9598278811 | IU32: 0.022 | IV32: -0.01501873609 | IW32: 0.9790591335 | IX32: 0.022 | IY32: -0.007993537339 | IZ32: 0.9260103866 | JA32: 0.022 | JB32: -0.004530829005 | JC32: 0.8741419471 | JD32: 0.01967630801 | JE32: 0.01967630801 | JG32: -0.02004010041 | JH32: 101.0488693 | JI32: 100.5539204 | JJ32: 101.1103491 | JK32: 99.65628282 | JL32: 101.4350299 | JM32: 98.77615799 | JN32: 97.18417188 | JO32: 97.99598996 | JP32: -0.04553920363 | JQ32: 0.9891973598 | JR32: 0.022 | JS32: -0.02555174547 | JT32: 0.9752315085 | JU32: 0.022 | JV32: -0.0121876094 | JW32: 0.9119998645 | JX32: 0.022 | JY32: -0.01358757479 | JZ32: 0.9544649289 | KA32: 0.022 | KB32: -0.00555231598 | KC32: 0.8582593424 | KD32: 0.0184118193 | KE32: -0.001973619794 | KF32: 0.7812571287 | KG32: 0.01332900729 | KH32: -0.002851414227 | KI32: 0.8274719561 | KJ32: 0.01620917179 | KK32: 0.01332900729 | KM32: -0.01141310357 | KN32: 99.40628806 | KO32: 99.95636621 | KP32: 98.51889534 | KQ32: 100.2773414 | KR32: 97.64881547 | KS32: 96.07499886 | KT32: 96.87755158 | KU32: 98.85868964 | KV32: -0.03956366208 | KW32: 0.9785981813 | KX32: 0.022 | KY32: -0.01259447671 | KZ32: 0.8709757791 | LA32: 0.01941579898 | LB32: -0.01425780471 | LC32: 0.9352604134 | LD32: 0.022 | LE32: -0.00412203867 | LF32: 0.7965259445 | LG32: 0.01423592919 | LH32: -0.0001499977137 | LI32: 0.6996669801 | LJ32: 0.008985783547 | LK32: -0.00146258596 | LL32: 0.7640980791 | LM32: 0.0123522443 | LN32: -0.004083842347 | LO32: 0.8626792047 | LP32: 0.0187535082 | LQ32: 0.008985783547 | LS32: 0.008262652555 | LT32: 100.7822709 | LU32: 99.33292274 | LV32: 101.1058982 | LW32: 98.4556537 | LX32: 96.86883319 | LY32: 97.67801712 | LZ32: 99.67552465 | MA32: 100.8262653 | MB32: -0.03332922743 | MC32: 0.9592665623 | MD32: 0.022 | ME32: -0.02552949122 | MF32: 0.9751484327 | MG32: 0.022 | MH32: -0.008185512342 | MI32: 0.8503858931 | MJ32: 0.01782056838 | MK32: -0.002172082979 | ML32: 0.742801847 | MM32: 0.01119281217 | MN32: -0.00335603425 | MO32: 0.8021435758 | MP32: 0.01457971814 | MQ32: -0.006125874412 | MR32: 0.8922827644 | MS32: 0.0212654067 | MT32: -0.006894664651 | MU32: 0.9237088145 | MV32: 0.022 | MW32: 0.01119281217 | MY32: 0.002220854497 | MZ32: 99.55352671 | NA32: 101.3304397 | NB32: 98.67430938 | NC32: 97.08396478 | ND32: 97.89494579 | NE32: 99.89688948 | NF32: 101.0501857 | NG32: 100.2220854 | NH32: -0.05330439733 | NI32: 0.9959777918 | NJ32: 0.022 | NK32: -0.01337154692 | NL32: 0.8811922353 | NM32: 0.02027330894 | NN32: -0.003613215918 | NO32: 0.7511505749 | NP32: 0.01164098893 | NQ32: -0.004737364471 | NR32: 0.8119796452 | NS32: 0.01519621174 | NT32: -0.007793778969 | NU32: 0.9032599437 | NV32: 0.022 | NW32: -0.0084169762 | NX32: 0.9323928561 | NY32: 0.022 | NZ32: -0.006031550642 | OA32: 0.9076910623 | OB32: 0.022 | OC32: 0.01164098893 | OF32: 0.01694775037 | OG32: 0.022 | OH32: 0.022 | OI32: 0.01967630801 | OJ32: 0.01332900729 | OK32: 0.008985783547 | OL32: 0.01119281217 | OM32: 0.01164098893 | OO32: Yes | OQ32: 0.022 | OR32: 0.022 | OS32: 0.022 | OT32: 0.022 | OU32: 0.022 | OV32: 0.022 | OW32: 0.022 | OX32: 0.022 | OZ32: No
F33: 8 | G33: 0.03187315291 | H33: 103.1873153 | I33: -0.01026759327 | J33: 0.9668287504 | K33: 0.022 | M33: -0.01660811434 | N33: 101.4735686 | O33: 98.33918857 | P33: -0.009122614268 | Q33: 0.9420731935 | R33: 0.022 | S33: -0.003341697952 | T33: 0.8421140672 | U33: 0.01722135799 | V33: 0.01722135799 | X33: 0.00134212471 | Y33: 101.6097587 | Z33: 98.47117202 | AA33: 100.1342125 | AB33: -0.01121951749 | AC33: 0.9503793419 | AD33: 0.022 | AE33: -0.004118620036 | AF33: 0.8450117139 | AG33: 0.01742884707 | AH33: -0.005906017816 | AI33: 0.9051679139 | AJ33: 0.022 | AK33: 0.01742884707 | AM33: -0.005930043299 | AN33: 101.0072085 | AO33: 97.88723371 | AP33: 99.54041226 | AQ33: 99.40699567 | AR33: -0.01251802119 | AS33: 0.9443691171 | AT33: 0.022 | AU33: -0.003774467415 | AV33: 0.8137585261 | AW33: 0.01530980581 | AX33: -0.005900687092 | AY33: 0.8875664275 | AZ33: 0.02083499559 | BA33: -0.004867136672 | BB33: 0.8823143654 | BC33: 0.02037061207 | BD33: 0.01530980581 | BF33: -0.00395215571 | BG33: 100.6080123 | BH33: 97.50036812 | BI33: 99.14701305 | BJ33: 99.01412374 | BK33: 99.60478443 | BL33: -0.01536004087 | BM33: 0.9455257744 | BN33: 0.022 | BO33: -0.003750920295 | BP33: 0.7868497529 | BQ33: 0.01365675878 | BR33: -0.006294026093 | BS33: 0.8744989238 | BT33: 0.01970596483 | BU33: -0.005023539574 | BV33: 0.867794355 | BW33: 0.01915846232 | BX33: -0.005149692041 | BY33: 0.888884355 | BZ33: 0.020953945 | CA33: 0.01365675878 | CC33: 0.01070712408 | CD33: 101.6852347 | CE33: 98.54431666 | CF33: 100.2085924 | CG33: 100.0742803 | CH33: 100.6712652 | CI33: 101.0707124 | CJ33: -0.02842617366 | CK33: 0.9841715332 | CL33: 0.022 | CM33: -0.008481055525 | CN33: 0.8557363519 | CO33: 0.0182200028 | CP33: -0.01052148104 | CQ33: 0.9208841401 | CR33: 0.022 | CS33: -0.008148560507 | CT33: 0.9092927593 | CU33: 0.022 | CV33: -0.007785442025 | CW33: 0.9227096957 | CX33: 0.022 | CY33: -0.007243874869 | CZ33: 0.9295524345 | DA33: 0.022 | DB33: 0.0182200028 | DD33: 0.01016507957 | DE33: 102.7188732 | DF33: 99.54602748 | DG33: 101.2272207 | DH33: 101.0915433 | DI33: 101.6945966 | DJ33: 102.0981042 | DK33: 101.016508 | DL33: -0.06718873234 | DM33: 0.9994833621 | DN33: 0.022 | DO33: -0.01773013739 | DP33: 0.9280126635 | DQ33: 0.022 | DR33: -0.01742406911 | DS33: 0.9612548749 | DT33: 0.022 | DU33: -0.01272885819 | DV33: 0.9464879466 | DW33: 0.022 | DX33: -0.01138919327 | DY33: 0.952122241 | DZ33: 0.022 | EA33: -0.01016350707 | EB33: 0.9543242845 | EC33: 0.022 | ED33: -0.007166439939 | EE33: 0.9282872933 | EF33: 0.022 | EG33: 0.022 | EI33: -0.008835881511 | EJ33: 101.8112614 | EK33: 98.66645057 | EL33: 100.332789 | EM33: 100.1983104 | EN33: 100.7960352 | EO33: 101.1959775 | EP33: 100.1239381 | EQ33: 99.11641185 | ER33: -0.02666450574 | ES33: 0.9249666219 | ET33: 0.022 | EU33: -0.02166394503 | EV33: 0.956737777 | EW33: 0.022 | EX33: -0.01399436793 | EY33: 0.9325973919 | EZ33: 0.022 | FA33: -0.01199008808 | FB33: 0.9387728448 | FC33: 0.022 | FD33: -0.01039195498 | FE33: 0.9411416774 | FF33: 0.022 | FG33: -0.006873230104 | FH33: 0.9069110457 | FI33: 0.022 | FJ33: -0.004452016927 | FK33: 0.8721708602 | FL33: 0.01951360121 | FM33: 0.01951360121 | FO33: -0.006945950151 | FP33: 97.98111833 | FQ33: 99.63588245 | FR33: 99.50233791 | FS33: 100.095911 | FT33: 100.4930753 | FU33: 99.42848218 | FV33: 98.42795419 | FW33: 99.30540498 | FX33: -0.03635882455 | FY33: 0.96994232 | FZ33: 0.022 | GA33: -0.01751168954 | GB33: 0.9260664108 | GC33: 0.022 | GD33: -0.01365303665 | GE33: 0.929021985 | GF33: 0.022 | GG33: -0.01123268819 | GH33: 0.9299876328 | GI33: 0.022 | GJ33: -0.00685696436 | GK33: 0.8859244778 | GL33: 0.0206881869 | GM33: -0.004046590322 | GN33: 0.8430930043 | GO33: 0.01729117329 | GP33: -0.004722007121 | GQ33: 0.8788349273 | GR33: 0.02007099346 | GS33: 0.01729117329 | GU33: -0.02084251555 | GV33: 97.55922003 | GW33: 97.42845888 | GX33: 98.00966041 | GY33: 98.39854679 | GZ33: 97.35614249 | HA33: 96.37646803 | HB33: 97.23563054 | HC33: 97.91574844 | HD33: -0.01428458883 | HE33: 0.8096404831 | HF33: 0.01504784462 | HG33: -0.01004830206 | HH33: 0.8333133265 | HI33: 0.01660605273 | HJ33: -0.007995155972 | HK33: 0.8468704729 | HL33: 0.01756329671 | HM33: -0.003390356234 | HN33: 0.7771966277 | HO33: 0.01309405951 | HP33: -0.0007529360538 | HQ33: 0.7206337724 | HR33: 0.01003779827 | HS33: -0.002059384228 | HT33: 0.7840647819 | HU33: 0.01349293288 | HV33: -0.002736783492 | HW33: 0.8239274605 | HX33: 0.0159725177 | HY33: 0.01003779827 | IA33: -0.0001273575024 | IB33: 97.41605064 | IC33: 97.99717815 | ID33: 98.386015 | IE33: 97.34374346 | IF33: 96.36419376 | IG33: 97.22324685 | IH33: 97.90327814 | II33: 99.98726425 | IJ33: -0.01997178147 | IK33: 0.8718293042 | IL33: 0.01948558462 | IM33: -0.01193007499 | IN33: 0.8617700756 | IO33: 0.01868262059 | IP33: -0.004479144861 | IQ33: 0.772253607 | IR33: 0.01281131478 | IS33: -0.0009104844016 | IT33: 0.7044755861 | IU33: 0.009223950968 | IV33: -0.0024464937 | IW33: 0.7754323952 | IX33: 0.01299273986 | IY33: -0.003172130232 | IZ33: 0.8185593685 | JA33: 0.01561977662 | JB33: -0.005696091785 | JC33: 0.9008355569 | JD33: 0.022 | JE33: 0.009223950968 | JG33: 0.01701253671 | JH33: 99.66435874 | JI33: 100.0598107 | JJ33: 98.99980747 | JK33: 98.00359314 | JL33: 98.87726091 | JM33: 99.56886125 | JN33: 101.6883013 | JO33: 101.7012537 | JP33: -0.0405981069 | JQ33: 0.9808971592 | JR33: 0.022 | JS33: -0.01499903734 | JT33: 0.9007063489 | JU33: 0.022 | JV33: -0.006678643816 | JW33: 0.8210711177 | JX33: 0.01578399574 | JY33: -0.007193152265 | JZ33: 0.8661702079 | KA33: 0.01902873453 | KB33: -0.007137722506 | KC33: 0.8913373277 | KD33: 0.0211780574 | KE33: -0.009480502089 | KF33: 0.946547913 | KG33: 0.022 | KH33: -0.008144648102 | KI33: 0.9430374367 | KJ33: 0.022 | KK33: 0.01578399574 | KM33: 0.005278183891 | KN33: 100.5879448 | KO33: 99.52234666 | KP33: 98.52087413 | KQ33: 99.39915327 | KR33: 100.094404 | KS33: 102.2250308 | KT33: 102.2380516 | KU33: 100.5278184 | KV33: -0.03522346657 | KW33: 0.9662506841 | KX33: 0.022 | KY33: -0.01260437066 | KZ33: 0.8711095747 | LA33: 0.01942671712 | LB33: -0.01133051091 | LC33: 0.9007251144 | LD33: 0.022 | LE33: -0.01023601003 | LF33: 0.9169878037 | LG33: 0.022 | LH33: -0.01245006161 | LI33: 0.9619365499 | LJ33: 0.022 | LK33: -0.01039675265 | LL33: 0.9567614583 | LM33: 0.022 | LN33: -0.006468311984 | LO33: 0.9160827607 | LP33: 0.022 | LQ33: 0.01942671712 | LS33: 0.00620354353 | LT33: 100.1397379 | LU33: 99.13205266 | LV33: 100.0157802 | LW33: 100.715344 | LX33: 102.8591882 | LY33: 102.8722898 | LZ33: 101.1514471 | MA33: 100.6203544 | MB33: -0.03132052663 | MC33: 0.9506238746 | MD33: 0.022 | ME33: -0.02007890123 | MF33: 0.9465334809 | MG33: 0.022 | MH33: -0.01571781335 | MI33: 0.9485658948 | MJ33: 0.022 | MK33: -0.01714797059 | ML33: 0.9779664434 | MM33: 0.022 | MN33: -0.01374457959 | MO33: 0.9716222349 | MP33: 0.022 | MQ33: -0.008585745144 | MR33: 0.9348148021 | MS33: 0.022 | MT33: -0.006600506219 | MU33: 0.9185061601 | MV33: 0.022 | MW33: 0.022 | MY33: 0.03005411756 | MZ33: 102.111379 | NA33: 103.0216663 | NB33: 103.7422548 | NC33: 105.9505304 | ND33: 105.9640257 | NE33: 104.1914646 | NF33: 103.6444103 | NG33: 103.0054118 | NH33: -0.07021666263 | NI33: 0.9996856712 | NJ33: 0.022 | NK33: -0.03871127397 | NL33: 0.997521902 | NM33: 0.022 | NN33: -0.03316843457 | NO33: 0.9986720299 | NP33: 0.022 | NQ33: -0.02491006421 | NR33: 0.9967269771 | NS33: 0.022 | NT33: -0.01638292914 | NU33: 0.9851229786 | NV33: 0.022 | NW33: -0.01274068385 | NX33: 0.9758804252 | NY33: 0.022 | NZ33: -0.01000773108 | OA33: 0.9644510071 | OB33: 0.022 | OC33: 0.022 | OF33: 0.01951360121 | OG33: 0.01729117329 | OH33: 0.01003779827 | OI33: 0.009223950968 | OJ33: 0.01578399574 | OK33: 0.01942671712 | OL33: 0.022 | OM33: 0.022 | OO33: Yes | OQ33: 0.022 | OR33: 0.022 | OS33: 0.022 | OT33: 0.022 | OU33: 0.022 | OV33: 0.022 | OW33: 0.022 | OX33: 0.022 | OZ33: No
F34: 9 | G34: 0.02025137066 | H34: 102.0251371 | I34: -0.008607338666 | J34: 0.9491260152 | K34: 0.022 | M34: -0.002918551221 | N34: 101.7273715 | O34: 99.70814488 | P34: -0.00954561913 | Q34: 0.9473318217 | R34: 0.022 | S34: -0.005297349826 | T34: 0.8922112816 | U34: 0.02125878313 | V34: 0.02125878313 | X34: 0.0007866205486 | Y34: 101.8073923 | Z34: 99.78657735 | AA34: 100.0786621 | AB34: -0.01161478464 | AC34: 0.9543632224 | AD34: 0.022 | AE34: -0.006310962256 | AF34: 0.8960511971 | AG34: 0.0216191738 | AH34: -0.005826660078 | AI34: 0.9035468579 | AJ34: 0.022 | AK34: 0.0216191738 | AM34: 0.02571597907 | AN34: 104.4254691 | AO34: 102.3526869 | AP34: 102.6522828 | AQ34: 102.5715979 | AR34: -0.02106367272 | AS34: 0.991092111 | AT34: 0.022 | AU34: -0.01270537378 | AV34: 0.9640352858 | AW34: 0.022 | AX34: -0.01108713806 | AY34: 0.9633653122 | AZ34: 0.022 | BA34: -0.009387997009 | BB34: 0.95821353 | BC34: 0.022 | BD34: 0.022 | BF34: 0.02389728905 | BG34: 106.9209547 | BH34: 104.7986386 | BI34: 105.1053941 | BJ34: 105.022781 | BK34: 102.3897289 | BL34: -0.03640318236 | BM34: 0.9994422614 | BN34: 0.022 | BO34: -0.02199659658 | BP34: 0.9929407865 | BQ34: 0.022 | BR34: -0.01821078822 | BS34: 0.9908411264 | BT34: 0.022 | BU34: -0.01503796838 | BV34: 0.9871606368 | BW34: 0.022 | BX34: -0.00912818415 | BY34: 0.9553475237 | BZ34: 0.022 | CA34: 0.022 | CC34: 0.002408749566 | CD34: 107.1785005 | CE34: 105.0510723 | CF34: 105.3585667 | CG34: 105.2757546 | CH34: 102.6363601 | CI34: 100.240875 | CJ34: -0.05589250255 | CK34: 0.99995467 | CL34: 0.022 | CM34: -0.03017024102 | CN34: 0.9971880365 | CO34: 0.022 | CP34: -0.0233964167 | CQ34: 0.9950812925 | CR34: 0.022 | CS34: -0.01855150922 | CT34: 0.9916617289 | CU34: 0.022 | CV34: -0.0110606002 | CW34: 0.9631276703 | CX34: 0.022 | CY34: -0.006058392795 | CZ34: 0.908224069 | DA34: 0.022 | DB34: 0.022 | DD34: 0.03834266583 | DE34: 111.2880099 | DF34: 109.0790105 | DG34: 109.398295 | DH34: 109.3123077 | DI34: 106.5717118 | DJ34: 104.0843773 | DK34: 103.8342666 | DL34: -0.1528800994 | DM34: 1 | DN34: 0.022 | DO34: -0.06539505233 | DP34: 0.9999969826 | DQ34: 0.022 | DR34: -0.04466098331 | DS34: 0.9999538115 | DT34: 0.022 | DU34: -0.03328076922 | DV34: 0.9997493585 | DW34: 0.022 | DX34: -0.02114342356 | DY34: 0.9960604042 | DZ34: 0.022 | EA34: -0.01347396221 | EB34: 0.9801520353 | EC34: 0.022 | ED34: -0.0111918094 | EE34: 0.9742476177 | EF34: 0.022 | EG34: 0.022 | EI34: 0.004187339295 | EJ34: 111.7540106 | EK34: 109.5357613 | EL34: 109.8563828 | EM34: 109.7700354 | EN34: 107.0179637 | EO34: 104.5202139 | EP34: 104.2690559 | EQ34: 100.4187339 | ER34: -0.1353576129 | ES34: 0.9999999999 | ET34: 0.022 | EU34: -0.06928191387 | EV34: 0.9999991016 | EW34: 0.022 | EX34: -0.04590011803 | EY34: 0.9999692974 | EZ34: 0.022 | FA34: -0.02754490924 | FB34: 0.9984549412 | FC34: 0.022 | FD34: -0.01704042786 | FE34: 0.9874602843 | FF34: 0.022 | FG34: -0.01378175981 | FH34: 0.9817435618 | FI34: 0.022 | FJ34: -0.006312477042 | FK34: 0.9131569431 | FL34: 0.022 | FM34: 0.022 | FO34: 0.005095791975 | FP34: 110.0939327 | FQ34: 110.416188 | FR34: 110.3294007 | FS34: 107.563305 | FT34: 105.0528272 | FU34: 104.8003893 | FV34: 100.9304469 | FW34: 100.5095792 | FX34: -0.1441618805 | FY34: 1 | FZ34: 0.022 | GA34: -0.07164700337 | GB34: 0.9999995826 | GC34: 0.022 | GD34: -0.03854434992 | GE34: 0.999696233 | GF34: 0.022 | GG34: -0.02263206799 | GH34: 0.9939976507 | GI34: 0.022 | GJ34: -0.01760077861 | GK34: 0.989194345 | GL34: 0.022 | GM34: -0.008217411513 | GN34: 0.9294399213 | GO34: 0.022 | GP34: -0.006442255996 | GQ34: 0.9155987791 | GR34: 0.022 | GS34: 0.022 | GU34: 0.002345478872 | GV34: 110.6751669 | GW34: 110.588176 | GX34: 107.8155924 | GY34: 105.2992264 | GZ34: 105.0461964 | HA34: 101.1671771 | HB34: 100.7453223 | HC34: 100.2345479 | HD34: -0.1458817595 | HE34: 1 | HF34: 0.022 | HG34: -0.05907796217 | HH34: 0.9999809812 | HI34: 0.022 | HJ34: -0.03099742128 | HK34: 0.9977019788 | HL34: 0.022 | HM34: -0.02261549101 | HN34: 0.9939719699 | HO34: 0.022 | HP34: -0.01033435428 | HQ34: 0.9404515441 | HR34: 0.022 | HS34: -0.007908870487 | HT34: 0.924680684 | HU34: 0.022 | HV34: -0.006049354125 | HW34: 0.9080448426 | HX34: 0.022 | HY34: 0.022 | IA34: -0.01780392806 | IB34: 108.619272 | IC34: 105.8960514 | ID34: 103.4244865 | IE34: 103.1759615 | IF34: 99.366004 | IG34: 98.95165982 | IH34: 98.44997921 | II34: 98.21960719 | IJ34: -0.09896051383 | IK34: 0.9999988521 | IL34: 0.022 | IM34: -0.03712243267 | IN34: 0.9966127702 | IO34: 0.022 | IP34: -0.0239198716 | IQ34: 0.98860239 | IR34: 0.022 | IS34: -0.008415009988 | IT34: 0.8886815549 | IU34: 0.02093557583 | IV34: -0.005903319644 | IW34: 0.866113883 | IX34: 0.0190242551 | IY34: -0.00408329868 | IZ34: 0.8440727768 | JA34: 0.0173613357 | JB34: -0.00317086742 | JC34: 0.8371077105 | JD34: 0.01686867994 | JE34: 0.01686867994 | JG34: 0.01680683152 | JH34: 107.6758285 | JI34: 105.1627245 | JJ34: 104.9100225 | JK34: 101.0360317 | JL34: 100.6147237 | JM34: 100.1046114 | JN34: 99.87036758 | JO34: 101.6806832 | JP34: -0.09162724454 | JQ34: 0.9999943882 | JR34: 0.022 | JS34: -0.04455011241 | JT34: 0.9992767347 | JU34: 0.022 | JV34: -0.01678677228 | JW34: 0.9568515343 | JX34: 0.022 | JY34: -0.01153680924 | JZ34: 0.9336251161 | KA34: 0.022 | KB34: -0.008209222843 | KC34: 0.910295702 | KD34: 0.022 | KE34: -0.006450612641 | KF34: 0.8988305623 | KG34: 0.02188609414 | KH34: -0.008115261646 | KI34: 0.9426321475 | KJ34: 0.022 | KK34: 0.02188609414 | KM34: -0.01287488921 | KN34: 103.808766 | KO34: 103.5593176 | KP34: 99.73520397 | KQ34: 99.31932028 | KR34: 98.81577564 | KS34: 98.58454767 | KT34: 100.3715556 | KU34: 98.71251108 | KV34: -0.07559317566 | KW34: 0.9998755194 | KX34: 0.022 | KY34: -0.01867601984 | KZ34: 0.9359894707 | LA34: 0.022 | LB34: -0.01106440092 | LC34: 0.8970183675 | LD34: 0.02171146237 | LE34: -0.007039439099 | LF34: 0.8631309129 | LG34: 0.01878884849 | LH34: -0.005169095332 | LI34: 0.8493340256 | LJ34: 0.01774317089 | LK34: -0.007285926036 | LL34: 0.9143315104 | LM34: 0.022 | LN34: -0.003875015827 | LO34: 0.8570867793 | LP34: 0.01832238779 | LQ34: 0.01774317089 | LS34: 0.01526821679 | LT34: 105.1404837 | LU34: 101.2579827 | LV34: 100.8357492 | LW34: 100.3245163 | LX34: 100.0897579 | LY34: 101.9040503 | LZ34: 100.2196751 | MA34: 101.5268217 | MB34: -0.05257982685 | MC34: 0.9955681232 | MD34: 0.022 | ME34: -0.02417874595 | MF34: 0.9696504401 | MG34: 0.022 | MH34: -0.01441505442 | MI34: 0.936810631 | MJ34: 0.022 | MK34: -0.01022439478 | ML34: 0.9168262671 | MM34: 0.022 | MN34: -0.01180810058 | MO34: 0.9562157887 | MP34: 0.022 | MQ34: -0.00703279183 | MR34: 0.9098344658 | MS34: 0.022 | MT34: -0.007895459542 | MU34: 0.9395283441 | MV34: 0.022 | MW34: 0.022 | MY34: -0.0319308506 | MZ34: 98.02472917 | NA34: 97.61597795 | NB34: 97.12106918 | NC34: 96.89380681 | ND34: 98.65016729 | NE34: 97.01957562 | NF34: 98.2849839 | NG34: 96.80691494 | NH34: -0.01615977947 | NI34: 0.8319270103 | NJ34: 0.01651106365 | NK34: -0.00560534591 | NL34: 0.7522975105 | NM34: 0.01170317639 | NN34: -0.002979356018 | NO34: 0.735067257 | NP34: 0.01078431052 | NQ34: -0.006625418216 | NR34: 0.85471139 | NS34: 0.01814272407 | NT34: -0.002039151249 | NU34: 0.7628361814 | NV34: 0.01228200341 | NW34: -0.003808306506 | NX34: 0.8366347651 | NY34: 0.01683573023 | NZ34: -0.001152735628 | OA34: 0.770330811 | OB34: 0.01270226559 | OC34: 0.01078431052 | OF34: 0.022 | OG34: 0.022 | OH34: 0.022 | OI34: 0.01686867994 | OJ34: 0.02188609414 | OK34: 0.01774317089 | OL34: 0.022 | OM34: 0.01078431052 | OO34: Yes | OQ34: 0.022 | OR34: 0.022 | OS34: 0.022 | OT34: 0.022 | OU34: 0.022 | OV34: 0.022 | OW34: 0.022 | OX34: 0.022 | OZ34: No
F35: 10 | G35: 0.001714928841 | H35: 100.1714929 | I35: -0.005959275549 | J35: 0.9062445062 | K35: 0.022 | M35: 0.02436662529 | N35: 102.6123341 | O35: 102.4366625 | P35: -0.01102055686 | Q35: 0.9627667048 | R35: 0.022 | S35: -0.009195232185 | T35: 0.9561018739 | U35: 0.022 | V35: 0.022 | X35: 0.008746707263 | Y35: 103.5098542 | Z35: 103.332646 | AA35: 100.8746707 | AB35: -0.01501970833 | AC35: 0.9790641076 | AD35: 0.022 | AE35: -0.01222107672 | AF35: 0.9724065794 | AG35: 0.022 | AH35: -0.006963815323 | AI35: 0.9248943411 | AJ35: 0.022 | AK35: 0.022 | AM35: 0.01045553819 | AN35: 104.5921054 | AO35: 104.4130445 | AP35: 101.9293697 | AQ35: 101.0455538 | AR35: -0.02148026349 | AS35: 0.9919644459 | AT35: 0.022 | AU35: -0.01682608891 | AV35: 0.9867359334 | AW35: 0.022 | AX35: -0.00988228283 | AY35: 0.9512402585 | AZ35: 0.022 | BA35: -0.007207934027 | BB35: 0.928967379 | BC35: 0.022 | BD35: 0.022 | BF35: 0.005048055756 | BG35: 105.1200922 | BH35: 104.9401273 | BI35: 102.4439148 | BJ35: 101.5556374 | BK35: 100.5048056 | BL35: -0.03040030726 | BM35: 0.9973404979 | BN35: 0.022 | BO35: -0.02235031831 | BP35: 0.9935477238 | BQ35: 0.022 | BR35: -0.01288782968 | BS35: 0.9654762805 | BT35: 0.022 | BU35: -0.00925939568 | BV35: 0.9438169567 | BW35: 0.022 | BX35: -0.006435436537 | BY35: 0.9154717647 | BZ35: 0.022 | CA35: 0.022 | CC35: 0.05231864644 | CD35: 110.6198331 | CE35: 110.4304527 | CF35: 107.8036418 | CG35: 106.8688909 | CH35: 105.763081 | CI35: 105.2318646 | CJ35: -0.07309916556 | CK35: 0.9999997422 | CL35: 0.022 | CM35: -0.04810150915 | CN35: 0.9999854668 | CO35: 0.022 | CP35: -0.0295091045 | CQ35: 0.9991471261 | CR35: 0.022 | CS35: -0.02173778179 | CT35: 0.9967122704 | CU35: 0.022 | CV35: -0.01627180161 | CW35: 0.9910676806 | CX35: 0.022 | CY35: -0.01318837806 | CZ35: 0.9856418816 | DA35: 0.022 | DB35: 0.022 | DD35: 0.007619887719 | DE35: 111.4627438 | DF35: 111.2719204 | DG35: 108.6250934 | DH35: 107.6832198 | DI35: 106.5689838 | DJ35: 106.0337196 | DK35: 100.7619888 | DL35: -0.1546274382 | DM35: 1 | DN35: 0.022 | DO35: -0.07635960198 | DP35: 0.9999999152 | DQ35: 0.022 | DR35: -0.04208364482 | DS35: 0.9998950841 | DT35: 0.022 | DU35: -0.02920804961 | DV35: 0.9990640016 | DW35: 0.022 | DX35: -0.02113796753 | DY35: 0.9960539186 | DZ35: 0.022 | EA35: -0.01672286606 | EB35: 0.9922105367 | EC35: 0.022 | ED35: -0.006802841103 | EE35: 0.92211264 | EF35: 0.022 | EG35: 0.022 | EI35: -0.0174716212 | EJ35: 109.515309 | EK35: 109.3278196 | EL35: 106.727237 | EM35: 105.8018194 | EN35: 104.7070508 | EO35: 104.1811387 | EP35: 99.00151347 | EQ35: 98.25283788 | ER35: -0.1332781955 | ES35: 0.9999999998 | ET35: 0.022 | EU35: -0.0536361848 | EV35: 0.9999181394 | EW35: 0.022 | EX35: -0.03267273139 | EY35: 0.9984912935 | EZ35: 0.022 | FA35: -0.02176762712 | FB35: 0.9925215433 | FC35: 0.022 | FD35: -0.01636227731 | FE35: 0.9850438674 | FF35: 0.022 | FG35: -0.005002522455 | FH35: 0.8672928868 | FI35: 0.01911829131 | FJ35: -0.003218339829 | FK35: 0.8385091821 | FL35: 0.01696668629 | FM35: 0.01696668629 | FO35: 0.009198949624 | FP35: 110.3335207 | FQ35: 107.7090154 | FR35: 106.775085 | FS35: 105.6702457 | FT35: 105.1394957 | FU35: 99.91222341 | FV35: 99.15666079 | FW35: 100.919895 | FX35: -0.1170901544 | FY35: 0.9999999857 | FZ35: 0.022 | GA35: -0.05387542513 | GB35: 0.9999230392 | GC35: 0.022 | GD35: -0.03223415245 | GE35: 0.998312969 | GF35: 0.022 | GG35: -0.02284873925 | GH35: 0.9943245046 | GI35: 0.022 | GJ35: -0.007824446817 | GK35: 0.9037927841 | GL35: 0.022 | GM35: -0.005261101311 | GN35: 0.8733718012 | GO35: 0.01961252523 | GP35: -0.007028421375 | GQ35: 0.9259892117 | GR35: 0.022 | GS35: 0.01961252523 | GU35: 0.007969091013 | GV35: 108.5673584 | GW35: 107.6259854 | GX35: 106.5123415 | GY35: 105.9773619 | GZ35: 100.708433 | HA35: 99.94684924 | HB35: 101.7241348 | HC35: 100.7969091 | HD35: -0.116259854 | HE35: 0.9999999822 | HF35: 0.022 | HG35: -0.05256170771 | HH35: 0.999892288 | HI35: 0.022 | HJ35: -0.03325787303 | HK35: 0.9987024497 | HL35: 0.022 | HM35: -0.01177108253 | HN35: 0.936326025 | HO35: 0.022 | HP35: -0.007893698482 | HQ35: 0.9049880592 | HR35: 0.022 | HS35: -0.009540224651 | HT35: 0.9472672291 | HU35: 0.022 | HV35: -0.006852727288 | HW35: 0.9229829303 | HX35: 0.022 | HY35: 0.022 | IA35: 0.02292215203 | IB35: 110.0930046 | IC35: 108.9538336 | ID35: 108.4065911 | IE35: 103.016887 | IF35: 102.2378461 | IG35: 104.0558709 | IH35: 103.1073912 | II35: 102.2922152 | IJ35: -0.1295383363 | IK35: 0.9999999995 | IL35: 0.022 | IM35: -0.06203295556 | IN35: 0.9999918018 | IO35: 0.022 | IP35: -0.02338962341 | IQ35: 0.9872947125 | IR35: 0.022 | IS35: -0.01559461529 | IT35: 0.9694131409 | IU35: 0.022 | IV35: -0.01611174175 | IW35: 0.9840549677 | IX35: 0.022 | IY35: -0.01184565196 | IZ35: 0.9696450482 | JA35: 0.022 | JB35: -0.008988878862 | JC35: 0.953746838 | JD35: 0.022 | JE35: 0.022 | JG35: 0.006545334089 | JH35: 109.6669729 | JI35: 109.1161485 | JJ35: 103.691167 | JK35: 102.907027 | JL35: 104.7369513 | JM35: 103.7822635 | JN35: 102.9617519 | JO35: 100.6545334 | JP35: -0.1311614847 | JQ35: 0.9999999997 | JR35: 0.022 | JS35: -0.03845583482 | JT35: 0.9973925202 | JU35: 0.022 | JV35: -0.02302342325 | JW35: 0.9863175338 | JX35: 0.022 | JY35: -0.02184237828 | JZ35: 0.992660763 | KA35: 0.022 | KB35: -0.015564527 | KC35: 0.9816986124 | KD35: 0.022 | KE35: -0.01160291988 | KF35: 0.9677405022 | KG35: 0.022 | KH35: -0.006649333441 | KI35: 0.9193877929 | KJ35: 0.022 | KK35: 0.022 | KM35: 0.01641410244 | KN35: 110.9071921 | KO35: 105.3931644 | KP35: 104.5961535 | KQ35: 106.4561144 | KR35: 105.4857562 | KS35: 104.6517767 | KT35: 102.3066872 | KU35: 101.6414102 | KV35: -0.09393164402 | KW35: 0.9999965523 | KX35: 0.022 | KY35: -0.04298076728 | KZ35: 0.9989799117 | LA35: 0.022 | LB35: -0.03485371454 | LC35: 0.9991485068 | LD35: 0.022 | LE35: -0.02371439051 | LF35: 0.9954781682 | LG35: 0.022 | LH35: -0.01730355334 | LI35: 0.9883024731 | LJ35: 0.022 | LK35: -0.01051114539 | LL35: 0.9579177663 | LM35: 0.022 | LN35: -0.008059157492 | LO35: 0.9418520782 | LP35: 0.022 | LQ35: 0.022 | LS35: -0.03057333006 | LT35: 102.1709444 | LU35: 101.3983007 | LV35: 103.2013964 | LW35: 102.2607054 | LX35: 101.4522234 | LY35: 99.17883112 | LZ35: 98.53389386 | MA35: 96.94266699 | MB35: -0.05398300734 | MC35: 0.9963303764 | MD35: 0.022 | ME35: -0.0360069822 | MF35: 0.9958058676 | MG35: 0.022 | MH35: -0.02086901787 | MI35: 0.9791577852 | MJ35: 0.022 | MK35: -0.0136305584 | ML35: 0.9548376241 | MM35: 0.022 | MN35: -0.006357662231 | MO35: 0.8758291432 | MP35: 0.019816998 | MQ35: -0.004223156435 | MR35: 0.8477686533 | MS35: 0.0176286524 | MT35: -0.001346667134 | MU35: 0.777345592 | MV35: 0.01310263539 | MW35: 0.01310263539 | MY35: 0.01958235812 | MZ35: 103.3839186 | NA35: 105.2223231 | NB35: 104.2632111 | NC35: 103.4388971 | ND35: 101.1209865 | NE35: 100.4634199 | NF35: 98.84103302 | NG35: 101.9582358 | NH35: -0.09222323143 | NI35: 0.9999950475 | NJ35: 0.022 | NK35: -0.04131605558 | NL35: 0.9985460453 | NM35: 0.022 | NN35: -0.02479632377 | NO35: 0.9905081812 | NP35: 0.022 | NQ35: -0.01280246626 | NR35: 0.9472124376 | NS35: 0.022 | NT35: -0.008926839715 | NU35: 0.9215414251 | NV35: 0.022 | NW35: -0.004735055027 | NX35: 0.8607966137 | NY35: 0.01860706824 | NZ35: -0.008511765445 | OA35: 0.9479127694 | OB35: 0.022 | OC35: 0.01860706824 | OF35: 0.01696668629 | OG35: 0.01961252523 | OH35: 0.022 | OI35: 0.022 | OJ35: 0.022 | OK35: 0.022 | OL35: 0.01310263539 | OM35: 0.01860706824 | OO35: Yes | OQ35: 0.022 | OR35: 0.022 | OS35: 0.022 | OT35: 0.022 | OU35: 0.022 | OV35: 0.022 | OW35: 0.022 | OX35: 0.022 | OZ35: No
F36: 11 | G36: 0.03955750253 | H36: 103.9557503 | I36: -0.0113653575 | J36: 0.9754729521 | K36: 0.022 | M36: 0.01673529049 | N36: 105.6954799 | O36: 101.673529 | P36: -0.01615913322 | Q36: 0.9907602402 | R36: 0.022 | S36: -0.008105041499 | T36: 0.9424906638 | U36: 0.022 | V36: 0.022 | X36: 0.01717373429 | Y36: 107.510666 | Z36: 103.4196432 | AA36: 101.7173734 | AB36: -0.02302133204 | AC36: 0.9978007574 | AD36: 0.022 | AE36: -0.01236607204 | AF36: 0.9734155232 | AG36: 0.022 | AH36: -0.008167676327 | AI36: 0.9433534567 | AJ36: 0.022 | AK36: 0.022 | AM36: 0.0005043098697 | AN36: 107.5648847 | AO36: 103.4717988 | AP36: 101.7686705 | AQ36: 100.050431 | AR36: -0.02891221177 | AS36: 0.9989751275 | AT36: 0.022 | AU36: -0.01494359754 | AV36: 0.9786716752 | AW36: 0.022 | AX36: -0.009614450841 | AY36: 0.9481505023 | AZ36: 0.022 | BA36: -0.005786329981 | BB36: 0.9027152657 | BC36: 0.022 | BD36: 0.022 | BF36: -0.03187511057 | BG36: 104.1362421 | BH36: 100.1736237 | BI36: 98.52478288 | BJ36: 96.86131244 | BK36: 96.81248894 | BL36: -0.02712080706 | BM36: 0.9942782797 | BN36: 0.022 | BO36: -0.01043405935 | BP36: 0.9197059386 | BQ36: 0.022 | BR36: -0.005049565759 | BS36: 0.8464751827 | BT36: 0.01753461412 | BU36: -0.001435520728 | BV36: 0.7631690754 | BW36: 0.01230051325 | BX36: -0.00116069849 | BY36: 0.7706212549 | BZ36: 0.01271870485 | CA36: 0.01230051325 | CC36: 0.009054079567 | CD36: 105.0790999 | CE36: 101.0806037 | CF36: 99.4168341 | CG36: 97.73830247 | CH36: 97.68903692 | CI36: 100.905408 | CJ36: -0.04539549969 | CK36: 0.999401398 | CL36: 0.022 | CM36: -0.01693534567 | CN36: 0.9579126301 | CO36: 0.022 | CP36: -0.008542085258 | CQ36: 0.8908570166 | CR36: 0.02113389055 | CS36: -0.003476604933 | CT36: 0.8055344647 | CU36: 0.01479009145 | CV36: -0.002815061535 | CW36: 0.8078859767 | CX36: 0.01493729444 | CY36: -0.007007725652 | CZ36: 0.9256398194 | DA36: 0.022 | DB36: 0.01479009145 | DD36: -0.001025630924 | DE36: 104.9713276 | DF36: 100.9769323 | DG36: 99.31486912 | DH36: 97.63805904 | DI36: 97.58884402 | DJ36: 100.8019162 | DK36: 99.89743691 | DL36: -0.08971327564 | DM36: 0.9999916563 | DN36: 0.022 | DO36: -0.02488466154 | DP36: 0.9726378527 | DQ36: 0.022 | DR36: -0.01104956375 | DS36: 0.8968087747 | DT36: 0.02169140953 | DU36: -0.004095147603 | DV36: 0.7958337418 | DW36: 0.01419396277 | DX36: -0.003177688048 | DY36: 0.7970628224 | DZ36: 0.01426853735 | EA36: -0.00800319375 | EB36: 0.926160895 | EC36: 0.022 | ED36: -0.005567767011 | EE36: 0.8981169441 | EF36: 0.0218170569 | EG36: 0.01419396277 | EI36: 0.0234109031 | EJ36: 107.4288011 | EK36: 103.3408935 | EL36: 101.6399199 | EM36: 99.92385418 | EN36: 99.873487 | EO36: 103.1617801 | EP36: 102.2361261 | EQ36: 102.3410903 | ER36: -0.07340893486 | ES36: 0.9998174066 | ET36: 0.022 | EU36: -0.02819959951 | EV36: 0.9835847924 | EW36: 0.022 | EX36: -0.01307951393 | EY36: 0.9226888085 | EZ36: 0.022 | FA36: -0.009683717488 | FB36: 0.9090427455 | FC36: 0.022 | FD36: -0.01432356029 | FE36: 0.9752370476 | FF36: 0.022 | FG36: -0.01039354354 | FH36: 0.9567286535 | FI36: 0.022 | FJ36: -0.009058700443 | FK36: 0.9545547891 | FL36: 0.022 | FM36: 0.022 | FO36: 0.009510700492 | FP36: 104.3237378 | FQ36: 102.6065867 | FR36: 100.8742 | FS36: 100.8233538 | FT36: 104.1429209 | FU36: 103.2084633 | FV36: 103.3144258 | FW36: 100.95107 | FX36: -0.06606586738 | FY36: 0.999381626 | FZ36: 0.022 | GA36: -0.02437100015 | GB36: 0.9704896692 | GC36: 0.022 | GD36: -0.01607784606 | GE36: 0.9514874273 | GF36: 0.022 | GG36: -0.02035730234 | GH36: 0.989422573 | GI36: 0.022 | GJ36: -0.0144169266 | GK36: 0.9757821564 | GL36: 0.022 | GM36: -0.01219070961 | GN36: 0.9721912779 | GO36: 0.022 | GP36: -0.007072957213 | GQ36: 0.9267368256 | GR36: 0.022 | GS36: 0.022 | GU36: 0.001581274253 | GV36: 102.7688359 | GW36: 101.0337098 | GX36: 100.9827832 | GY36: 104.3075995 | GZ36: 103.3716642 | HA36: 103.4777942 | HB36: 101.1107014 | HC36: 100.1581274 | HD36: -0.05033709805 | HE36: 0.9940538251 | HF36: 0.022 | HG36: -0.02491391595 | HH36: 0.9727561663 | HI36: 0.022 | HJ36: -0.02769199819 | HK36: 0.9949709776 | HL36: 0.022 | HM36: -0.01842916046 | HN36: 0.9834110425 | HO36: 0.022 | HP36: -0.01495558842 | HQ36: 0.9787339107 | HR36: 0.022 | HS36: -0.008517835628 | HT36: 0.9338484769 | HU36: 0.022 | HV36: -0.005940182036 | HW36: 0.9058595778 | HX36: 0.022 | HY36: 0.022 | IA36: -0.007429526473 | IB36: 100.2830772 | IC36: 100.2325289 | ID36: 103.5326434 | IE36: 102.6036617 | IF36: 102.7090032 | IG36: 100.3594967 | IH36: 99.41399997 | II36: 99.25704735 | IJ36: -0.0423252893 | IK36: 0.9842677998 | IL36: 0.022 | IM36: -0.03766321692 | IN36: 0.9969512853 | IO36: 0.022 | IP36: -0.02201220556 | IQ36: 0.9832758141 | IR36: 0.022 | IS36: -0.016772508 | IT36: 0.976109944 | IU36: 0.022 | IV36: -0.008718993489 | IW36: 0.918400218 | IX36: 0.022 | IY36: -0.005689999944 | IZ36: 0.8830218654 | JA36: 0.02043229934 | JB36: -0.00465292479 | JC36: 0.8771535245 | JD36: 0.01992837362 | JE36: 0.01992837362 | JG36: 0.002883192747 | JH36: 100.5215186 | JI36: 103.831148 | JJ36: 102.8994878 | JK36: 103.0051331 | JL36: 100.6488525 | JM36: 99.70062969 | JN36: 99.54322455 | JO36: 100.2883193 | JP36: -0.07831147951 | JQ36: 0.9999237263 | JR36: 0.022 | JS36: -0.03449743901 | JT36: 0.9944413745 | JU36: 0.022 | JV36: -0.0233504435 | JW36: 0.9871931322 | JX36: 0.022 | JY36: -0.01162213129 | JZ36: 0.934618875 | KA36: 0.022 | KB36: -0.007401259379 | KC36: 0.8962477656 | KD36: 0.02163787999 | KE36: -0.005905374253 | KF36: 0.8876660757 | KG36: 0.02084395438 | KH36: -0.006126170392 | KI36: 0.909559782 | KJ36: 0.022 | KK36: 0.02084395438 | KM36: -0.03584822489 | KN36: 100.1089856 | KO36: 99.21072382 | KP36: 99.31258188 | KQ36: 97.04076982 | KR36: 96.1265391 | KS36: 95.97477665 | KT36: 96.69316105 | KU36: 96.41517751 | KV36: -0.03210723822 | KW36: 0.9541687666 | KX36: 0.022 | KY36: -0.01656290939 | KZ36: 0.9171443051 | LA36: 0.022 | LB36: -0.003469232727 | LC36: 0.7475433949 | LD36: 0.01144639184 | LE36: -0.0003163477383 | LF36: 0.6855601705 | LG36: 0.008296736364 | LH36: 5.044669585e-05 | LI36: 0.6925424334 | LJ36: 0.008636045512 | LK36: -0.00115526842 | LL36: 0.7534322458 | LM36: 0.01176485384 | LN36: -0.0005931107305 | LO36: 0.7494103807 | LP36: 0.01154692519 | LQ36: 0.008296736364 | LS36: -0.006184486503 | LT36: 98.59715644 | LU36: 98.69838455 | LV36: 96.44062249 | LW36: 95.53204581 | LX36: 95.38122194 | LY36: 96.0951635 | LZ36: 95.81889915 | MA36: 99.38155135 | MB36: -0.02698384555 | MC36: 0.9270006659 | MD36: 0.022 | ME36: -0.002203112434 | MF36: 0.6783298599 | MG36: 0.007948754907 | MH36: 0.001559847294 | MI36: 0.6067436397 | MJ36: 0.004649457292 | MK36: 0.001546945147 | ML36: 0.6232068509 | MM36: 0.005388866037 | MN36: -0.0001903270048 | MO36: 0.7010913711 | MP36: 0.009056150623 | MQ36: 0.0003018347544 | MR36: 0.6995462056 | MS36: 0.008979824057 | MT36: -0.004830787642 | MU36: 0.8814496192 | MV36: 0.02029556983 | MW36: 0.004649457292 | MY36: -0.001429327133 | MZ36: 98.55731228 | NA36: 96.30277729 | NB36: 95.39549927 | NC36: 95.24489097 | ND36: 95.95781208 | NE36: 95.68194259 | NF36: 99.2395026 | NG36: 99.85706729 | NH36: -0.003027772884 | NI36: 0.6424065128 | NJ36: 0.006264104465 | NK36: 0.003022503667 | NL36: 0.5505766078 | NM36: 0.00218220024 | NN36: 0.002517030091 | NO36: 0.5774926493 | NP36: 0.003355799448 | NQ36: 0.0001054698054 | NR36: 0.6718246903 | NS36: 0.007638444408 | NT36: 0.0006361148101 | NU36: 0.671313454 | NV36: 0.007614164106 | NW36: -0.005399171003 | NX36: 0.8765370266 | NY36: 0.01987642432 | NZ36: -0.005510096124 | OA36: 0.8968776496 | OB36: 0.02169799589 | OC36: 0.00218220024 | OF36: 0.022 | OG36: 0.022 | OH36: 0.022 | OI36: 0.01992837362 | OJ36: 0.02084395438 | OK36: 0.008296736364 | OL36: 0.004649457292 | OM36: 0.00218220024 | OO36: Yes | OQ36: 0.022 | OR36: 0.022 | OS36: 0.022 | OT36: 0.022 | OU36: 0.022 | OV36: 0.022 | OW36: 0.022 | OX36: 0.022 | OZ36: No
F37: 12 | G37: 0.005652046423 | H37: 100.5652046 | I37: -0.006521720918 | J37: 0.9170682954 | K37: 0.022 | M37: -0.02557955634 | N37: 97.99279132 | O37: 97.44204437 | P37: -0.003321318873 | Q37: 0.822906727 | R37: 0.01590492788 | S37: -0.00206006338 | T37: 0.8020741744 | U37: 0.01457543531 | V37: 0.01457543531 | X37: 0.007948161379 | Y37: 98.77165384 | Z37: 98.21652946 | AA37: 100.7948161 | AB37: -0.005543307687 | AC37: 0.8580537352 | AD37: 0.01839610151 | AE37: -0.003694215766 | AF37: 0.8334822684 | AG37: 0.01661766324 | AH37: -0.00684973734 | AI37: 0.9229309782 | AJ37: 0.022 | AK37: 0.01661766324 | AM37: 0.02937873876 | AN37: 101.6734405 | AO37: 101.1020072 | AP37: 103.7560407 | AQ37: 102.9378739 | AR37: -0.01418360115 | AS37: 0.9594172936 | AT37: 0.022 | AU37: -0.01020401444 | AV37: 0.938866493 | AW37: 0.022 | AX37: -0.01292673452 | AY37: 0.9770314363 | AZ37: 0.022 | BA37: -0.009911248394 | BB37: 0.9635333573 | BC37: 0.022 | BD37: 0.022 | BF37: -0.00670745951 | BG37: 100.99147 | BH37: 100.4238696 | BI37: 103.0601013 | BJ37: 102.2474223 | BK37: 99.32925405 | BL37: -0.01663823324 | BM37: 0.9557691873 | BN37: 0.022 | BO37: -0.011059674 | BP37: 0.9278508904 | BQ37: 0.022 | BR37: -0.01412020253 | BS37: 0.9740140804 | BT37: 0.022 | BU37: -0.01041237042 | BV37: 0.9569208226 | BW37: 0.022 | BX37: -0.004756077213 | BY37: 0.8796581761 | BZ37: 0.02014133085 | CA37: 0.02014133085 | CC37: -0.01775563433 | CD37: 99.19830236 | CE37: 98.64078009 | CF37: 101.2302038 | CG37: 100.4319544 | CH37: 97.56560014 | CI37: 98.22443657 | CJ37: -0.01599151181 | CK37: 0.9113934099 | CL37: 0.022 | CM37: -0.008802600314 | CN37: 0.8614093149 | CO37: 0.01865457908 | CP37: -0.01307550949 | CQ37: 0.9498321296 | CR37: 0.022 | CS37: -0.008863908829 | CT37: 0.9206001733 | CU37: 0.022 | CV37: -0.002609333561 | CW37: 0.8015655764 | CX37: 0.01454407689 | CY37: -0.003177766525 | CZ37: 0.8373118743 | DA37: 0.01688292308 | DB37: 0.01454407689 | DD37: 0.005733354025 | DE37: 99.76704135 | DF37: 99.20632261 | DG37: 101.8105924 | DH37: 101.0077664 | DI37: 98.12497826 | DJ37: 98.78759204 | DK37: 100.5733354 | DL37: -0.03767041349 | DM37: 0.9737836654 | DN37: 0.022 | DO37: -0.01603161304 | DP37: 0.9118064706 | DQ37: 0.022 | DR37: -0.01936864131 | DS37: 0.9724782658 | DT37: 0.022 | DU37: -0.01251941591 | DV37: 0.9443833479 | DW37: 0.022 | DX37: -0.004249956525 | DY37: 0.826432387 | DZ37: 0.01613944545 | EA37: -0.004645986727 | EB37: 0.8585860673 | EC37: 0.01843682781 | ED37: -0.006533336289 | EE37: 0.9172814721 | EF37: 0.022 | EG37: 0.01613944545 | EI37: 0.01729552242 | EJ37: 101.4925644 | EK37: 100.9221478 | EL37: 103.5714598 | EM37: 102.7547485 | EN37: 99.82210102 | EO37: 100.496175 | EP37: 102.3128038 | EQ37: 101.7295522 | ER37: -0.04922147785 | ES37: 0.9931419276 | ET37: 0.022 | EU37: -0.03785729888 | EV37: 0.9970651377 | EW37: 0.022 | EX37: -0.02251582817 | EY37: 0.9848562338 | EZ37: 0.022 | FA37: -0.00955525256 | FB37: 0.9071163563 | FC37: 0.022 | FD37: -0.008992350098 | FE37: 0.9225122463 | FF37: 0.022 | FG37: -0.01052133963 | FH37: 0.9580195859 | FI37: 0.022 | FJ37: -0.008185074631 | FK37: 0.9435912992 | FL37: 0.022 | FM37: 0.022 | FO37: -0.02646186287 | FP37: 98.25155975 | FQ37: 100.830766 | FR37: 100.0356664 | FS37: 97.18062228 | FT37: 97.83685905 | FU37: 99.6054164 | FV37: 99.03759878 | FW37: 97.35381371 | FX37: -0.0483076601 | FY37: 0.9923051352 | FZ37: 0.022 | GA37: -0.02017833195 | GB37: 0.947225192 | GC37: 0.022 | GD37: -0.003935407584 | GE37: 0.7591219489 | GF37: 0.01207643948 | GG37: -0.004592147615 | GH37: 0.8083994716 | GI37: 0.01496958511 | GJ37: -0.007210832792 | GK37: 0.8927160333 | GL37: 0.02130562119 | GM37: -0.005062664634 | GN37: 0.8687243953 | GO37: 0.01923324388 | GP37: -0.00193401959 | GQ37: 0.7978299407 | GR37: 0.01431521908 | GS37: 0.01207643948 | GU37: 0.004912797176 | GV37: 101.3261271 | GW37: 100.5271213 | GX37: 97.65805096 | GY37: 98.31751169 | GZ37: 100.0947576 | HA37: 99.52415042 | HB37: 97.83209325 | HC37: 100.4912797 | HD37: -0.04527121329 | HE37: 0.9888452029 | HF37: 0.022 | HG37: -0.00829025481 | HH37: 0.8035388977 | HI37: 0.01466601821 | HJ37: -0.007725038969 | HK37: 0.8417888383 | HL37: 0.01719822644 | HM37: -0.01023689401 | HN37: 0.9170000878 | HO37: 0.022 | HP37: -0.007048300832 | HQ37: 0.8896337576 | HR37: 0.02102203329 | HS37: -0.003053488757 | HT37: 0.8150548865 | HU37: 0.01539301159 | HV37: -0.006416113882 | HW37: 0.915111096 | HX37: 0.022 | HY37: 0.01466601821 | IA37: 0.01961471228 | IB37: 102.4989319 | IC37: 99.57358553 | ID37: 100.2459814 | IE37: 102.0580875 | IF37: 101.476288 | IG37: 99.75104161 | IH37: 102.4623873 | II37: 101.9614712 | IJ37: -0.03573585533 | IK37: 0.9679604987 | IL37: 0.022 | IM37: -0.02122990697 | IN37: 0.9541138754 | IO37: 0.022 | IP37: -0.02019362492 | IQ37: 0.9763432794 | IR37: 0.022 | IS37: -0.01369071998 | IT37: 0.9553551369 | IU37: 0.022 | IV37: -0.00750208323 | IW37: 0.8980831754 | IX37: 0.02181379877 | IY37: -0.01077064543 | IZ37: 0.9604481665 | JA37: 0.022 | JB37: -0.008516387469 | JC37: 0.9479719674 | JD37: 0.022 | JE37: 0.02181379877 | JG37: -0.02644683371 | JH37: 96.94017948 | JI37: 97.59479259 | JJ37: 99.35897421 | JK37: 98.79256148 | JL37: 97.11294241 | JM37: 99.75258154 | JN37: 99.26491315 | JO37: 97.35531663 | JP37: -0.01594792595 | JQ37: 0.8294967565 | JR37: 0.01634575347 | JS37: -0.01679487104 | JT37: 0.9193970562 | JU37: 0.022 | JV37: -0.009308538259 | JW37: 0.8700241377 | JX37: 0.01933836758 | JY37: -0.002782356013 | JZ37: 0.7603680278 | KA37: 0.01214520933 | KB37: -0.007505163078 | KC37: 0.898138867 | KD37: 0.02181917253 | KE37: -0.005441521923 | KF37: 0.877496712 | KG37: 0.01995737162 | KH37: -0.001936166613 | KI37: 0.7979026896 | KJ37: 0.01431965159 | KK37: 0.01214520933 | KM37: 0.003143149021 | KN37: 97.90154757 | KO37: 99.67127427 | KP37: 99.10308122 | KQ37: 97.41818285 | KR37: 100.0661188 | KS37: 99.57691757 | KT37: 97.6613189 | KU37: 100.3143149 | KV37: -0.0367127427 | KW37: 0.9710222097 | KX37: 0.022 | KY37: -0.0155154061 | KZ37: 0.906378706 | LA37: 0.022 | LB37: -0.004727276183 | LC37: 0.7781096 | LD37: 0.01314667082 | LE37: -0.01016529692 | LF37: 0.9160007137 | LG37: 0.022 | LH37: -0.007153835137 | LI37: 0.8916422673 | LJ37: 0.02120617093 | LK37: -0.002768864829 | LL37: 0.8064775458 | LM37: 0.0148489965 | LN37: -0.006163307003 | LO37: 0.9102854954 | LP37: 0.022 | LQ37: 0.01314667082 | LS37: 0.004626064192 | LT37: 100.13236 | LU37: 99.56153844 | LV37: 97.86884562 | LW37: 100.5290311 | LX37: 100.0375668 | LY37: 98.11310643 | LZ37: 100.7783754 | MA37: 100.4626064 | MB37: -0.03561538436 | MC37: 0.967565064 | MD37: 0.022 | ME37: -0.009344228112 | MF37: 0.821757073 | MG37: 0.01582909536 | MH37: -0.01509677019 | MI37: 0.9431992174 | MJ37: 0.022 | MK37: -0.01009391695 | ML37: 0.9149954031 | MM37: 0.022 | MN37: -0.004226212855 | MO37: 0.8258128378 | MP37: 0.01609801718 | MQ37: -0.007963958937 | MR37: 0.9255479079 | MS37: 0.022 | MT37: -0.006375152027 | MU37: 0.9143427055 | MV37: 0.022 | MW37: 0.01582909536 | MY37: 0.02356632487 | MZ37: 101.907838 | NA37: 100.1752546 | NB37: 102.8981309 | NC37: 102.3950846 | ND37: 100.4252718 | NE37: 103.1533513 | NF37: 102.8301408 | NG37: 102.3566325 | NH37: -0.04175254633 | NI37: 0.9832115218 | NJ37: 0.022 | NK37: -0.03449065431 | NL37: 0.9944344412 | NM37: 0.022 | NN37: -0.0213169486 | NO37: 0.9808636592 | NP37: 0.022 | NQ37: -0.01106317942 | NR37: 0.9278946733 | NS37: 0.022 | NT37: -0.01430670259 | NU37: 0.975137537 | NV37: 0.022 | NW37: -0.01138356807 | NX37: 0.9659355823 | NY37: 0.022 | NZ37: -0.009080903553 | OA37: 0.9548093241 | OB37: 0.022 | OC37: 0.022 | OF37: 0.022 | OG37: 0.01207643948 | OH37: 0.01466601821 | OI37: 0.02181379877 | OJ37: 0.01214520933 | OK37: 0.01314667082 | OL37: 0.01582909536 | OM37: 0.022 | OO37: Yes | OQ37: 0.022 | OR37: 0.022 | OS37: 0.01590492788 | OT37: 0.01839610151 | OU37: 0.022 | OV37: 0.022 | OW37: 0.022 | OX37: 0.022 | OZ37: Yes
F38: 13 | G38: 0.03794054342 | H38: 103.7940543 | I38: -0.01113436335 | J38: 0.9738308994 | K38: 0.022 | M38: 0.005804217597 | N38: 104.3964976 | O38: 100.5804218 | P38: -0.0139941627 | Q38: 0.9827772897 | R38: 0.022 | S38: -0.006543459657 | T38: 0.9174669295 | U38: 0.022 | V38: 0.022 | X38: 0.02170167575 | Y38: 106.6620766 | Z38: 102.7631855 | AA38: 102.1701676 | AB38: -0.02132415312 | AC38: 0.9962699136 | AD38: 0.022 | AE38: -0.01127197577 | AF38: 0.9649859589 | AG38: 0.022 | AH38: -0.008814525107 | AI38: 0.9516788599 | AJ38: 0.022 | AK38: 0.022 | AM38: 0.01730594635 | AN38: 108.5079647 | AO38: 104.5415996 | AP38: 103.938319 | AQ38: 101.7305946 | AR38: -0.03126991184 | AS38: 0.9995118428 | AT38: 0.022 | AU38: -0.01708319927 | AV38: 0.9876006566 | AW38: 0.022 | AX38: -0.01323053169 | AY38: 0.9788113333 | AZ38: 0.022 | BA38: -0.008186563764 | BB38: 0.9436116197 | BC38: 0.022 | BD38: 0.022 | BF38: 0.03174492912 | BG38: 111.9525424 | BH38: 107.8602653 | BI38: 107.2378336 | BJ38: 104.9600252 | BK38: 103.1744929 | BL38: -0.05317514128 | BM38: 0.9999976763 | BN38: 0.022 | BO38: -0.02965066326 | BP38: 0.9991838162 | BQ38: 0.022 | BR38: -0.02247566717 | BS38: 0.9973857801 | BT38: 0.022 | BU38: -0.01493337525 | BV38: 0.9867699264 | BW38: 0.022 | BX38: -0.01024927559 | BY38: 0.9666655494 | BZ38: 0.022 | CA38: 0.022 | CC38: 0.01890963647 | CD38: 114.0695243 | CE38: 109.8998637 | CF38: 109.265662 | CG38: 106.9447811 | CH38: 105.1254851 | CI38: 101.8909636 | CJ38: -0.09034762131 | CK38: 0.9999999996 | CL38: 0.022 | CM38: -0.04633287904 | CN38: 0.9999734353 | CO38: 0.022 | CP38: -0.03316415508 | CQ38: 0.9997392555 | CR38: 0.022 | CS38: -0.02188956214 | CT38: 0.9968623683 | CU38: 0.022 | CV38: -0.01520914178 | CW38: 0.9877785358 | CX38: 0.022 | CY38: -0.008415662352 | CZ38: 0.9466697339 | DA38: 0.022 | DB38: 0.022 | DD38: -0.007766599718 | DE38: 113.1835919 | DF38: 109.0463155 | DG38: 108.4170394 | DH38: 106.1141838 | DI38: 104.3090175 | DJ38: 101.0996173 | DK38: 99.22334003 | DL38: -0.1718359193 | DM38: 1 | DN38: 0.022 | DO38: -0.0652315773 | DP38: 0.999996829 | DQ38: 0.022 | DR38: -0.04139013124 | DS38: 0.9998700367 | DT38: 0.022 | DU38: -0.02528545941 | DV38: 0.997049421 | DW38: 0.022 | DX38: -0.01661803501 | DY38: 0.9859985328 | DZ38: 0.022 | EA38: -0.008499362195 | EB38: 0.9335836968 | EC38: 0.022 | ED38: -0.004604771469 | EE38: 0.8759718801 | EF38: 0.01982896154 | EG38: 0.01982896154 | EI38: 0.003371299855 | EJ38: 113.5651678 | EK38: 109.4139433 | EL38: 108.7825457 | EM38: 106.4719265 | EN38: 104.6606745 | EO38: 101.4404544 | EP38: 99.55785166 | EQ38: 100.33713 | ER38: -0.1341394329 | ES38: 0.9999999999 | ET38: 0.022 | EU38: -0.06391272861 | EV38: 0.9999952857 | EW38: 0.022 | EX38: -0.03490642165 | EY38: 0.9991604821 | EZ38: 0.022 | FA38: -0.0216516862 | FB38: 0.9923010059 | FC38: 0.022 | FD38: -0.01088090888 | FE38: 0.9467500482 | FF38: 0.022 | FG38: -0.005929752767 | FH38: 0.8881833408 | FI38: 0.02089055018 | FJ38: -0.006195899979 | FK38: 0.9109188435 | FL38: 0.022 | FM38: 0.02089055018 | FO38: 0.03285280104 | FP38: 113.0084978 | FQ38: 112.3563571 | FR38: 109.9698275 | FS38: 108.0990708 | FT38: 104.7730575 | FU38: 102.828606 | FV38: 103.6334858 | FW38: 103.2852801 | FX38: -0.1635635705 | FY38: 1 | FZ38: 0.022 | GA38: -0.06984913757 | GB38: 0.9999992509 | GC38: 0.022 | GD38: -0.04033023598 | GE38: 0.9998207109 | GF38: 0.022 | GG38: -0.02193264377 | GH38: 0.9928258286 | GI38: 0.022 | GJ38: -0.01365721191 | GK38: 0.9710403898 | GL38: 0.022 | GM38: -0.01272247626 | GN38: 0.9757652243 | GO38: 0.022 | GP38: -0.01040754301 | GQ38: 0.9680540224 | GR38: 0.022 | GS38: 0.022 | GU38: -0.05116234941 | GV38: 106.6079419 | GW38: 104.3435128 | GX38: 102.5684684 | GY38: 99.41262173 | GZ38: 97.56765289 | HA38: 98.33135315 | HB38: 98.00096251 | HC38: 94.88376506 | HD38: -0.08343512774 | HE38: 0.9999708736 | HF38: 0.022 | HG38: -0.03284234182 | HH38: 0.9925045301 | HI38: 0.022 | HJ38: -0.01137540578 | HK38: 0.9013407318 | HL38: 0.022 | HM38: -0.003919132214 | HN38: 0.7912684059 | HO38: 0.01391927169 | HP38: -0.004662706291 | HQ38: 0.8369777089 | HR38: 0.01685961665 | HS38: -0.003334937524 | HT38: 0.8233002703 | HU38: 0.01593095785 | HV38: 0.001594621344 | HW38: 0.6589267073 | HX38: 0.007030372624 | HY38: 0.007030372624 | IA38: 0.01603376405 | IB38: 106.016532 | IC38: 104.213027 | ID38: 101.0065803 | IE38: 99.13202961 | IF38: 99.90797486 | IG38: 99.57228682 | IH38: 96.40510896 | II38: 101.6033764 | IJ38: -0.08213026984 | IK38: 0.9999625983 | IL38: 0.022 | IM38: -0.02503290127 | IN38: 0.9732329893 | IO38: 0.022 | IP38: -0.0104400987 | IQ38: 0.8879299074 | IR38: 0.02086770142 | IS38: -0.009769937151 | IT38: 0.9103189245 | IU38: 0.022 | IV38: -0.007144573649 | IW38: 0.8914670644 | IX38: 0.02119001136 | IY38: -0.0006751816003 | IZ38: 0.7362664492 | JA38: 0.01084724134 | JB38: -0.008004823436 | JC38: 0.9410887 | JD38: 0.022 | JE38: 0.01084724134 | JG38: -0.003183329872 | JH38: 103.8812825 | JI38: 100.685043 | JJ38: 98.81645966 | JK38: 99.58993482 | JL38: 99.25531539 | JM38: 96.0982197 | JN38: 101.2799393 | JO38: 99.68166701 | JP38: -0.04685042989 | JQ38: 0.9907843503 | JR38: 0.022 | JS38: -0.0140822983 | JT38: 0.8900241557 | JU38: 0.02105763497 | JV38: -0.0119664494 | JW38: 0.9091863751 | JX38: 0.022 | JY38: -0.008138288473 | JZ38: 0.8838372495 | KA38: 0.02050372194 | KB38: -0.000196439394 | KC38: 0.7013069866 | KD38: 0.009066815599 | KE38: -0.008799898903 | KF38: 0.9377904904 | KG38: 0.022 | KH38: -0.005259524304 | KI38: 0.8913659382 | KJ38: 0.02118069269 | KK38: 0.009066815599 | KM38: 0.007943401867 | KN38: 101.4848247 | KO38: 99.60139851 | KP38: 100.3810177 | KQ38: 100.0437402 | KR38: 96.86156647 | KS38: 102.0844466 | KT38: 100.4734786 | KU38: 100.7943402 | KV38: -0.0360139851 | KW38: 0.9688582451 | KX38: 0.022 | KY38: -0.02190508847 | KZ38: 0.9581423754 | LA38: 0.022 | LB38: -0.01347913416 | LC38: 0.9271452283 | LD38: 0.022 | LE38: -0.002153916187 | LF38: 0.7422688595 | LG38: 0.01116446092 | LH38: -0.0121688932 | LI38: 0.959510779 | LJ38: 0.022 | LK38: -0.007455797588 | LL38: 0.9172538095 | LM38: 0.022 | LN38: -0.00684905741 | LO38: 0.9229191603 | LP38: 0.022 | LQ38: 0.01116446092 | LS38: 0.004199036689 | LT38: 100.0196284 | LU38: 100.8025213 | LV38: 100.4638276 | LW38: 97.26829175 | LX38: 102.5131029 | LY38: 100.8953704 | LZ38: 101.2175793 | MA38: 100.4199037 | MB38: -0.0480252127 | MC38: 0.9920289183 | MD38: 0.022 | ME38: -0.02231913791 | MF38: 0.9604678062 | MG38: 0.022 | MH38: -0.004227639154 | MI38: 0.7662302229 | MJ38: 0.01247139817 | MK38: -0.01628275734 | ML38: 0.9734923404 | MM38: 0.022 | MN38: -0.009790740751 | MO38: 0.9336220892 | MP38: 0.022 | MQ38: -0.008695965532 | MR38: 0.9363598335 | MS38: 0.022 | MT38: -0.006314148098 | MU38: 0.9131887166 | MV38: 0.022 | MW38: 0.01247139817 | MY38: 0.004699680088 | MZ38: 101.2762609 | NA38: 100.9359754 | NB38: 97.7254216 | NC38: 102.9948817 | ND38: 101.3695463 | NE38: 101.6932696 | NF38: 100.8918451 | NG38: 100.469968 | NH38: -0.04935975433 | NI38: 0.9932612859 | NJ38: 0.022 | NK38: -0.008627108 | NL38: 0.8094805469 | NM38: 0.01503774133 | NN38: -0.02331627242 | NO38: 0.9871039654 | NP38: 0.022 | NQ38: -0.01342386585 | NR38: 0.9530227685 | NS38: 0.022 | NT38: -0.01138653912 | NU38: 0.9520953601 | NV38: 0.022 | NW38: -0.008153075151 | NX38: 0.9284671054 | NY38: 0.022 | NZ38: -0.006385668584 | OA38: 0.9145404774 | OB38: 0.022 | OC38: 0.01503774133 | OF38: 0.02089055018 | OG38: 0.022 | OH38: 0.007030372624 | OI38: 0.01084724134 | OJ38: 0.009066815599 | OK38: 0.01116446092 | OL38: 0.01247139817 | OM38: 0.01503774133 | OO38: Yes | OQ38: 0.022 | OR38: 0.022 | OS38: 0.022 | OT38: 0.022 | OU38: 0.022 | OV38: 0.022 | OW38: 0.022 | OX38: 0.022 | OZ38: No
F39: 14 | G39: -0.008751801378 | H39: 99.12481986 | I39: -0.004464028375 | J39: 0.8724726437 | K39: 0.01953839873 | M39: -0.02575254774 | N39: 96.57210321 | O39: 97.42474523 | P39: -0.0009535053445 | Q39: 0.7462917854 | R39: 0.01137921459 | S39: -0.002035350323 | T39: 0.8012462881 | U39: 0.01452441544 | V39: 0.01137921459 | X39: -0.00928293321 | Y39: 95.67563082 | Z39: 96.52035782 | AA39: 99.07170668 | AB39: 0.0006487383546 | AC39: 0.6708494115 | AD39: 0.00759213838 | AE39: -0.0008672630389 | AF39: 0.7432068437 | AG39: 0.01121437562 | AH39: -0.004388152399 | AI39: 0.8705579526 | AJ39: 0.01938175348 | AK39: 0.00759213838 | AM39: -0.004071141626 | AN39: 95.28612178 | AO39: 96.12740978 | AP39: 98.66837173 | AQ39: 99.59288584 | AR39: 0.001784695551 | AS39: 0.6149715252 | AT39: 0.005017830784 | AU39: -0.0002548195537 | AV39: 0.7033627832 | AW39: 0.009168678068 | AX39: -0.004447286217 | AY39: 0.8535692612 | AZ39: 0.01805704219 | BA39: -0.005132694053 | BB39: 0.8884966986 | BC39: 0.02091885282 | BD39: 0.005017830784 | BF39: 0.004101064137 | BG39: 95.67689628 | BH39: 96.52163445 | BI39: 99.07301705 | BJ39: 100.0013226 | BK39: 100.4101064 | BL39: 0.001077012412 | BM39: 0.6212841515 | BN39: 0.005302021395 | BO39: -0.001304086124 | BP39: 0.7167110794 | BQ39: 0.00983820908 | BR39: -0.006146034102 | BS39: 0.8713670062 | BT39: 0.01944774647 | BU39: -0.006668871083 | BV39: 0.9030653125 | BW39: 0.022 | BX39: -0.00630015202 | BY39: 0.912922327 | BZ39: 0.022 | CA39: 0.005302021395 | CC39: 0.004553401538 | CD39: 96.1125516 | CE39: 96.96113621 | CF39: 99.52413628 | CG39: 100.4566688 | CH39: 100.8673139 | CI39: 100.4553402 | CJ39: -0.0005627580145 | CK39: 0.639674031 | CL39: 0.006138596401 | CM39: -0.003203787361 | CN39: 0.7408217068 | CO39: 0.01108763542 | CP39: -0.008810340697 | CQ39: 0.895348719 | CR39: 0.02155253221 | CS39: -0.008913337652 | CT39: 0.921340192 | CU39: 0.022 | CV39: -0.008112189911 | CW39: 0.9278435611 | CX39: 0.022 | CY39: -0.006364771648 | CZ39: 0.9141471588 | DA39: 0.022 | DB39: 0.006138596401 | DD39: 0.01404759601 | DE39: 97.4627019 | DF39: 98.32320708 | DG39: 100.9222111 | DH39: 101.8678435 | DI39: 102.2842572 | DJ39: 101.8664962 | DK39: 101.4047596 | DL39: -0.014627019 | DM39: 0.8138403083 | DN39: 0.0153150443 | DO39: -0.01161603539 | DP39: 0.8572666291 | DQ39: 0.01833607265 | DR39: -0.01640737046 | DS39: 0.9540436453 | DT39: 0.022 | DU39: -0.01466960882 | DV39: 0.9631237928 | DW39: 0.022 | DX39: -0.01256851445 | DY39: 0.962922368 | DZ39: 0.022 | EA39: -0.009777493649 | EB39: 0.9500493887 | EC39: 0.022 | ED39: -0.007721085145 | EE39: 0.9369737875 | EF39: 0.022 | EG39: 0.0153150443 | EI39: -0.01380061517 | EJ39: 96.11765666 | EK39: 96.96628634 | EL39: 99.52942254 | EM39: 100.4620046 | EN39: 100.8726716 | EO39: 100.4606759 | EP39: 100.0053115 | EQ39: 98.61993848 | ER39: -0.009662863359 | ES39: 0.7474522339 | ET39: 0.01144149307 | EU39: -0.01764711271 | EV39: 0.927277638 | EW39: 0.022 | EX39: -0.01487334873 | EY39: 0.9411640336 | EZ39: 0.022 | FA39: -0.01218167888 | FB39: 0.9408525669 | FC39: 0.022 | FD39: -0.008921351754 | FE39: 0.9214596803 | FF39: 0.022 | FG39: -0.00667551923 | FH39: 0.9031922289 | FI39: 0.022 | FJ39: -0.003742769262 | FK39: 0.853466645 | FL39: 0.01804936599 | FM39: 0.01144149307 | FO39: 0.01016762663 | FP39: 97.95220333 | FQ39: 100.5414005 | FR39: 101.4834648 | FS39: 101.8983072 | FT39: 101.4821225 | FU39: 101.0221282 | FV39: 99.6226692 | FW39: 101.0167627 | FX39: -0.04541400548 | FY39: 0.9890340642 | FZ39: 0.022 | GA39: -0.02741732387 | GB39: 0.981413753 | GC39: 0.022 | GD39: -0.01966102405 | GE39: 0.9739043279 | GF39: 0.022 | GG39: -0.0137053063 | GH39: 0.9554798871 | GI39: 0.022 | GJ39: -0.01004425641 | GK39: 0.936878933 | GL39: 0.022 | GM39: -0.006037781993 | GN39: 0.8904550112 | GO39: 0.02109703152 | GP39: -0.007166803804 | GQ39: 0.9282932786 | GR39: 0.022 | GS39: 0.02109703152 | GU39: -0.01060792439 | GV39: 99.47486497 | GW39: 100.4069359 | GX39: 100.8173777 | GY39: 100.4056078 | GZ39: 99.95049311 | HA39: 98.56587945 | HB39: 99.94518448 | HC39: 98.93920756 | HD39: -0.04406935852 | HE39: 0.9871403921 | HF39: 0.022 | HG39: -0.02408688838 | HH39: 0.9692425348 | HI39: 0.022 | HJ39: -0.01468535946 | HK39: 0.9394076524 | HL39: 0.022 | HM39: -0.009876232772 | HN39: 0.9118738749 | HO39: 0.022 | HP39: -0.005131758907 | HQ39: 0.8484448659 | HR39: 0.01767802581 | HS39: -0.006575307471 | HT39: 0.9012661626 | HU39: 0.022 | HV39: -0.004198867944 | HW39: 0.8656949368 | HX39: 0.01899097748 | HY39: 0.01767802581 | IA39: -0.01959447282 | IB39: 98.43951488 | IC39: 98.84191431 | ID39: 98.43821288 | IE39: 97.99201589 | IF39: 96.63453301 | IG39: 97.98681128 | IH39: 97.00054595 | II39: 98.04055272 | IJ39: -0.02841914308 | IK39: 0.935625291 | IL39: 0.022 | IM39: -0.01219106442 | IN39: 0.8654382899 | IO39: 0.01897062678 | IP39: -0.00664005296 | IQ39: 0.8202757593 | IR39: 0.01573183918 | IS39: -0.001586332518 | IT39: 0.725332697 | IU39: 0.01027868514 | IV39: -0.003973622563 | IW39: 0.8191351425 | IX39: 0.01565729433 | IY39: -0.001667576579 | IZ39: 0.771068686 | JA39: 0.01274405251 | JB39: -0.002915075311 | JC39: 0.8294206272 | JD39: 0.01634059951 | JE39: 0.01027868514 | JG39: -0.003380704179 | JH39: 98.50775904 | JI39: 98.10542241 | JJ39: 97.66073387 | JK39: 96.30784024 | JL39: 97.65554686 | JM39: 96.6726158 | JN39: 97.70910661 | JO39: 99.66192958 | JP39: -0.02105422406 | JQ39: 0.8818494546 | JR39: 0.02033021906 | JS39: -0.008303669352 | JT39: 0.8037776386 | JU39: 0.01468082138 | JV39: -0.001026134126 | JW39: 0.6824051381 | JX39: 0.00814447952 | JY39: -0.004138867148 | JZ39: 0.7969584132 | KA39: 0.01426219185 | KB39: -0.001345231593 | KC39: 0.7405123875 | KD39: 0.01107124329 | KE39: -0.002848511019 | KF39: 0.8089018491 | KG39: 0.01500122801 | KH39: -0.005231327974 | KI39: 0.890732698 | KJ39: 0.02112248163 | KK39: 0.00814447952 | KM39: -0.008095043084 | KN39: 97.31125479 | KO39: 96.87016602 | KP39: 95.52822412 | KQ39: 96.865021 | KR39: 95.89004681 | KS39: 96.91814718 | KT39: 98.85516197 | KU39: 99.19049569 | KV39: -0.008701660222 | KW39: 0.7332929204 | KX39: 0.01069146228 | KY39: 0.002358879391 | KZ39: 0.5674075029 | LA39: 0.002914520715 | LB39: -0.002883403333 | LC39: 0.7325873529 | LD39: 0.01065462793 | LE39: 0.0002748829838 | LF39: 0.6662407088 | LG39: 0.007374056797 | LH39: -0.001836294368 | LI39: 0.7564213412 | LJ39: 0.01192805606 | LK39: -0.004758603281 | LL39: 0.8613770955 | LM39: 0.01865207712 | LN39: -0.004557850988 | LO39: 0.8748128601 | LP39: 0.01973209464 | LQ39: 0.002914520715 | LS39: 0.003855696611 | LT39: 97.24366799 | LU39: 95.89655197 | LV39: 97.23850313 | LW39: 96.25976974 | LX39: 97.29183416 | LY39: 99.23631748 | LZ39: 99.57294415 | MA39: 100.3855697 | MB39: 0.001034480282 | MC39: 0.5715221984 | MD39: 0.003094311478 | ME39: -0.006192515666 | MF39: 0.7640780539 | MG39: 0.01235112802 | MH39: -0.0008658991167 | MI39: 0.6778947198 | MJ39: 0.007927917671 | MK39: -0.003229585389 | ML39: 0.7728133858 | MM39: 0.0128431592 | MN39: -0.006472634963 | MO39: 0.8782074022 | MP39: 0.02001760393 | MQ39: -0.005954906916 | MR39: 0.8887152754 | MS39: 0.02093862849 | MT39: -0.006265099516 | MU39: 0.9122524888 | MV39: 0.022 | MW39: 0.003094311478 | MY39: 0.002340397235 | MZ39: 96.120988 | NA39: 97.46607986 | NB39: 96.48505583 | NC39: 97.5195357 | ND39: 99.46856988 | NE39: 99.80598439 | NF39: 100.6205118 | NG39: 100.2340397 | NH39: -0.01466079857 | NI39: 0.8142514718 | NJ39: 0.01534140264 | NK39: -0.00242527917 | NL39: 0.6834310926 | NM39: 0.008193919612 | NN39: -0.005065118985 | NO39: 0.7859428505 | NP39: 0.01360327429 | NQ39: -0.008671424711 | NR39: 0.8930396949 | NS39: 0.02133573877 | NT39: -0.007611968786 | NU39: 0.9000565075 | NV39: 0.022 | NW39: -0.007700852951 | NX39: 0.9213364575 | NY39: 0.022 | NZ39: -0.006048628176 | OA39: 0.9080304367 | OB39: 0.022 | OC39: 0.008193919612 | OF39: 0.01144149307 | OG39: 0.02109703152 | OH39: 0.01767802581 | OI39: 0.01027868514 | OJ39: 0.00814447952 | OK39: 0.002914520715 | OL39: 0.003094311478 | OM39: 0.008193919612 | OO39: Yes | OQ39: 0.022 | OR39: 0.01953839873 | OS39: 0.01137921459 | OT39: 0.00759213838 | OU39: 0.005017830784 | OV39: 0.005302021395 | OW39: 0.006138596401 | OX39: 0.0153150443 | OZ39: Yes
F40: 15 | G40: -0.006025643811 | H40: 99.39743562 | I40: -0.004853479456 | J40: 0.8819899843 | K40: 0.02034241687 | M40: 0.000360192108 | N40: 99.43323779 | O40: 100.0360192 | P40: -0.005722062985 | Q40: 0.8837217457 | R40: 0.02049358294 | S40: -0.00576574173 | T40: 0.9022887206 | U40: 0.022 | V40: 0.02049358294 | X40: 0.01555606035 | Y40: 100.9800272 | Z40: 101.5921856 | AA40: 101.555606 | AB40: -0.009960054476 | AC40: 0.9358113088 | AD40: 0.022 | AE40: -0.009320309271 | AF40: 0.9445800738 | AG40: 0.022 | AH40: -0.007936580049 | AI40: 0.9401187846 | AJ40: 0.022 | AK40: 0.022 | AM40: 0.003347557336 | AN40: 101.3180637 | AO40: 101.9322712 | AP40: 101.8955692 | AQ40: 100.3347557 | AR40: -0.01329515917 | AS40: 0.9518634248 | AT40: 0.022 | AU40: -0.01186454246 | AV40: 0.9567450834 | AW40: 0.022 | AX40: -0.009825948748 | AY40: 0.9506029054 | AZ40: 0.022 | BA40: -0.006192508191 | BB40: 0.9108530897 | BC40: 0.022 | BD40: 0.022 | BF40: -0.02550570658 | BG40: 98.73387487 | BH40: 99.33241663 | BI40: 99.29665076 | BJ40: 97.77564689 | BK40: 97.44942934 | BL40: -0.009112916221 | BM40: 0.8667382062 | BN40: 0.01907397923 | BO40: -0.008331041569 | BP40: 0.8872271325 | BQ40: 0.02080453402 | BR40: -0.006593301515 | BS40: 0.8806688249 | BT40: 0.02022814452 | BU40: -0.002959411491 | BV40: 0.8122463035 | BW40: 0.01521319729 | BX40: -0.002070613346 | BY40: 0.8024269625 | BZ40: 0.01459721562 | CA40: 0.01459721562 | CC40: -0.01999008265 | CD40: 96.76017655 | CE40: 97.34675341 | CF40: 97.3117025 | CG40: 95.82110363 | CH40: 95.5014072 | CI40: 98.00099174 | CJ40: -0.003800882737 | CK40: 0.7142154679 | CL40: 0.00971192113 | CM40: -0.004489178032 | CN40: 0.7724920687 | CO40: 0.01282487488 | CP40: -0.003279256256 | CQ40: 0.7741727715 | CR40: 0.01292067597 | CS40: 0.0003577927361 | CT40: 0.6814764352 | CU40: 0.008099784111 | CV40: 0.0008309880072 | CW40: 0.6787404771 | CX40: 0.007968428574 | CY40: -0.002858559622 | CZ40: 0.8276913818 | DA40: 0.01622392339 | DB40: 0.007968428574 | DD40: -0.01976287102 | DE40: 94.84791766 | DF40: 95.42290208 | DG40: 95.38854388 | DH40: 93.92740352 | DI40: 93.6140252 | DJ40: 96.06421078 | DK40: 98.0237129 | DL40: 0.01152082341 | DM40: 0.3834619064 | DN40: 0.0001 | DO40: 0.002885489608 | DP40: 0.5540600604 | DQ40: 0.002333397542 | DR40: 0.002038187075 | DS40: 0.5921900729 | DT40: 0.004002968439 | DU40: 0.005181491199 | DV40: 0.4934180702 | DW40: 0.0001 | DX40: 0.004771949593 | DY40: 0.5092462227 | DZ40: 0.0003979053406 | EA40: -0.0001070179603 | EB40: 0.7151921749 | EC40: 0.009761283468 | ED40: -0.002891018426 | EE40: 0.8286859066 | EF40: 0.01629093429 | EG40: 0.0001 | EI40: 0.004854169676 | EJ40: 95.30832554 | EK40: 95.88610104 | EL40: 95.85157605 | EM40: 94.38334307 | EN40: 94.06844357 | EO40: 96.53052276 | EP40: 98.49953663 | EQ40: 100.485417 | ER40: 0.00113898964 | ES40: 0.5696567996 | ET40: 0.003012762392 | EU40: 0.0007421197263 | EV40: 0.6078450666 | EW40: 0.004698642015 | EX40: 0.005388856419 | EY40: 0.4877884878 | EZ40: 0.0001 | FA40: 0.004828891085 | FB40: 0.5062054389 | FC40: 0.0002670339911 | FD40: -0.00106104551 | FE40: 0.7310663865 | FF40: 0.01057539169 | FG40: -0.004165894389 | FH40: 0.8462625391 | FI40: 0.01751920476 | FJ40: -0.006407738525 | FK40: 0.9149544071 | FL40: 0.022 | FM40: 0.0001 | FO40: 0.00500259874 | FP40: 96.36578072 | FQ40: 96.33108303 | FR40: 94.85550507 | FS40: 94.53903024 | FT40: 97.01342623 | FU40: 98.99229029 | FV40: 100.9881052 | FW40: 100.5002599 | FX40: -0.003310830283 | FY40: 0.6471974166 | FZ40: 0.006484975327 | GA40: 0.005722474663 | GB40: 0.4814788092 | GC40: 0.0001 | GD40: 0.00486989919 | GE40: 0.5040862075 | GF40: 0.0001758346832 | GG40: -0.002533565566 | GH40: 0.7532868936 | GI40: 0.01175694489 | GJ40: -0.005984580582 | GK40: 0.8678888062 | GL40: 0.01916604025 | GM40: -0.008313508646 | GN40: 0.9308740043 | GO40: 0.022 | GP40: -0.006428942677 | GQ40: 0.9153506815 | GR40: 0.022 | GS40: 0.0001 | GU40: 0.005035261359 | GV40: 96.81613521 | GW40: 95.33312733 | GX40: 95.01505897 | GY40: 97.50191418 | GZ40: 99.49074235 | HA40: 101.4966067 | HB40: 101.0063049 | HC40: 100.5035261 | HD40: 0.006668726733 | HE40: 0.4697687348 | HF40: 0.0001 | HG40: 0.004924705155 | HH40: 0.5019309273 | HI40: 0.0001 | HJ40: -0.00500638061 | HK40: 0.7845926125 | HL40: 0.01352388783 | HM40: -0.008726855863 | HN40: 0.8939654249 | HO40: 0.02142224508 | HP40: -0.01099321338 | HQ40: 0.9479763823 | HR40: 0.022 | HS40: -0.008343841582 | HT40: 0.9313219761 | HU40: 0.022 | HV40: -0.006433608766 | HW40: 0.9154376976 | HX40: 0.022 | HY40: 0.0001 | IA40: 0.005071540925 | IB40: 95.81661318 | IC40: 95.49693173 | ID40: 97.99639913 | IE40: 99.99531372 | IF40: 102.0113509 | IG40: 101.5185626 | IH40: 101.0132339 | II40: 100.5071541 | IJ40: 0.005030682709 | IK40: 0.4994436079 | IL40: 0.0001 | IM40: -0.009981995655 | IN40: 0.8322460996 | IO40: 0.0165328825 | IP40: -0.01331771239 | IQ40: 0.9253693825 | IR40: 0.022 | IS40: -0.01502837722 | IT40: 0.9656784454 | IU40: 0.022 | IV40: -0.01103712512 | IW40: 0.9484497411 | IX40: 0.022 | IY40: -0.008355389803 | IZ40: 0.9314919362 | JA40: 0.022 | JB40: -0.006438791561 | JC40: 0.9155342709 | JD40: 0.022 | JE40: 0.0001 | JG40: 0.004863439754 | JH40: 95.9613753 | JI40: 98.47299871 | JJ40: 100.4816349 | JK40: 102.5074769 | JL40: 102.012292 | JM40: 101.5045057 | JN40: 100.9959646 | JO40: 100.486344 | JP40: -0.02472998714 | JQ40: 0.9117104183 | JR40: 0.022 | JS40: -0.0224081745 | JT40: 0.9609538766 | JU40: 0.022 | JV40: -0.02169158982 | JW40: 0.9821978428 | JX40: 0.022 | JY40: -0.01503072993 | JZ40: 0.9656947055 | KA40: 0.022 | KB40: -0.01100901132 | KC40: 0.9481470767 | KD40: 0.022 | KE40: -0.008326607636 | KF40: 0.9310677321 | KG40: 0.022 | KH40: -0.006409062822 | KI40: 0.9149791969 | KJ40: 0.022 | KK40: 0.022 | KM40: -0.0227477251 | KN40: 96.23296201 | KO40: 98.19590629 | KP40: 100.175665 | KQ40: 99.6917444 | KR40: 99.19550907 | KS40: 98.69853614 | KT40: 98.20050825 | KU40: 97.72522749 | KV40: -0.02195906292 | KW40: 0.8897899768 | KX40: 0.02103626857 | KY40: -0.02087832519 | KZ40: 0.9518959794 | LA40: 0.022 | LB40: -0.01230581465 | LC40: 0.9134767042 | LD40: 0.022 | LE40: -0.007988772669 | LF40: 0.8811584143 | LG40: 0.02027038633 | LH40: -0.005397072285 | LI40: 0.8546877771 | LJ40: 0.01814094807 | LK40: -0.003667513743 | LL40: 0.8327388181 | LM40: 0.01656662641 | LN40: -0.002464610699 | LO40: 0.8153285002 | LP40: 0.0154106195 | LQ40: 0.0154106195 | LS40: 0.02865895476 | LT40: 101.0100983 | LU40: 103.0465949 | LV40: 102.5488056 | LW40: 102.0383487 | LX40: 101.527133 | LY40: 101.0148322 | LZ40: 100.5259304 | MA40: 102.8658955 | MB40: -0.07046594891 | MC40: 0.99969851 | MD40: 0.022 | ME40: -0.03274402794 | MF40: 0.9923727102 | MG40: 0.022 | MH40: -0.02012782891 | MI40: 0.9760527591 | MJ40: 0.022 | MK40: -0.01381783256 | ML40: 0.956432859 | MM40: 0.022 | MN40: -0.01002966434 | MO40: 0.9366949125 | MP40: 0.022 | MQ40: -0.007543217272 | MR40: 0.9187281452 | MS40: 0.022 | MT40: -0.009808422109 | MU40: 0.9625341285 | MV40: 0.022 | MW40: 0.022 | MY40: 0.01135672719 | MZ40: 104.216867 | NA40: 103.7134244 | NB40: 103.1971704 | NC40: 102.680149 | ND40: 102.1620301 | NE40: 101.6675759 | NF40: 104.0341154 | NG40: 101.1356727 | NH40: -0.07713424397 | NI40: 0.9999055344 | NJ40: 0.022 | NK40: -0.03598585181 | NL40: 0.9957890483 | NM40: 0.022 | NN40: -0.02226716325 | NO40: 0.9840927029 | NP40: 0.022 | NQ40: -0.01540507515 | NR40: 0.9682023745 | NS40: 0.022 | NT40: -0.01133515186 | NU40: 0.9515725307 | NV40: 0.022 | NW40: -0.01339019231 | NX40: 0.97969903 | NY40: 0.022 | NZ40: -0.007336675312 | OA40: 0.9310459335 | OB40: 0.022 | OC40: 0.022 | OF40: 0.0001 | OG40: 0.0001 | OH40: 0.0001 | OI40: 0.0001 | OJ40: 0.022 | OK40: 0.0154106195 | OL40: 0.022 | OM40: 0.022 | OO40: Yes | OQ40: 0.022 | OR40: 0.02034241687 | OS40: 0.02049358294 | OT40: 0.022 | OU40: 0.022 | OV40: 0.01907397923 | OW40: 0.00971192113 | OX40: 0.0001 | OZ40: Yes
F41: 16 | G41: 0.01126400956 | H41: 101.126401 | I41: -0.007323429937 | J41: 0.9308342725 | K41: 0.022 | M41: 0.0615860708 | N41: 107.3543786 | O41: 106.1586071 | P41: -0.01892396441 | Q41: 0.9961357324 | R41: 0.022 | S41: -0.01451229583 | T41: 0.990526611 | U41: 0.022 | V41: 0.022 | X41: 0.02725420551 | Y41: 110.2802369 | Z41: 109.0518756 | AA41: 102.7254206 | AB41: -0.02856047389 | AC41: 0.9996764555 | AD41: 0.022 | AE41: -0.02175312596 | AF41: 0.9985526529 | AG41: 0.022 | AH41: -0.009607743644 | AI41: 0.9605196175 | AJ41: 0.022 | AK41: 0.022 | AM41: 0.01023212108 | AN41: 111.4086377 | AO41: 110.1677076 | AP41: 103.7765195 | AQ41: 101.0232121 | AR41: -0.0385215942 | AS41: 0.9999619734 | AT41: 0.022 | AU41: -0.02833541514 | AV41: 0.9996482268 | AW41: 0.022 | AX41: -0.01296086582 | AY41: 0.977237488 | AZ41: 0.022 | BA41: -0.007176017297 | BB41: 0.9284447073 | BC41: 0.022 | BD41: 0.022 | BF41: 0.04385263232 | BG41: 116.2941997 | BH41: 114.9988515 | BI41: 108.327393 | BJ41: 105.4533459 | BK41: 104.3852632 | BL41: -0.06764733235 | BM41: 0.9999999947 | BN41: 0.022 | BO41: -0.04749712885 | BP41: 0.9999990901 | BQ41: 0.022 | BR41: -0.02465478609 | BS41: 0.9987112699 | BT41: 0.022 | BU41: -0.01575557647 | BV41: 0.9895817794 | BW41: 0.022 | BX41: -0.01197894747 | BY41: 0.9794198886 | BZ41: 0.022 | CA41: 0.022 | CC41: 0.01648056301 | CD41: 118.2107936 | CE41: 116.8940974 | CF41: 110.1126895 | CG41: 107.1912764 | CH41: 106.1055911 | CI41: 101.6480563 | CJ41: -0.111053968 | CK41: 1 | CL41: 0.022 | CM41: -0.0696469912 | CN41: 0.9999999979 | CO41: 0.022 | CP41: -0.03528172368 | CQ41: 0.9998748608 | CR41: 0.022 | CS41: -0.02238255279 | CT41: 0.9973082854 | CU41: 0.022 | CV41: -0.0168426519 | CW41: 0.9924915356 | CX41: 0.022 | CY41: -0.008068651858 | CZ41: 0.9419846701 | DA41: 0.022 | DB41: 0.022 | DD41: -0.0008878309681 | DE41: 118.1058424 | DF41: 116.7903152 | DG41: 110.014928 | DH41: 107.0961087 | DI41: 106.0113873 | DJ41: 101.55781 | DK41: 99.9112169 | DL41: -0.2210584239 | DM41: 1 | DN41: 0.022 | DO41: -0.1039515758 | DP41: 1 | DQ41: 0.022 | DR41: -0.04671642672 | DS41: 0.9999766556 | DT41: 0.022 | DU41: -0.02774027165 | DV41: 0.9985416736 | DW41: 0.022 | DX41: -0.02002277462 | DY41: 0.9945094728 | DZ41: 0.022 | EA41: -0.009263016681 | EB41: 0.9438625505 | EC41: 0.022 | ED41: -0.005587452719 | EE41: 0.8985374803 | EF41: 0.02185769786 | EG41: 0.02185769786 | EI41: 0.04008166172 | EJ41: 122.8397208 | EK41: 121.4714651 | EL41: 114.4245091 | EM41: 111.3886987 | EN41: 110.2604999 | EO41: 105.6284158 | EP41: 103.9158245 | EQ41: 104.0081662 | ER41: -0.2547146507 | ES41: 1 | ET41: 0.022 | EU41: -0.09212254572 | EV41: 0.9999999998 | EW41: 0.022 | EX41: -0.0512956622 | EY41: 0.9999953347 | EZ41: 0.022 | FA41: -0.03565124969 | FB41: 0.9998903022 | FC41: 0.022 | FD41: -0.01925683159 | FE41: 0.9931579575 | FF41: 0.022 | FG41: -0.01319304084 | FH41: 0.9785981925 | FI41: 0.022 | FJ41: -0.01144023739 | FK41: 0.9759863248 | FL41: 0.022 | FM41: 0.022 | FO41: -0.01750316465 | FP41: 119.34533 | FQ41: 112.4217181 | FR41: 109.4390439 | FS41: 108.3305922 | FT41: 103.7795842 | FU41: 102.0969687 | FV41: 102.1876941 | FW41: 98.24968354 | FX41: -0.1642171812 | FY41: 1 | FZ41: 0.022 | GA41: -0.06719521963 | GB41: 0.9999982654 | GC41: 0.022 | GD41: -0.04110197397 | GE41: 0.9998580637 | GF41: 0.022 | GG41: -0.0194489606 | GH41: 0.9868797141 | GI41: 0.022 | GJ41: -0.01219393743 | GK41: 0.9597318178 | GL41: 0.022 | GM41: -0.01031282352 | GN41: 0.9558968709 | GO41: 0.022 | GP41: -0.003213833622 | GQ41: 0.8383764894 | GR41: 0.01695738327 | GS41: 0.01695738327 | GU41: -0.003989403874 | GV41: 111.9732225 | GW41: 109.0024474 | GX41: 107.8984177 | GY41: 103.3655656 | GZ41: 101.6896627 | HA41: 101.7800261 | HB41: 97.85772587 | HC41: 99.60105961 | HD41: -0.1300244738 | HE41: 0.9999999996 | HF41: 0.022 | HG41: -0.05949208854 | HH41: 0.9999830618 | HI41: 0.022 | HJ41: -0.02455188522 | HK41: 0.9900069195 | HL41: 0.022 | HM41: -0.01422415668 | HN41: 0.9597377268 | HO41: 0.022 | HP41: -0.01156005226 | HQ41: 0.9538274225 | HR41: 0.022 | HS41: -0.003096209778 | HT41: 0.8163216151 | HU41: 0.01547466629 | HV41: -0.005144370875 | HW41: 0.8887631043 | HX41: 0.02094295951 | HY41: 0.01547466629 | IA41: 0.01188535993 | IB41: 110.2979807 | IC41: 109.1808292 | ID41: 104.5941025 | IE41: 102.8982809 | IF41: 102.9897184 | IG41: 99.02080016 | IH41: 100.7848541 | II41: 101.188536 | IJ41: -0.1318082924 | IK41: 0.9999999997 | IL41: 0.022 | IM41: -0.04297051259 | IN41: 0.998977649 | IO41: 0.022 | IP41: -0.02299426972 | IQ41: 0.9862370247 | IR41: 0.022 | IS41: -0.01747429594 | IT41: 0.9794796115 | IU41: 0.022 | IV41: -0.006041600322 | IW41: 0.8691245183 | IX41: 0.01926552904 | IY41: -0.00797475676 | IZ41: 0.9257169944 | JA41: 0.022 | JB41: -0.007412194276 | JC41: 0.9322432003 | JD41: 0.022 | JE41: 0.01926552904 | JG41: 0.02691150482 | JH41: 112.1190497 | JI41: 107.4088872 | JJ41: 105.6674285 | JK41: 105.7613267 | JL41: 101.6855989 | JM41: 103.4971261 | JN41: 103.9116718 | JO41: 102.6911505 | JP41: -0.1140888721 | JQ41: 0.999999969 | JR41: 0.022 | JS41: -0.04833714249 | JT41: 0.9996966947 | JU41: 0.022 | JV41: -0.0325377556 | JW41: 0.9984383353 | JX41: 0.022 | JY41: -0.01421399726 | JZ41: 0.9596576497 | KA41: 0.022 | KB41: -0.01499425228 | KC41: 0.9789335402 | KD41: 0.022 | KE41: -0.01318611961 | KF41: 0.9785586469 | KG41: 0.022 | KH41: -0.009558786403 | KI41: 0.960015018 | KJ41: 0.022 | KK41: 0.022 | KM41: 0.04009360544 | KN41: 111.7152968 | KO41: 109.9040167 | KP41: 110.0016796 | KQ41: 105.7625412 | KR41: 107.6466991 | KS41: 108.0778653 | KT41: 106.808409 | KU41: 104.0093605 | KV41: -0.1390401668 | KW41: 1 | KX41: 0.022 | KY41: -0.07000839791 | KZ41: 0.9999992884 | LA41: 0.022 | LB41: -0.03254180395 | LC41: 0.998439948 | LD41: 0.022 | LE41: -0.0291167477 | LF41: 0.9990373589 | LG41: 0.022 | LH41: -0.02415573067 | LI41: 0.9984785597 | LJ41: 0.022 | LK41: -0.01801401492 | LL41: 0.9948022836 | LM41: 0.022 | LN41: -0.01144194363 | LO41: 0.9759979167 | LP41: 0.022 | LQ41: 0.022 | LS41: -0.006086607265 | LT41: 109.2350741 | LU41: 109.3321426 | LV41: 105.1188061 | LW41: 106.9914959 | LX41: 107.4200378 | LY41: 106.1583081 | LZ41: 103.3762964 | MA41: 99.39133927 | MB41: -0.1333214256 | MC41: 0.9999999998 | MD41: 0.022 | ME41: -0.04559403066 | MF41: 0.9994276394 | MG41: 0.022 | MH41: -0.03663831967 | MI41: 0.9994775831 | MJ41: 0.022 | MK41: -0.02855009454 | ML41: 0.9988558259 | MM41: 0.022 | MN41: -0.02031661623 | MO41: 0.9949613721 | MP41: 0.022 | MQ41: -0.01229382736 | MR41: 0.9729167318 | MS41: 0.022 | MT41: -0.004844770391 | MU41: 0.8817827998 | MV41: 0.02032443709 | MW41: 0.02032443709 | MY41: 0.01562125048 | MZ41: 111.0400473 | NA41: 106.7608933 | NB41: 108.6628369 | NC41: 109.0980731 | ND41: 107.8166336 | NE41: 104.9911634 | NF41: 100.9439563 | NG41: 101.562125 | NH41: -0.1076089333 | NI41: 0.9999998461 | NJ41: 0.022 | NK41: -0.06331418429 | NL41: 0.9999943689 | NM41: 0.022 | NN41: -0.04366024378 | NO41: 0.9999361884 | NP41: 0.022 | NQ41: -0.02954158409 | NR41: 0.999155676 | NS41: 0.022 | NT41: -0.01798232687 | NU41: 0.9902520635 | NV41: 0.022 | NW41: -0.008239927133 | NX41: 0.9297779623 | NY41: 0.022 | NZ41: -0.007945892925 | OA41: 0.940251877 | OB41: 0.022 | OC41: 0.022 | OF41: 0.022 | OG41: 0.01695738327 | OH41: 0.01547466629 | OI41: 0.01926552904 | OJ41: 0.022 | OK41: 0.022 | OL41: 0.02032443709 | OM41: 0.022 | OO41: Yes | OQ41: 0.022 | OR41: 0.022 | OS41: 0.022 | OT41: 0.022 | OU41: 0.022 | OV41: 0.022 | OW41: 0.022 | OX41: 0.022 | OZ41: No
F42: 17 | G42: 0.01733257467 | H42: 101.7332575 | I42: -0.00819036781 | J42: 0.9436635029 | K42: 0.022 | M42: -0.03748772275 | N42: 97.91950932 | O42: 96.25122772 | P42: -0.003199182194 | Q42: 0.8193525829 | R42: 0.01567148231 | S42: -0.0003588967498 | T42: 0.7403641774 | U42: 0.0110633926 | V42: 0.0110633926 | X42: 0.03397142376 | Y42: 101.2459745 | Z42: 99.52101897 | AA42: 103.3971424 | AB42: -0.01049194892 | AC42: 0.9423248159 | AD42: 0.022 | AE42: -0.005868364949 | AF42: 0.886877545 | AG42: 0.02077321676 | AH42: -0.01056734625 | AI42: 0.969407157 | AJ42: 0.022 | AK42: 0.02077321676 | AM42: -0.0127091288 | AN42: 99.95922633 | AO42: 98.25619352 | AP42: 102.0830548 | AQ42: 98.72908712 | AR42: -0.009898065829 | AS42: 0.9121907577 | AT42: 0.022 | AU42: -0.004512387041 | AV42: 0.8331864428 | AW42: 0.01659733765 | AX42: -0.01013842463 | AY42: 0.9540557494 | AZ42: 0.022 | BA42: -0.003898695885 | BB42: 0.8577285646 | BC42: 0.01837127505 | BD42: 0.01659733765 | BF42: 0.007752285303 | BG42: 100.7341388 | BH42: 99.01790357 | BI42: 102.8744317 | BJ42: 99.49446317 | BK42: 100.7752285 | BL42: -0.01578046258 | BM42: 0.9490840922 | BN42: 0.022 | BO42: -0.007544758914 | BP42: 0.8729469471 | BQ42: 0.01957745478 | BR42: -0.01374886348 | BS42: 0.9716505125 | BT42: 0.022 | BU42: -0.005824105285 | BV42: 0.88592936 | BW42: 0.02068862119 | BX42: -0.006821755043 | BY42: 0.9224434777 | BZ42: 0.022 | CA42: 0.01957745478 | CC42: -0.01404553818 | CD42: 99.31927358 | CE42: 97.62714382 | CF42: 101.429505 | CG42: 98.09700989 | CH42: 99.35978621 | CI42: 98.59544618 | CJ42: -0.0165963679 | CK42: 0.917472138 | CL42: 0.022 | CM42: -0.005423812735 | CN42: 0.7940807092 | CO42: 0.01408805837 | CP42: -0.01357376246 | CQ42: 0.9543446436 | CR42: 0.022 | CS42: -0.004194019779 | CT42: 0.8249705747 | CU42: 0.01604184628 | CV42: -0.005599643684 | CW42: 0.8810335014 | CX42: 0.02025959718 | CY42: -0.00370778026 | CZ42: 0.8524986438 | DA42: 0.01797713152 | DB42: 0.01408805837 | DD42: 0.011949349 | DE42: 100.5060742 | DF42: 98.79372463 | DG42: 102.6415215 | DH42: 99.2692053 | DI42: 100.547071 | DJ42: 99.77359758 | DK42: 101.1949349 | DL42: -0.04506074243 | DM42: 0.9885616729 | DN42: 0.022 | DO42: -0.01396862317 | DP42: 0.8886441739 | DQ42: 0.02093219256 | DR42: -0.02213840512 | DS42: 0.9836845387 | DT42: 0.022 | DU42: -0.008173013242 | DV42: 0.8844532236 | DW42: 0.0205579137 | DX42: -0.009094141945 | DY42: 0.9240025973 | DZ42: 0.022 | EA42: -0.006289329297 | EB42: 0.895615745 | EC42: 0.02157782571 | ED42: -0.007421335572 | EE42: 0.9323870289 | EF42: 0.022 | EG42: 0.0205579137 | EI42: 0.02954032593 | EJ42: 103.4750564 | EK42: 101.7121235 | EL42: 105.6735855 | EM42: 102.20165 | EN42: 103.5172642 | EO42: 102.7209422 | EP42: 104.1842663 | EQ42: 102.9540326 | ER42: -0.0571212346 | ES42: 0.9976263045 | ET42: 0.022 | EU42: -0.04836792768 | EV42: 0.9996988986 | EW42: 0.022 | EX42: -0.02067216659 | EY42: 0.9783683431 | EZ42: 0.022 | FA42: -0.01879316055 | FB42: 0.9847299715 | FC42: 0.022 | FD42: -0.01344188434 | FE42: 0.9695639303 | FF42: 0.022 | FG42: -0.01364044377 | FH42: 0.9810268936 | FI42: 0.022 | FJ42: -0.009934332276 | FK42: 0.9637546543 | FL42: 0.022 | FM42: 0.022 | FO42: -0.0306623934 | FP42: 98.59338632 | FQ42: 102.4333805 | FR42: 99.06790278 | FS42: 100.3431771 | FT42: 99.57127223 | FU42: 100.9897273 | FV42: 99.79721554 | FW42: 96.93376066 | FX42: -0.06433380484 | FY42: 0.9991879309 | FZ42: 0.022 | GA42: -0.01533951389 | GB42: 0.9044740207 | GC42: 0.022 | GD42: -0.01447725714 | GE42: 0.9374158067 | GF42: 0.022 | GG42: -0.008928180577 | GH42: 0.8972789402 | GI42: 0.0217364341 | GJ42: -0.009979454603 | GK42: 0.9360585255 | GL42: 0.022 | GM42: -0.006328692572 | GN42: 0.896407109 | GO42: 0.02165306259 | GP42: -0.001333943799 | GQ42: 0.776889147 | GR42: 0.01307636818 | GS42: 0.01307636818 | GU42: 0.01547672383 | GV42: 104.0187136 | GW42: 100.6011493 | GX42: 101.8961608 | GY42: 101.1123093 | GZ42: 102.5527174 | HA42: 101.3417495 | HB42: 98.4339777 | HC42: 101.5476724 | HD42: -0.0460114935 | HE42: 0.989794461 | HF42: 0.022 | HG42: -0.02948080391 | HH42: 0.9866717039 | HI42: 0.022 | HJ42: -0.01704103104 | HK42: 0.9586544918 | HL42: 0.022 | HM42: -0.01638179355 | HN42: 0.9740401777 | HO42: 0.022 | HP42: -0.01068349897 | HQ42: 0.9445389552 | HR42: 0.022 | HS42: -0.004056629504 | HT42: 0.8433613589 | HU42: 0.01731036165 | HV42: -0.007925246261 | HW42: 0.9399564978 | HX42: 0.022 | HY42: 0.01731036165 | IA42: 0.02597265184 | IB42: 103.214028 | IC42: 104.5426743 | ID42: 103.7384641 | IE42: 105.2162834 | IF42: 103.9738635 | IG42: 100.9905691 | IH42: 104.1851347 | II42: 102.5972652 | IJ42: -0.08542674289 | IK42: 0.9999802433 | IL42: 0.022 | IM42: -0.03869232059 | IN42: 0.9975125053 | IO42: 0.022 | IP42: -0.03072094481 | IQ42: 0.9975405321 | IR42: 0.022 | IS42: -0.01993465866 | IT42: 0.9882983843 | IU42: 0.022 | IV42: -0.009981138269 | IW42: 0.9360799455 | IX42: 0.022 | IY42: -0.0136418912 | IZ42: 0.9810343537 | JA42: 0.022 | JB42: -0.009424664548 | JC42: 0.958605741 | JD42: 0.022 | JE42: 0.022 | JG42: 0.02162665777 | JH42: 106.8035829 | JI42: 105.9819804 | JJ42: 107.49176 | JK42: 106.2224706 | JL42: 103.1746576 | JM42: 106.438311 | JN42: 104.8161011 | JO42: 102.1626658 | JP42: -0.09981980379 | JQ42: 0.9999990536 | JR42: 0.022 | JS42: -0.05745879999 | JT42: 0.9999702776 | JU42: 0.022 | JV42: -0.03407490208 | JW42: 0.998952244 | JX42: 0.022 | JY42: -0.01793664403 | JZ42: 0.9814721319 | KA42: 0.022 | KB42: -0.02087662195 | KC42: 0.9957318329 | KD42: 0.022 | KE42: -0.01469350188 | KF42: 0.9858348947 | KG42: 0.022 | KH42: -0.008803808253 | KI42: 0.9515493745 | KJ42: 0.022 | KK42: 0.022 | KM42: -0.03335957487 | KN42: 102.4464666 | KO42: 103.9058806 | KP42: 102.6789342 | KQ42: 99.7327949 | KR42: 102.8875742 | KS42: 101.3194806 | KT42: 98.75456268 | KU42: 96.66404251 | KV42: -0.07905880583 | KW42: 0.999933505 | KX42: 0.022 | KY42: -0.03339467082 | KZ42: 0.993208437 | LA42: 0.022 | LB42: -0.01244264965 | LC42: 0.9151630711 | LD42: 0.022 | LE42: -0.01721893543 | LF42: 0.9783032864 | LG42: 0.022 | LH42: -0.01063896111 | LI42: 0.9440302226 | LJ42: 0.022 | LK42: -0.004590937799 | LL42: 0.8572079994 | LM42: 0.01833161021 | LN42: -0.0009486321617 | LO42: 0.7628162547 | LP42: 0.01228089588 | LQ42: 0.01228089588 | LS42: -0.0001774099362 | LT42: 103.8874466 | LU42: 102.6607179 | LV42: 99.71510131 | LW42: 102.8693209 | LX42: 101.3015055 | LY42: 98.73704264 | LZ42: 96.64689335 | MA42: 99.98225901 | MB42: -0.066607179 | MC42: 0.9994327821 | MD42: 0.022 | ME42: -0.01857550654 | MF42: 0.9351759408 | MG42: 0.022 | MH42: -0.02289773631 | MI42: 0.9859675192 | MJ42: 0.022 | MK42: -0.01325376368 | ML42: 0.9514857206 | MM42: 0.022 | MN42: -0.005474085277 | MO42: 0.8564670516 | MP42: 0.01827532135 | MQ42: -0.001078155586 | MR42: 0.7507159725 | MS42: 0.01161746446 | MT42: -0.005688941438 | MU42: 0.9006854835 | MV42: 0.022 | MW42: 0.01161746446 | MY42: 0.01976074066 | MZ42: 104.6893697 | NA42: 101.6855456 | NB42: 104.9020949 | NC42: 103.3032982 | ND42: 100.6881597 | NE42: 98.55670755 | NF42: 101.9579825 | NG42: 101.9760741 | NH42: -0.05685545564 | NI42: 0.9975353008 | NJ42: 0.022 | NK42: -0.04451047433 | NL42: 0.9992703401 | NM42: 0.022 | NN42: -0.02434432749 | NO42: 0.9895633017 | NP42: 0.022 | NQ42: -0.01172039933 | NR42: 0.935749074 | NS42: 0.022 | NT42: -0.005113415093 | NU42: 0.8480067361 | NV42: 0.01764601928 | NW42: -0.009929970828 | NX42: 0.9517746394 | NY42: 0.022 | NZ42: -0.008537248665 | OA42: 0.9482384891 | OB42: 0.022 | OC42: 0.01764601928 | OF42: 0.022 | OG42: 0.01307636818 | OH42: 0.01731036165 | OI42: 0.022 | OJ42: 0.022 | OK42: 0.01228089588 | OL42: 0.01161746446 | OM42: 0.01764601928 | OO42: Yes | OQ42: 0.022 | OR42: 0.022 | OS42: 0.01567148231 | OT42: 0.022 | OU42: 0.022 | OV42: 0.022 | OW42: 0.022 | OX42: 0.022 | OZ42: Yes
F43: 18 | G43: -0.02327908548 | H43: 97.67209145 | I43: -0.002388702074 | J43: 0.8128844565 | K43: 0.01525390685 | M43: -0.01374307574 | N43: 96.3297765 | O43: 98.62569243 | P43: -0.0005496275023 | Q43: 0.7316787059 | R43: 0.01060726389 | S43: -0.00375098918 | T43: 0.8536934363 | U43: 0.01806633593 | V43: 0.01060726389 | X43: 0.005314052714 | Y43: 96.84167801 | Z43: 99.14979455 | AA43: 100.5314053 | AB43: -0.001683356023 | AC43: 0.7515237749 | AD43: 0.01166120723 | AE43: -0.005249657591 | AF43: 0.8731069422 | AG43: 0.01959065231 | AH43: -0.006473436102 | AI43: 0.9161776938 | AJ43: 0.022 | AK43: 0.01166120723 | AM43: -0.006899138252 | AN43: 96.17355389 | AO43: 98.46574641 | AP43: 99.83782521 | AQ43: 99.31008617 | AR43: -0.000433884716 | AS43: 0.6893432095 | AT43: 0.008480165546 | AU43: -0.004931492828 | AV43: 0.843616132 | AW43: 0.01732859893 | AX43: -0.006396375346 | AY43: 0.8977576169 | AZ43: 0.02178242785 | BA43: -0.004728694535 | BB43: 0.8789968296 | BC43: 0.02008479956 | BD43: 0.008480165546 | BF43: 0.01400906623 | BG43: 97.52085557 | BH43: 99.84515958 | BI43: 101.2364599 | BJ43: 100.7013277 | BK43: 101.4009066 | BL43: -0.005069518575 | BM43: 0.7860437866 | BN43: 0.01360922046 | BO43: -0.009612898943 | BP43: 0.9079844883 | BQ43: 0.022 | BR43: -0.01047291983 | BS43: 0.9421011143 | BT43: 0.022 | BU43: -0.007835546249 | BV43: 0.9235144666 | BW43: 0.022 | BX43: -0.00771558089 | BY43: 0.9368918032 | BZ43: 0.022 | CA43: 0.01360922046 | CC43: -0.02344497421 | CD43: 95.23448163 | CE43: 97.50429239 | CF43: 98.86297372 | CG43: 98.34038772 | CH43: 99.02356498 | CI43: 97.65550258 | CJ43: 0.003827591858 | CK43: 0.5300379464 | CL43: 0.001293771971 | CM43: -0.005014307952 | CN43: 0.7847751288 | CO43: 0.01353460184 | CP43: -0.007157434303 | CQ43: 0.8654681453 | CR43: 0.01897299278 | CS43: -0.004680775434 | CT43: 0.8374296376 | CU43: 0.01689114393 | CV43: -0.00503927497 | CW43: 0.8681689451 | CX43: 0.01918853812 | CY43: -0.002365003684 | CZ43: 0.8121173557 | DA43: 0.01520498174 | DB43: 0.001293771971 | DD43: 0.005568362283 | DE43: 95.76478172 | DF43: 98.04723161 | DG43: 99.41347858 | DH43: 98.88798262 | DI43: 99.57496407 | DJ43: 98.1992838 | DK43: 100.5568362 | DL43: 0.00235218276 | DM43: 0.5478991618 | DN43: 0.00206610277 | DO43: -0.01023615805 | DP43: 0.8363130922 | DQ43: 0.01681335494 | DR43: -0.01137826192 | DS43: 0.9013798016 | DT43: 0.022 | DU43: -0.007219956558 | DV43: 0.8666954089 | DW43: 0.01907056553 | DX43: -0.007149928133 | DY43: 0.8915683819 | DZ43: 0.02119935394 | EA43: -0.003665472993 | EB43: 0.8326819107 | EC43: 0.01656272583 | ED43: -0.00650976604 | EE43: 0.9168484565 | EF43: 0.022 | EG43: 0.00206610277 | EI43: 0.004937597023 | EJ43: 96.23762963 | EK43: 98.53134933 | EL43: 99.90434227 | EM43: 99.37625163 | EN43: 100.0666251 | EO43: 98.68415229 | EP43: 101.0533454 | EQ43: 100.4937597 | ER43: -0.02531349329 | ES43: 0.915880765 | ET43: 0.022 | EU43: -0.01952171136 | EV43: 0.9425234222 | EW43: 0.022 | EX43: -0.01125417211 | EY43: 0.8996718844 | EZ43: 0.02196794314 | FA43: -0.01016656278 | FB43: 0.9160184611 | FC43: 0.022 | FD43: -0.005368304574 | FE43: 0.8540193498 | FF43: 0.01809075379 | FG43: -0.008422242273 | FH43: 0.9324694642 | FI43: 0.022 | FJ43: -0.006419656718 | FK43: 0.9151773113 | FL43: 0.022 | FM43: 0.01809075379 | FO43: 0.02327778974 | FP43: 100.8249414 | FQ43: 102.2298945 | FR43: 101.6895111 | FS43: 102.395955 | FT43: 100.9813012 | FU43: 103.4056439 | FV43: 102.8330323 | FW43: 102.327779 | FX43: -0.06229894544 | FY43: 0.9988897735 | FZ43: 0.022 | GA43: -0.02844755561 | GB43: 0.9842259639 | GC43: 0.022 | GD43: -0.02131984991 | GE43: 0.9808743093 | GF43: 0.022 | GG43: -0.01245325309 | GH43: 0.9437050936 | GI43: 0.022 | GJ43: -0.01481128778 | GK43: 0.9779746714 | GL43: 0.022 | GM43: -0.01138838718 | GN43: 0.9659761101 | GO43: 0.022 | GP43: -0.009039684248 | GQ43: 0.9543358732 | GR43: 0.022 | GS43: 0.022 | GU43: -0.04177695133 | GV43: 97.95904122 | GW43: 97.44123337 | GX43: 98.11816414 | GY43: 96.76261033 | GZ43: 99.08567134 | HA43: 98.53698172 | HB43: 98.05283633 | HC43: 95.82230487 | HD43: -0.01441233365 | HE43: 0.8112140025 | HF43: 0.01514752443 | HG43: -0.01059082072 | HH43: 0.8418803384 | HI43: 0.01720473113 | HJ43: -0.002542034426 | HK43: 0.7236707739 | HL43: 0.01019325883 | HM43: -0.007714178343 | HN43: 0.8761255493 | HO43: 0.01984185215 | HP43: -0.005073963449 | HQ43: 0.8470616121 | HR43: 0.01757718353 | HS43: -0.003421393887 | HT43: 0.8257857194 | HU43: 0.01609620596 | HV43: 0.0002538501897 | HW43: 0.715925179 | HX43: 0.009798382227 | HY43: 0.009798382227 | IA43: -0.007325344411 | IB43: 96.72744277 | IC43: 97.3994148 | ID43: 96.05379088 | IE43: 98.35983467 | IF43: 97.8151644 | IG43: 97.33456554 | IH43: 95.12037348 | II43: 99.26746556 | IJ43: -0.01399414799 | IK43: 0.8060330657 | IL43: 0.01482121243 | IM43: -0.0002689544048 | IN43: 0.6325825882 | IO43: 0.00581437921 | IP43: -0.007866115562 | IQ43: 0.8444565216 | IR43: 0.01738889519 | IS43: -0.004537910991 | IT43: 0.8070516828 | IU43: 0.01488494298 | IV43: -0.002669131071 | IW43: 0.782153345 | IX43: 0.01338120046 | IY43: 0.001466044197 | IZ43: 0.6530146251 | JA43: 0.006754615829 | JB43: -0.004667807941 | JC43: 0.8775171429 | JD43: 0.01995909975 | JE43: 0.00581437921 | JG43: 0.005733804979 | JH43: 97.95788405 | JI43: 96.60454459 | JJ43: 98.92381078 | JK43: 98.37601747 | JL43: 97.89266295 | JM43: 95.66577515 | JN43: 99.83664585 | JO43: 100.5733805 | JP43: -0.006045445854 | JQ43: 0.6921893539 | JR43: 0.008618807195 | JS43: -0.01461905389 | JT43: 0.8963744956 | JU43: 0.02164995373 | JV43: -0.007920058243 | JW43: 0.845468661 | JX43: 0.01746180015 | JY43: -0.00473165738 | JZ43: 0.811839727 | KA43: 0.0151873052 | KB43: 0.0006684496942 | KC43: 0.6701242947 | KD43: 0.007557745776 | KE43: -0.006394409745 | KF43: 0.8977185777 | KG43: 0.02177867091 | KH43: -0.006533400711 | KI43: 0.9172826533 | KJ43: 0.022 | KK43: 0.007557745776 | KM43: -0.004367513112 | KN43: 96.18262297 | KO43: 98.49175974 | KP43: 97.94635893 | KQ43: 97.46511546 | KR43: 95.24795363 | KS43: 99.40060799 | KT43: 100.1341249 | KU43: 99.56324869 | KV43: -0.02491759738 | KW43: 0.913067757 | KX43: 0.022 | KY43: -0.009731794634 | KZ43: 0.8281794961 | LA43: 0.01625678149 | LB43: -0.004883718209 | LC43: 0.7817570542 | LD43: 0.01335810635 | LE43: 0.001880115936 | LF43: 0.6116514276 | LG43: 0.004868916941 | LH43: -0.006801215975 | LI43: 0.8848272118 | LJ43: 0.02059091639 | LK43: -0.006890208233 | LL43: 0.907225402 | LM43: 0.022 | LN43: -0.00509035527 | LO43: 0.8875269146 | LP43: 0.02083144479 | LQ43: 0.004868916941 | LS43: 0.0050927724 | LT43: 98.99335585 | LU43: 98.44517744 | LV43: 97.96148311 | LW43: 95.73302977 | LX43: 99.90683266 | LY43: 100.6440852 | LZ43: 100.0703017 | MA43: 100.5092772 | MB43: -0.0244517744 | MC43: 0.909668593 | MD43: 0.022 | ME43: -0.009807415564 | MF43: 0.829415175 | MG43: 0.01634023045 | MH43: 0.0008899007504 | MI43: 0.6268744059 | MJ43: 0.005554907751 | MK43: -0.009767081651 | ML43: 0.9102768731 | MM43: 0.022 | MN43: -0.009288170495 | MO43: 0.9267828138 | MP43: 0.022 | MQ43: -0.00678383609 | MR43: 0.9052428899 | MS43: 0.022 | MT43: -0.006441824629 | MU43: 0.915590749 | MV43: 0.022 | MW43: 0.005554907751 | MY43: -0.001735586349 | MZ43: 98.27431733 | NA43: 97.7914625 | NB43: 95.56687684 | NC43: 99.73343573 | ND43: 100.4694087 | NE43: 99.896621 | NF43: 100.3348347 | NG43: 99.82644137 | NH43: -0.017914625 | NI43: 0.8511953543 | NJ43: 0.01788037689 | NK43: 0.002165615824 | NL43: 0.5722875512 | NM43: 0.00312779029 | NN43: -0.01244478575 | NO43: 0.9151891998 | NP43: 0.022 | NQ43: -0.01117352187 | NR43: 0.9292624696 | NS43: 0.022 | NT43: -0.007793242008 | NU43: 0.903250595 | NV43: 0.022 | NW43: -0.007224724517 | NX43: 0.9132599412 | NY43: 0.022 | NZ43: -0.005466344807 | OA43: 0.8959301967 | OB43: 0.0216076717 | OC43: 0.00312779029 | OF43: 0.01809075379 | OG43: 0.022 | OH43: 0.009798382227 | OI43: 0.00581437921 | OJ43: 0.007557745776 | OK43: 0.004868916941 | OL43: 0.005554907751 | OM43: 0.00312779029 | OO43: Yes | OQ43: 0.022 | OR43: 0.01525390685 | OS43: 0.01060726389 | OT43: 0.01166120723 | OU43: 0.008480165546 | OV43: 0.01360922046 | OW43: 0.001293771971 | OX43: 0.00206610277 | OZ43: Yes
F44: 19 | G44: 0.03214342109 | H44: 103.2143421 | I44: -0.01030620301 | J44: 0.9671705876 | K44: 0.022 | M44: 0.03579476405 | N44: 106.9088751 | O44: 103.5794764 | P44: -0.01818145855 | Q44: 0.995074754 | R44: 0.022 | S44: -0.01082782344 | T44: 0.9715108061 | U44: 0.022 | V44: 0.022 | X44: 0.03668463444 | Y44: 110.8307881 | Z44: 107.3792516 | AA44: 103.6684634 | AB44: -0.02966157627 | AC44: 0.9997866412 | AD44: 0.022 | AE44: -0.01896541939 | AF44: 0.9961884239 | AG44: 0.022 | AH44: -0.01095494778 | AI44: 0.9724929422 | AJ44: 0.022 | AK44: 0.022 | AM44: 0.017080539 | AN44: 112.7238377 | AO44: 109.2133471 | AP44: 105.4391767 | AQ44: 101.7080539 | AR44: -0.04180959434 | AS44: 0.999989567 | AT44: 0.022 | AU44: -0.02642669426 | AV44: 0.999298886 | AW44: 0.022 | AX44: -0.01573196113 | AY44: 0.9895089311 | AZ44: 0.022 | BA44: -0.008154362715 | BB44: 0.9431709208 | BC44: 0.022 | BD44: 0.022 | BF44: -0.007111240842 | BG44: 111.9222314 | BH44: 108.4367047 | BI44: 104.6893733 | BJ44: 100.9847834 | BK44: 99.28887592 | BL44: -0.05307410458 | BM44: 0.9999975863 | BN44: 0.022 | BO44: -0.03109176178 | BP44: 0.9994829283 | BQ44: 0.022 | BR44: -0.0173787466 | BS44: 0.9885339383 | BT44: 0.022 | BU44: -0.008307972389 | BV44: 0.9307919997 | BW44: 0.022 | BX44: -0.004698394165 | BY44: 0.8782620393 | BZ44: 0.02002224473 | CA44: 0.02002224473 | CC44: 0.02656983857 | CD44: 114.895987 | CE44: 111.3178505 | CF44: 107.470953 | CG44: 103.6679328 | CH44: 101.9269653 | CI44: 102.6569839 | CJ44: -0.09447993498 | CK44: 0.9999999999 | CL44: 0.022 | CM44: -0.05105950151 | CN44: 0.9999949153 | CO44: 0.022 | CP44: -0.02867738262 | CQ44: 0.9988991401 | CR44: 0.022 | CS44: -0.01533586566 | CT44: 0.9806294491 | CU44: 0.022 | CV44: -0.009878275535 | CW44: 0.951195139 | CX44: 0.022 | CY44: -0.009509976939 | CZ44: 0.9595067367 | DA44: 0.022 | DB44: 0.022 | DD44: -0.00696358677 | DE44: 114.0958988 | DF44: 110.5426789 | DG44: 106.7225697 | DH44: 102.9460322 | DI44: 101.2171881 | DJ44: 101.942123 | DK44: 99.30364132 | DL44: -0.1809589882 | DM44: 1 | DN44: 0.022 | DO44: -0.07271339471 | DP44: 0.9999997067 | DQ44: 0.022 | DR44: -0.03574189913 | DS44: 0.9993307454 | DT44: 0.022 | DU44: -0.01736508046 | DV44: 0.9789832907 | DW44: 0.022 | DX44: -0.01043437611 | DY44: 0.941645914 | DZ44: 0.022 | EA44: -0.009903538404 | EB44: 0.9514790254 | EC44: 0.022 | ED44: -0.004719487604 | EE44: 0.8787738903 | EF44: 0.02006579194 | EG44: 0.02006579194 | EI44: 0.02253814833 | EJ44: 116.6674091 | EK44: 113.0341062 | EL44: 109.1278988 | EM44: 105.2662451 | EN44: 103.4984361 | EO44: 104.2397097 | EP44: 101.5417615 | EQ44: 102.2538148 | ER44: -0.1703410624 | ES44: 1 | ET44: 0.022 | EU44: -0.06563949423 | EV44: 0.999997199 | EW44: 0.022 | EX44: -0.03088748375 | EY44: 0.9976389674 | EZ44: 0.022 | FA44: -0.01874609013 | FB44: 0.9845646522 | FC44: 0.022 | FD44: -0.01647941946 | FE44: 0.9854878549 | FF44: 0.022 | FG44: -0.009236269201 | FH44: 0.9435250705 | FI44: 0.022 | FJ44: -0.00893402119 | FK44: 0.9531039862 | FL44: 0.022 | FM44: 0.022 | FO44: 0.03143355755 | FP44: 116.5871703 | FQ44: 112.5581769 | FR44: 108.5751377 | FS44: 106.7517601 | FT44: 107.5163346 | FU44: 104.7335803 | FV44: 105.468016 | FW44: 103.1433558 | FX44: -0.1655817693 | FY44: 1 | FZ44: 0.022 | GA44: -0.06287568849 | GB44: 0.9999935917 | GC44: 0.022 | GD44: -0.03583920032 | GE44: 0.9993483524 | GF44: 0.022 | GG44: -0.02879083662 | GH44: 0.9989364746 | GI44: 0.022 | GJ44: -0.01746716065 | GK44: 0.9888010024 | GL44: 0.022 | GM44: -0.01578002668 | GN44: 0.989656738 | GO44: 0.022 | GP44: -0.01020479394 | GQ44: 0.9662664875 | GR44: 0.022 | GS44: 0.022 | GU44: -0.004563964795 | GV44: 112.0444654 | GW44: 108.0796046 | GX44: 106.2645488 | GY44: 107.0256339 | GZ44: 104.25558 | HA44: 104.9866637 | HB44: 102.6726131 | HC44: 99.54360352 | HD44: -0.1207960459 | HE44: 0.9999999946 | HF44: 0.022 | HG44: -0.05132274411 | HH44: 0.9998530187 | HI44: 0.022 | HJ44: -0.03675211294 | HK44: 0.9994939231 | HL44: 0.022 | HM44: -0.02063894988 | HN44: 0.9901184053 | HO44: 0.022 | HP44: -0.01797332739 | HQ44: 0.9902281967 | HR44: 0.022 | HS44: -0.01112102185 | HT44: 0.9636669129 | HU44: 0.022 | HV44: -0.005062290744 | HW44: 0.8868807754 | HX44: 0.02077350584 | HY44: 0.02077350584 | IA44: 0.02130078302 | IB44: 110.3817848 | IC44: 108.5280669 | ID44: 109.3053637 | IE44: 106.4763054 | IF44: 107.2229618 | IG44: 104.8596202 | IH44: 101.6639602 | II44: 102.1300783 | IJ44: -0.1252806692 | IK44: 0.9999999984 | IL44: 0.022 | IM44: -0.06652681843 | IN44: 0.9999978663 | IO44: 0.022 | IP44: -0.03492101813 | IQ44: 0.999163771 | IR44: 0.022 | IS44: -0.02805740459 | IT44: 0.9986730498 | IU44: 0.022 | IV44: -0.01771924033 | IW44: 0.9895329577 | IX44: 0.022 | IY44: -0.0094399337 | IZ44: 0.9460548765 | JA44: 0.022 | JB44: -0.008757254717 | JC44: 0.9509836718 | JD44: 0.022 | JE44: 0.022 | JG44: -0.02665517963 | JH44: 105.6352318 | JI44: 106.3918096 | JJ44: 103.6381604 | JK44: 104.3649145 | JL44: 102.0645682 | JM44: 98.9540891 | JN44: 99.40778272 | JO44: 97.33448204 | JP44: -0.1039180958 | JQ44: 0.9999996305 | JR44: 0.022 | JS44: -0.03819080195 | JT44: 0.9972518567 | JU44: 0.022 | JV44: -0.02788304843 | JW44: 0.9951854094 | JX44: 0.022 | JY44: -0.01516142038 | JZ44: 0.9665880353 | KA44: 0.022 | KB44: -0.005908178197 | KC44: 0.8662204633 | KD44: 0.01903273236 | KE44: -0.005679637865 | KF44: 0.8827950424 | KG44: 0.02041249382 | KH44: -0.00190640291 | KI44: 0.7968927919 | KJ44: 0.0142582047 | KK44: 0.0142582047 | KM44: -0.00259099355 | KN44: 106.1161491 | KO44: 103.3696346 | KP44: 104.0945057 | KQ44: 101.8001195 | KR44: 98.69769969 | KS44: 99.1502178 | KT44: 97.08228902 | KU44: 99.74090064 | KV44: -0.07369634585 | KW44: 0.9998262908 | KX44: 0.022 | KY44: -0.04047252854 | KZ44: 0.9982670897 | LA44: 0.022 | LB44: -0.01933373172 | LC44: 0.9723037362 | LD44: 0.022 | LE44: -0.00674424923 | LF44: 0.8571628251 | LG44: 0.01832817273 | LH44: -0.006300435591 | LI44: 0.8746333535 | LJ44: 0.01971714821 | LK44: -0.001803815037 | LL44: 0.7756367284 | LM44: 0.01300445147 | LN44: -0.005344143779 | LO44: 0.8932504859 | LP44: 0.02135538881 | LQ44: 0.01300445147 | LS44: 0.01827286693 | LT44: 105.2584942 | LU44: 105.9966108 | LV44: 103.6602996 | LW44: 100.5011896 | LX44: 100.9619765 | LY44: 98.85626077 | LZ44: 101.5634528 | MA44: 101.8272867 | MB44: -0.09996610759 | MC44: 0.9999990843 | MD44: 0.022 | ME44: -0.03830149776 | MF44: 0.9973114199 | MG44: 0.022 | MH44: -0.01500396542 | MI44: 0.9423606788 | MJ44: 0.022 | MK44: -0.01240494133 | ML44: 0.9432057295 | MM44: 0.022 | MN44: -0.005712521541 | MO44: 0.8618822259 | MP44: 0.01869134807 | MQ44: -0.009272421417 | MR44: 0.9439808339 | MS44: 0.022 | MT44: -0.008324695276 | MU44: 0.9454715806 | MV44: 0.022 | MW44: 0.01869134807 | MY44: 0.002416817851 | MZ44: 106.2527853 | NA44: 103.9108276 | NB44: 100.7440827 | NC44: 101.2059832 | ND44: 99.09517835 | NE44: 101.8089132 | NF44: 102.0733847 | NG44: 100.2416818 | NH44: -0.07910827614 | NI44: 0.9999341088 | NJ44: 0.022 | NK44: -0.02372041347 | NL44: 0.9675697282 | NM44: 0.022 | NN44: -0.01735327746 | NO44: 0.9607845822 | NP44: 0.022 | NQ44: -0.007737945865 | NR44: 0.8765669776 | NS44: 0.01987894394 | NT44: -0.01161782643 | NU44: 0.9543928526 | NV44: 0.022 | NW44: -0.01012230783 | NX44: 0.9538825331 | NY44: 0.022 | NZ44: -0.006059545407 | OA44: 0.9082469054 | OB44: 0.022 | OC44: 0.01987894394 | OF44: 0.022 | OG44: 0.022 | OH44: 0.02077350584 | OI44: 0.022 | OJ44: 0.0142582047 | OK44: 0.01300445147 | OL44: 0.01869134807 | OM44: 0.01987894394 | OO44: Yes | OQ44: 0.022 | OR44: 0.022 | OS44: 0.022 | OT44: 0.022 | OU44: 0.022 | OV44: 0.022 | OW44: 0.022 | OX44: 0.022 | OZ44: No
F45: 20 | G45: 0.04812106392 | H45: 104.8121064 | I45: -0.01258872342 | J45: 0.9827954605 | K45: 0.022 | M45: -0.02088225841 | N45: 102.6233929 | O45: 97.91177416 | P45: -0.01103898817 | Q45: 0.9629332085 | R45: 0.022 | S45: -0.002731105942 | T45: 0.823750715 | U45: 0.01596079645 | V45: 0.01596079645 | X45: -0.001105559999 | Y45: 102.5099366 | Z45: 97.80352682 | AA45: 99.889444 | AB45: -0.01301987317 | AC45: 0.9664892675 | AD45: 0.022 | AE45: -0.003005878031 | AF45: 0.8136367934 | AG45: 0.01530201097 | AH45: -0.005556348572 | AI45: 0.8978724369 | AJ45: 0.02179348364 | AK45: 0.01530201097 | AM45: -0.007285315101 | AN45: 101.7631194 | AO45: 97.09099731 | AP45: 99.16171793 | AQ45: 99.27146849 | AR45: -0.01440779849 | AS45: 0.9611630707 | AT45: 0.022 | AU45: -0.002181994615 | AV45: 0.7672969637 | AW45: 0.01253123839 | AX45: -0.005269529876 | AY45: 0.8735666296 | AZ45: 0.01962863514 | BA45: -0.004673526414 | BB45: 0.877656653 | BC45: 0.01997090549 | BD45: 0.01253123839 | BF45: 0.01526875019 | BG45: 103.316915 | BH45: 98.57345549 | BI45: 100.6757934 | BJ45: 100.7872197 | BK45: 101.526875 | BL45: -0.02438971681 | BM45: 0.9896617533 | BN45: 0.022 | BO45: -0.006433638729 | BP45: 0.8506956725 | BQ45: 0.01784343141 | BR45: -0.00935158685 | BS45: 0.9276744233 | BT45: 0.022 | BU45: -0.007978699573 | BV45: 0.925778663 | BW45: 0.022 | BX45: -0.007895535742 | BY45: 0.9395294424 | BZ45: 0.022 | CA45: 0.01784343141 | CC45: 0.03860527999 | CD45: 107.3054935 | CE45: 102.3789113 | CF45: 104.5624106 | CG45: 104.6781386 | CH45: 105.4463485 | CI45: 103.860528 | CJ45: -0.05652746739 | CK45: 0.9999617543 | CL45: 0.022 | CM45: -0.0212630378 | CN45: 0.9806648436 | CO45: 0.022 | CP45: -0.02140602655 | CQ45: 0.9918147253 | CR45: 0.022 | CS45: -0.01735627716 | CT45: 0.9884651918 | CU45: 0.022 | CV45: -0.01574391409 | CW45: 0.9895458587 | CX45: 0.022 | CY45: -0.01122932571 | CZ45: 0.9745167547 | DA45: 0.022 | DB45: 0.022 | DD45: -0.02218419753 | DE45: 104.9250072 | DF45: 100.1077173 | DG45: 102.2427774 | DH45: 102.3559381 | DI45: 103.1071058 | DJ45: 101.5564655 | DK45: 97.78158025 | DL45: -0.08925007214 | DM45: 0.9999908257 | DN45: 0.022 | DO45: -0.02053858674 | DP45: 0.9496720934 | DQ45: 0.022 | DR45: -0.02080925816 | DS45: 0.9789207479 | DT45: 0.022 | DU45: -0.0158898452 | DV45: 0.9712228129 | DW45: 0.022 | DX45: -0.01421421167 | DY45: 0.9745855792 | DZ45: 0.022 | EA45: -0.009260775884 | EB45: 0.9438343389 | EC45: 0.022 | ED45: -0.002545114639 | EE45: 0.8178987043 | EF45: 0.01557681913 | EG45: 0.01557681913 | EI45: -0.02743277977 | EJ45: 102.0466226 | EK45: 97.36148439 | EL45: 99.43797385 | EM45: 99.54803017 | EN45: 100.2785913 | EO45: 98.77048938 | EP45: 95.09915969 | EQ45: 97.25672202 | ER45: -0.01361484385 | ES45: 0.801259682 | ET45: 0.01452523984 | EU45: -0.01718986925 | EV45: 0.9231262578 | EW45: 0.022 | EX45: -0.01182676724 | EY45: 0.9073753394 | EZ45: 0.022 | FA45: -0.01069647827 | FB45: 0.9232032167 | FC45: 0.022 | FD45: -0.005540978755 | FE45: 0.8580005463 | FF45: 0.01839203796 | FG45: 0.001501400516 | FH45: 0.6515600154 | FI45: 0.006687037636 | FJ45: -0.001795317176 | FK45: 0.7930970755 | FL45: 0.01402886923 | FM45: 0.006687037636 | FO45: 0.009003244863 | FP45: 98.23805367 | FQ45: 100.3332383 | FR45: 100.4442855 | FS45: 101.181424 | FT45: 99.65974428 | FU45: 95.95536071 | FV45: 98.13234811 | FW45: 100.9003245 | FX45: -0.04333238278 | FY45: 0.9859871517 | FZ45: 0.022 | GA45: -0.02222142731 | GB45: 0.9599287302 | GC45: 0.022 | GD45: -0.01727141339 | GE45: 0.9602349501 | GF45: 0.022 | GG45: -0.009149360697 | GH45: 0.9008317712 | GI45: 0.022 | GJ45: 8.92785768e-05 | GK45: 0.6911536471 | GL45: 0.008568291137 | GM45: -0.00355391351 | GN45: 0.8295520377 | GO45: 0.01634949694 | GP45: -0.007000463552 | GQ45: 0.9255169201 | GR45: 0.022 | GS45: 0.008568291137 | GU45: 0.003962202829 | GV45: 100.7307789 | GW45: 100.8422661 | GX45: 101.5823253 | GY45: 100.0546164 | GZ45: 96.33555531 | HA45: 98.52116837 | HB45: 101.300112 | HC45: 100.3962203 | HD45: -0.04842266094 | HE45: 0.9924151633 | HF45: 0.022 | HG45: -0.02791162671 | HH45: 0.9828122599 | HI45: 0.022 | HJ45: -0.013515388 | HK45: 0.9275395819 | HL45: 0.022 | HM45: -0.0008388882832 | HN45: 0.702224091 | HO45: 0.009112217472 | HP45: -0.005042336747 | HQ45: 0.8463011385 | HR45: 0.01752200085 | HS45: -0.008833520062 | HT45: 0.9382478806 | HU45: 0.022 | HV45: -0.00628031469 | HW45: 0.9125437148 | HX45: 0.022 | HY45: 0.009112217472 | IA45: 5.57988957e-05 | IB45: 100.847893 | IC45: 101.5879935 | ID45: 100.0601993 | IE45: 96.34093073 | IF45: 98.52666575 | IG45: 101.3057645 | IH45: 100.4018223 | II45: 100.0055799 | IJ45: -0.05587993524 | IK45: 0.9971736023 | IL45: 0.022 | IM45: -0.02030099668 | IN45: 0.948068732 | IO45: 0.022 | IP45: -0.00113643577 | IQ45: 0.6854943865 | IR45: 0.008293555106 | IS45: -0.006316664364 | IT45: 0.8482102689 | IU45: 0.01766088025 | IV45: -0.01061152894 | IW45: 0.9437150522 | IX45: 0.022 | IY45: -0.007336370469 | IZ45: 0.9152072589 | JA45: 0.022 | JB45: -0.005722256985 | JC45: 0.9013833053 | JD45: 0.022 | JE45: 0.008293555106 | JG45: -0.007726343781 | JH45: 100.8030898 | JI45: 99.28709984 | JJ45: 95.59656758 | JK45: 97.76541485 | JL45: 100.5230413 | JM45: 99.62608329 | JN45: 99.2329024 | JO45: 99.22736562 | JP45: -0.03287099838 | JQ45: 0.9574116854 | JR45: 0.022 | JS45: 0.002017162101 | JT45: 0.5760286631 | JU45: 0.003291611454 | JV45: -0.005884716182 | JW45: 0.804263508 | JX45: 0.01471098156 | JY45: -0.01130760327 | JZ45: 0.9308975963 | KA45: 0.022 | KB45: -0.007252166572 | KC45: 0.8934898979 | KD45: 0.02137774091 | KE45: -0.005388170666 | KF45: 0.8762868962 | KG45: 0.01985539886 | KH45: -0.004610522317 | KI45: 0.8761134181 | KJ45: 0.01984083411 | KK45: 0.003291611454 | KM45: 0.003592969178 | KN45: 99.64383533 | KO45: 95.9400431 | KP45: 98.11668298 | KQ45: 100.8842175 | KR45: 99.98403673 | KS45: 99.58944316 | KT45: 99.58388649 | KU45: 100.3592969 | KV45: 0.0005995689929 | KW45: 0.5792673704 | KX45: 0.003433674559 | KY45: -0.01058341488 | KZ45: 0.8417653724 | LA45: 0.01719655866 | LB45: -0.01628072499 | LC45: 0.953074326 | LD45: 0.022 | LE45: -0.009960091831 | LF45: 0.913086359 | LG45: 0.022 | LH45: -0.007178886318 | LI45: 0.8921151496 | LJ45: 0.02124988056 | LK45: -0.005973144147 | LL45: 0.8890998035 | LM45: 0.02097348617 | LN45: -0.006227567025 | LO45: 0.9115310058 | LP45: 0.022 | LQ45: 0.003433674559 | LS45: 0.009440193738 | LT45: 96.84573569 | LU45: 99.04292347 | LV45: 101.8365841 | LW45: 100.9279054 | LX45: 100.5295868 | LY45: 100.5239777 | LZ45: 101.3067081 | MA45: 100.9440194 | MB45: -0.03042923473 | MC45: 0.9463468752 | MD45: 0.022 | ME45: -0.02918292028 | MF45: 0.986002675 | MG45: 0.022 | MH45: -0.01642635137 | MI45: 0.9541875253 | MJ45: 0.022 | MK45: -0.01132396699 | ML45: 0.9310951417 | MM45: 0.022 | MN45: -0.00904795534 | MO45: 0.9233290989 | MP45: 0.022 | MQ45: -0.00884451354 | MR45: 0.9383968676 | MS45: 0.022 | MT45: -0.00706288482 | MU45: 0.92656825 | MV45: 0.022 | MW45: 0.022 | MY45: 0.06777207676 | MZ45: 105.7552681 | NA45: 108.7382608 | NB45: 107.7679992 | NC45: 107.3426857 | ND45: 107.3366964 | NE45: 108.1724741 | NF45: 107.7852052 | NG45: 106.7772077 | NH45: -0.1273826085 | NI45: 0.9999999991 | NJ45: 0.022 | NK45: -0.05883999581 | NL45: 0.9999796782 | NM45: 0.022 | NN45: -0.03780895223 | NO45: 0.9996246102 | NP45: 0.022 | NQ45: -0.028341741 | NR45: 0.9987815456 | NS45: 0.022 | NT45: -0.02434494825 | NU45: 0.9985709647 | NV45: 0.022 | NW45: -0.01964200867 | NX45: 0.9969620059 | NY45: 0.022 | NZ45: -0.01539601097 | OA45: 0.9929135939 | OB45: 0.022 | OC45: 0.022 | OF45: 0.006687037636 | OG45: 0.008568291137 | OH45: 0.009112217472 | OI45: 0.008293555106 | OJ45: 0.003291611454 | OK45: 0.003433674559 | OL45: 0.022 | OM45: 0.022 | OO45: Yes | OQ45: 0.022 | OR45: 0.022 | OS45: 0.022 | OT45: 0.022 | OU45: 0.022 | OV45: 0.022 | OW45: 0.022 | OX45: 0.022 | OZ45: No
F46: 21 | G46: -0.008915536499 | H46: 99.10844635 | I46: -0.004440637643 | J46: 0.8718845021 | K46: 0.01949010878 | M46: -0.00785002095 | N46: 98.33044297 | O46: 99.21499791 | P46: -0.003884071617 | Q46: 0.8387067034 | R46: 0.01698054365 | S46: -0.00459285415 | T46: 0.8756782148 | U46: 0.01980435835 | V46: 0.01698054365 | X46: -0.01676048568 | Y46: 96.68237699 | Z46: 97.55210635 | AA46: 98.32395143 | AB46: -0.001364753978 | AC46: 0.7411549409 | AD46: 0.01110530621 | AE46: -0.002586843923 | AF46: 0.8008671204 | AG46: 0.01450109139 | AH46: -0.003319930618 | AI46: 0.8414818314 | AJ46: 0.01717641953 | AK46: 0.01110530621 | AM46: 0.006977204528 | AN46: 97.35694971 | AO46: 98.23274735 | AP46: 99.00997775 | AQ46: 100.6977205 | AR46: -0.003392374269 | AS46: 0.7772513392 | AT46: 0.01309720887 | AU46: -0.004465494704 | AV46: 0.8319922034 | AW46: 0.01651551929 | AX46: -0.005016629586 | AY46: 0.8676296271 | AZ46: 0.01914525493 | BA46: -0.006711029218 | BB46: 0.9204914569 | BC46: 0.022 | BD46: 0.01309720887 | BF46: 0.01066973548 | BG46: 98.39572261 | BH46: 99.28086478 | BI46: 100.066388 | BJ46: 101.7721385 | BK46: 101.0669735 | BL46: -0.007985742025 | BM46: 0.8466952109 | BN46: 0.01755057351 | BO46: -0.008202161953 | BP46: 0.8849684908 | BQ46: 0.02060340342 | BR46: -0.008132776047 | BS46: 0.9090304323 | BT46: 0.022 | BU46: -0.009620230822 | BV46: 0.9482187862 | BW46: 0.022 | BX46: -0.007238533639 | BY46: 0.9294657235 | BZ46: 0.022 | CA46: 0.01755057351 | CC46: -0.01316710445 | CD46: 97.10013585 | CE46: 97.97362327 | CF46: 98.74880344 | CG46: 100.4320941 | CH46: 99.73621415 | CI46: 98.68328956 | CJ46: -0.005500679255 | CK46: 0.750165049 | CL46: 0.01158767498 | CM46: -0.006578744217 | CN46: 0.8190076252 | CO46: 0.01564897879 | CP46: -0.006872008602 | CQ46: 0.8597670908 | CR46: 0.01852755507 | CS46: -0.008864188232 | CT46: 0.9206043712 | CU46: 0.022 | CV46: -0.006227023585 | CW46: 0.894354204 | CX46: 0.02145873787 | CY46: -0.003833270793 | CZ46: 0.8559506325 | DA46: 0.01823620556 | DB46: 0.01158767498 | DD46: -0.00241796334 | DE46: 96.86535128 | DF46: 97.73672664 | DG46: 98.51003245 | DH46: 100.189253 | DI46: 99.49505564 | DJ46: 98.44467698 | DK46: 99.75820367 | DL46: -0.008653512822 | DM46: 0.7325732591 | DN46: 0.01065389266 | DO46: -0.008683633179 | DP46: 0.8104666561 | DQ46: 0.01510011781 | DR46: -0.008366774848 | DS46: 0.8536829306 | DT46: 0.01806554944 | DU46: -0.01047313249 | DV46: 0.9202341644 | DW46: 0.022 | DX46: -0.006990111283 | DY46: 0.8885149539 | DZ46: 0.0209205034 | EA46: -0.004074461632 | EB46: 0.843837279 | EC46: 0.01734444503 | ED46: -0.00536886238 | EE46: 0.8937965114 | EF46: 0.02140642013 | EG46: 0.01065389266 | EI46: 0.01861873105 | EJ46: 98.66886121 | EK46: 99.55646046 | EL46: 100.3441643 | EM46: 102.0546498 | EN46: 101.3475273 | EO46: 100.2775919 | EP46: 101.6155748 | EQ46: 101.8618731 | ER46: -0.03556460463 | ES46: 0.9673971822 | ET46: 0.022 | EU46: -0.02172082127 | EV46: 0.9570724499 | EW46: 0.022 | EX46: -0.02018216583 | EY46: 0.9762928963 | EZ46: 0.022 | FA46: -0.01336881831 | FB46: 0.95252969 | FC46: 0.022 | FD46: -0.008555183887 | FE46: 0.9158584406 | FF46: 0.022 | FG46: -0.009359291384 | FH46: 0.945064126 | FI46: 0.022 | FJ46: -0.008374104436 | FK46: 0.9461249772 | FL46: 0.022 | FM46: 0.022 | FO46: 0.002028030789 | FP46: 99.75836403 | FQ46: 100.5476653 | FR46: 102.2616197 | FS46: 101.5530632 | FT46: 100.480958 | FU46: 101.8216543 | FV46: 102.0684521 | FW46: 100.2028031 | FX46: -0.04547665309 | FY46: 0.9891160418 | FZ46: 0.022 | GA46: -0.03130809861 | GB46: 0.9902014315 | GC46: 0.022 | GD46: -0.01851021076 | GE46: 0.9679115598 | GF46: 0.022 | GG46: -0.01120239497 | GH46: 0.9296170662 | GI46: 0.022 | GJ46: -0.01164330869 | GK46: 0.9546404694 | GL46: 0.022 | GM46: -0.01011408687 | GN46: 0.953793976 | GO46: 0.022 | GP46: -0.006004004398 | GQ46: 0.907141696 | GR46: 0.022 | GS46: 0.022 | GU46: 0.001437142383 | GV46: 100.6921666 | GW46: 102.4085842 | GX46: 101.6990094 | GY46: 100.6253634 | GZ46: 101.9679866 | HA46: 102.215139 | HB46: 100.3468088 | HC46: 100.1437142 | HD46: -0.0640858423 | HE46: 0.9991560263 | HF46: 0.022 | HG46: -0.0284950472 | HH46: 0.9843462863 | HI46: 0.022 | HJ46: -0.0154178781 | HK46: 0.9460266502 | HL46: 0.022 | HM46: -0.0149199664 | HN46: 0.964922301 | HO46: 0.022 | HP46: -0.01243027804 | HQ46: 0.9617698369 | HR46: 0.022 | HS46: -0.00724468129 | HT46: 0.9136104567 | HU46: 0.022 | HV46: -0.005919591769 | HW46: 0.9054431692 | HX46: 0.022 | HY46: 0.022 | IA46: -0.01081484169 | IB46: 101.3010516 | IC46: 100.5991508 | ID46: 99.53711606 | IE46: 100.8652189 | IF46: 101.1096985 | IG46: 99.26157392 | IH46: 99.06067582 | II46: 98.91851583 | IJ46: -0.04599150754 | IK46: 0.9897697892 | IL46: 0.022 | IM46: -0.01768558028 | IN46: 0.9276189064 | IO46: 0.022 | IP46: -0.01621739643 | IQ46: 0.9525835087 | IR46: 0.022 | IS46: -0.01277424618 | IT46: 0.9469356054 | IU46: 0.022 | IV46: -0.006523147846 | IW46: 0.8792420983 | IX46: 0.02010573947 | IY46: -0.005101126371 | IZ46: 0.8696342542 | JA46: 0.01930675761 | JB46: -0.00416930833 | JC46: 0.8649243226 | JD46: 0.01892995193 | JE46: 0.01892995193 | JG46: -0.01442564957 | JH46: 99.14794266 | JI46: 98.1012285 | JJ46: 99.41017263 | JK46: 99.65112539 | JL46: 97.82966124 | JM46: 97.63166123 | JN46: 97.49155199 | JO46: 98.55743504 | JP46: -0.021012285 | JQ46: 0.8814718463 | JR46: 0.02029749383 | JS46: -0.01705086313 | JT46: 0.921829144 | JU46: 0.022 | JV46: -0.01217041798 | JW46: 0.911783521 | JX46: 0.022 | JY46: -0.004574153105 | JZ46: 0.8079529457 | KA46: 0.01494150273 | KB46: -0.003263322454 | KC46: 0.7995120456 | KD46: 0.01441795338 | KE46: -0.002485919976 | KF46: 0.7977145549 | KG46: 0.0143081907 | KH46: -0.003653478633 | KI46: 0.850987876 | KJ46: 0.01786502631 | KK46: 0.0143081907 | KM46: -0.003319122254 | KN46: 97.77561853 | KO46: 99.08021811 | KP46: 99.32037113 | KQ46: 97.50495264 | KR46: 97.30760981 | KS46: 97.16796561 | KT46: 98.23031087 | KU46: 99.66808777 | KV46: -0.03080218109 | KW46: 0.9481709287 | KX46: 0.022 | KY46: -0.01660185563 | KZ46: 0.9175258145 | LA46: 0.022 | LB46: -0.005016508787 | LC46: 0.7848257841 | LD46: 0.01353757633 | LE46: -0.003269024519 | LF46: 0.7738931274 | LG46: 0.01290470823 | LH46: -0.002335931212 | LI46: 0.772051513 | LJ46: 0.01279982898 | LK46: -0.003717184778 | LL46: 0.8341200731 | LM46: 0.01666156499 | LN46: -0.005240125392 | LO46: 0.8909305566 | LP46: 0.02114064382 | LQ46: 0.01279982898 | LS46: -0.01315259733 | LT46: 97.7770559 | LU46: 98.01405028 | LV46: 96.22250926 | LW46: 96.027762 | LX46: 95.88995448 | LY46: 96.93832714 | LZ46: 98.35719355 | MA46: 98.68474027 | MB46: -0.02014050278 | MC46: 0.8734288244 | MD46: 0.01961723855 | ME46: -0.001112546283 | MF46: 0.6528141709 | MG46: 0.00674529694 | MH46: -9.25399957e-05 | MI46: 0.6557654745 | MJ46: 0.006882702381 | MK46: 0.0002751137975 | ML46: 0.6662330754 | MM46: 0.007373696587 | MN46: -0.001876654285 | MO46: 0.7577050432 | MP46: 0.01199847658 | MQ46: -0.003928655916 | MR46: 0.8399178979 | MS46: 0.01706575972 | MT46: -0.003835343239 | MU46: 0.8560071802 | MV46: 0.0182404841 | MW46: 0.00674529694 | MY46: 0.005456037193 | MZ46: 98.54881858 | NA46: 96.74750285 | NB46: 96.55169304 | NC46: 96.41313364 | ND46: 97.46722626 | NE46: 98.89383406 | NF46: 99.22316788 | NG46: 100.5456037 | NH46: -0.00747502846 | NI46: 0.7146587895 | NJ46: 0.009734316429 | NK46: -0.002758465199 | NL46: 0.6910162646 | NM46: 0.008561595961 | NN46: -0.00137711213 | NO46: 0.6921899352 | NP46: 0.008618835568 | NQ46: -0.003668065653 | NR46: 0.7846533926 | NS46: 0.01352745513 | NT46: -0.005787668112 | NU46: 0.8635596421 | NV46: 0.01882246479 | NW46: -0.005371946468 | NX46: 0.8759173361 | NY46: 0.01982438879 | NZ46: -0.006493719599 | OA46: 0.9165526891 | OB46: 0.022 | OC46: 0.008561595961 | OF46: 0.022 | OG46: 0.022 | OH46: 0.022 | OI46: 0.01892995193 | OJ46: 0.0143081907 | OK46: 0.01279982898 | OL46: 0.00674529694 | OM46: 0.008561595961 | OO46: Yes | OQ46: 0.022 | OR46: 0.01949010878 | OS46: 0.01698054365 | OT46: 0.01110530621 | OU46: 0.01309720887 | OV46: 0.01755057351 | OW46: 0.01158767498 | OX46: 0.01065389266 | OZ46: Yes
F47: 22 | G47: 0.01534410864 | H47: 101.5344109 | I47: -0.007906301235 | J47: 0.939684458 | K47: 0.022 | M47: -0.01432332501 | N47: 100.0801005 | O47: 98.5676675 | P47: -0.006800167497 | Q47: 0.905549279 | R47: 0.022 | S47: -0.003668096427 | T47: 0.8513955822 | U47: 0.01789520461 | V47: 0.01789520461 | X47: 0.002430914701 | Y47: 100.3233867 | Z47: 98.80727709 | AA47: 100.2430915 | AB47: -0.008646773371 | AC47: 0.9172868312 | AD47: 0.022 | AE47: -0.004678795152 | AF47: 0.8594030767 | AG47: 0.0184995361 | AH47: -0.006061559243 | AI47: 0.9082867948 | AJ47: 0.022 | AK47: 0.0184995361 | AM47: 0.009710158021 | AN47: 101.2975426 | AO47: 99.76671137 | AP47: 101.2164677 | AQ47: 100.9710158 | AR47: -0.01324385656 | AS47: 0.9513949747 | AT47: 0.022 | AU47: -0.007533422731 | AV47: 0.8986488406 | AW47: 0.02186848034 | AX47: -0.008694112881 | AY47: 0.9363341012 | AZ47: 0.022 | BA47: -0.007101451146 | BB47: 0.927212108 | BC47: 0.022 | BD47: 0.02186848034 | BF47: 0.009807242306 | BG47: 102.2909922 | BH47: 100.7451477 | BI47: 102.2091222 | BJ47: 101.961263 | BK47: 100.9807242 | BL47: -0.0209699739 | BM47: 0.9795531015 | BN47: 0.022 | BO47: -0.01186286919 | BP47: 0.9373606076 | BQ47: 0.022 | BR47: -0.01241824431 | BS47: 0.9616681397 | BT47: 0.022 | BU47: -0.009935438367 | BV47: 0.9518356068 | BW47: 0.022 | BX47: -0.007115320329 | BY47: 0.9274425919 | BZ47: 0.022 | CA47: 0.022 | CC47: -0.008613038405 | CD47: 101.4099559 | CE47: 99.87742585 | CF47: 101.3287911 | CG47: 101.0830667 | CH47: 100.1109734 | CI47: 99.13869616 | CJ47: -0.02704977962 | CK47: 0.9803120966 | CL47: 0.022 | CM47: -0.01292475284 | CN47: 0.9209083984 | CO47: 0.022 | CP47: -0.01332197765 | CQ47: 0.9521068656 | CR47: 0.022 | CS47: -0.01016613349 | CT47: 0.938399695 | CU47: 0.022 | CV47: -0.006851622291 | CW47: 0.9065098316 | CX47: 0.022 | CY47: -0.004483851656 | CZ47: 0.8729696129 | DA47: 0.01957932371 | DB47: 0.01957932371 | DD47: 0.005581117162 | DE47: 101.9759368 | DF47: 100.4348535 | DG47: 101.8943189 | DH47: 101.6472232 | DI47: 100.6697044 | DJ47: 99.69200084 | DK47: 100.5581117 | DL47: -0.0597593677 | DM47: 0.998377945 | DN47: 0.022 | DO47: -0.02217426734 | DP47: 0.9596664165 | DQ47: 0.022 | DR47: -0.01964772971 | DS47: 0.9738408545 | DT47: 0.022 | DU47: -0.01411805796 | DV47: 0.9588950573 | DW47: 0.022 | DX47: -0.009339408892 | DY47: 0.9275038545 | DZ47: 0.022 | EA47: -0.00615333473 | EB47: 0.8928479976 | EC47: 0.0213178929 | ED47: -0.006511588166 | EE47: 0.9168819919 | EF47: 0.022 | EG47: 0.0213178929 | EI47: -0.007954325128 | EJ47: 101.164787 | EK47: 99.63596199 | EL47: 101.0838184 | EM47: 100.8386881 | EN47: 99.86894489 | EO47: 98.89901825 | EP47: 99.7582398 | EQ47: 99.20456749 | ER47: -0.03635961988 | ES47: 0.9699447836 | ET47: 0.022 | EU47: -0.02541909186 | EV47: 0.9747328453 | EW47: 0.022 | EX47: -0.01612896041 | EY47: 0.9518912269 | EZ47: 0.022 | FA47: -0.009672362216 | FB47: 0.9088736716 | FC47: 0.022 | FD47: -0.005798036501 | FE47: 0.8637899859 | FF47: 0.01884055569 | FG47: -0.006263733002 | FH47: 0.895098809 | FI47: 0.02152890231 | FJ47: -0.004577953553 | FK47: 0.8753103522 | FL47: 0.0197735962 | FM47: 0.01884055569 | FO47: 0.03934010672 | FP47: 103.5556514 | FQ47: 105.0604666 | FR47: 104.8056929 | FS47: 103.7977998 | FT47: 102.7897162 | FU47: 103.6827396 | FV47: 103.1072858 | FW47: 103.9340107 | FX47: -0.09060466575 | FY47: 0.9999930573 | FZ47: 0.022 | GA47: -0.04402846438 | GB47: 0.9991882992 | GC47: 0.022 | GD47: -0.02599266612 | GE47: 0.9926571751 | GF47: 0.022 | GG47: -0.01697429046 | GH47: 0.9771233834 | GI47: 0.022 | GJ47: -0.0153654792 | GK47: 0.9807708392 | GL47: 0.022 | GM47: -0.01184547627 | GN47: 0.9696437041 | GO47: 0.022 | GP47: -0.01133430096 | GQ47: 0.9752573437 | GR47: 0.022 | GS47: 0.022 | GU47: 0.008085431632 | GV47: 105.9099258 | GW47: 105.6530921 | GX47: 104.6370499 | GY47: 103.6208154 | GZ47: 104.5210593 | HA47: 103.9409527 | HB47: 104.774362 | HC47: 100.8085432 | HD47: -0.0965309214 | HE47: 0.9999980349 | HF47: 0.022 | HG47: -0.04318524925 | HH47: 0.9990240832 | HI47: 0.022 | HJ47: -0.02540271802 | HK47: 0.991657881 | HL47: 0.022 | HM47: -0.02130264826 | HN47: 0.9916021517 | HO47: 0.022 | HP47: -0.01588190534 | HQ47: 0.9830989864 | HR47: 0.022 | HS47: -0.01462393668 | HT47: 0.9855532963 | HU47: 0.022 | HV47: -0.006869347376 | HW47: 0.9232712291 | HX47: 0.022 | HY47: 0.022 | IA47: -0.002185587687 | IB47: 105.422178 | IC47: 104.4083564 | ID47: 103.394343 | IE47: 104.2926194 | IF47: 103.7137806 | IG47: 104.5453685 | IH47: 100.5882173 | II47: 99.78144123 | IJ47: -0.08408356403 | IK47: 0.9999743093 | IL47: 0.022 | IM47: -0.03697171514 | IN47: 0.9965125893 | IO47: 0.022 | IP47: -0.02764206455 | IQ47: 0.994913549 | IR47: 0.022 | IS47: -0.01928445151 | IT47: 0.9863666157 | IU47: 0.022 | IV47: -0.01709073691 | IW47: 0.9876252529 | IX47: 0.022 | IY47: -0.007647028754 | IZ47: 0.9204530861 | JA47: 0.022 | JB47: -0.005402058902 | JC47: 0.8945266333 | JD47: 0.02147495405 | JE47: 0.02147495405 | JG47: 0.005508192658 | JH47: 104.9834577 | JI47: 103.963859 | JJ47: 104.8670832 | JK47: 104.2850561 | JL47: 105.1212245 | JM47: 101.1422765 | JN47: 100.3310566 | JO47: 100.5508193 | JP47: -0.07963858989 | JQ47: 0.9999402644 | JR47: 0.022 | JS47: -0.04433541602 | JT47: 0.9992414713 | JU47: 0.022 | JV47: -0.02761685363 | JW47: 0.9948843328 | JX47: 0.022 | JY47: -0.02280306121 | JZ47: 0.9942569433 | KA47: 0.022 | KB47: -0.01028455306 | KC47: 0.9398497611 | KD47: 0.022 | KE47: -0.007218427722 | KF47: 0.9131491257 | KG47: 0.022 | KH47: -0.00650117038 | KI47: 0.9166901198 | KJ47: 0.022 | KK47: 0.022 | KM47: 0.01415462318 | KN47: 105.4354282 | KO47: 106.3514373 | KP47: 105.7611718 | KQ47: 106.6091758 | KR47: 102.5739073 | KS47: 101.7512049 | KT47: 101.9740782 | KU47: 101.4154623 | KV47: -0.1035143725 | KW47: 0.999999594 | KX47: 0.022 | KY47: -0.0488058588 | KZ47: 0.9997286776 | LA47: 0.022 | LB47: -0.03536391935 | LC47: 0.9992581029 | LD47: 0.022 | LE47: -0.01643476836 | LF47: 0.9743293085 | LG47: 0.022 | LH47: -0.01150240987 | LI47: 0.953257685 | LJ47: 0.022 | LK47: -0.009956797038 | LL47: 0.9520731824 | LM47: 0.022 | LN47: -0.00773637474 | LO47: 0.9372010864 | LP47: 0.022 | LQ47: 0.022 | LS47: -0.0117295731 | LT47: 105.1039803 | LU47: 104.5206384 | LV47: 105.3586957 | LW47: 101.3707592 | LX47: 100.5577067 | LY47: 100.7779658 | LZ47: 100.2259022 | MA47: 98.82704269 | MB47: -0.08520638364 | MC47: 0.9999793684 | MD47: 0.022 | ME47: -0.04679347842 | MF47: 0.9995648505 | MG47: 0.022 | MH47: -0.01790253066 | MI47: 0.964314268 | MJ47: 0.022 | MK47: -0.01139426684 | ML47: 0.9319388632 | MM47: 0.022 | MN47: -0.009555931635 | MO47: 0.9304908838 | MP47: 0.022 | MQ47: -0.007043170398 | MR47: 0.9100222279 | MS47: 0.022 | MT47: -0.004038632414 | MU47: 0.8614813296 | MV47: 0.01866017272 | MW47: 0.01866017272 | MY47: -0.002393977415 | MZ47: 104.2704183 | NA47: 105.1064693 | NB47: 101.1280799 | NC47: 100.3169739 | ND47: 100.5367056 | NE47: 99.98596369 | NF47: 98.59045298 | NG47: 99.76060226 | NH47: -0.09106469347 | NI47: 0.9999936896 | NJ47: 0.022 | NK47: -0.02564039946 | NL47: 0.975560148 | NM47: 0.022 | NN47: -0.01438991286 | NO47: 0.9365647374 | NP47: 0.022 | NQ47: -0.01134176411 | NR47: 0.9313094967 | NS47: 0.022 | NT47: -0.007971927385 | NU47: 0.9063250814 | NV47: 0.022 | NW47: -0.004317421636 | NX47: 0.8502266237 | NY47: 0.01780882591 | NZ47: -0.005372288941 | OA47: 0.8938720435 | OB47: 0.02141349424 | OC47: 0.01780882591 | OF47: 0.01884055569 | OG47: 0.022 | OH47: 0.022 | OI47: 0.02147495405 | OJ47: 0.022 | OK47: 0.022 | OL47: 0.01866017272 | OM47: 0.01780882591 | OO47: Yes | OQ47: 0.022 | OR47: 0.022 | OS47: 0.022 | OT47: 0.022 | OU47: 0.022 | OV47: 0.022 | OW47: 0.022 | OX47: 0.022 | OZ47: No
F48: 23 | G48: -0.01556639325 | H48: 98.44336067 | I48: -0.003490515249 | J48: 0.846392074 | K48: 0.01752858992 | M48: -0.01125353901 | N48: 97.33552448 | O48: 98.8746461 | P48: -0.002225874126 | Q48: 0.7894551092 | R48: 0.01381115285 | S48: -0.004106637285 | T48: 0.8632804852 | U48: 0.01880056814 | V48: 0.01381115285 | X48: -0.006918953006 | Y48: 96.66206456 | Z48: 98.19053707 | AA48: 99.3081047 | AB48: -0.001324129112 | AC48: 0.739816902 | AD48: 0.01103442341 | AE48: -0.003650895116 | AF48: 0.832275036 | AG48: 0.01653486245 | AH48: -0.004725863856 | AI48: 0.8789283174 | AJ48: 0.02007895565 | AK48: 0.01103442341 | AM48: -0.004649490443 | AN48: 96.21263521 | AO48: 97.73400111 | AP48: 98.84637262 | AQ48: 99.53505096 | AR48: -0.000531588026 | AS48: 0.6924727389 | AT48: 0.008632642142 | AU48: -0.003468002212 | AV48: 0.805293703 | AW48: 0.01477508131 | AX48: -0.004743954359 | AY48: 0.861016183 | AZ48: 0.01862407795 | BA48: -0.005050072794 | BB48: 0.8865986514 | BC48: 0.02074828199 | BD48: 0.008632642142 | BF48: 0.0123443711 | BG48: 97.40031968 | BH48: 98.94046588 | BI48: 100.0665689 | BJ48: 100.7637486 | BK48: 101.2344371 | BL48: -0.004667732281 | BM48: 0.7767122362 | BN48: 0.01306619566 | BO48: -0.007351164712 | BP48: 0.8692458195 | BQ48: 0.01927533007 | BR48: -0.008133137843 | BS48: 0.9090364514 | BT48: 0.022 | BU48: -0.007939580937 | BV48: 0.9251650849 | BW48: 0.022 | BX48: -0.0074777673 | BY48: 0.9332697049 | BZ48: 0.022 | CA48: 0.01306619566 | CC48: -0.009799801054 | CD48: 96.44581593 | CE48: 97.970869 | CF48: 99.08593645 | CG48: 99.77628387 | CH48: 100.2423598 | CI48: 99.02001989 | CJ48: -0.002229079644 | CK48: 0.6789278628 | CL48: 0.007977410157 | CM48: -0.006569563343 | CN48: 0.8188172429 | CO48: 0.0156365706 | CP48: -0.007714841135 | CQ48: 0.8761378741 | CR48: 0.01984288651 | CS48: -0.007552567746 | CT48: 0.8989932729 | CU48: 0.02190188481 | CV48: -0.007070599611 | CW48: 0.9105170601 | CX48: 0.022 | CY48: -0.004314314135 | CZ48: 0.8686756464 | DA48: 0.01922931507 | DB48: 0.007977410157 | DD48: 0.01744138278 | DE48: 98.12796432 | DF48: 99.67961643 | DG48: 100.8141322 | DH48: 101.5165202 | DI48: 101.9907251 | DJ48: 100.747066 | DK48: 101.7441383 | DL48: -0.02127964321 | DM48: 0.8838644945 | DN48: 0.02050611456 | DO48: -0.01839808215 | DP48: 0.9337203474 | DQ48: 0.022 | DR48: -0.01604710733 | DS48: 0.9512432916 | DT48: 0.022 | DU48: -0.01379130058 | DV48: 0.9562096592 | DW48: 0.022 | DX48: -0.01198145027 | DY48: 0.9578249736 | DZ48: 0.022 | EA48: -0.007911776607 | EB48: 0.9247266248 | EC48: 0.022 | ED48: -0.008205911825 | EE48: 0.9438751162 | EF48: 0.022 | EG48: 0.02050611456 | EI48: 0.02075394645 | EJ48: 100.1645068 | EK48: 101.7483619 | EL48: 102.9064233 | EM48: 103.6233887 | EN48: 104.1074352 | EO48: 102.8379652 | EP48: 103.8557307 | EQ48: 102.0753946 | ER48: -0.05748361851 | ES48: 0.9977454861 | ET48: 0.022 | EU48: -0.0345321165 | EV48: 0.9944766917 | EW48: 0.022 | EX48: -0.02541129552 | EY48: 0.9916732257 | EZ48: 0.022 | FA48: -0.02026858795 | FB48: 0.989194732 | FC48: 0.022 | FD48: -0.01367593035 | FE48: 0.9711658772 | FF48: 0.022 | FG48: -0.01309288446 | FH48: 0.9780198821 | FI48: 0.022 | FJ48: -0.008679135207 | FK48: 0.9500225457 | FL48: 0.022 | FM48: 0.022 | FO48: 0.008592609823 | FP48: 102.6226458 | FQ48: 103.790658 | FR48: 104.513784 | FS48: 105.0019898 | FT48: 103.7216117 | FU48: 104.7481224 | FV48: 102.9524887 | FW48: 100.859261 | FX48: -0.07790658044 | FY48: 0.999917878 | FZ48: 0.022 | GA48: -0.04256892002 | GB48: 0.9988853294 | GC48: 0.022 | GD48: -0.0300066325 | GE48: 0.9970748649 | GF48: 0.022 | GG48: -0.01930402921 | GH48: 0.9864285719 | GI48: 0.022 | GJ48: -0.01749624489 | GK48: 0.9888876643 | GL48: 0.022 | GM48: -0.01158748114 | GN48: 0.9676161018 | GO48: 0.022 | GP48: -0.006941801403 | GQ48: 0.9245184662 | GR48: 0.022 | GS48: 0.022 | GU48: 0.01374598514 | GV48: 105.2173629 | GW48: 105.9504289 | GX48: 106.4453455 | GY48: 105.1473674 | GZ48: 106.1879886 | HA48: 104.3676721 | HB48: 102.2456709 | HC48: 101.3745985 | HD48: -0.09950428925 | HE48: 0.9999989839 | HF48: 0.022 | HG48: -0.05222672771 | HH48: 0.9998827749 | HI48: 0.022 | HJ48: -0.03049122473 | HK48: 0.9973986603 | HL48: 0.022 | HM48: -0.02546997145 | HN48: 0.997197163 | HO48: 0.022 | HP48: -0.01673534413 | HQ48: 0.9864185385 | HR48: 0.022 | HS48: -0.01040945147 | HT48: 0.9568910737 | HU48: 0.022 | HV48: -0.007677997877 | HW48: 0.9363297936 | HX48: 0.022 | HY48: 0.022 | IA48: 0.01859821004 | IB48: 107.9209173 | IC48: 108.4250384 | ID48: 107.1029202 | IE48: 108.1628951 | IF48: 106.3087239 | IG48: 104.1472573 | IH48: 103.2599846 | II48: 101.859821 | IJ48: -0.1242503844 | IK48: 0.9999999979 | IL48: 0.022 | IM48: -0.05551460122 | IN48: 0.9999498832 | IO48: 0.022 | IP48: -0.04054298366 | IQ48: 0.9998318351 | IR48: 0.022 | IS48: -0.02577180987 | IT48: 0.9974245115 | IU48: 0.022 | IV48: -0.0162945147 | IW48: 0.9847817432 | IX48: 0.022 | IY48: -0.01209997432 | IZ48: 0.9715396142 | JA48: 0.022 | JB48: -0.008371172863 | JC48: 0.9460863833 | JD48: 0.022 | JE48: 0.022 | JG48: 0.004634503117 | JH48: 108.9275346 | JI48: 107.5992891 | JJ48: 108.6641764 | JK48: 106.8014121 | JL48: 104.6299281 | JM48: 103.7385433 | JN48: 102.3318907 | JO48: 100.4634503 | JP48: -0.1159928906 | JQ48: 0.999999981 | JR48: 0.022 | JS48: -0.06332088186 | JT48: 0.99999438 | JU48: 0.022 | JV48: -0.03600470687 | JW48: 0.9993773224 | JX48: 0.022 | JY48: -0.02157482034 | JZ48: 0.9921516582 | KA48: 0.022 | KB48: -0.01547708662 | KC48: 0.9812958528 | KD48: 0.022 | KE48: -0.0105531511 | KF48: 0.9583360354 | KG48: 0.022 | KH48: -0.006376357588 | KI48: 0.9143653944 | KJ48: 0.022 | KK48: 0.022 | KM48: -0.08392950826 | KN48: 98.56853364 | KO48: 99.54404548 | KP48: 97.83762207 | KQ48: 95.84838972 | KR48: 95.03181838 | KS48: 93.7432254 | KT48: 92.03160233 | KU48: 91.60704917 | KV48: -0.03544045483 | KW48: 0.9669837137 | KX48: 0.022 | KY48: -0.009188110333 | KZ48: 0.819127821 | LA48: 0.01565681678 | LB48: 0.0005053676016 | LC48: 0.6382782962 | LD48: 0.006074614463 | LE48: 0.002420454041 | LF48: 0.592703205 | LG48: 0.004025660813 | LH48: 0.0045135492 | LI48: 0.5197167075 | LJ48: 0.0008487657353 | LK48: 0.006613996118 | LL48: 0.4286928524 | LM48: 0.0001 | LN48: 0.006275644037 | LO48: 0.4390371771 | LP48: 0.0001 | LQ48: 0.0001 | LS48: 0.004986198293 | LT48: 100.0403918 | LU48: 98.32545985 | LV48: 96.3263088 | LW48: 95.50566587 | LX48: 94.21064771 | LY48: 92.49049015 | LZ48: 92.06382009 | MA48: 100.4986198 | MB48: -0.02325459851 | MC48: 0.9004814847 | MD48: 0.022 | ME48: -0.001631543984 | MF48: 0.6650523812 | MG48: 0.007318019573 | MH48: 0.00164778042 | MI48: 0.6040787737 | MJ48: 0.004530613349 | MK48: 0.004473380724 | ML48: 0.5190918608 | MM48: 0.0008218464094 | MN48: 0.007019019705 | MO48: 0.4187032239 | MP48: 0.0001 | MQ48: 0.006560299856 | MR48: 0.4310410001 | MS48: 0.0001 | MT48: -0.006426599756 | MU48: 0.9153069639 | MV48: 0.022 | MW48: 0.0001 | MY48: 0.005163195301 | MZ48: 98.8331334 | NA48: 96.82366034 | NB48: 95.99878028 | NC48: 94.69707568 | ND48: 92.96803661 | NE48: 92.53916357 | NF48: 101.0175138 | NG48: 100.5163195 | NH48: -0.008236603417 | NI48: 0.7263010217 | NJ48: 0.01032857653 | NK48: 6.098603537e-06 | NL48: 0.6259024358 | NM48: 0.00551085362 | NN48: 0.004343081053 | NO48: 0.5206236829 | NP48: 0.0008878433169 | NQ48: 0.00757990847 | NR48: 0.4072840042 | NS48: 0.0001 | NT48: 0.00692167286 | NU48: 0.4225720896 | NV48: 0.0001 | NW48: -0.008362523052 | NX48: 0.9315967571 | NY48: 0.022 | NZ48: -0.006451885043 | OA48: 0.915777879 | OB48: 0.022 | OC48: 0.0001 | OF48: 0.022 | OG48: 0.022 | OH48: 0.022 | OI48: 0.022 | OJ48: 0.022 | OK48: 0.0001 | OL48: 0.0001 | OM48: 0.0001 | OO48: Yes | OQ48: 0.022 | OR48: 0.01752858992 | OS48: 0.01381115285 | OT48: 0.01103442341 | OU48: 0.008632642142 | OV48: 0.01306619566 | OW48: 0.007977410157 | OX48: 0.02050611456 | OZ48: Yes
F49: 24 | G49: -0.03291148398 | H49: 96.7088516 | I49: -0.001012645146 | J49: 0.7651874772 | K49: 0.01241305009 | M49: 0.02986887685 | N49: 99.59743638 | O49: 102.9868877 | P49: -0.005995727301 | Q49: 0.8895746441 | R49: 0.02101665041 | S49: -0.009981268121 | T49: 0.9642012215 | U49: 0.022 | V49: 0.02101665041 | X49: -0.003917001559 | Y49: 99.20731307 | Z49: 102.5834879 | AA49: 99.60829984 | AB49: -0.006414626134 | AC49: 0.8770114956 | AD49: 0.01991638937 | AE49: -0.01097247981 | AF49: 0.9623295116 | AG49: 0.022 | AH49: -0.005154714063 | AI49: 0.8889987024 | AJ49: 0.02096431292 | AK49: 0.01991638937 | AM49: -0.00707006333 | AN49: 98.50591108 | AO49: 101.8582161 | AP49: 98.90406286 | AQ49: 99.29299367 | AR49: -0.006264777702 | AS49: 0.8470990588 | AT49: 0.01757990549 | AU49: -0.01171643226 | AV49: 0.955345028 | AW49: 0.022 | AX49: -0.00484010476 | AY49: 0.8633734241 | AZ49: 0.01880785473 | BA49: -0.004704276667 | BB49: 0.8784049359 | BC49: 0.0200343891 | BD49: 0.01757990549 | BF49: 0.01226036256 | BG49: 99.71362926 | BH49: 103.1070348 | BI49: 100.1166625 | BJ49: 100.5103618 | BK49: 101.2260363 | BL49: -0.01237876422 | BM49: 0.9143788336 | BN49: 0.022 | BO49: -0.01776758697 | BP49: 0.9807635541 | BQ49: 0.022 | BR49: -0.00823332505 | BS49: 0.9106918918 | BT49: 0.022 | BU49: -0.007517269615 | BV49: 0.9182926204 | BW49: 0.022 | BX49: -0.00746576608 | BY49: 0.9330827385 | BZ49: 0.022 | CA49: 0.022 | CC49: -0.01730128489 | CD49: 97.98845536 | CE49: 101.3231506 | CF49: 98.38451562 | CG49: 98.77140337 | CH49: 99.47469576 | CI49: 98.26987151 | CJ49: -0.009942276788 | CK49: 0.8316047067 | CL49: 0.01648905206 | CM49: -0.01774383535 | CN49: 0.9633222625 | CO49: 0.022 | CP49: -0.005961289061 | CQ49: 0.8404917101 | CR49: 0.0171062786 | CS49: -0.005542806731 | CT49: 0.8580422953 | CU49: 0.01839522744 | CV49: -0.005791159607 | CW49: 0.885219891 | CX49: 0.02062565056 | CY49: -0.003242673587 | CZ49: 0.8392245018 | DA49: 0.01701692311 | DB49: 0.01648905206 | DD49: 0.02898157638 | DE49: 100.8283153 | DF49: 104.2596552 | DG49: 101.235854 | DH49: 101.6339543 | DI49: 102.3576293 | DJ49: 101.1178873 | DK49: 102.8981576 | DL49: -0.04828315261 | DM49: 0.9922815067 | DN49: 0.022 | DO49: -0.04129827617 | DP49: 0.9985406155 | DQ49: 0.022 | DR49: -0.01745284659 | DS49: 0.9614447352 | DT49: 0.022 | DU49: -0.01408488584 | DV49: 0.9586286783 | DW49: 0.022 | DX49: -0.01271525851 | DY49: 0.9641145959 | DZ49: 0.022 | EA49: -0.008529812163 | EB49: 0.9340196994 | EC49: 0.022 | ED49: -0.009854510911 | EE49: 0.9629847342 | EF49: 0.022 | EG49: 0.022 | EI49: 0.04001432662 | EJ49: 104.8628924 | EK49: 108.4315351 | EL49: 105.2867385 | EM49: 105.7007686 | EN49: 106.4534009 | EO49: 105.1640515 | EP49: 107.0155581 | EQ49: 104.0014327 | ER49: -0.1243153513 | ES49: 0.9999999979 | ET49: 0.022 | EU49: -0.04643369253 | EV49: 0.9995272872 | EW49: 0.022 | EX49: -0.03233589527 | EY49: 0.9983559674 | EZ49: 0.022 | FA49: -0.02613350217 | FB49: 0.9976749148 | FC49: 0.022 | FD49: -0.01832810293 | FE49: 0.9911313195 | FF49: 0.022 | FG49: -0.01835926354 | FH49: 0.9953500838 | FI49: 0.022 | FJ49: -0.01143061809 | FK49: 0.9759208851 | FL49: 0.022 | FM49: 0.022 | FO49: -0.03881215808 | FP49: 104.2230732 | FQ49: 101.200333 | FR49: 101.5982936 | FS49: 102.3217146 | FT49: 101.0824077 | FU49: 102.8620534 | FV49: 99.96491262 | FW49: 96.11878419 | FX49: -0.05200332967 | FY49: 0.9952159657 | FZ49: 0.022 | GA49: -0.02799146821 | GB49: 0.9830294987 | GC49: 0.022 | GD49: -0.02107238215 | GE49: 0.9799475942 | GF49: 0.022 | GG49: -0.01270601919 | GH49: 0.9462615582 | GI49: 0.022 | GJ49: -0.01372410673 | GK49: 0.9714867713 | GL49: 0.022 | GM49: -0.006608187695 | GN49: 0.9019011864 | GO49: 0.022 | GP49: -0.0001696917028 | GQ49: 0.7329351863 | GR49: 0.01067278053 | GS49: 0.01067278053 | GU49: -0.002523733239 | GV49: 100.9449303 | GW49: 101.3418867 | GX49: 102.0634819 | GY49: 100.8273026 | GZ49: 102.602457 | HA49: 99.71262784 | HB49: 95.87620602 | HC49: 99.74762668 | HD49: -0.0534188665 | HE49: 0.9960393147 | HF49: 0.022 | HG49: -0.03031740966 | HH49: 0.9884049754 | HI49: 0.022 | HJ49: -0.01609100882 | HK49: 0.9515916703 | HL49: 0.022 | HM49: -0.01650614246 | HN49: 0.9747145936 | HO49: 0.022 | HP49: -0.007425255689 | HQ49: 0.8966867568 | HR49: 0.02167974907 | HS49: 0.0002063232976 | HT49: 0.703235855 | HU49: 0.009162379594 | HV49: -0.005353752394 | HW49: 0.8934629772 | HX49: 0.02137522571 | HY49: 0.009162379594 | IA49: -0.00125023014 | IB49: 101.215186 | IC49: 101.9358791 | ID49: 100.7012453 | IE49: 102.4741803 | IF49: 99.58796411 | IG49: 95.7563387 | IH49: 99.62291919 | II49: 99.87497699 | IJ49: -0.0593587909 | IK49: 0.9982799291 | IL49: 0.022 | IM49: -0.02350622656 | IN49: 0.9665577714 | IO49: 0.022 | IP49: -0.021580601 | IQ49: 0.9818111177 | IR49: 0.022 | IS49: -0.008969910279 | IT49: 0.8979562322 | IU49: 0.02180155782 | IV49: 0.0004873226021 | IW49: 0.6767630065 | IX49: 0.007873778702 | IY49: -0.006038198645 | IZ49: 0.8904637081 | JA49: 0.02109782789 | JB49: -0.005535681409 | JC49: 0.8974287984 | JD49: 0.02175081647 | JE49: 0.007873778702 | JG49: -0.0007903577411 | JH49: 101.8553133 | JI49: 100.6216553 | JJ49: 102.393189 | JK49: 99.50925399 | JL49: 95.68065694 | JM49: 99.54418144 | JN49: 99.79604002 | JO49: 99.92096423 | JP49: -0.04621655304 | JQ49: 0.9900446156 | JR49: 0.022 | JS49: -0.03196594519 | JT49: 0.9912554554 | JU49: 0.022 | JV49: -0.01169751331 | JW49: 0.9056758388 | JX49: 0.022 | JY49: 0.0007983576615 | JZ49: 0.6487572588 | KA49: 0.006557117874 | KB49: -0.007088362883 | KC49: 0.8903993321 | KD49: 0.02109193408 | KE49: -0.006326733375 | KF49: 0.8963678243 | KG49: 0.02164931788 | KH49: -0.005601377466 | KI49: 0.8988341836 | KJ49: 0.02188644537 | KK49: 0.006557117874 | KM49: 0.008142205393 | KN49: 101.4409375 | KO49: 103.2268954 | KP49: 100.3194788 | KQ49: 96.4597085 | KR49: 100.3546906 | KS49: 100.6085999 | KT49: 100.7345412 | KU49: 100.8142205 | KV49: -0.07226895414 | KW49: 0.9997778143 | KX49: 0.022 | KY49: -0.02159739389 | KZ49: 0.956343503 | LA49: 0.022 | LB49: -0.001532361654 | LC49: 0.6964754101 | LD49: 0.008828659402 | LE49: -0.01088672653 | LF49: 0.9256653676 | LG49: 0.022 | LH49: -0.00921719976 | LI49: 0.9257750477 | LJ49: 0.022 | LK49: -0.007890902066 | LL49: 0.9243961589 | LM49: 0.022 | LN49: -0.006877457913 | LO49: 0.9234116194 | LP49: 0.022 | LQ49: 0.008828659402 | LS49: -0.0006478670929 | LT49: 103.1600181 | LU49: 100.2544851 | LV49: 96.39721543 | LW49: 100.2896741 | LX49: 100.5434189 | LY49: 100.6692786 | LZ49: 100.7489063 | MA49: 99.93521329 | MB49: -0.04254485089 | MC49: 0.9846573346 | MD49: 0.022 | ME49: -0.001986077127 | MF49: 0.6733137644 | MG49: 0.00770925282 | MH49: -0.0142989137 | MI49: 0.9356685019 | MJ49: 0.022 | MK49: -0.0113585472 | ML49: 0.9315111669 | MM49: 0.022 | MN49: -0.009338557291 | MO49: 0.9274919151 | MP49: 0.022 | MQ49: -0.007914843872 | MR49: 0.9247750899 | MS49: 0.022 | MT49: -0.005621733272 | MU49: 0.8992667788 | MV49: 0.02192846974 | MW49: 0.00770925282 | MY49: 0.01365780072 | MZ49: 101.6237409 | NA49: 97.71378938 | NB49: 101.6594105 | NC49: 101.9166209 | ND49: 102.0441996 | NE49: 102.1249148 | NF49: 101.3001085 | NG49: 101.3657801 | NH49: -0.01713789383 | NI49: 0.8428566417 | NJ49: 0.01727429034 | NK49: -0.02829705247 | NL49: 0.9838394025 | NM49: 0.022 | NN49: -0.01972206952 | NO49: 0.9741941367 | NP49: 0.022 | NQ49: -0.01511049898 | NR49: 0.9662422683 | NS49: 0.022 | NT49: -0.01224982962 | NU49: 0.9602215852 | NV49: 0.022 | NW49: -0.008833514197 | NX49: 0.9382478011 | NY49: 0.022 | NZ49: -0.007665400102 | OA49: 0.9361405398 | OB49: 0.022 | OC49: 0.01727429034 | OF49: 0.022 | OG49: 0.01067278053 | OH49: 0.009162379594 | OI49: 0.007873778702 | OJ49: 0.006557117874 | OK49: 0.008828659402 | OL49: 0.00770925282 | OM49: 0.01727429034 | OO49: Yes | OQ49: 0.022 | OR49: 0.01241305009 | OS49: 0.02101665041 | OT49: 0.01991638937 | OU49: 0.01757990549 | OV49: 0.022 | OW49: 0.01648905206 | OX49: 0.022 | OZ49: Yes
F50: 25 | G50: 0.02752380014 | H50: 102.75238 | I50: -0.009646257163 | J50: 0.9609129234 | K50: 0.022 | M50: -0.0009539600685 | N50: 102.6543583 | O50: 99.90460399 | P50: -0.01109059724 | Q50: 0.9633961961 | R50: 0.022 | S50: -0.005578005705 | T50: 0.8983358264 | U50: 0.02183819459 | V50: 0.02183819459 | X50: -0.03315236952 | Y50: 99.25112313 | Z50: 96.59252964 | AA50: 96.68476305 | AB50: -0.006502246252 | AC50: 0.878814707 | AD50: 0.0200692701 | AE50: -0.0009875494076 | AF50: 0.7475041836 | AG50: 0.01144428461 | AH50: -0.0009782329253 | AI50: 0.7639143827 | AJ50: 0.01234200638 | AK50: 0.01144428461 | AM50: 0.007194985914 | AN50: 99.96523356 | AO50: 97.28751153 | AP50: 97.38040856 | AQ50: 100.7194986 | AR50: -0.009913083897 | AS50: 0.9124082345 | AT50: 0.022 | AU50: -0.00257502307 | AV50: 0.7793266828 | AW50: 0.01321699959 | AX50: -0.002300680927 | AY50: 0.7918511351 | AZ50: 0.0139541346 | BA50: -0.006742140845 | BB50: 0.9210436517 | BC50: 0.022 | BD50: 0.01321699959 | BF50: 0.01782508826 | BG50: 101.7471227 | BH50: 99.02167001 | BI50: 99.11622293 | BJ50: 102.5148325 | BK50: 101.7825088 | BL50: -0.01915707557 | BM50: 0.9714063467 | BN50: 0.022 | BO50: -0.007554175035 | BP50: 0.873125086 | BQ50: 0.01959214966 | BR50: -0.006232445866 | BS50: 0.8732022424 | BT50: 0.01959851885 | BU50: -0.01085805424 | BV50: 0.9612721011 | BW50: 0.022 | BX50: -0.008260726894 | BY50: 0.944616359 | BZ50: 0.022 | CA50: 0.01959214966 | CC50: 0.008151136022 | CD50: 102.5764773 | CE50: 99.82880912 | CF50: 99.92413275 | CG50: 103.3504449 | CH50: 102.6121519 | CI50: 100.8151136 | CJ50: -0.03288238653 | CK50: 0.9925576445 | CL50: 0.022 | CM50: -0.01276269705 | CN50: 0.9190109688 | CO50: 0.022 | CP50: -0.00981033187 | CQ50: 0.9109122263 | CR50: 0.022 | CS50: -0.01470088977 | CT50: 0.9773784733 | CU50: 0.022 | CV50: -0.01102025317 | CW50: 0.9627639562 | CX50: 0.022 | CY50: -0.006878733717 | CZ50: 0.9234336853 | DA50: 0.022 | DB50: 0.022 | DD50: 0.04371439485 | DE50: 107.0605459 | DF50: 104.1927651 | DG50: 104.2922557 | DH50: 107.868347 | DI50: 107.09778 | DJ50: 105.2221853 | DK50: 104.3714395 | DL50: -0.1106054594 | DM50: 0.9999999259 | DN50: 0.022 | DO50: -0.04096382547 | DP50: 0.9984349645 | DQ50: 0.022 | DR50: -0.02764085247 | DS50: 0.9949121478 | DT50: 0.022 | DU50: -0.02967086761 | DV50: 0.9991889327 | DW50: 0.022 | DX50: -0.02219556005 | DY50: 0.997146364 | DZ50: 0.022 | EA50: -0.01537030881 | EB50: 0.9883365913 | EC50: 0.022 | ED50: -0.01195919926 | EE50: 0.9793017908 | EF50: 0.022 | EG50: 0.022 | EI50: -0.002384624277 | EJ50: 106.8052468 | EK50: 103.9443045 | EL50: 104.0435579 | EM50: 107.6111216 | EN50: 106.8423921 | EO50: 104.9712699 | EP50: 104.1225528 | EQ50: 99.76153757 | ER50: -0.07944304497 | ES50: 0.9999380606 | ET50: 0.022 | EU50: -0.04021778948 | EV50: 0.9981737394 | EW50: 0.022 | EX50: -0.03870373855 | EY50: 0.9997099769 | EZ50: 0.022 | FA50: -0.02710598014 | FB50: 0.998242672 | FC50: 0.022 | FD50: -0.01794253981 | FE50: 0.990146161 | FF50: 0.022 | FG50: -0.01353758803 | FH50: 0.9804903482 | FI50: 0.022 | FJ50: -0.005373625103 | FK50: 0.8939014861 | FL50: 0.02141625273 | FM50: 0.02141625273 | FO50: 0.01865861808 | FP50: 105.8837616 | FQ50: 105.9848669 | FR50: 109.6189964 | FS50: 108.8359234 | FT50: 106.9298887 | FU50: 106.0653358 | FV50: 101.62295 | FW50: 101.8658618 | FX50: -0.09984866907 | FY50: 0.9999990597 | FZ50: 0.022 | GA50: -0.06809498191 | GB50: 0.999998691 | GC50: 0.022 | GD50: -0.04278641149 | GE50: 0.9999157888 | GF50: 0.022 | GG50: -0.02732472185 | GH50: 0.9983515675 | GI50: 0.022 | GJ50: -0.02013067153 | GK50: 0.9946794299 | GL50: 0.022 | GM50: -0.009371583335 | GN50: 0.9452160639 | GO50: 0.022 | GP50: -0.008379802583 | GQ50: 0.9461999302 | GR50: 0.022 | GS50: 0.022 | GU50: 0.006728141298 | GV50: 106.6979481 | GW50: 110.3565285 | GX50: 109.5681869 | GY50: 107.6493281 | GZ50: 106.7789583 | HA50: 102.3066836 | HB50: 102.5512297 | HC50: 100.6728141 | HD50: -0.1435652848 | HE50: 1 | HF50: 0.022 | HG50: -0.06784093459 | HH50: 0.9999985823 | HI50: 0.022 | HJ50: -0.03883109381 | HK50: 0.99972054 | HL50: 0.022 | HM50: -0.02694739582 | HN50: 0.9981596748 | HO50: 0.022 | HP50: -0.01261336714 | HQ50: 0.9632901628 | HR50: 0.022 | HS50: -0.0109187162 | HT50: 0.9618356529 | HU50: 0.022 | HV50: -0.006675448757 | HW50: 0.919856369 | HX50: 0.022 | HY50: 0.022 | IA50: -0.02304631596 | IB50: 107.8132171 | IC50: 107.0430439 | ID50: 105.1684077 | IE50: 104.3180967 | IF50: 99.94889141 | IG50: 100.1878017 | IH50: 98.35267665 | II50: 97.6953684 | IJ50: -0.1104304386 | IK50: 0.9999999226 | IL50: 0.022 | IM50: -0.04584203856 | IN50: 0.9994589264 | IO50: 0.022 | IP50: -0.02772698906 | IQ50: 0.9950108758 | IR50: 0.022 | IS50: -0.009872228532 | IT50: 0.9118156654 | IU50: 0.022 | IV50: -0.008375603354 | IW50: 0.9130041595 | IX50: 0.022 | IY50: -0.003921127744 | IZ50: 0.839713803 | JA50: 0.01705137077 | JB50: -0.002421954862 | JC50: 0.8139575551 | JD50: 0.01532255692 | JE50: 0.01532255692 | JG50: 0.01010774721 | JH50: 108.1250079 | JI50: 106.2314234 | JJ50: 105.3725177 | JK50: 100.9591495 | JL50: 101.2004747 | JM50: 99.34680064 | JN50: 98.68284849 | JO50: 101.0107747 | JP50: -0.1023142339 | JQ50: 0.9999994639 | JR50: 0.022 | JS50: -0.04686258834 | JT50: 0.9995717411 | JU50: 0.022 | JV50: -0.01653049847 | JW50: 0.9549705551 | JX50: 0.022 | JY50: -0.01300118663 | JZ50: 0.9491295283 | KA50: 0.022 | KB50: -0.00669360128 | KC50: 0.882687911 | KD50: 0.02040314886 | KE50: -0.004471414152 | KF50: 0.8541847401 | KG50: 0.01810315905 | KH50: -0.007158249602 | KI50: 0.9281524658 | KJ50: 0.022 | KK50: 0.01810315905 | KM50: 0.0007580935723 | KN50: 106.3119568 | KO50: 105.4523999 | KP50: 101.035686 | KQ50: 101.2771941 | KR50: 99.42211481 | KS50: 98.75765932 | KT50: 101.0873503 | KU50: 100.0758094 | KV50: -0.09452399896 | KW50: 0.9999969633 | KX50: 0.022 | KY50: -0.02517843012 | KZ50: 0.9738066889 | LA50: 0.022 | LB50: -0.01759064693 | LC50: 0.9623433961 | LD50: 0.022 | LE50: -0.008555287027 | LF50: 0.8910812599 | LG50: 0.02115449334 | LH50: -0.005515318649 | LI50: 0.8574136194 | LJ50: 0.01834726587 | LK50: -0.008478917234 | LL50: 0.933289703 | LM50: 0.022 | LN50: -0.005822584796 | LO50: 0.903463065 | LP50: 0.022 | LQ50: 0.01834726587 | LS50: -0.01153217119 | LT50: 104.2363048 | LU50: 99.8705252 | LV50: 100.1092481 | LW50: 98.27556196 | LX50: 97.61876909 | LY50: 99.92159371 | LZ50: 98.92171799 | MA50: 98.84678288 | MB50: -0.03870525196 | MC50: 0.9765167604 | MD50: 0.022 | ME50: -0.0205462407 | MF50: 0.9497230821 | MG50: 0.022 | MH50: -0.007585206541 | MI50: 0.8391152256 | MJ50: 0.01700923922 | MK50: -0.004046922726 | ML50: 0.7945888785 | MM50: 0.01411870263 | MN50: -0.007843187422 | MO50: 0.9041173301 | MP50: 0.022 | MQ50: -0.004869529986 | MR50: 0.864089323 | MS50: 0.01886409655 | MT50: -0.004066832687 | MU50: 0.8622293522 | MV50: 0.01871839192 | MW50: 0.01411870263 | MY50: 0.03226519757 | MZ50: 103.0928674 | NA50: 103.3392928 | NB50: 101.4464424 | NC50: 100.768458 | ND50: 103.1455837 | NE50: 102.1134468 | NF50: 102.0360939 | NG50: 103.2265198 | NH50: -0.07339292809 | NI50: 0.9998168995 | NJ50: 0.022 | NK50: -0.02723221193 | NL50: 0.98086565 | NM50: 0.022 | NN50: -0.01589485987 | NO50: 0.9500195886 | NP50: 0.022 | NQ50: -0.01786395918 | NR50: 0.9811702549 | NS50: 0.022 | NT50: -0.01222689353 | NU50: 0.9600211919 | NV50: 0.022 | NW50: -0.01006015643 | NX50: 0.9532096399 | NY50: 0.022 | NZ50: -0.01032359965 | OA50: 0.9673236595 | OB50: 0.022 | OC50: 0.022 | OF50: 0.02141625273 | OG50: 0.022 | OH50: 0.022 | OI50: 0.01532255692 | OJ50: 0.01810315905 | OK50: 0.01834726587 | OL50: 0.01411870263 | OM50: 0.022 | OO50: Yes | OQ50: 0.022 | OR50: 0.022 | OS50: 0.022 | OT50: 0.0200692701 | OU50: 0.022 | OV50: 0.022 | OW50: 0.022 | OX50: 0.022 | OZ50: Yes
F51: 26 | G51: 0.01783553114 | H51: 101.7835531 | I51: -0.008262218735 | J51: 0.944636424 | K51: 0.022 | M51: -0.002072628761 | N51: 101.5725936 | O51: 99.79273712 | P51: -0.009287655991 | Q51: 0.944172022 | R51: 0.022 | S51: -0.005418195891 | T51: 0.8948802349 | U51: 0.02150826871 | V51: 0.02150826871 | X51: 0.0008188947697 | Y51: 101.6557709 | Z51: 99.87445687 | AA51: 100.0818895 | AB51: -0.01131154172 | AC51: 0.951330789 | AD51: 0.022 | AE51: -0.006457428124 | AF51: 0.8989648067 | AG51: 0.0218991209 | AH51: -0.005831270681 | AI51: 0.9036415931 | AJ51: 0.022 | AK51: 0.0218991209 | AM51: -0.01004091678 | AN51: 100.6350537 | AO51: 98.87162576 | AP51: 99.07697555 | AQ51: 98.99590832 | AR51: -0.01158763431 | AS51: 0.9342184822 | AT51: 0.022 | AU51: -0.005743251529 | AV51: 0.8625698703 | AW51: 0.01874496615 | AX51: -0.005128292589 | AY51: 0.8702742693 | AZ51: 0.01935868168 | BA51: -0.004279869031 | BB51: 0.8677911279 | BC51: 0.01915820347 | BD51: 0.01874496615 | BF51: 0.02588581259 | BG51: 103.2400739 | BH51: 101.4309981 | BI51: 101.6416636 | BJ51: 101.5584979 | BK51: 102.5885813 | BL51: -0.02413357955 | BM51: 0.9890954 | BN51: 0.022 | BO51: -0.01357749535 | BP51: 0.9543771768 | BQ51: 0.022 | BR51: -0.01128332715 | BS51: 0.9510406388 | BT51: 0.022 | BU51: -0.009264163086 | BV51: 0.9438769794 | BW51: 0.022 | BX51: -0.009412258941 | BY51: 0.9584733808 | BZ51: 0.022 | CA51: 0.022 | CC51: 0.004305277299 | CD51: 103.684551 | CE51: 101.8676867 | CF51: 102.0792591 | CG51: 101.9957353 | CH51: 103.0302535 | CI51: 100.4305277 | CJ51: -0.03842275506 | CK51: 0.9973753261 | CL51: 0.022 | CM51: -0.01955895571 | CN51: 0.9734136878 | CO51: 0.022 | CP51: -0.0151981478 | CQ51: 0.9668356079 | CR51: 0.022 | CS51: -0.01199147069 | CT51: 0.9579165091 | CU51: 0.022 | CV51: -0.01171708925 | CW51: 0.96864825 | CX51: 0.022 | CY51: -0.006329325328 | CZ51: 0.9134768984 | DA51: 0.022 | DB51: 0.022 | DD51: -0.02056157 | DE51: 101.5526339 | DF51: 99.77312714 | DG51: 99.98034929 | DH51: 99.8985429 | DI51: 100.9117898 | DJ51: 98.3655184 | DK51: 97.943843 | DL51: -0.05552633858 | DM51: 0.9970311057 | DN51: 0.022 | DO51: -0.01886563571 | DP51: 0.9375025363 | DQ51: 0.022 | DR51: -0.01326783096 | DS51: 0.9248139943 | DT51: 0.022 | DU51: -0.009746357238 | DV51: 0.9099712367 | DW51: 0.022 | DX51: -0.009823579557 | DY51: 0.9340511527 | DZ51: 0.022 | EA51: -0.003942530674 | EB51: 0.8402936085 | EC51: 0.01709227919 | ED51: -0.002776918572 | EE51: 0.825173687 | EF51: 0.0160553762 | EG51: 0.0160553762 | EI51: 0.01103921011 | EJ51: 102.6736947 | EK51: 100.8745437 | EL51: 101.0840534 | EM51: 101.0013439 | EN51: 102.0257762 | EO51: 99.45139603 | EP51: 99.02506566 | EQ51: 101.103921 | ER51: -0.04874543656 | ES51: 0.9927166145 | ET51: 0.022 | EU51: -0.02542026686 | EV51: 0.974737299 | EW51: 0.022 | EX51: -0.01667114633 | EY51: 0.9560108806 | EZ51: 0.022 | FA51: -0.01506444057 | FB51: 0.9659269913 | FC51: 0.022 | FD51: -0.00690279206 | FE51: 0.8868208873 | FF51: 0.02076814768 | FG51: -0.005041776104 | FH51: 0.8682284185 | FI51: 0.01919331865 | FJ51: -0.007291315731 | FK51: 0.9303190095 | FL51: 0.022 | FM51: 0.01919331865 | FO51: -0.002291821734 | FP51: 100.6433572 | FQ51: 100.8523867 | FR51: 100.7698668 | FS51: 101.7919513 | FT51: 99.22347116 | FU51: 98.79811786 | FV51: 100.8722088 | FW51: 99.77081783 | FX51: -0.04852386742 | FY51: 0.9925108449 | FZ51: 0.022 | GA51: -0.02384933413 | GB51: 0.9681665584 | GC51: 0.022 | GD51: -0.01930650446 | GE51: 0.9721669749 | GF51: 0.022 | GG51: -0.008058677897 | GH51: 0.8824162706 | GI51: 0.02037948101 | GJ51: -0.00559623573 | GK51: 0.8592588863 | GL51: 0.01848845106 | GM51: -0.00812034808 | GN51: 0.9279683136 | GO51: 0.022 | GP51: -0.005386882609 | GQ51: 0.8941932987 | GR51: 0.02144362273 | GS51: 0.01848845106 | GU51: -0.002963132797 | GV51: 100.5535477 | GW51: 100.4712723 | GX51: 101.4903283 | GY51: 98.92945884 | GZ51: 98.50536592 | HA51: 100.5733111 | HB51: 99.47518364 | HC51: 99.70368672 | HD51: -0.04471272328 | HE51: 0.9880791066 | HF51: 0.022 | HG51: -0.02745164134 | HH51: 0.9815138819 | HI51: 0.022 | HJ51: -0.009764862791 | HK51: 0.8774698785 | HL51: 0.01995510224 | HM51: -0.006263414804 | HN51: 0.8470697983 | HO51: 0.01757777854 | HP51: -0.009146622195 | HQ51: 0.9247623927 | HR51: 0.022 | HS51: -0.00579197274 | HT51: 0.8852374391 | HU51: 0.02062720474 | HV51: -0.005290981029 | HW51: 0.8920692813 | HX51: 0.02124563481 | HY51: 0.01757777854 | IA51: 0.001579728313 | IB51: 100.6299896 | IC51: 101.6506554 | ID51: 99.0857405 | IE51: 98.66097764 | IF51: 100.7321896 | IG51: 99.63232741 | IH51: 99.86119146 | II51: 100.1579728 | IJ51: -0.05650655413 | IK51: 0.9974110479 | IL51: 0.022 | IM51: -0.01542870252 | IN51: 0.9054433524 | IO51: 0.022 | IP51: -0.008869925457 | IQ51: 0.8625776113 | IR51: 0.01874557079 | IS51: -0.01183047401 | IT51: 0.9369969685 | IU51: 0.022 | IV51: -0.007264654816 | IW51: 0.8937229123 | IX51: 0.02139953056 | IY51: -0.006435319095 | IZ51: 0.8985288529 | JA51: 0.02185686287 | JB51: -0.005939961188 | JC51: 0.9058551186 | JD51: 0.022 | JE51: 0.01874557079 | JG51: -0.01645574181 | JH51: 99.97791847 | JI51: 97.45521114 | JJ51: 97.03743806 | JK51: 99.0745667 | JL51: 97.99280355 | JM51: 98.21790147 | JN51: 98.50979909 | JO51: 98.35442582 | JP51: -0.01455211142 | JQ51: 0.8129265262 | JR51: 0.0152565936 | JS51: -0.005187190313 | JT51: 0.7437202136 | JU51: 0.0112417347 | JV51: -0.01024855567 | JW51: 0.8850298033 | JX51: 0.02060882595 | JY51: -0.004982008881 | JZ51: 0.8179169753 | KA51: 0.01557800583 | KB51: -0.004435802947 | KC51: 0.8312331849 | KD51: 0.01646371272 | KE51: -0.004182998484 | KF51: 0.8467134429 | KG51: 0.01755189662 | KH51: -0.003363465456 | KI51: 0.8427446497 | KJ51: 0.0172662968 | KK51: 0.0112417347 | KM51: -0.001789446535 | KN51: 97.28082025 | KO51: 96.86379476 | KP51: 98.89727806 | KQ51: 97.81745067 | KR51: 98.04214579 | KS51: 98.33352107 | KT51: 98.17842583 | KU51: 99.82105535 | KV51: -0.008637947552 | KW51: 0.7323403951 | KX51: 0.01064174702 | KY51: -0.0144863903 | KZ51: 0.8948302795 | LA51: 0.02150355724 | LB51: -0.006058168899 | LC51: 0.8080150719 | LD51: 0.01494540749 | LE51: -0.005105364476 | LF51: 0.8208657656 | LG51: 0.0157705156 | LH51: -0.004667042143 | LI51: 0.8370862276 | LJ51: 0.0168671819 | LK51: -0.003630709721 | LL51: 0.8317106021 | LM51: 0.01649628115 | LN51: -0.005458650495 | LO51: 0.8957629227 | LP51: 0.02159178686 | LQ51: 0.01064174702 | LS51: 0.01025136764 | LT51: 97.85678113 | LU51: 99.91111042 | LV51: 98.82021332 | LW51: 99.04721187 | LX51: 99.34157415 | LY51: 99.18488897 | LZ51: 100.8443577 | MA51: 101.0251368 | MB51: -0.03911110417 | MC51: 0.9775211591 | MD51: 0.022 | ME51: -0.01410106659 | MF51: 0.8902508117 | MG51: 0.02107834609 | MH51: -0.0101573729 | MI51: 0.8836306327 | MJ51: 0.02048559003 | MK51: -0.008353935369 | ML51: 0.8876250161 | MM51: 0.02084026227 | MN51: -0.006369777941 | MO51: 0.8760812823 | MP51: 0.01983813765 | MQ51: -0.008073929472 | MR51: 0.9272562822 | MS51: 0.022 | MT51: -0.007178766806 | MU51: 0.9284898494 | MV51: 0.022 | MW51: 0.01983813765 | MY51: -0.005403260375 | MZ51: 99.37126467 | NA51: 98.28626198 | NB51: 98.512034 | NC51: 98.80480576 | ND51: 98.64896719 | NE51: 100.2994694 | NF51: 100.4792716 | NG51: 99.45967396 | NH51: -0.02286261976 | NI51: 0.8973298432 | NJ51: 0.02174131772 | NK51: -0.01256016998 | NL51: 0.8705111045 | NM51: 0.01937794094 | NN51: -0.009349352522 | NO51: 0.8707025763 | NP51: 0.01939352913 | NQ51: -0.006622417975 | NR51: 0.854649132 | NS51: 0.01813804187 | NT51: -0.008598938723 | NU51: 0.9165431156 | NV51: 0.022 | NW51: -0.007465452743 | NX51: 0.9174176259 | NY51: 0.022 | NZ51: -0.004942391375 | OA51: 0.8840904684 | OB51: 0.0205259747 | OC51: 0.01813804187 | OF51: 0.01919331865 | OG51: 0.01848845106 | OH51: 0.01757777854 | OI51: 0.01874557079 | OJ51: 0.0112417347 | OK51: 0.01064174702 | OL51: 0.01983813765 | OM51: 0.01813804187 | OO51: Yes | OQ51: 0.022 | OR51: 0.022 | OS51: 0.022 | OT51: 0.022 | OU51: 0.022 | OV51: 0.022 | OW51: 0.022 | OX51: 0.022 | OZ51: No
F52: 27 | G52: -0.004105040838 | H52: 99.58949592 | I52: -0.005127851309 | J52: 0.888386078 | K52: 0.02090885502 | M52: -0.01905530143 | N52: 97.69178805 | O52: 98.09446986 | P52: -0.002819646754 | Q52: 0.8080254265 | R52: 0.01494605838 | S52: -0.002992099796 | T52: 0.8317594359 | U52: 0.01649961584 | V52: 0.01494605838 | X52: 0.0005045348708 | Y52: 97.74107697 | Z52: 98.14396194 | AA52: 100.0504535 | AB52: -0.003482153933 | AC52: 0.8056896667 | AD52: 0.01479977341 | AE52: -0.003573269897 | AF52: 0.8300977654 | AG52: 0.01638649372 | AH52: -0.005786362124 | AI52: 0.9027159305 | AJ52: 0.022 | AK52: 0.01479977341 | AM52: 0.006302477924 | AN52: 98.35708795 | AO52: 98.76251209 | AP52: 100.6810193 | AQ52: 100.6302478 | AR52: -0.005892719865 | AS52: 0.8389733612 | AT52: 0.01699926895 | AU52: -0.005525024183 | AV52: 0.857635808 | AW52: 0.01836420022 | AX52: -0.007801698769 | AY52: 0.9229715124 | AZ52: 0.022 | BA52: -0.006614639703 | BB52: 0.9187621012 | BC52: 0.022 | BD52: 0.01699926895 | BF52: -0.01125281678 | BG52: 97.25029366 | BH52: 97.65115564 | BI52: 99.5480742 | BJ52: 99.49787405 | BK52: 98.87471832 | BL52: -0.004167645522 | BM52: 0.764780484 | BN52: 0.01239031519 | BO52: -0.004127889096 | BP52: 0.7966763547 | BQ52: 0.01424505941 | BR52: -0.007096148397 | BS52: 0.8905476675 | BT52: 0.02110551835 | BU52: -0.005829790086 | BV52: 0.8860514628 | BW52: 0.02069948681 | BX52: -0.00410674046 | BY52: 0.8632832027 | BZ52: 0.01880078115 | CA52: 0.01239031519 | CC52: 0.003339556699 | CD52: 97.57506653 | CE52: 97.97726721 | CF52: 99.88052064 | CG52: 99.83015284 | CH52: 99.20491605 | CI52: 100.3339557 | CJ52: -0.007875332632 | CK52: 0.7960678175 | CL52: 0.01420814466 | CM52: -0.006590890698 | CN52: 0.8192593122 | CO52: 0.01566539508 | CP52: -0.009701301592 | CQ52: 0.9093041039 | CR52: 0.022 | CS52: -0.007660305687 | CT52: 0.9009156522 | CU52: 0.022 | CV52: -0.00534152675 | CW52: 0.8752223457 | CX52: 0.01976624615 | CY52: -0.006191365243 | CZ52: 0.9108309241 | DA52: 0.022 | DB52: 0.01420814466 | DD52: -0.007649282557 | DE52: 96.82868727 | DF52: 97.22781141 | DG52: 99.11650631 | DH52: 99.0665238 | DI52: 98.44606962 | DJ52: 99.56647289 | DK52: 99.23507174 | DL52: -0.00828687272 | DM52: 0.7270611453 | DN52: 0.01036780187 | DO52: -0.006139057042 | DP52: 0.7630184366 | DQ52: 0.01229213554 | DR52: -0.01038835438 | DS52: 0.8871516658 | DT52: 0.0207977676 | DU52: -0.007666309492 | DV52: 0.8752331419 | DW52: 0.01976714762 | DX52: -0.004892139233 | DY52: 0.8426554711 | DZ52: 0.01725993426 | EA52: -0.005944121488 | EB52: 0.8884874183 | EC52: 0.0209180138 | ED52: -0.004621531063 | EE52: 0.8763840463 | EF52: 0.01986356157 | EG52: 0.01036780187 | EI52: 0.002858071372 | EJ52: 97.10543057 | EK52: 97.50569543 | EL52: 99.39978836 | EM52: 99.34966299 | EN52: 98.72743551 | EO52: 99.85104098 | EP52: 99.51869266 | EQ52: 100.2858071 | ER52: -0.01505695433 | ES52: 0.8190313345 | ET52: 0.01565052462 | EU52: -0.01699894181 | EV52: 0.9213404127 | EW52: 0.022 | EX52: -0.01116554331 | EY52: 0.8984388896 | EZ52: 0.02184815898 | FA52: -0.006818588774 | FB52: 0.8586821228 | FC52: 0.01844418764 | FD52: -0.007702081957 | FE52: 0.9016538252 | FF52: 0.022 | FG52: -0.00586448777 | FH52: 0.8867947088 | FI52: 0.02076580613 | FJ52: -0.006122581625 | FK52: 0.909489421 | FL52: 0.022 | FM52: 0.01565052462 | FO52: 0.00554928281 | FP52: 98.04678211 | FQ52: 99.9513859 | FR52: 99.90098237 | FS52: 99.27530197 | FT52: 100.4051426 | FU52: 100.07095 | FV52: 100.8423214 | FW52: 100.5549283 | FX52: -0.03951385899 | FY52: 0.9784818346 | FZ52: 0.022 | GA52: -0.01950491185 | GB52: 0.9423989399 | GC52: 0.022 | GD52: -0.01091767323 | GE52: 0.8949320365 | GF52: 0.02151315602 | GG52: -0.01101285661 | GH52: 0.9272641838 | GI52: 0.022 | GJ52: -0.008141900065 | GK52: 0.9091821358 | GL52: 0.022 | GM52: -0.008070535738 | GN52: 0.9272040139 | GO52: 0.022 | GP52: -0.006507040401 | GQ52: 0.9167982732 | GR52: 0.022 | GS52: 0.02151315602 | GU52: -0.01953029496 | GV52: 97.99930585 | GW52: 97.94988672 | GX52: 97.33642604 | GY52: 98.44420059 | GZ52: 98.11653486 | HA52: 98.87284116 | HB52: 98.59106087 | HC52: 98.0469705 | HD52: -0.01949886717 | HE52: 0.8672713402 | HF52: 0.01911656763 | HG52: -0.006682130204 | HH52: 0.773660363 | HI52: 0.01289142584 | HJ52: -0.00814733531 | HK52: 0.8496852083 | HL52: 0.01776897111 | HM52: -0.005291337154 | HN52: 0.8252542589 | HO52: 0.0160607461 | HP52: -0.005745682322 | HQ52: 0.8626241642 | HR52: 0.01874920743 | HS52: -0.004318434787 | HT52: 0.8502528971 | HU52: 0.01781076239 | HV52: -0.002924243578 | HW52: 0.8297001033 | HX52: 0.01635952731 | HY52: 0.01289142584 | IA52: 0.007184171655 | IB52: 98.65357552 | IC52: 98.03570763 | ID52: 99.15144063 | IE52: 98.82142089 | IF52: 99.58316062 | IG52: 99.29935598 | IH52: 98.75135677 | II52: 100.7184172 | IJ52: -0.02035707634 | IK52: 0.8754615443 | IL52: 0.0197862318 | IM52: -0.01575720314 | IN52: 0.9089510793 | IO52: 0.022 | IP52: -0.009404736301 | IQ52: 0.871619267 | IR52: 0.01946838178 | IS52: -0.00895790156 | IT52: 0.8977616591 | IU52: 0.02178281691 | IV52: -0.006598711955 | IW52: 0.8807783617 | IX52: 0.02023758472 | IY52: -0.004585594618 | IZ52: 0.8570737592 | JA52: 0.01832139754 | JB52: -0.006740595951 | JC52: 0.9210163003 | JD52: 0.022 | JE52: 0.01832139754 | JG52: 0.03900806687 | JH52: 101.8598911 | JI52: 103.0191467 | JJ52: 102.6762535 | JK52: 103.4677072 | JL52: 103.1728319 | JM52: 102.6034563 | JN52: 104.6472479 | JO52: 103.9008067 | JP52: -0.07019146655 | JQ52: 0.9996843456 | JR52: 0.022 | JS52: -0.03338126742 | JT52: 0.9931920719 | JU52: 0.022 | JV52: -0.02489235737 | JW52: 0.990699015 | JX52: 0.022 | JY52: -0.01793207974 | JZ52: 0.9814532974 | KA52: 0.022 | KB52: -0.0132069126 | KC52: 0.9678821674 | KD52: 0.022 | KE52: -0.01441207986 | KF52: 0.9846658267 | KG52: 0.022 | KH52: -0.0112868667 | KI52: 0.9749249666 | KJ52: 0.022 | KK52: 0.022 | KM52: 0.001115992012 | KN52: 103.1341152 | KO52: 102.7908394 | KP52: 103.5831763 | KQ52: 103.287972 | KR52: 102.7179609 | KS52: 104.7640334 | KT52: 104.0167592 | KU52: 100.1115992 | KV52: -0.06790839363 | KW52: 0.9995401719 | KX52: 0.022 | KY52: -0.03791588174 | KZ52: 0.9970987426 | LA52: 0.022 | LB52: -0.02429323984 | LC52: 0.9894515137 | LD52: 0.022 | LE52: -0.01679490234 | LF52: 0.9762242482 | LG52: 0.022 | LH52: -0.01752806682 | LI52: 0.988981815 | LJ52: 0.022 | LK52: -0.01336126526 | LL52: 0.9795405779 | LM52: 0.022 | LN52: -0.005873713145 | LO52: 0.9045104595 | LP52: 0.022 | LQ52: 0.022 | LS52: 0.03929569117 | LT52: 106.8300764 | LU52: 107.6535489 | LV52: 107.3467442 | LW52: 106.7543342 | LX52: 108.8808085 | LY52: 108.1041696 | LZ52: 104.0455537 | MA52: 103.9295691 | MB52: -0.1165354886 | MC52: 0.9999999835 | MD52: 0.022 | ME52: -0.056733721 | MF52: 0.9999638207 | MG52: 0.022 | MH52: -0.03584778069 | MI52: 0.9993498844 | MJ52: 0.022 | MK52: -0.03220202128 | ML52: 0.9996402018 | MM52: 0.022 | MN52: -0.0242083392 | MO52: 0.9985047835 | MP52: 0.022 | MQ52: -0.01340925614 | MR52: 0.9798028853 | MS52: 0.022 | MT52: -0.01132795588 | MU52: 0.9752130983 | MV52: 0.022 | MW52: 0.022 | MY52: 0.008125441099 | MZ52: 108.5282814 | NA52: 108.2189838 | NB52: 107.6217603 | NC52: 109.7655131 | ND52: 108.9825637 | NE52: 104.8909697 | NF52: 104.7740427 | NG52: 100.8125441 | NH52: -0.1221898385 | NI52: 0.9999999963 | NJ52: 0.022 | NK52: -0.05810880131 | NL52: 0.9999751238 | NM52: 0.022 | NN52: -0.0458850437 | NO52: 0.9999691428 | NP52: 0.022 | NQ52: -0.03245640916 | NR52: 0.9996693349 | NS52: 0.022 | NT52: -0.01778193941 | NU52: 0.9897084067 | NV52: 0.022 | NW52: -0.01462340452 | NX52: 0.9855511236 | NY52: 0.022 | NZ52: -0.006875063014 | OA52: 0.9233701849 | OB52: 0.022 | OC52: 0.022 | OF52: 0.01565052462 | OG52: 0.02151315602 | OH52: 0.01289142584 | OI52: 0.01832139754 | OJ52: 0.022 | OK52: 0.022 | OL52: 0.022 | OM52: 0.022 | OO52: Yes | OQ52: 0.022 | OR52: 0.02090885502 | OS52: 0.01494605838 | OT52: 0.01479977341 | OU52: 0.01699926895 | OV52: 0.01239031519 | OW52: 0.01420814466 | OX52: 0.01036780187 | OZ52: Yes
F53: 28 | G53: -0.01172004724 | H53: 98.82799528 | I53: -0.004039993251 | J53: 0.8615174897 | K53: 0.01866298215 | M53: 0.03508410132 | N53: 102.2952867 | O53: 103.5084101 | P53: -0.01049214446 | Q53: 0.9577274527 | R53: 0.022 | S53: -0.01072630019 | T53: 0.9707056604 | U53: 0.022 | V53: 0.022 | X53: -0.00278990012 | Y53: 102.009893 | Z53: 103.219632 | AA53: 99.72100999 | AB53: -0.01201978608 | AC53: 0.9581742983 | AD53: 0.022 | AE53: -0.01203272001 | AF53: 0.9710484349 | AG53: 0.022 | AH53: -0.005315728554 | AI53: 0.8926203037 | AJ53: 0.02129672584 | AK53: 0.02129672584 | AM53: -0.01156704459 | AN53: 100.8299401 | AO53: 102.0256859 | AP53: 98.56753262 | AQ53: 98.84329554 | AR53: -0.01207485015 | AS53: 0.9396998806 | AT53: 0.022 | AU53: -0.01205137184 | AV53: 0.9584603512 | AW53: 0.022 | AX53: -0.004279221032 | AY53: 0.8492337496 | AZ53: 0.0177358113 | BA53: -0.004061850773 | BB53: 0.862097406 | BC53: 0.0187081068 | BD53: 0.0177358113 | BF53: 0.01909316961 | BG53: 102.7551032 | BH53: 103.9736796 | BI53: 100.4494992 | BJ53: 100.7305273 | BK53: 101.909317 | BL53: -0.0225170107 | BM53: 0.9848597882 | BN53: 0.022 | BO53: -0.01993419912 | BP53: 0.9882971076 | BQ53: 0.022 | BR53: -0.008898998476 | BS53: 0.9211260548 | BT53: 0.022 | BU53: -0.007884212247 | BV53: 0.9242900185 | BW53: 0.022 | BX53: -0.008441881374 | BY53: 0.9470111706 | BZ53: 0.022 | CA53: 0.022 | CC53: -0.02842339103 | CD53: 99.83445473 | CE53: 101.0183951 | CF53: 97.59438384 | CG53: 97.86742418 | CH53: 99.0127086 | CI53: 97.1576609 | CJ53: -0.01917227365 | CK53: 0.93989021 | CL53: 0.022 | CM53: -0.01672798364 | CN53: 0.9564257499 | CO53: 0.022 | CP53: -0.003985959607 | CQ53: 0.7930087596 | CR53: 0.01402356307 | CS53: -0.003734848362 | CT53: 0.8126772311 | CU53: 0.01524067797 | CV53: -0.005021180994 | CW53: 0.8677381444 | CX53: 0.01915395425 | CY53: -0.001653801282 | CZ53: 0.7882012641 | DA53: 0.01373671098 | DB53: 0.01373671098 | DD53: 0.01603561877 | DE53: 101.435362 | DF53: 102.6382876 | DG53: 99.15937018 | DH53: 99.43678889 | DI53: 100.6004386 | DJ53: 98.71564411 | DK53: 101.6035619 | DL53: -0.05435361987 | DM53: 0.9965109943 | DN53: 0.022 | DO53: -0.03319143783 | DP53: 0.9929565271 | DQ53: 0.022 | DR53: -0.01053123392 | DS53: 0.8892912488 | DT53: 0.02099087308 | DU53: -0.008591972214 | DV53: 0.8917026495 | DW53: 0.02121174454 | DX53: -0.00920087729 | DY53: 0.9255417814 | DZ53: 0.022 | EA53: -0.004526073514 | EB53: 0.855572605 | EC53: 0.01820763205 | ED53: -0.008005088396 | EE53: 0.9410924416 | EF53: 0.022 | EG53: 0.01820763205 | EI53: -0.01015085295 | EJ53: 100.4057065 | EK53: 101.5964214 | EL53: 98.15281799 | EM53: 98.42742066 | EN53: 99.57925839 | EO53: 97.71359612 | EP53: 100.5721991 | EQ53: 98.98491471 | ER53: -0.05596421402 | ES53: 0.9972066421 | ET53: 0.022 | EU53: -0.01076408996 | EV53: 0.8445544682 | EW53: 0.01739593662 | EX53: -0.008091402213 | EY53: 0.8486546935 | EZ53: 0.01769337605 | FA53: -0.008948145964 | FB53: 0.897603394 | FC53: 0.02176759225 | FD53: -0.003427192242 | FE53: 0.8041490983 | FF53: 0.01470387554 | FG53: -0.007620331769 | FH53: 0.9200121554 | FI53: 0.022 | FJ53: -0.004264163864 | FK53: 0.8673864736 | FL53: 0.0191257803 | FM53: 0.01470387554 | FO53: -0.002916320592 | FP53: 101.3001337 | FQ53: 97.86657291 | FR53: 98.14037475 | FS53: 99.28885334 | FT53: 97.42863195 | FU53: 100.2788983 | FV53: 98.69624296 | FW53: 99.70836794 | FX53: -0.01866572907 | FY53: 0.8589726221 | FZ53: 0.01846646651 | GA53: -0.01070187375 | GB53: 0.8435977159 | GC53: 0.01732728 | GD53: -0.01096284448 | GE53: 0.8955775633 | GF53: 0.02157420615 | GG53: -0.003571579871 | GH53: 0.7820792146 | GI53: 0.01337687862 | GJ53: -0.008557796573 | GK53: 0.9158994419 | GL53: 0.022 | GM53: -0.004493738267 | GN53: 0.8547526545 | GO53: 0.01814582817 | GP53: -0.005297668487 | GQ53: 0.892218383 | GR53: 0.021259441 | GS53: 0.01337687862 | GU53: -0.0009940632428 | GV53: 97.76928734 | GW53: 98.04281701 | GX53: 99.19015394 | GY53: 97.33178173 | GZ53: 100.1792147 | HA53: 98.59813265 | HB53: 99.60925152 | HC53: 99.90059368 | HD53: -0.02042817011 | HE53: 0.8761238145 | HF53: 0.01984170656 | HG53: -0.01595076972 | HH53: 0.9109722741 | HI53: 0.022 | HJ53: -0.004439272422 | HK53: 0.7713045566 | HL53: 0.01275742612 | HM53: -0.0104480368 | HN53: 0.9198952011 | HO53: 0.022 | HP53: -0.005196265305 | HQ53: 0.8499788851 | HR53: 0.01779057742 | HS53: -0.006015419195 | HT53: 0.889987501 | HU53: 0.02105428846 | HV53: -0.00557227668 | HW53: 0.8982133938 | HX53: 0.02182636707 | HY53: 0.01275742612 | IA53: 0.008215476712 | IB53: 98.84828549 | IC53: 100.0050483 | ID53: 98.13140871 | IE53: 101.0022347 | IF53: 99.40816332 | IG53: 100.427589 | IH53: 100.7213247 | II53: 100.8215477 | IJ53: -0.04005048344 | IK53: 0.9797077122 | IL53: 0.022 | IM53: -0.01065704356 | IN53: 0.8429059245 | IO53: 0.01727780914 | IP53: -0.01667411575 | IQ53: 0.9560326337 | IR53: 0.022 | IS53: -0.008520408288 | IT53: 0.8904880956 | IU53: 0.02110006129 | IV53: -0.008855178007 | IW53: 0.9204689149 | IX53: 0.022 | IY53: -0.007868874461 | IZ53: 0.9240462414 | JA53: 0.022 | JB53: -0.006887925245 | JC53: 0.9235925161 | JD53: 0.022 | JE53: 0.01727780914 | JG53: -0.004510460609 | JH53: 99.55397951 | JI53: 97.68879086 | JJ53: 100.5466681 | JK53: 98.95978671 | JL53: 99.97461432 | JM53: 100.2670251 | JN53: 100.3667961 | JO53: 99.54895394 | JP53: -0.01688790859 | JQ53: 0.840108749 | JR53: 0.01707922582 | JS53: -0.02273334062 | JT53: 0.9626878522 | JU53: 0.022 | JV53: -0.009865955701 | JW53: 0.8790780677 | JX53: 0.02009173198 | JY53: -0.009936535798 | JZ53: 0.9127470375 | KA53: 0.022 | KB53: -0.008534050218 | KC53: 0.915526235 | KD53: 0.022 | KE53: -0.00727799342 | KF53: 0.914193181 | KG53: 0.022 | KH53: -0.005069934199 | KI53: 0.8870570152 | KJ53: 0.02078928568 | KK53: 0.01707922582 | KM53: -0.003761839304 | KN53: 97.32130133 | KO53: 100.1684277 | KP53: 98.5875159 | KQ53: 99.59852589 | KR53: 99.88983667 | KS53: 99.98923229 | KT53: 99.17446677 | KU53: 99.62381607 | KV53: -0.04168427716 | KW53: 0.9830816599 | KX53: 0.022 | KY53: -0.01293757948 | KZ53: 0.8755594358 | LA53: 0.01979441862 | LB53: -0.01199508629 | LC53: 0.9095543963 | LD53: 0.022 | LE53: -0.009724591683 | LF53: 0.9096494138 | LG53: 0.022 | LH53: -0.007978464587 | LI53: 0.9064361777 | LJ53: 0.022 | LK53: -0.005290777952 | LL53: 0.8740568571 | LM53: 0.01966924759 | LN53: -0.005176880099 | LO53: 0.8895023982 | LP53: 0.0210100745 | LQ53: 0.01966924759 | LS53: -0.02256265995 | LT53: 97.90836154 | LU53: 96.3631193 | LV53: 97.35131821 | LW53: 97.63605626 | LX53: 97.73320925 | LY53: 96.936827 | LZ53: 97.37603778 | MA53: 97.743734 | MB53: -0.003631192988 | MC53: 0.6525916748 | MD53: 0.006734955674 | ME53: -0.006756591072 | MF53: 0.7750981405 | MG53: 0.01297359466 | MH53: -0.005453520853 | MI53: 0.7947463811 | MJ53: 0.01412820968 | MK53: -0.004333023117 | ML53: 0.8019081467 | MM53: 0.01456519327 | MN53: -0.001873654004 | MO53: 0.7576097415 | MP53: 0.01199324165 | MQ53: -0.002293396308 | MR53: 0.7916185219 | MS53: 0.01394021117 | MT53: -0.002491048579 | MU53: 0.8161750439 | MV53: 0.01546520025 | MW53: 0.006734955674 | MY53: 0.01474449218 | MZ53: 97.78394456 | NA53: 98.78671396 | NB53: 99.07565032 | NC53: 99.17423579 | ND53: 98.36611129 | NE53: 98.81179801 | NF53: 99.18491573 | NG53: 101.4744492 | NH53: -0.02786713964 | NI53: 0.9324070795 | NJ53: 0.022 | NK53: -0.01537825162 | NL53: 0.9048959299 | NM53: 0.022 | NN53: -0.01058078595 | NO53: 0.8900264445 | NP53: 0.02105784396 | NQ53: -0.005915278224 | NR53: 0.8394739156 | NS53: 0.01703447371 | NT53: -0.005623596024 | NU53: 0.8598791396 | NV53: 0.01853618966 | NW53: -0.005308192878 | NX53: 0.8744576579 | NY53: 0.01970253355 | NZ53: -0.00782064174 | OA53: 0.9384423776 | OB53: 0.022 | OC53: 0.01703447371 | OF53: 0.01470387554 | OG53: 0.01337687862 | OH53: 0.01275742612 | OI53: 0.01727780914 | OJ53: 0.01707922582 | OK53: 0.01966924759 | OL53: 0.006734955674 | OM53: 0.01703447371 | OO53: Yes | OQ53: 0.022 | OR53: 0.01866298215 | OS53: 0.022 | OT53: 0.022 | OU53: 0.022 | OV53: 0.022 | OW53: 0.022 | OX53: 0.022 | OZ53: Yes
F54: 29 | G54: 0.004048012579 | H54: 100.4048013 | I54: -0.006292573226 | J54: 0.9127778241 | K54: 0.022 | M54: 0.06356220942 | N54: 106.7867523 | O54: 106.3562209 | P54: -0.01797792044 | Q54: 0.9947418212 | R54: 0.022 | S54: -0.01479460135 | T54: 0.9913560513 | U54: 0.022 | V54: 0.022 | X54: -0.02627368234 | Y54: 103.9810711 | Z54: 103.5618514 | AA54: 97.37263177 | AB54: -0.01596214211 | AC54: 0.9834381482 | AD54: 0.022 | AE54: -0.01260308563 | AF54: 0.9749983264 | AG54: 0.022 | AH54: -0.001960902522 | AI54: 0.7987397009 | AJ54: 0.01437071864 | AK54: 0.01437071864 | AM54: -0.007379119759 | AN54: 103.2137823 | AO54: 102.7976561 | AP54: 96.65410745 | AQ54: 99.26208802 | AR54: -0.0180344557 | AS54: 0.981871855 | AT54: 0.022 | AU54: -0.01359531215 | AV54: 0.9706221811 | AW54: 0.022 | AX54: -0.001090179091 | AY54: 0.7511405407 | AZ54: 0.01164044555 | BA54: -0.004660125749 | BB54: 0.8773295495 | BC54: 0.01994323994 | BD54: 0.01164044555 | BF54: -0.0002578819341 | BG54: 103.1871653 | BH54: 102.7711464 | BI54: 96.62918211 | BJ54: 99.23649012 | BK54: 99.97421181 | BL54: -0.0239572177 | BM54: 0.9886899164 | BN54: 0.022 | BO54: -0.01692786604 | BP54: 0.9768934857 | BQ54: 0.022 | BR54: -0.001258364213 | BS54: 0.7376433079 | BT54: 0.01091967595 | BU54: -0.005394150208 | BV54: 0.8764229056 | BW54: 0.01986682784 | BX54: -0.005677445438 | BY54: 0.9004438544 | BZ54: 0.022 | CA54: 0.01091967595 | CC54: 0.00941959359 | CD54: 104.1591465 | CE54: 103.7392088 | CF54: 97.53938973 | CG54: 100.1712575 | CH54: 100.9159283 | CI54: 100.9419594 | CJ54: -0.04079573235 | CK54: 0.9983792732 | CL54: 0.022 | CM54: -0.02579736282 | CN54: 0.9923387092 | CO54: 0.022 | CP54: -0.003848474327 | CQ54: 0.7894189499 | CR54: 0.01380900241 | CS54: -0.008342515062 | CT54: 0.9124704496 | CU54: 0.022 | CV54: -0.008193213752 | CW54: 0.9290752322 | CX54: 0.022 | CY54: -0.007059941941 | CZ54: 0.9265189409 | DA54: 0.022 | DB54: 0.01380900241 | DD54: 0.0005885242832 | DE54: 104.2204467 | DF54: 103.8002619 | DG54: 97.59679403 | DH54: 100.2302107 | DI54: 100.9753197 | DJ54: 101.0013662 | DK54: 100.0588524 | DL54: -0.08220446657 | DM54: 0.9999631231 | DN54: 0.022 | DO54: -0.03900130945 | DP54: 0.9976617475 | DQ54: 0.022 | DR54: -0.005322646767 | DS54: 0.7918042903 | DT54: 0.0139513299 | DU54: -0.01057552687 | DV54: 0.921605951 | DW54: 0.022 | DX54: -0.009950639451 | DY54: 0.9356910653 | DZ54: 0.022 | EA54: -0.008335610255 | EB54: 0.9312006337 | EC54: 0.022 | ED54: -0.005798360612 | EE54: 0.9029638817 | EF54: 0.022 | EG54: 0.0139513299 | EI54: 0.007375788053 | EJ54: 104.9891546 | EK54: 104.5658706 | EL54: 98.3166473 | EM54: 100.9694875 | EN54: 101.7200923 | EO54: 101.7463308 | EP54: 100.7968653 | EQ54: 100.7375788 | ER54: -0.08565870623 | ES54: 0.9999811262 | ET54: 0.022 | EU54: -0.01158323649 | EV54: 0.8567906237 | EW54: 0.01829987851 | EX54: -0.01656495847 | EY54: 0.955227258 | EZ54: 0.022 | FA54: -0.01430023071 | FB54: 0.9603332509 | FC54: 0.022 | FD54: -0.01149266165 | FE54: 0.9531607784 | FF54: 0.022 | FG54: -0.007994775528 | FH54: 0.9260296985 | FI54: 0.022 | FJ54: -0.006767969722 | FK54: 0.9214998729 | FL54: 0.022 | FM54: 0.01829987851 | FO54: -0.0130484585 | FP54: 103.2014472 | FQ54: 97.03376661 | FR54: 99.65199137 | FS54: 100.3928019 | FT54: 100.418698 | FU54: 99.4816216 | FV54: 99.42310869 | FW54: 98.69515415 | FX54: -0.01033766606 | FY54: 0.7571507429 | FZ54: 0.01196804442 | GA54: -0.01825995686 | GB54: 0.9325697416 | GC54: 0.022 | GD54: -0.01464267293 | GE54: 0.9390031749 | GF54: 0.022 | GG54: -0.01104674512 | GH54: 0.9276892319 | GI54: 0.022 | GJ54: -0.006963243206 | GK54: 0.8879956346 | GL54: 0.02087362363 | GM54: -0.005705181149 | GN54: 0.8833536159 | GO54: 0.0204613159 | GP54: -0.003850220215 | GQ54: 0.856412666 | GR54: 0.01827119748 | GS54: 0.01196804442 | GU54: -0.01508515397 | GV54: 95.5699973 | GW54: 98.14872574 | GX54: 98.87836101 | GY54: 98.90386653 | GZ54: 97.98092602 | HA54: 97.92329579 | HB54: 97.20632255 | HC54: 98.4914846 | HD54: -0.02148725739 | HE54: 0.8856986873 | HF54: 0.02066811676 | HG54: -0.01439180503 | HH54: 0.8937191751 | HI54: 0.02139918082 | HJ54: -0.009679555089 | HK54: 0.8761011735 | HL54: 0.01983980663 | HM54: -0.00495231506 | HN54: 0.8172026441 | HO54: 0.01553166541 | HP54: -0.003846591573 | HQ54: 0.8157170063 | HR54: 0.01543564899 | HS54: -0.00201053759 | HT54: 0.7824682664 | HU54: 0.01339957001 | HV54: -0.003559263719 | HW54: 0.8483422029 | HX54: 0.0176705205 | HY54: 0.01339957001 | IA54: 0.01708465417 | IB54: 99.82556278 | IC54: 100.5676636 | ID54: 100.5936049 | IE54: 99.65489626 | IF54: 99.59628143 | IG54: 98.86705896 | IH54: 100.1741776 | II54: 101.7084654 | IJ54: -0.04567663609 | IK54: 0.9893741716 | IL54: 0.022 | IM54: -0.02296802441 | IN54: 0.9638998234 | IO54: 0.022 | IP54: -0.01218298754 | IQ54: 0.9119417401 | IR54: 0.022 | IS54: -0.008990703576 | IT54: 0.8982925014 | IU54: 0.02183400801 | IV54: -0.005734117916 | IW54: 0.8623657322 | IX54: 0.0187290297 | IY54: -0.006956962594 | IZ54: 0.9084537736 | JA54: 0.022 | JB54: -0.008154950596 | JC54: 0.9431789907 | JD54: 0.022 | JE54: 0.0187290297 | JG54: -0.02070284675 | JH54: 98.48562668 | JI54: 98.5110309 | JJ54: 97.59175622 | JK54: 97.53435488 | JL54: 96.82022939 | JM54: 98.10028691 | JN54: 99.60281064 | JO54: 97.92971533 | JP54: -0.02511030897 | JQ54: 0.9144457104 | JR54: 0.022 | JS54: -0.007958781079 | JT54: 0.7975838385 | JU54: 0.01430023141 | JV54: -0.005114516265 | JW54: 0.787074539 | JX54: 0.01367003602 | JY54: -0.002050573471 | JZ54: 0.739226062 | KA54: 0.01100318342 | KB54: -0.004200573821 | KC54: 0.8251422563 | KD54: 0.01605328186 | KE54: -0.006004684408 | KF54: 0.8897625748 | KG54: 0.02103377055 | KH54: -0.002756736179 | KI54: 0.8245477089 | KJ54: 0.01601370984 | KK54: 0.01100318342 | KM54: 0.004329458068 | KN54: 98.93753027 | KO54: 98.01427563 | KP54: 97.95662578 | KQ54: 97.23940851 | KR54: 98.52500799 | KS54: 100.0340368 | KT54: 98.35369792 | KU54: 100.4329458 | KV54: -0.02014275632 | KW54: 0.873450094 | KX54: 0.019618997 | KY54: -0.009783128896 | KZ54: 0.829018942 | LA54: 0.01631342971 | LB54: -0.004131361705 | LC54: 0.7639012864 | LD54: 0.01234127665 | LE54: -0.006312519973 | LF54: 0.8481217099 | LG54: 0.01765441247 | LH54: -0.008068073674 | LI54: 0.90794924 | LJ54: 0.022 | LK54: -0.003922829869 | LL54: 0.8397599638 | LM54: 0.01705462412 | LN54: -0.006332779724 | LO54: 0.9135423897 | LP54: 0.022 | LQ54: 0.01234127665 | LS54: 0.01613208729 | LT54: 99.59545048 | LU54: 99.53687062 | LV54: 98.80808314 | LW54: 100.114422 | LX54: 101.6477947 | LY54: 99.94034836 | LZ54: 102.0531389 | MA54: 101.6132087 | MB54: -0.03536870617 | MC54: 0.9667427981 | MD54: 0.022 | ME54: -0.01404041569 | MF54: 0.8895171481 | MG54: 0.0210114168 | MH54: -0.01371474006 | MI54: 0.9296788887 | MJ54: 0.022 | MK54: -0.01411948663 | ML54: 0.9589064985 | MM54: 0.022 | MN54: -0.007880696723 | MO54: 0.9047644886 | MP54: 0.022 | MQ54: -0.01008856476 | MR54: 0.9535181787 | MS54: 0.022 | MT54: -0.008018869613 | MU54: 0.9412867945 | MV54: 0.022 | MW54: 0.0210114168 | MY54: -0.01636414468 | MZ54: 97.90803486 | NA54: 97.19117337 | NB54: 98.47613513 | NC54: 99.98441543 | ND54: 98.30491004 | NE54: 100.3831265 | NF54: 99.95039548 | NG54: 98.36358553 | NH54: -0.01191173369 | NI54: 0.7789687907 | NJ54: 0.01319629592 | NK54: -0.01238067566 | NL54: 0.8680610096 | NM54: 0.01917986595 | NN54: -0.01328138478 | NO54: 0.9249652156 | NP54: 0.022 | NQ54: -0.005762275103 | NR54: 0.8360589292 | NS54: 0.01679569577 | NT54: -0.008766253051 | NU54: 0.9191226579 | NV54: 0.022 | NW54: -0.006583992466 | NX54: 0.9014341897 | NY54: 0.022 | NZ54: -0.00337655076 | OA54: 0.8431229198 | OB54: 0.01729331129 | OC54: 0.01319629592 | OF54: 0.01829987851 | OG54: 0.01196804442 | OH54: 0.01339957001 | OI54: 0.0187290297 | OJ54: 0.01100318342 | OK54: 0.01234127665 | OL54: 0.0210114168 | OM54: 0.01319629592 | OO54: Yes | OQ54: 0.022 | OR54: 0.022 | OS54: 0.022 | OT54: 0.022 | OU54: 0.022 | OV54: 0.022 | OW54: 0.022 | OX54: 0.022 | OZ54: No
F55: 30 | G55: -0.01436582793 | H55: 98.56341721 | I55: -0.003662024581 | J55: 0.8512263224 | K55: 0.01788266934 | M55: -0.02390277018 | N55: 96.2074785 | O55: 97.60972298 | P55: -0.0003457974953 | Q55: 0.7241462613 | R55: 0.01021767402 | S55: -0.00229960426 | T55: 0.809990367 | U55: 0.01506996524 | V55: 0.01021767402 | X55: 0.001522586249 | Y55: 96.35396268 | Z55: 97.7583422 | AA55: 100.1522586 | AB55: -0.000707925362 | AC55: 0.7190934057 | AD55: 0.009959263024 | AE55: -0.00293057034 | AF55: 0.8113800309 | AG55: 0.01515807184 | AH55: -0.005931798036 | AI55: 0.905690187 | AJ55: 0.022 | AK55: 0.009959263024 | AM55: 0.01230471053 | AN55: 97.5395703 | AO55: 98.96123031 | AP55: 101.3846032 | AQ55: 101.2304711 | AR55: -0.00384892575 | AS55: 0.7894307963 | AT55: 0.0138097069 | AU55: -0.005922460613 | AV55: 0.8665334335 | AW55: 0.01905765251 | AX55: -0.008974338627 | AY55: 0.9401351396 | AZ55: 0.022 | BA55: -0.007472101504 | BB55: 0.9331814882 | BC55: 0.022 | BD55: 0.0138097069 | BF55: 0.007497640088 | BG55: 98.27088689 | BH55: 99.70320599 | BI55: 102.1447484 | BJ55: 101.9894607 | BK55: 100.749764 | BL55: -0.007569622975 | BM55: 0.8388154498 | BN55: 0.01698817762 | BO55: -0.009258014985 | BP55: 0.9025438086 | BQ55: 0.022 | BR55: -0.01228949688 | BS55: 0.9605662315 | BT55: 0.022 | BU55: -0.009982434484 | BV55: 0.9523571115 | BW55: 0.022 | BX55: -0.006785377155 | BY55: 0.9218062151 | BZ55: 0.022 | CA55: 0.01698817762 | CC55: 0.01983980372 | CD55: 100.220562 | CE55: 101.681298 | CF55: 104.1712802 | CG55: 104.0129116 | CH55: 102.7486196 | CI55: 101.9839804 | CJ55: -0.02110281 | CK55: 0.9533217824 | CL55: 0.022 | CM55: -0.0189376601 | CN55: 0.9702582025 | CO55: 0.022 | CP55: -0.0204282005 | CQ55: 0.9896016372 | CR55: 0.022 | CS55: -0.01602582314 | CT55: 0.9837031665 | CU55: 0.022 | CV55: -0.01124769925 | CW55: 0.9647765202 | CX55: 0.022 | CY55: -0.008548543388 | CZ55: 0.9483823365 | DA55: 0.022 | DB55: 0.022 | DD55: 0.003152255132 | DE55: 100.5364828 | DF55: 102.0018234 | DG55: 104.4996547 | DH55: 104.3407868 | DI55: 103.0725094 | DJ55: 102.3054599 | DK55: 100.3152255 | DL55: -0.0453648278 | DM55: 0.9889693367 | DN55: 0.022 | DO55: -0.03000911712 | DP55: 0.9877904778 | DQ55: 0.022 | DR55: -0.02833218218 | DS55: 0.9956577285 | DT55: 0.022 | DU55: -0.02085196702 | DV55: 0.990617803 | DW55: 0.022 | DX55: -0.01414501883 | DY55: 0.9741659778 | DZ55: 0.022 | EA55: -0.01050909983 | EB55: 0.9578973113 | EC55: 0.022 | ED55: -0.006164607876 | EE55: 0.910310838 | EF55: 0.022 | EG55: 0.022 | EI55: 0.01682726131 | EJ55: 102.2282364 | EK55: 103.7182348 | EL55: 106.2580976 | EM55: 106.0965565 | EN55: 104.8069375 | EO55: 104.0269806 | EP55: 102.003256 | EQ55: 101.6827261 | ER55: -0.07718234761 | ES55: 0.9999063515 | ET55: 0.022 | EU55: -0.05129048825 | EV55: 0.9998518363 | EW55: 0.022 | EX55: -0.03365518831 | EY55: 0.9988300319 | EZ55: 0.022 | FA55: -0.02201734366 | FB55: 0.9929777295 | FC55: 0.022 | FD55: -0.01605396121 | FE55: 0.9838191054 | FF55: 0.022 | FG55: -0.01000542671 | FH55: 0.9526105982 | FI55: 0.022 | FJ55: -0.008118180188 | FK55: 0.9426725004 | FL55: 0.022 | FM55: 0.022 | FO55: 0.01613343619 | FP55: 105.3915663 | FQ55: 107.9724059 | FR55: 107.8082585 | FS55: 106.4978335 | FT55: 105.7052933 | FU55: 103.648919 | FV55: 103.3232179 | FW55: 101.6133436 | FX55: -0.1197240589 | FY55: 0.9999999928 | FZ55: 0.022 | GA55: -0.05904129258 | GB55: 0.9999807857 | GC55: 0.022 | GD55: -0.03499277834 | GE55: 0.9991797684 | GF55: 0.022 | GG55: -0.02426323315 | GH55: 0.9960963756 | GI55: 0.022 | GJ55: -0.0152978381 | GK55: 0.9804465917 | GL55: 0.022 | GM55: -0.01220536318 | GN55: 0.9722953451 | GO55: 0.022 | GP55: -0.008019062313 | GQ55: 0.9412895085 | GR55: 0.022 | GS55: 0.022 | GU55: 0.05844240082 | GV55: 114.2825725 | GW55: 114.108832 | GX55: 112.7218226 | GY55: 111.8829644 | GZ55: 109.7064107 | HA55: 109.3616748 | HB55: 107.5518714 | HC55: 105.8442401 | HD55: -0.1810883197 | HE55: 1 | HF55: 0.022 | HG55: -0.08360911288 | HH55: 0.9999999939 | HI55: 0.022 | HJ55: -0.05294321459 | HK55: 0.9999974647 | HL55: 0.022 | HM55: -0.0342660268 | HN55: 0.9998212631 | HO55: 0.022 | HP55: -0.02672334964 | HQ55: 0.9993686917 | HR55: 0.022 | HS55: -0.01925311896 | HT55: 0.9965367031 | HU55: 0.022 | HV55: -0.01406320012 | HW55: 0.9890635436 | HX55: 0.022 | HY55: 0.022 | IA55: -0.02985779397 | IB55: 110.701794 | IC55: 109.3561976 | ID55: 108.5423859 | IE55: 106.4308193 | IF55: 106.0963765 | IG55: 104.3406098 | IH55: 102.6839646 | II55: 97.0142206 | IJ55: -0.1335619762 | IK55: 0.9999999998 | IL55: 0.022 | IM55: -0.06271192938 | IN55: 0.9999932761 | IO55: 0.022 | IP55: -0.03476939771 | IQ55: 0.9991290224 | IR55: 0.022 | IS55: -0.02524094116 | IT55: 0.9970127395 | IU55: 0.022 | IV55: -0.01668121952 | IW55: 0.9862261249 | IX55: 0.022 | IY55: -0.01113994095 | IZ55: 0.9638344263 | JA55: 0.022 | JB55: -0.001448886575 | JC55: 0.7809933065 | JD55: 0.01331366647 | JE55: 0.01331366647 | JG55: 0.008378707279 | JH55: 110.2724612 | JI55: 109.4518308 | JJ55: 107.322572 | JK55: 106.9853269 | JL55: 105.2148492 | JM55: 103.5443234 | JN55: 97.82707436 | JO55: 100.8378707 | JP55: -0.1345183076 | JQ55: 0.9999999999 | JR55: 0.022 | JS55: -0.05661285996 | JT55: 0.999962623 | JU55: 0.022 | JV55: -0.03661775649 | JW55: 0.9994745788 | JX55: 0.022 | JY55: -0.02303712296 | JZ55: 0.9945957414 | KA55: 0.022 | KB55: -0.0150886469 | KC55: 0.9794142679 | KD55: 0.022 | KE55: -0.003045123932 | KF55: 0.8148062256 | KG55: 0.01537702351 | KH55: -0.006911243897 | KI55: 0.9239943406 | KJ55: 0.022 | KK55: 0.01537702351 | KM55: 0.01717026229 | KN55: 111.3311474 | KO55: 109.1653287 | KP55: 108.8222931 | KQ55: 107.0214157 | KR55: 105.3222066 | KS55: 99.50679088 | KT55: 102.5692834 | KU55: 101.7170262 | KV55: -0.131653287 | KW55: 0.9999999997 | KX55: 0.022 | KY55: -0.06411146536 | KZ55: 0.9999955572 | LA55: 0.022 | LB55: -0.03673805247 | LC55: 0.99949193 | LD55: 0.022 | LE55: -0.0233055166 | LF55: 0.9949622709 | LG55: 0.022 | LH55: -0.007013581769 | LI55: 0.888967191 | LJ55: 0.02096145501 | LK55: -0.01094880569 | LL55: 0.9621126939 | LM55: 0.022 | LN55: -0.008167180327 | LO55: 0.9433466646 | LP55: 0.022 | LQ55: 0.02096145501 | LS55: 0.02662798357 | LT55: 112.0721813 | LU55: 111.7200113 | LV55: 109.8711802 | LW55: 108.1267246 | LX55: 102.1564561 | LY55: 105.3004966 | LZ55: 104.4255455 | MA55: 102.6627984 | MB55: -0.157200113 | MC55: 1 | MD55: 0.022 | ME55: -0.06935590121 | MF55: 0.9999991226 | MG55: 0.022 | MH55: -0.04042241543 | MI55: 0.9998256127 | MJ55: 0.022 | MK55: -0.01539114019 | ML55: 0.9681118182 | MM55: 0.022 | MN55: -0.01860099322 | MO55: 0.9917753734 | MP55: 0.022 | MQ55: -0.01404257589 | MR55: 0.983005781 | MS55: 0.022 | MT55: -0.009518283368 | MU55: 0.9595936049 | MV55: 0.022 | MW55: 0.022 | MY55: 0.04464679201 | MZ55: 116.7079514 | NA55: 114.776576 | NB55: 112.954236 | NC55: 106.7174141 | ND55: 110.001826 | NE55: 109.0878111 | NF55: 107.246363 | NG55: 104.4646792 | NH55: -0.1877657598 | NI55: 1 | NJ55: 0.022 | NK55: -0.08477118008 | NL55: 0.9999999961 | NM55: 0.022 | NN55: -0.03572471375 | NO55: 0.9993275904 | NP55: 0.022 | NQ55: -0.03500456495 | NR55: 0.9998619655 | NS55: 0.022 | NT55: -0.02617562229 | NU55: 0.9992343177 | NV55: 0.022 | NW55: -0.01874393827 | NX55: 0.9958992576 | NY55: 0.022 | NZ55: -0.01209239886 | OA55: 0.980087344 | OB55: 0.022 | OC55: 0.022 | OF55: 0.022 | OG55: 0.022 | OH55: 0.022 | OI55: 0.01331366647 | OJ55: 0.01537702351 | OK55: 0.02096145501 | OL55: 0.022 | OM55: 0.022 | OO55: Yes | OQ55: 0.022 | OR55: 0.01788266934 | OS55: 0.01021767402 | OT55: 0.009959263024 | OU55: 0.0138097069 | OV55: 0.01698817762 | OW55: 0.022 | OX55: 0.022 | OZ55: Yes
F56: 31 | G56: -0.02367999706 | H56: 97.63200029 | I56: -0.002331428992 | J56: 0.8110272469 | K56: 0.0151356671 | M56: -0.007602033831 | N56: 96.88979853 | O56: 99.23979662 | P56: -0.001482997542 | Q56: 0.7647973681 | R56: 0.01239125792 | S56: -0.004628280881 | T56: 0.8765497724 | U56: 0.0198774965 | V56: 0.01239125792 | X56: 0.005470292687 | Y56: 97.41981408 | Z56: 99.78266735 | AA56: 100.5470293 | AB56: -0.002839628163 | AC56: 0.7872209106 | AD56: 0.01367868603 | AE56: -0.006304445584 | AF56: 0.8959201612 | AG56: 0.02160671818 | AH56: -0.006495756098 | AI56: 0.9165902695 | AJ56: 0.022 | AK56: 0.01367868603 | AM56: 0.0007392028292 | AN56: 97.49182708 | AO56: 99.85642698 | AP56: 100.6213539 | AQ56: 100.0739203 | AR56: -0.003729567709 | AS56: 0.786284979 | AT56: 0.01362343575 | AU56: -0.007712853961 | AV56: 0.9018435082 | AW56: 0.022 | AX56: -0.007702256529 | AY56: 0.9213593933 | AZ56: 0.022 | BA56: -0.005819886118 | BB56: 0.9034075474 | BC56: 0.022 | BD56: 0.01362343575 | BF56: 0.02417609528 | BG56: 99.84879878 | BH56: 102.2705655 | BI56: 103.0539854 | BJ56: 102.4933169 | BK56: 102.4176095 | BL56: -0.01282932928 | BM56: 0.91979525 | BN56: 0.022 | BO56: -0.01567641368 | BP56: 0.9699237375 | BQ56: 0.022 | BR56: -0.01410797071 | BS56: 0.9739389366 | BT56: 0.022 | BU56: -0.01082219486 | BV56: 0.9609357902 | BW56: 0.022 | BX56: -0.009168013612 | BY56: 0.9557968894 | BZ56: 0.022 | CA56: 0.022 | CC56: 0.01797980471 | CD56: 101.6440607 | CE56: 104.1093703 | CF56: 104.9068759 | CG56: 104.3361267 | CH56: 104.2590581 | CI56: 101.7979805 | CJ56: -0.02822030343 | CK56: 0.9836391699 | CL56: 0.022 | CM56: -0.02703123423 | CN56: 0.9941622909 | CO56: 0.022 | CP56: -0.02226718972 | CQ56: 0.9934093946 | CR56: 0.022 | CS56: -0.01667225347 | CT56: 0.9861940245 | CU56: 0.022 | CV56: -0.01376509691 | CW56: 0.9816602755 | CX56: 0.022 | CY56: -0.008282829244 | CZ56: 0.9449130447 | DA56: 0.022 | DB56: 0.022 | DD56: 0.007019295365 | DE56: 102.3575304 | DF56: 104.8401447 | DG56: 105.6432482 | DH56: 105.0684928 | DI56: 104.9908833 | DJ56: 102.5125306 | DK56: 100.7019295 | DL56: -0.06357530371 | DM56: 0.9990866757 | DN56: 0.022 | DO56: -0.04420072344 | DP56: 0.9992185469 | DQ56: 0.022 | DR56: -0.03214416079 | DS56: 0.9982740862 | DT56: 0.022 | DU56: -0.02267123207 | DV56: 0.9940579381 | DW56: 0.022 | DX56: -0.01798176654 | DY56: 0.990250579 | DZ56: 0.022 | EA56: -0.01085421761 | EB56: 0.9612362319 | EC56: 0.022 | ED56: -0.006717042195 | EE56: 0.9205984074 | EF56: 0.022 | EG56: 0.022 | EI56: 0.0393549761 | EJ56: 106.3858085 | EK56: 108.9661261 | EL56: 109.8008357 | EM56: 109.2034609 | EN56: 109.122797 | EO56: 106.5469088 | EP56: 104.6650516 | EQ56: 103.9354976 | ER56: -0.1296612608 | ES56: 0.9999999995 | ET56: 0.022 | EU56: -0.06900417873 | EV56: 0.9999990184 | EW56: 0.022 | EX56: -0.04401153617 | EY56: 0.9999429943 | EZ56: 0.022 | FA56: -0.03280699243 | FB56: 0.9997059015 | FC56: 0.022 | FD56: -0.02109381751 | FE56: 0.9960010844 | FF56: 0.022 | FG56: -0.01444175261 | FH56: 0.9847928788 | FI56: 0.022 | FJ56: -0.01133642516 | FK56: 0.9752721413 | FL56: 0.022 | FM56: 0.022 | FO56: -0.002659292186 | FP56: 108.6763533 | FQ56: 109.5088432 | FR56: 108.9130569 | FS56: 108.8326076 | FT56: 106.2635694 | FU56: 104.3867166 | FV56: 103.6591028 | FW56: 99.73407078 | FX56: -0.1350884324 | FY56: 0.9999999999 | FZ56: 0.022 | GA56: -0.06456528471 | GB56: 0.9999961223 | GC56: 0.022 | GD56: -0.04277535857 | GE56: 0.9999154952 | GF56: 0.022 | GG56: -0.02565892348 | GH56: 0.997341511 | GI56: 0.022 | GJ56: -0.01677343323 | GK56: 0.986552551 | GL56: 0.022 | GM56: -0.01276517126 | GN56: 0.9760346333 | GO56: 0.022 | GP56: -0.005334386831 | GQ56: 0.8930344015 | GR56: 0.02133524568 | GS56: 0.02133524568 | GU56: -0.02484392542 | GV56: 106.7882137 | GW56: 106.2072291 | GX56: 106.1287784 | GY56: 103.6235652 | GZ56: 101.7933408 | HA56: 101.0838037 | HB56: 97.25628497 | HC56: 97.51560746 | HD56: -0.1020722908 | HE56: 0.9999994333 | HF56: 0.022 | HG56: -0.05064389193 | HH56: 0.99982617 | HI56: 0.022 | HJ56: -0.025411884 | HK56: 0.9916742776 | HL56: 0.022 | HM56: -0.01448335203 | HN56: 0.9617374241 | HO56: 0.022 | HP56: -0.01016760747 | HQ56: 0.9384179104 | HR56: 0.022 | HS56: -0.002093808275 | HT56: 0.7851858162 | HU56: 0.01355872918 | HV56: -0.002165153512 | HW56: 0.8055713641 | HX56: 0.01479239291 | HY56: 0.01355872918 | IA56: 0.01903974653 | IB56: 108.2293878 | IC56: 108.1494434 | ID56: 105.5965316 | IE56: 103.7314602 | IF56: 103.0084137 | IG56: 99.10801998 | IH56: 99.37227991 | II56: 101.9039747 | IJ56: -0.1214944342 | IK56: 0.9999999955 | IL56: 0.022 | IM56: -0.04798265808 | IN56: 0.9996702131 | IO56: 0.022 | IP56: -0.02577153406 | IQ56: 0.9922956946 | IR56: 0.022 | IS56: -0.01752103434 | IT56: 0.9796889562 | IU56: 0.022 | IV56: -0.006216039958 | IW56: 0.8728552188 | IX56: 0.0195698936 | IY56: -0.005620466511 | IZ56: 0.8814938278 | JA56: 0.02029939683 | JB56: -0.008434249504 | JC56: 0.9469119641 | JD56: 0.022 | JE56: 0.0195698936 | JG56: 0.0009872089951 | JH56: 108.2562095 | JI56: 105.7007775 | JJ56: 103.8338648 | JK56: 103.1101046 | JL56: 99.20586031 | JM56: 99.47038112 | JN56: 102.0045752 | JO56: 100.0987209 | JP56: -0.09700777461 | JQ56: 0.9999982301 | JR56: 0.022 | JS56: -0.03916932424 | JT56: 0.9977394515 | JU56: 0.022 | JV56: -0.02370034857 | JW56: 0.9880759141 | JX56: 0.022 | JY56: -0.00801465077 | JZ56: 0.8816251614 | KA56: 0.02031077191 | KB56: -0.00694076223 | KC56: 0.8875597841 | KD56: 0.02083439853 | KE56: -0.01000762529 | KF56: 0.9526347805 | KG56: 0.022 | KH56: -0.005855315571 | KI56: 0.9041345419 | KJ56: 0.022 | KK56: 0.02031077191 | KM56: -0.01459932386 | KN56: 104.1576176 | KO56: 102.3179606 | KP56: 101.6047668 | KQ56: 97.75752182 | KR56: 98.01818081 | KS56: 100.5153773 | KT56: 98.63734726 | KU56: 98.54006761 | KV56: -0.06317960628 | KW56: 0.9990293641 | KX56: 0.022 | KY56: -0.0280238338 | KZ56: 0.9831168905 | LA56: 0.022 | LB56: -0.005858406081 | LC56: 0.8036905918 | LD56: 0.01467542277 | LE56: -0.005045452017 | LF56: 0.8194373416 | LG56: 0.01567701572 | LH56: -0.00903075469 | LI56: 0.9230771203 | LJ56: 0.022 | LK56: -0.004395578758 | LL56: 0.8522443908 | LM56: 0.01795821129 | LN56: -0.00362866802 | LO56: 0.850294172 | LP56: 0.01781380503 | LQ56: 0.01467542277 | LS56: 0.00209229751 | LT56: 102.5320402 | LU56: 101.8173542 | LV56: 97.96205964 | LW56: 98.223264 | LX56: 100.7256854 | LY56: 98.84372593 | LZ56: 98.74624275 | MA56: 100.2092298 | MB56: -0.0581735416 | MC56: 0.9979575152 | MD56: 0.022 | ME56: -0.009810298219 | MF56: 0.829462166 | MG56: 0.01634341151 | MH56: -0.007410880008 | MI56: 0.835741017 | MJ56: 0.0167736323 | MK56: -0.01181421355 | ML56: 0.9368138245 | MM56: 0.022 | MN56: -0.005687451862 | MO56: 0.8613195072 | MP56: 0.01864760616 | MQ56: -0.004577071253 | MR56: 0.8568594446 | MS56: 0.01830510643 | MT56: -0.006013185359 | MU56: 0.9073250637 | MV56: 0.022 | MW56: 0.01634341151 | MY56: 0.002220690956 | MZ56: 102.043459 | NA56: 98.1796031 | NB56: 98.44138752 | NC56: 100.949366 | ND56: 99.0632273 | NE56: 98.96552764 | NF56: 100.4317635 | NG56: 100.2220691 | NH56: -0.02179603104 | NI56: 0.8883882817 | NJ56: 0.02090905412 | NK56: -0.01220693758 | NL56: 0.8656592117 | NM56: 0.01898814308 | NN56: -0.01649788679 | NO56: 0.9547265311 | NP56: 0.022 | NQ56: -0.007658068248 | NR56: 0.8750790502 | NS56: 0.01975428627 | NT56: -0.005931055281 | NU56: 0.8667215254 | NV56: 0.0190726486 | NW56: -0.007386272469 | NX56: 0.9160669686 | NY56: 0.022 | NZ56: -0.006031527279 | OA56: 0.9076905974 | OB56: 0.022 | OC56: 0.01898814308 | OF56: 0.022 | OG56: 0.02133524568 | OH56: 0.01355872918 | OI56: 0.0195698936 | OJ56: 0.02031077191 | OK56: 0.01467542277 | OL56: 0.01634341151 | OM56: 0.01898814308 | OO56: Yes | OQ56: 0.022 | OR56: 0.0151356671 | OS56: 0.01239125792 | OT56: 0.01367868603 | OU56: 0.01362343575 | OV56: 0.022 | OW56: 0.022 | OX56: 0.022 | OZ56: Yes
F57: 32 | G57: 0.01861362931 | H57: 101.8613629 | I57: -0.008373375616 | J57: 0.9461153844 | K57: 0.022 | M57: -0.002292699599 | N57: 101.6278254 | O57: 99.77073004 | P57: -0.009379709042 | Q57: 0.9453163214 | R57: 0.022 | S57: -0.0053867572 | T57: 0.8941905411 | U57: 0.02144336382 | V57: 0.02144336382 | X57: -0.03307450781 | Y57: 98.26653512 | Z57: 96.47086225 | AA57: 96.69254922 | AB57: -0.004533070239 | AC57: 0.8337114512 | AD57: 0.01663342597 | AE57: -0.0007847704165 | AF57: 0.740237864 | AG57: 0.01105670359 | AH57: -0.0009893560267 | AI57: 0.7643263019 | AJ57: 0.01236496992 | AK57: 0.01105670359 | AM57: 0.01960292255 | AN57: 100.1928464 | AO57: 98.36197309 | AP57: 98.58800577 | AQ57: 101.9602923 | AR57: -0.01048211599 | AS57: 0.920355239 | AT57: 0.022 | AU57: -0.004723946181 | AV57: 0.838506081 | AW57: 0.01696646881 | AX57: -0.004313342953 | AY57: 0.8501208229 | AZ57: 0.01780103013 | BA57: -0.008514703221 | BB57: 0.9479504021 | BC57: 0.022 | BD57: 0.01696646881 | BF57: 0.01555896034 | BG57: 101.7517429 | BH57: 99.89238313 | BI57: 100.1219326 | BJ57: 103.5466884 | BK57: 101.555896 | BL57: -0.0191724764 | BM57: 0.9714855313 | BN57: 0.022 | BO57: -0.009730957822 | BP57: 0.9097436311 | BQ57: 0.022 | BR57: -0.008243865288 | BS57: 0.9108647416 | BT57: 0.022 | BU57: -0.012577814 | BV57: 0.974833413 | BW57: 0.022 | BX57: -0.007936994335 | BY57: 0.9401247102 | BZ57: 0.022 | CA57: 0.022 | CC57: 0.02402876995 | CD57: 104.1967121 | CE57: 102.2926742 | CF57: 102.5277395 | CG57: 106.034788 | CH57: 103.9961593 | CI57: 102.402877 | CJ57: -0.04098356071 | CK57: 0.9984413873 | CL57: 0.022 | CM57: -0.02097558074 | CN57: 0.9795748688 | CO57: 0.022 | CP57: -0.01631934883 | CQ57: 0.9736958678 | CR57: 0.022 | CS57: -0.02006957591 | CT57: 0.9945837769 | CU57: 0.022 | CV57: -0.01332693216 | CW57: 0.9793511544 | CX57: 0.022 | CY57: -0.009146967136 | CZ57: 0.9555598943 | DA57: 0.022 | DB57: 0.022 | DD57: 0.0237474358 | DE57: 106.6711169 | DF57: 104.7218629 | DG57: 104.9625104 | DH57: 108.5528423 | DI57: 106.4658014 | DJ57: 104.8346827 | DK57: 102.3747436 | DL57: -0.1067111687 | DM57: 0.9999998091 | DN57: 0.022 | DO57: -0.04360931468 | DP57: 0.9991101435 | DQ57: 0.022 | DR57: -0.02987503481 | DS57: 0.9969808741 | DT57: 0.022 | DU57: -0.03138210568 | DV57: 0.9995292762 | DW57: 0.022 | DX57: -0.02093160283 | DY57: 0.9958014812 | DZ57: 0.022 | EA57: -0.01472447124 | EB57: 0.9859587288 | EC57: 0.022 | ED57: -0.009106776542 | EE57: 0.9551044818 | EF57: 0.022 | EG57: 0.022 | EI57: -0.009789846535 | EJ57: 105.626823 | EK57: 103.696652 | EL57: 103.9349436 | EM57: 107.4901266 | EN57: 105.4235176 | EO57: 103.8083673 | EP57: 101.3725106 | EQ57: 99.02101535 | ER57: -0.07696651969 | ES57: 0.9999026327 | ET57: 0.022 | EU57: -0.03967471786 | EV57: 0.9979592917 | EW57: 0.022 | EX57: -0.03830042202 | EY57: 0.9996740214 | EZ57: 0.022 | FA57: -0.02355879389 | FB57: 0.9952876816 | FC57: 0.022 | FD57: -0.01561673457 | FE57: 0.9819355451 | FF57: 0.022 | FG57: -0.008954184251 | FH57: 0.9398678335 | FI57: 0.022 | FJ57: -0.004315736209 | FK57: 0.8687120759 | FL57: 0.01923225093 | FM57: 0.01923225093 | FO57: 0.01151168982 | FP57: 104.8903757 | FQ57: 105.1314104 | FR57: 108.7275196 | FS57: 106.6371204 | FT57: 105.003377 | FU57: 102.5394794 | FV57: 100.1609146 | FW57: 101.151169 | FX57: -0.09131410405 | FY57: 0.999994009 | FZ57: 0.022 | GA57: -0.06363759801 | GB57: 0.9999948835 | GC57: 0.022 | GD57: -0.03545706797 | GE57: 0.9992766502 | GF57: 0.022 | GG57: -0.02250844253 | GH57: 0.9938037748 | GI57: 0.022 | GJ57: -0.0130789589 | GK57: 0.9669345598 | GL57: 0.022 | GM57: -0.006934857602 | GN57: 0.9080483534 | GO57: 0.022 | GP57: -0.007358812832 | GQ57: 0.9313985759 | GR57: 0.022 | GS57: 0.022 | GU57: -0.01697494045 | GV57: 103.346811 | GW57: 106.8818764 | GX57: 104.8269616 | GY57: 103.2209509 | GZ57: 100.7988779 | HA57: 98.460689 | HB57: 99.43413391 | HC57: 98.30250595 | HD57: -0.1088187643 | HE57: 0.9999998852 | HF57: 0.022 | HG57: -0.04413480811 | HH57: 0.9992070973 | HI57: 0.022 | HJ57: -0.02406983646 | HK57: 0.9889503286 | HL57: 0.022 | HM57: -0.01199719473 | HN57: 0.9388509949 | HO57: 0.022 | HP57: -0.004921378001 | HQ57: 0.8433695885 | HR57: 0.01731095044 | HS57: -0.00572355652 | HT57: 0.8837542744 | HU57: 0.02049643761 | HV57: -0.003289294221 | HW57: 0.840589183 | HX57: 0.01711317097 | HY57: 0.01711317097 | IA57: 0.005701447239 | IB57: 107.4912578 | IC57: 105.424627 | ID57: 103.8094597 | IE57: 101.3735774 | IF57: 99.02205742 | IG57: 100.0010524 | IH57: 98.86297251 | II57: 100.5701447 | IJ57: -0.09424627012 | IK57: 0.9999967768 | IL57: 0.022 | IM57: -0.03904729872 | IN57: 0.9976832536 | IO57: 0.022 | IP57: -0.01791192458 | IQ57: 0.9643722934 | IR57: 0.022 | IS57: -0.00755514356 | IT57: 0.8731433991 | IU57: 0.01959366115 | IV57: -0.008002104761 | IW57: 0.9068371175 | IX57: 0.022 | IY57: -0.004771620843 | IZ57: 0.8616972793 | JA57: 0.0186769582 | JB57: -0.006528778177 | JC57: 0.9171978664 | JD57: 0.022 | JE57: 0.0186769582 | JG57: 0.002617469456 | JH57: 105.7005728 | JI57: 104.0811778 | JJ57: 101.6389196 | JK57: 99.28124463 | JL57: 100.2628021 | JM57: 99.12174332 | JN57: 100.833384 | JO57: 100.2617469 | JP57: -0.08081177835 | JQ57: 0.9999520099 | JR57: 0.022 | JS57: -0.02819459809 | JT57: 0.9835716333 | JU57: 0.022 | JV57: -0.01093748212 | JW57: 0.8952154731 | JX57: 0.02153992825 | JY57: -0.0106570052 | JZ57: 0.9226846844 | KA57: 0.022 | KB57: -0.006243486634 | KC57: 0.8734354092 | KD57: 0.01961778292 | KE57: -0.00805564001 | KF57: 0.9269742583 | KG57: 0.022 | KH57: -0.006088209922 | KI57: 0.9088134733 | KJ57: 0.022 | KK57: 0.01961778292 | KM57: -0.005102759215 | KN57: 103.5500766 | KO57: 101.1202807 | KP57: 98.77463635 | KQ57: 99.75118514 | KR57: 98.61594893 | KS57: 100.3188555 | KT57: 99.75013539 | KU57: 99.48972408 | KV57: -0.05120280684 | KW57: 0.9946856207 | KX57: 0.022 | KY57: -0.01387318174 | KZ57: 0.8874760074 | LA57: 0.02082687135 | LB57: -0.01250395048 | LC57: 0.9159105056 | LD57: 0.022 | LE57: -0.006539872319 | LF57: 0.8529291892 | LG57: 0.01800922043 | LH57: -0.008637711053 | LI57: 0.9171463178 | LJ57: 0.022 | LK57: -0.006250225654 | LL57: 0.8948252722 | LM57: 0.02150308508 | LN57: -0.004985320112 | LO57: 0.8850950725 | LP57: 0.02061460068 | LQ57: 0.01800922043 | LS57: -0.009880537595 | LT57: 100.1211579 | LU57: 97.79868984 | LV57: 98.76558981 | LW57: 97.64157034 | LX57: 99.3276513 | LY57: 98.76455043 | LZ57: 98.50671212 | MA57: 99.01194624 | MB57: -0.01798689841 | MC57: 0.8519559336 | MD57: 0.01793677214 | ME57: -0.01382794904 | MF57: 0.8869193294 | MG57: 0.02077695631 | MH57: -0.005471901123 | MI57: 0.7951575882 | MJ57: 0.0141530511 | MK57: -0.008319128258 | ML57: 0.8870196872 | MM57: 0.020785942 | MN57: -0.005529100859 | MO57: 0.8577290653 | MP57: 0.01837131326 | MQ57: -0.004177853532 | MR57: 0.8465779023 | MS57: 0.01754206283 | MT57: -0.004302780344 | MU57: 0.8683799255 | MV57: 0.01920550367 | MW57: 0.0141530511 | MY57: 0.00724156498 | MZ57: 98.50690541 | NA57: 99.48080724 | NB57: 98.34864811 | NC57: 100.0469389 | ND57: 99.47976034 | NE57: 99.22005488 | NF57: 99.72894768 | NG57: 100.7241565 | NH57: -0.03480807245 | NI57: 0.9648100477 | NJ57: 0.022 | NK57: -0.01174324057 | NL57: 0.8591026113 | NM57: 0.01847644568 | NN57: -0.01348979648 | NO57: 0.9272613786 | NP57: 0.022 | NQ57: -0.008699400848 | NR57: 0.8935076375 | NS57: 0.02137939856 | NT57: -0.006440109752 | NU57: 0.8775378745 | NV57: 0.01996085352 | NW57: -0.006214912805 | NX57: 0.8941077155 | NY57: 0.02143558997 | NZ57: -0.006748794997 | OA57: 0.921161377 | OB57: 0.022 | OC57: 0.01847644568 | OF57: 0.01923225093 | OG57: 0.022 | OH57: 0.01711317097 | OI57: 0.0186769582 | OJ57: 0.01961778292 | OK57: 0.01800922043 | OL57: 0.0141530511 | OM57: 0.01847644568 | OO57: Yes | OQ57: 0.022 | OR57: 0.022 | OS57: 0.022 | OT57: 0.01663342597 | OU57: 0.022 | OV57: 0.022 | OW57: 0.022 | OX57: 0.022 | OZ57: Yes
